Workbook

Sheet Sąrašai (hidden)
B8: Meniu pasirinkti ūkio duomenims įvesti
B9: Gilus arimas (GA)
B10: Technologija | C10: Paaiškinimas
B11: Gilus arimas (GA) | C11: GA - skusta ražiena, gilus arimas rudenį 23-25 cm gyliu (kontrolė, gilus arimas)
B12: Seklus arimas (SA) | C12: SA - skusta ražiena, seklus arimas rudenį 10-12 cm gyliu (seklus arimas)
B13: Seklus purenimas rudenį (SPR) | C13: SPR - skusta ražiena, seklus purenimas rudenį diskiniu skutikliu 8-10 cm gyliu (seklus purenimas rudenį)
B14: Seklus purenimas prieš sėją (SPS) | C14: SPS - neskusta, seklus purenimas prieš sėją diskiniu skutikliu 4-5 cm gyliu (seklus purenimas prieš sėją)
B15: Tarpiniai pasėliai (TP) | C15: TP - neskusta, tarpinių pasėlių sėja į neįdirbtą dirvą, seklus purenimas prieš sėją diskiniu skutikliu 4-5 cm gyliu (tarpiniai pasėliai)
B16: Tiesioginė sėja (TS) | C16: TS - neskusta, tiesioginė sėja į neįdirbtą dirvą (nulinis žemės dirbimas)
B20: Taip
B21: Taip / Ne
B22: Taip
B23: Ne
B27: Visas priemonių sąrašas
B28: Gilus arimas (GA)
B29: Technologija | C29: Paaiškinimas
B30: Gilus arimas (GA) | C30: GA - skusta ražiena, gilus arimas rudenį 23-25 cm gyliu (kontrolė, gilus arimas)
B31: Seklus arimas (SA) | C31: SA - skusta ražiena, seklus arimas rudenį 10-12 cm gyliu (seklus arimas)
B32: Seklus purenimas rudenį (SPR) | C32: SPR - skusta ražiena, seklus purenimas rudenį diskiniu skutikliu 8-10 cm gyliu (seklus purenimas rudenį)
B33: Seklus purenimas prieš sėją (SPS) | C33: SPS - neskusta, seklus purenimas prieš sėją diskiniu skutikliu 4-5 cm gyliu (seklus purenimas prieš sėją)
B34: Tarpiniai pasėliai (TP) | C34: TP - neskusta, tarpinių pasėlių sėja į neįdirbtą dirvą, seklus purenimas prieš sėją diskiniu skutikliu 4-5 cm gyliu (tarpiniai pasėliai)
B35: Tiesioginė sėja (TS) | C35: TS - neskusta, tiesioginė sėja į neįdirbtą dirvą (nulinis žemės dirbimas)
B36: Šiaudai nepaliekami (R) | C36: R - šiaudai nepaliekami lauke
B37: Šiaudai paliekami lauke (S) | C37: S - šiaudai ir augalinės atliekos paliekamos lauke

Sheet Derlingumas_bandymai (hidden)
B7: Productivity of 2000-2023
B8: Tillage systems | F8: GA | G8: SA | H8: SPR | I8: SPS | J8: TP | K8: TS | AI8: Metai | AJ8: Pasėliai | AK8: Derlingums, t/ha
B9: Metai | C9: Crop | D9: R | E9: S | F9: CP | G9: SP | H9: SL | I9: SR | J9: GMR | K9: NT | AK9: GA | AL9: SA | AM9: SPR | AN9: SPS | AO9: TP | AP9: TS
B10: 2000 | C10: Vasariniai miežiai | D10: 2.3 | E10: 2.3 | F10: 2.5 | G10: 2.4 | H10: 2.3 | I10: 2.3 | J10: 2.1 | K10: 2.1 | AI10: 2000 | AJ10: Vasariniai miežiai | AK10: 2.5 | AL10: 2.4 | AM10: 2.3 | AN10: 2.3 | AO10: 2.1 | AP10: 2.1
B11: 2001 | C11: Vasariniai miežiai | D11: 4 | E11: 4.2 | F11: 4.4 | G11: 4.4 | H11: 4.4 | I11: 3.9 | J11: 3.7 | K11: 3.7 | AI11: 2001 | AJ11: Vasariniai miežiai | AK11: 4.4 | AL11: 4.4 | AM11: 4.4 | AN11: 3.9 | AO11: 3.7 | AP11: 3.7
B12: 2002 | C12: Vasariniai miežiai | D12: 5 | E12: 5.1 | F12: 5.4 | G12: 4.9 | H12: 5.2 | I12: 5.2 | J12: 4.8 | K12: 4.9 | AI12: 2002 | AJ12: Vasariniai miežiai | AK12: 5.4 | AL12: 4.9 | AM12: 5.2 | AN12: 5.2 | AO12: 4.8 | AP12: 4.9
B13: 2003 | C13: Vasariniai miežiai | D13: 4.1 | E13: 4.4 | F13: 4.5 | G13: 4.3 | H13: 4.1 | I13: 4.2 | J13: 4.3 | K13: 4.1 | AI13: 2003 | AJ13: Vasariniai miežiai | AK13: 4.5 | AL13: 4.3 | AM13: 4.1 | AN13: 4.2 | AO13: 4.3 | AP13: 4.1
B14: 2004 | C14: Vasariniai rapsai | D14: 2.4 | E14: 2.3 | F14: 2.4 | G14: 2.3 | H14: 2 | I14: 2.5 | J14: - | K14: 2.1 | AI14: 2004 | AJ14: Vasariniai rapsai | AK14: 2.36 | AL14: 2.27 | AM14: 2.39 | AN14: 2.5 | AO14: - | AP14: 2.13
B15: 2005 | C15: Žieminiai kviečiai | D15: 9.8 | E15: 10.4 | F15: 9.7 | G15: 9.1 | H15: 9.6 | I15: 10.9 | J15: 10.9 | K15: 10.4 | AI15: 2005 | AJ15: Žieminiai kviečiai | AK15: 9.71 | AL15: 9.09 | AM15: 9.55 | AN15: 10.86 | AO15: 10.87 | AP15: 10.41
B16: 2006 | C16: Vasariniai miežiai | D16: 3.3 | E16: 3.6 | F16: 3.6 | G16: 3.2 | H16: 3.7 | I16: 3.2 | J16: 3.6 | K16: 3.4 | AI16: 2006 | AJ16: Vasariniai miežiai | AK16: 3.57 | AL16: 3.2 | AM16: 3.74 | AN16: 3.24 | AO16: 3.62 | AP16: 3.4
B17: 2007 | C17: Vasariniai rapsai | D17: 2.1 | E17: 2.1 | F17: 2.1 | G17: 2.2 | H17: 2.1 | I17: 2.1 | J17: 1.8 | K17: 2.1 | AI17: 2007 | AJ17: Vasariniai rapsai | AK17: 2.07 | AL17: 2.24 | AM17: 2.14 | AN17: 2.12 | AO17: 1.83 | AP17: 2.05
B18: 2008 | C18: Žieminiai kviečiai | D18: 7.1 | E18: 7.6 | F18: 7.2 | G18: 6.7 | H18: 7.1 | I18: 7.9 | J18: 7.3 | K18: 7.8 | AI18: 2008 | AJ18: Žieminiai kviečiai | AK18: 7.16 | AL18: 6.69 | AM18: 7.09 | AN18: 7.86 | AO18: 7.34 | AP18: 7.76
B19: 2009 | C19: Vasariniai miežiai | D19: 4.6 | E19: 5.1 | F19: 5.4 | G19: 5.1 | H19: 5.2 | I19: 4.5 | J19: 4.6 | K19: 4.5 | AI19: 2009 | AJ19: Vasariniai miežiai | AK19: 5.4 | AL19: 5.11 | AM19: 5.19 | AN19: 4.5 | AO19: 4.56 | AP19: 4.45
B20: 2010 | C20: Vasariniai rapsai | D20: 1.5 | E20: 1.5 | F20: 1.7 | G20: 1.6 | H20: 1.5 | I20: 1.5 | J20: 1.3 | K20: 1.5 | AI20: 2010 | AJ20: Vasariniai rapsai | AK20: 1.7 | AL20: 1.6 | AM20: 1.5 | AN20: 1.5 | AO20: 1.3 | AP20: 1.5
B21: 2011 | C21: Žieminiai kviečiai | D21: 5.8 | E21: 6.1 | F21: 5.7 | G21: 5.2 | H21: 5.3 | I21: 6.5 | J21: 6.6 | K21: 6.4 | AI21: 2011 | AJ21: Žieminiai kviečiai | AK21: 5.72 | AL21: 5.16 | AM21: 5.29 | AN21: 6.52 | AO21: 6.57 | AP21: 6.43
B22: 2012 | C22: Vasariniai miežiai | D22: 4.6 | E22: 4.5 | F22: 5.1 | G22: 4.4 | H22: 4.3 | I22: 4.5 | J22: 4.5 | K22: 4.6 | AI22: 2012 | AJ22: Vasariniai miežiai | AK22: 5.06 | AL22: 4.41 | AM22: 4.3 | AN22: 4.47 | AO22: 4.53 | AP22: 4.61
B23: 2013 | C23: Vasariniai rapsai | D23: 0.6 | E23: 0.6 | F23: 0.6 | G23: 0.6 | H23: 0.6 | I23: 0.3 | J23: 0.5 | K23: 0.6 | AI23: 2013 | AJ23: Vasariniai rapsai | AK23: 0.6 | AL23: 0.61 | AM23: 0.57 | AN23: 0.34 | AO23: 0.58 | AP23: 0.6
B24: 2014 | C24: Žieminiai kviečiai | D24: 7.8 | E24: 8.4 | F24: 8 | G24: 7.8 | H24: 7.8 | I24: 8 | J24: 8.8 | K24: 8.3 | AI24: 2014 | AJ24: Žieminiai kviečiai | AK24: 7.97 | AL24: 7.78 | AM24: 7.8 | AN24: 8 | AO24: 8.78 | AP24: 8.25
B25: 2015 | C25: Vasariniai miežiai | D25: 7.2 | E25: 7.3 | F25: 7.3 | G25: 6.7 | H25: 7.2 | I25: 7.4 | J25: 7.4 | K25: 7.5 | AI25: 2015 | AJ25: Vasariniai miežiai | AK25: 7.28 | AL25: 6.73 | AM25: 7.2 | AN25: 7.42 | AO25: 7.36 | AP25: 7.46
B26: 2016 | C26: Vasariniai rapsai | D26: 1.23 | E26: 1.18 | F26: 1.12 | G26: 1.2 | H26: 1.2 | I26: 1.21 | J26: 1.34 | K26: 1.15 | AI26: 2016 | AJ26: Vasariniai rapsai | AK26: 1.12 | AL26: 1.2 | AM26: 1.2 | AN26: 1.21 | AO26: 1.34 | AP26: 1.15
B27: 2017 | C27: Žieminiai kviečiai | D27: 9.3 | E27: 9.82 | F27: 9 | G27: 8.93 | H27: 9.27 | I27: 10.83 | J27: 10.27 | K27: 9.8 | AI27: 2017 | AJ27: Žieminiai kviečiai | AK27: 9 | AL27: 8.93 | AM27: 9.27 | AN27: 10.83 | AO27: 10.27 | AP27: 9.8
B28: 2018 | C28: Vasariniai miežiai | D28: 4.72 | E28: 4.84 | F28: 4.95 | G28: 4.6 | H28: 4.4 | I28: 4.64 | J28: 4.84 | K28: 5.27 | AI28: 2018 | AJ28: Vasariniai miežiai | AK28: 4.95 | AL28: 4.6 | AM28: 4.4 | AN28: 4.64 | AO28: 4.84 | AP28: 5.27
B29: 2019 | C29: Vasariniai rapsai | D29: 1.45 | E29: 1.52 | F29: 1.48 | G29: 1.47 | H29: 1.48 | I29: 1.47 | J29: 1.58 | K29: 1.45 | AI29: 2019 | AJ29: Vasariniai rapsai | AK29: 1.48 | AL29: 1.47 | AM29: 1.48 | AN29: 1.47 | AO29: 1.58 | AP29: 1.45
B30: 2020 | C30: Žieminiai kviečiai | D30: 9.93 | E30: 9.4 | F30: 9.45 | G30: 9.69 | H30: 8.81 | I30: 10.34 | J30: 10.06 | K30: 9.63 | AI30: 2020 | AJ30: Žieminiai kviečiai | AK30: 9.45 | AL30: 9.69 | AM30: 8.81 | AN30: 10.34 | AO30: 10.06 | AP30: 9.63
B31: 2021 | C31: Vasariniai miežiai | D31: 3.62 | E31: 3.93 | F31: 3.62 | G31: 4.13 | H31: 3.29 | I31: 3.94 | J31: 3.53 | K31: 4.14 | AI31: 2021 | AJ31: Vasariniai miežiai | AK31: 3.62 | AL31: 4.13 | AM31: 3.29 | AN31: 3.94 | AO31: 3.53 | AP31: 4.14
B32: 2022 | C32: Žieminiai rapsai | D32: 2.69 | E32: 2.84 | F32: 2.37 | G32: 2.39 | H32: 2.48 | I32: 2.85 | J32: 3.11 | K32: 3.37
B33: 2023 | C33: Žieminiai kviečiai | D33: 9.9 | E33: 10.1 | F33: 9.37 | G33: 9.73 | H33: 9.97 | I33: 10.47 | J33: 10.71 | K33: 10.1
C37: Žieminiai kviečiai
D38: R | E38: S | F38: GA | G38: SA | H38: SPR | I38: SPS | J38: TP | K38: TS | M38: Metai | N38: R | O38: S | P38: GA | Q38: SA | R38: SPR | S38: SPS | T38: TP | U38: TS
B39: =_xlfn._xlws.FILTER(Lentelė7[],Lentelė7[Crop]=C37,"-") -> 2005 | C39: Žieminiai kviečiai | D39: 9.8 | E39: 10.4 | F39: 9.7 | G39: 9.1 | H39: 9.6 | I39: 10.9 | J39: 10.9 | K39: 10.4 | M39: =+B39 -> 2005 | N39: =+D39-$D39 -> 0 | O39: 0.6 | P39: =+F39-$F39 -> 0 | Q39: =+G39-$F39 -> -0.6 | R39: =+H39-$F39 -> -0.1 | S39: 1.2 | T39: 1.2 | U39: =+K39-$F39 -> 0.7
B40: 2008 | C40: Žieminiai kviečiai | D40: 7.1 | E40: 7.6 | F40: 7.2 | G40: 6.7 | H40: 7.1 | I40: 7.9 | J40: 7.3 | K40: 7.8 | M40: 2008 | N40: 0 | O40: 0.5 | P40: =+F40-$F40 -> 0 | Q40: -0.5 | R40: =+H40-$F40 -> -0.1 | S40: =+I40-$F40 -> 0.7 | T40: =+J40-$F40 -> 0.1 | U40: =+K40-$F40 -> 0.6 | X40: R | Y40: S | Z40: GA | AA40: SA | AB40: SPR | AC40: SPS | AD40: TP | AE40: TS
B41: 2011 | C41: Žieminiai kviečiai | D41: 5.8 | E41: 6.1 | F41: 5.7 | G41: 5.2 | H41: 5.3 | I41: 6.5 | J41: 6.6 | K41: 6.4 | M41: 2011 | N41: 0 | O41: 0.3 | P41: 0 | Q41: -0.5 | R41: -0.4 | S41: 0.8 | T41: 0.9 | U41: 0.7 | W41: =_xlfn.CONCAT(B39,", ",B40,", ",B41) -> 2005, 2008, 2011 | X41: =AVERAGE(D39:D41) -> 7.566666667 | Y41: 8.033333333 | Z41: 7.533333333 | AA41: 7 | AB41: 7.333333333 | AC41: 8.433333333 | AD41: 8.266666667 | AE41: 8.2
B42: 2014 | C42: Žieminiai kviečiai | D42: 7.8 | E42: 8.4 | F42: 8 | G42: 7.8 | H42: 7.8 | I42: 8 | J42: 8.8 | K42: 8.3 | M42: 2014 | N42: 0 | O42: 0.6 | P42: 0 | Q42: -0.2 | R42: -0.2 | S42: 0 | T42: 0.8 | U42: 0.3 | W42: =_xlfn.CONCAT(B40,", ",B41,", ",B42) -> 2008, 2011, 2014 | X42: =AVERAGE(D40:D42) -> 6.9 | Y42: =AVERAGE(E40:E42) -> 7.366666667 | Z42: 6.966666667 | AA42: 6.566666667 | AB42: 6.733333333 | AC42: 7.466666667 | AD42: 7.566666667 | AE42: 7.5
B43: 2017 | C43: Žieminiai kviečiai | D43: 9.3 | E43: 9.82 | F43: 9 | G43: 8.93 | H43: 9.27 | I43: 10.83 | J43: 10.27 | K43: 9.8 | M43: 2017 | N43: 0 | O43: 0.52 | P43: 0 | Q43: -0.07 | R43: 0.27 | S43: 1.83 | T43: 1.27 | U43: 0.8 | W43: =_xlfn.CONCAT(B41,", ",B42,", ",B43) -> 2011, 2014, 2017 | X43: =AVERAGE(D41:D43) -> 7.633333333 | Y43: 8.106666667 | Z43: 7.566666667 | AA43: 7.31 | AB43: 7.456666667 | AC43: 8.443333333 | AD43: 8.556666667 | AE43: 8.166666667
B44: 2020 | C44: Žieminiai kviečiai | D44: 9.93 | E44: 9.4 | F44: 9.45 | G44: 9.69 | H44: 8.81 | I44: 10.34 | J44: 10.06 | K44: 9.63 | M44: 2020 | N44: 0 | O44: -0.53 | P44: 0 | Q44: 0.24 | R44: -0.64 | S44: 0.89 | T44: 0.61 | U44: 0.18 | W44: =_xlfn.CONCAT(B42,", ",B43,", ",B44) -> 2014, 2017, 2020 | X44: =AVERAGE(D42:D44) -> 9.01 | Y44: 9.206666667 | Z44: 8.816666667 | AA44: 8.806666667 | AB44: 8.626666667 | AC44: 9.723333333 | AD44: 9.71 | AE44: 9.243333333
B45: 2023 | C45: Žieminiai kviečiai | D45: 9.9 | E45: 10.1 | F45: 9.37 | G45: 9.73 | H45: 9.97 | I45: 10.47 | J45: 10.71 | K45: 10.1 | M45: 2023 | N45: 0 | O45: 0.2 | P45: 0 | Q45: 0.36 | R45: 0.6 | S45: 1.1 | T45: 1.34 | U45: 0.73 | W45: =_xlfn.CONCAT(B43,", ",B44,", ",B45) -> 2017, 2020, 2023 | X45: =AVERAGE(D43:D45) -> 9.71 | Y45: 9.773333333 | Z45: 9.273333333 | AA45: 9.45 | AB45: 9.35 | AC45: 10.54666667 | AD45: 10.34666667 | AE45: 9.843333333
B46: Vidurkis | C46: =+C45 -> Žieminiai kviečiai | D46: =AVERAGE(D39:D45) -> 8.518571429 | E46: =AVERAGE(E39:E45) -> 8.831428571 | F46: 8.345714286 | G46: =AVERAGE(G39:G45) -> 8.164285714 | H46: =AVERAGE(H39:H45) -> 8.264285714 | I46: 9.277142857 | J46: 9.234285714 | K46: 8.918571429 | M46: =+C46 -> Žieminiai kviečiai | N46: 0 | O46: =+E46-$D46 -> 0.3128571429 | P46: 0 | Q46: =+G46-$F46 -> -0.1814285714 | R46: -0.08142857143 | S46: 0.9314285714 | T46: 0.8885714286 | U46: 0.5728571429
B47: Standartinis nuokrypis | C47: =+C46 -> Žieminiai kviečiai | D47: =_xlfn.STDEV.P(D39:D45) -> 1.51527865 | E47: =_xlfn.STDEV.P(E39:E45) -> 1.440906744 | F47: 1.360817581 | G47: 1.572303652 | H47: 1.52881707 | I47: 1.640459119 | J47: 1.584585184 | K47: 1.354910947
B48: Variacijos koef. | C48: Žieminiai kviečiai | D48: =+D47/D46 -> 0.1778794324 | E48: =+E47/E46 -> 0.1631567002 | F48: 0.1630558554 | G48: 0.1925831245 | H48: 0.1849908295 | I48: 0.1768280541 | J48: 0.1715980242 | K48: 0.1519201766
O49: =SUMIFS(DerlingBandRez[Derlingumas],DerlingBandRez[Žemės ūkio augalas],DerlingBandRez!C11,DerlingBandRez[Technologija],DerlingBandRez!E12) -> 45.27
C52: Vasariniai miežiai
D53: R | E53: S | F53: GA | G53: SA | H53: SPR | I53: SPS | J53: TP | K53: TS | M53: Metai | N53: R | O53: S | P53: GA | Q53: SA | R53: SPR | S53: SPS | T53: TP | U53: TS
B54: =_xlfn._xlws.FILTER(Lentelė7[],Lentelė7[Crop]=C52,"-") -> 2000 | C54: Vasariniai miežiai | D54: 2.3 | E54: 2.3 | F54: 2.5 | G54: 2.4 | H54: 2.3 | I54: 2.3 | J54: 2.1 | K54: 2.1 | M54: =+B54 -> 2000 | N54: =+D54-$D54 -> 0 | O54: =+E54-$D54 -> 0 | P54: =+F54-$F54 -> 0 | Q54: =+G54-$F54 -> -0.1 | R54: =+H54-$F54 -> -0.2 | S54: -0.2 | T54: -0.4 | U54: -0.4
B55: 2001 | C55: Vasariniai miežiai | D55: 4 | E55: 4.2 | F55: 4.4 | G55: 4.4 | H55: 4.4 | I55: 3.9 | J55: 3.7 | K55: 3.7 | M55: 2001 | N55: 0 | O55: 0.2 | P55: =+F55-$F55 -> 0 | Q55: 0 | R55: =+H55-$F55 -> 0 | S55: =+I55-$F55 -> -0.5 | T55: =+J55-$F55 -> -0.7 | U55: =+K55-$F55 -> -0.7
B56: 2002 | C56: Vasariniai miežiai | D56: 5 | E56: 5.1 | F56: 5.4 | G56: 4.9 | H56: 5.2 | I56: 5.2 | J56: 4.8 | K56: 4.9 | M56: 2002 | N56: 0 | O56: 0.1 | P56: 0 | Q56: -0.5 | R56: -0.2 | S56: -0.2 | T56: -0.6 | U56: -0.5 | X56: R | Y56: S | Z56: GA | AA56: SA | AB56: SPR | AC56: SPS | AD56: TP | AE56: TS
B57: 2003 | C57: Vasariniai miežiai | D57: 4.1 | E57: 4.4 | F57: 4.5 | G57: 4.3 | H57: 4.1 | I57: 4.2 | J57: 4.3 | K57: 4.1 | M57: 2003 | N57: 0 | O57: 0.3 | P57: 0 | Q57: -0.2 | R57: -0.4 | S57: -0.3 | T57: -0.2 | U57: -0.4 | W57: =_xlfn.CONCAT(B55,", ",B56,", ",B57) -> 2001, 2002, 2003 | X57: =AVERAGE(D55:D57) -> 4.366666667 | Y57: 4.566666667 | Z57: 4.766666667 | AA57: 4.533333333 | AB57: 4.566666667 | AC57: 4.433333333 | AD57: 4.266666667 | AE57: 4.233333333
B58: 2006 | C58: Vasariniai miežiai | D58: 3.3 | E58: 3.6 | F58: 3.6 | G58: 3.2 | H58: 3.7 | I58: 3.2 | J58: 3.6 | K58: 3.4 | M58: 2006 | N58: 0 | O58: 0.3 | P58: 0 | Q58: -0.4 | R58: 0.1 | S58: -0.4 | T58: 0 | U58: -0.2 | W58: 2002, 2003, 2006 | X58: =AVERAGE(D56:D58) -> 4.133333333 | Y58: =AVERAGE(E56:E58) -> 4.366666667 | Z58: 4.5 | AA58: 4.133333333 | AB58: 4.333333333 | AC58: 4.2 | AD58: 4.233333333 | AE58: 4.133333333
B59: 2009 | C59: Vasariniai miežiai | D59: 4.6 | E59: 5.1 | F59: 5.4 | G59: 5.1 | H59: 5.2 | I59: 4.5 | J59: 4.6 | K59: 4.5 | M59: 2009 | N59: 0 | O59: 0.5 | P59: 0 | Q59: -0.3 | R59: -0.2 | S59: -0.9 | T59: -0.8 | U59: -0.9 | W59: 2003, 2006, 2009 | X59: 4 | Y59: 4.366666667 | Z59: 4.5 | AA59: 4.2 | AB59: 4.333333333 | AC59: 3.966666667 | AD59: 4.166666667 | AE59: 4
B60: 2012 | C60: Vasariniai miežiai | D60: 4.6 | E60: 4.5 | F60: 5.1 | G60: 4.4 | H60: 4.3 | I60: 4.5 | J60: 4.5 | K60: 4.6 | M60: 2012 | N60: 0 | O60: -0.1 | P60: 0 | Q60: -0.7 | R60: -0.8 | S60: -0.6 | T60: -0.6 | U60: -0.5 | W60: 2006, 2009, 2012 | X60: 4.166666667 | Y60: 4.4 | Z60: 4.7 | AA60: 4.233333333 | AB60: 4.4 | AC60: 4.066666667 | AD60: 4.233333333 | AE60: 4.166666667
B61: 2015 | C61: Vasariniai miežiai | D61: 7.2 | E61: 7.3 | F61: 7.3 | G61: 6.7 | H61: 7.2 | I61: 7.4 | J61: 7.4 | K61: 7.5 | M61: 2015 | N61: 0 | O61: 0.1 | P61: 0 | Q61: -0.6 | R61: -0.1 | S61: 0.1 | T61: 0.1 | U61: 0.2 | W61: 2009, 2012, 2015 | X61: 5.466666667 | Y61: 5.633333333 | Z61: 5.933333333 | AA61: 5.4 | AB61: 5.566666667 | AC61: 5.466666667 | AD61: 5.5 | AE61: 5.533333333
B62: 2018 | C62: Vasariniai miežiai | D62: 4.72 | E62: 4.84 | F62: 4.95 | G62: 4.6 | H62: 4.4 | I62: 4.64 | J62: 4.84 | K62: 5.27 | M62: 2018 | N62: 0 | O62: 0.12 | P62: 0 | Q62: -0.35 | R62: -0.55 | S62: -0.31 | T62: -0.11 | U62: 0.32 | W62: 2012, 2015, 2018 | X62: 5.506666667 | Y62: =AVERAGE(E60:E62) -> 5.546666667 | Z62: 5.783333333 | AA62: 5.233333333 | AB62: 5.3 | AC62: 5.513333333 | AD62: 5.58 | AE62: 5.79
B63: 2021 | C63: Vasariniai miežiai | D63: 3.62 | E63: 3.93 | F63: 3.62 | G63: 4.13 | H63: 3.29 | I63: 3.94 | J63: 3.53 | K63: 4.14 | M63: 2021 | N63: 0 | O63: 0.31 | P63: 0 | Q63: 0.51 | R63: -0.33 | S63: 0.32 | T63: -0.09 | U63: 0.52 | W63: 2015, 2018, 2021 | X63: 5.18 | Y63: =AVERAGE(E61:E63) -> 5.356666667 | Z63: 5.29 | AA63: 5.143333333 | AB63: 4.963333333 | AC63: 5.326666667 | AD63: 5.256666667 | AE63: 5.636666667
B64: Vidurkis | C64: =+C63 -> Vasariniai miežiai | D64: =AVERAGE(D55:D63) -> 4.571111111 | E64: =AVERAGE(E55:E63) -> 4.774444444 | F64: 4.918888889 | G64: 4.636666667 | H64: 4.643333333 | I64: 4.608888889 | J64: 4.585555556 | K64: 4.678888889 | M64: =+C64 -> Vasariniai miežiai | N64: 0 | O64: =+E64-$D64 -> 0.2033333333 | P64: 0 | Q64: =+G64-$F64 -> -0.2822222222 | R64: -0.2755555556 | S64: -0.31 | T64: -0.3333333333 | U64: -0.24
B65: Standartinis nuokrypis | C65: =+C64 -> Vasariniai miežiai | D65: =_xlfn.STDEV.P(D54:D63) -> 1.217761881 | E65: =_xlfn.STDEV.P(E54:E63) -> 1.214216208 | F65: 1.237077605 | G65: 1.076624819 | H65: 1.239003228 | I65: 1.267452563 | J65: 1.286499514 | K65: 1.326653308
B66: Variacijos koef. | C66: Vasariniai miežiai | D66: =+D65/D64 -> 0.2664039118 | E66: =+E65/E64 -> 0.2543157057 | F66: =+F65/F64 -> 0.2514953341 | G66: =+G65/G64 -> 0.2321980198 | H66: =+H65/H64 -> 0.2668348661 | I66: =+I65/I64 -> 0.2750017615 | J66: =+J65/J64 -> 0.2805547765 | K66: =+K65/K64 -> 0.2835402463
C69: Vasariniai rapsai
D70: R | E70: S | F70: GA | G70: SA | H70: SPR | I70: SPS | J70: TP | K70: TS | M70: Metai | N70: R | O70: S | P70: GA | Q70: SA | R70: SPR | S70: SPS | T70: TP | U70: TS
B71: =_xlfn._xlws.FILTER(Lentelė7[],Lentelė7[Crop]=C69,"-") -> 2004 | C71: Vasariniai rapsai | D71: 2.4 | E71: 2.3 | F71: 2.4 | G71: 2.3 | H71: 2 | I71: 2.5 | J71: - | K71: 2.1 | M71: =+B71 -> 2004 | N71: =+D71-$D71 -> 0 | O71: -0.1 | P71: =+F71-$F71 -> 0 | Q71: =+G71-$F71 -> -0.1 | R71: =+H71-$F71 -> -0.4 | S71: 0.1 | U71: -0.3
B72: 2007 | C72: Vasariniai rapsai | D72: 2.1 | E72: 2.1 | F72: 2.1 | G72: 2.2 | H72: 2.1 | I72: 2.1 | J72: 1.8 | K72: 2.1 | M72: 2007 | N72: 0 | O72: 0 | P72: =+F72-$F72 -> 0 | Q72: 0.1 | R72: 0 | S72: 0 | T72: -0.3 | U72: 0
B73: 2010 | C73: Vasariniai rapsai | D73: 1.5 | E73: 1.5 | F73: 1.7 | G73: 1.6 | H73: 1.5 | I73: 1.5 | J73: 1.3 | K73: 1.5 | M73: 2010 | N73: 0 | O73: 0 | P73: 0 | Q73: -0.1 | R73: -0.2 | S73: -0.2 | T73: -0.4 | U73: -0.2 | X73: R | Y73: S | Z73: GA | AA73: SA | AB73: SPR | AC73: SPS | AD73: TP | AE73: TS
B74: 2013 | C74: Vasariniai rapsai | D74: 0.6 | E74: 0.6 | F74: 0.6 | G74: 0.6 | H74: 0.6 | I74: 0.3 | J74: 0.5 | K74: 0.6 | M74: 2013 | N74: 0 | O74: 0 | P74: 0 | Q74: 0 | R74: 0 | S74: -0.3 | T74: -0.1 | U74: 0 | W74: =_xlfn.CONCAT(B72,", ",B73,", ",B74) -> 2007, 2010, 2013 | X74: =AVERAGE(D72:D74) -> 1.4 | Y74: 1.4 | Z74: 1.466666667 | AA74: 1.466666667 | AB74: 1.4 | AC74: 1.3 | AD74: 1.2 | AE74: 1.4
B75: 2016 | C75: Vasariniai rapsai | D75: 1.23 | E75: 1.18 | F75: 1.12 | G75: 1.2 | H75: 1.2 | I75: 1.21 | J75: 1.34 | K75: 1.15 | M75: 2016 | N75: 0 | O75: -0.05 | P75: 0 | Q75: 0.08 | R75: 0.08 | S75: 0.09 | T75: 0.22 | U75: 0.03 | W75: =_xlfn.CONCAT(B73,", ",B74,", ",B75) -> 2010, 2013, 2016 | X75: =AVERAGE(D73:D75) -> 1.11 | Y75: =AVERAGE(E73:E75) -> 1.093333333 | Z75: 1.14 | AA75: 1.133333333 | AB75: 1.1 | AC75: 1.003333333 | AD75: 1.046666667 | AE75: 1.083333333
B76: 2019 | C76: Vasariniai rapsai | D76: 1.45 | E76: 1.52 | F76: 1.48 | G76: 1.47 | H76: 1.48 | I76: 1.47 | J76: 1.58 | K76: 1.45 | M76: 2019 | N76: 0 | O76: 0.07 | P76: 0 | Q76: -0.01 | R76: 0 | S76: -0.01 | T76: 0.1 | U76: -0.03 | W76: =_xlfn.CONCAT(B74,", ",B75,", ",B76) -> 2013, 2016, 2019 | X76: =AVERAGE(D74:D76) -> 1.093333333 | Y76: 1.1 | Z76: 1.066666667 | AA76: 1.09 | AB76: 1.093333333 | AC76: 0.9933333333 | AD76: 1.14 | AE76: 1.066666667
B77: Vidurkis | C77: =+C76 -> Vasariniai rapsai | D77: =AVERAGE(D71:D76) -> 1.546666667 | E77: 1.533333333 | F77: 1.566666667 | G77: 1.561666667 | H77: 1.48 | I77: 1.513333333 | J77: 1.304 | K77: 1.483333333 | M77: =+C77 -> Vasariniai rapsai | N77: 0 | O77: =+E77-$D77 -> -0.01333333333 | P77: 0 | Q77: =+G77-$F77 -> -0.005 | R77: -0.08666666667 | S77: -0.05333333333 | T77: -0.2626666667 | U77: -0.08333333333
B78: Standartinis nuokrypis | C78: =+C77 -> Vasariniai rapsai | D78: =_xlfn.STDEV.P(D71:D76) -> 0.5834285637 | E78: =_xlfn.STDEV.P(E71:E76) -> 0.5636389703 | F78: 0.5969552375 | G78: 0.5799545001 | H78: 0.5013315603 | I78: 0.6932932681 | J78: 0.4404361475 | K78: 0.5249338583
B79: Variacijos koef. | C79: Vasariniai rapsai | D79: =+D78/D77 -> 0.3772167437 | E79: =+E78/E77 -> 0.3675906328 | F79: 0.381035258 | G79: 0.3713689435 | H79: 0.3387375407 | I79: 0.4581233049 | J79: 0.3377577818 | K79: 0.3538879943
C82: Žieminiai rapsai
D83: R | E83: S | F83: GA | G83: SA | H83: SPR | I83: SPS | J83: TP | K83: TS | M83: Metai | N83: R | O83: S | P83: GA | Q83: SA | R83: SPR | S83: SPS | T83: TP | U83: TS | X83: R | Y83: S | Z83: GA | AA83: SA | AB83: SPR | AC83: SPS | AD83: TP | AE83: TS
B84: =_xlfn._xlws.FILTER(Lentelė7[],Lentelė7[Crop]=C82,"-") -> 2022 | C84: Žieminiai rapsai | D84: 2.69 | E84: 2.84 | F84: 2.37 | G84: 2.39 | H84: 2.48 | I84: 2.85 | J84: 3.11 | K84: 3.37 | M84: =+B84 -> 2022 | N84: =+D84-$D84 -> 0 | O84: =+E84-$D84 -> 0.15 | P84: =+F84-$F84 -> 0 | Q84: 0.02 | R84: 0.11 | S84: 0.48 | T84: 0.74 | U84: 1 | W84: =+B84 -> 2022 | X84: =+D84 -> 2.69 | Y84: =+E84 -> 2.84 | Z84: 2.37 | AA84: 2.39 | AB84: 2.48 | AC84: 2.85 | AD84: 3.11 | AE84: 3.37
B85: Vidurkis | C85: =+C84 -> Žieminiai rapsai | D85: =AVERAGE(D84:D84) -> 2.69 | E85: 2.84 | F85: 2.37 | G85: 2.39 | H85: 2.48 | I85: 2.85 | J85: 3.11 | K85: 3.37 | N85: 0 | O85: =+E85-$D85 -> 0.15 | P85: 0 | Q85: =+G85-$F85 -> 0.02 | R85: =+H85-$F85 -> 0.11 | S85: =+I85-$F85 -> 0.48 | T85: =+J85-$F85 -> 0.74 | U85: =+K85-$F85 -> 1
B86: Standartinis nuokrypis | C86: =+C85 -> Žieminiai rapsai | D86: =_xlfn.STDEV.P(D84:D84) -> 0 | E86: 0 | F86: 0 | G86: 0 | H86: 0 | I86: 0 | J86: 0 | K86: 0
B87: Variacijos koef. | C87: Žieminiai rapsai | D87: =+D86/D85 -> 0 | E87: =+E86/E85 -> 0 | F87: =+F86/F85 -> 0 | G87: =+G86/G85 -> 0 | H87: =+H86/H85 -> 0 | I87: =+I86/I85 -> 0 | J87: =+J86/J85 -> 0 | K87: =+K86/K85 -> 0
D92: 350 | E92: =+D92 -> 350 | F92: 350 | G92: 350 | H92: 350 | I92: 350 | J92: 350 | K92: 350
D93: =+D92*D84 -> 941.5 | E93: 994 | F93: 829.5 | G93: 836.5 | H93: 868 | I93: 997.5 | J93: 1088.5 | K93: 1179.5 | O93: =+E93/D93-1 -> 0.05576208178 | Q93: =+G93/$F93-1 -> 0.008438818565 | R93: =+H93/$F93-1 -> 0.04641350211 | S93: 0.2025316456 | T93: 0.3122362869 | U93: 0.4219409283
C97: Žieminiai javai
C98: Vasariniai javai
C99: Žieminiai rapsai
B103: =TRANSPOSE(B83:K87) -> 0 | C103: 2022 | D103: Vidurkis | E103: Standartinis nuokrypis | F103: Variacijos koef.
B104: 0 | C104: Žieminiai rapsai | D104: Žieminiai rapsai | E104: Žieminiai rapsai | F104: Žieminiai rapsai
B105: R | C105: 2.69 | D105: 2.69 | E105: 0 | F105: 0
B106: S | C106: 2.84 | D106: 2.84 | E106: 0 | F106: 0
B107: GA | C107: 2.37 | D107: 2.37 | E107: 0 | F107: 0
B108: SA | C108: 2.39 | D108: 2.39 | E108: 0 | F108: 0
B109: SPR | C109: 2.48 | D109: 2.48 | E109: 0 | F109: 0
B110: SPS | C110: 2.85 | D110: 2.85 | E110: 0 | F110: 0
B111: TP | C111: 3.11 | D111: 3.11 | E111: 0 | F111: 0
B112: TS | C112: 3.37 | D112: 3.37 | E112: 0 | F112: 0
B119: Gilus arimas (GA) | D119: GA - skusta ražiena, gilus arimas rudenį 23-25 cm gyliu (kontrolė, gilus arimas)
B120: Seklus arimas (SA) | D120: SA - skusta ražiena, seklus arimas rudenį 10-12 cm gyliu (seklus arimas)
B121: Seklus purenimas rudenį (SPR) | D121: SPR - skusta ražiena, seklus purenimas rudenį diskiniu skutikliu 8-10 cm gyliu (seklus purenimas rudenį)
B122: Seklus purenimas prieš sėją (SPS) | D122: SPS - neskusta, seklus purenimas prieš sėją diskiniu skutikliu 4-5 cm gyliu (seklus purenimas prieš sėją)
B123: Tarpiniai pasėliai (TP) | D123: TP - neskusta, tarpinių pasėlių sėja į neįdirbtą dirvą, seklus purenimas prieš sėją diskiniu skutikliu 4-5 cm gyliu (tarpiniai pasėliai)
B124: Tiesioginė sėja (TS) | D124: TS - neskusta, tiesioginė sėja į neįdirbtą dirvą (nulinis žemės dirbimas)

Sheet Informacija

Sheet Duomenys (hidden)
B2: I | C2: Humusingumas
C3: Pasirinkite | D3: -
C4: Labai mažo humusingumo | D4: 1
C5: Mažo humusingumo | D5: 2
C6: Vidutinio humusingumo | D6: 3
C7: Humusingi | D7: 4
C8: Didelio humusingumo | D8: 5
C9: Labai mažo humusingumo (≤ 0,5 proc.); mažo humusingumo (0,51 – 3,0 proc.); vidutinio humusingumo (3,01 – 4,0 proc.); humusingi (4,01 – 6,0 proc.); didelio humusingumo (≥ 6,0 proc.).
B11: II | C11: Granuliometrinė sudėtis
C12: Pasirinkite | D12: -
C13: Smėlis | D13: 0.5
C14: Priesmėlis | D14: 1
C15: Priemolis L | D15: 2.5
C16: Priemolis V | D16: 3
C17: Priemolis S | D17: 3.5
C18: Molis S | D18: 4
C19: Molis D | D19: 4.5
C20: Molis | D20: 5
C21: Klasifikacija pagal LR Teritorijos dirvožemio erdvinių duomenų rinkinio specifikaciją (LR žemės ūkio ministro įsakymas, 2024 m. sausio 19 d. Nr. 3D-42)
B23: III | C23: Organinė medžiaga ir sėjomaina
C24: Pasirinkite | D24: -
C25: 0 | D25: 0
C26: 0.15 | D26: 0.15
C27: 0.2 | D27: 0.2
C28: 0.25 | D28: 0.25
C29: 0.3 | D29: 0.3
C30: 0.35 | D30: 0.35
C31: Dirvožemio organinės medžiagos kiekis dirvožemio paviršiuje po tradicinio žemės dirbimo palieka mažiau nei 15 proc. organinės biomasės, bearimėje technologijoje – 30-36 proc. (pagal Choudhary et al., 2018).
B33: IV | C33: Erozija
C34: Dėl žemės dirbimo
C35: Pasirinkite | D35: -
C36: Nepaveikta | D36: 1
C37: Vidutiniškai paveikta | D37: -0.1
C38: Paveikta stipriai | D38: 0
C39: Erozija dėl žemės dirbimo – vyrauja dėl organinės medžiagos praradimo tradicinio žemės dirbimo praktikose (2-3 augalai sėjomainoje).
C41: Po derliaus nuėmimo
C42: Pasirinkite | D42: -
C43: Nepaveikta | D43: 1
C44: Vidutiniškai paveikta | D44: -0.2
C45: Paveikta stipriai | D45: 0
C46: Erozija po derliaus nuėmimo - vyrauja dėl organinės medžiagos praradimo tradicinio žemės dirbimo praktikose (2-3 augalai sėjomainoje), dirvožemis nepadengtas augalais ≥ 2 mėnesius.
C48: Dėl vandens erozijos
C49: Pasirinkite | D49: -
C50: Nepaveikta | D50: 1
C51: Vidutiniškai paveikta | D51: -0.1
C52: Paveikta stipriai | D52: 0
C53: Vandens erozija - vyrauja dėl organinės medžiagos praradimo ir dirvožemio menko struktringumo, kai matomi nuplauto dirvožemio šliūžės > negu 20 proc. pasėlio plote.
C55: Dėl vėjo erozijos
C56: Pasirinkite | D56: -
C57: Nepaveikta | D57: 1
C58: Vidutiniškai paveikta | D58: -0.2
C59: Paveikta stipriai | D59: 0
C60: Vėjo erozija - dėl organinės medžiagos praradimo ir dirvožemio menko struktringumo, dirvožemio dulkių frakcijos pustymo > negu 20 proc. pasėlio plote (pagal Chappell et al., 2019).
B62: V | C62: Tankis
C63: Pasirinkite | D63: -
C64: Iki 1,2 g cm-3 | D64: 0.095
C65: 1,21 - 1,30 g cm-3 | D65: -0.163
C66: 1,4 g cm-3 ir daugiau | D66: -0.385
B68: VI | C68: Vandens imlumas (dirvožemio geba išlaikyti vandenį dirvožemio paviršiuje)
C69: Pasirinkite | D69: -
C70: Nefiksuota | D70: -0.551
C71: iki 5 cm nuo dirvožemio paviršiaus | D71: 0.142
C72: 5,1 - 10 cm nuo dirvožemio paviršiaus | D72: 0.273
C73: 10,1 - 15 cm ir giliau | D73: 0.682
B75: VII | C75: pH rodiklis
C76: Pasirinkite | D76: -
C77: Labai rūgštus (4,5 ir mažiau) | D77: 0.01
C78: Vidutiniškai rūgštus (4,5-5,0) | D78: 0.081
C79: Mažai rūgštus (5,1-5,5) | D79: 0.087
C80: Rūgštoki (5,6-6,0) | D80: 0.844
C81: Neutraloki (6,1 ir daugiau) | D81: 0.163
B83: VIII | C83: Pasotinimas bazėmis
C84: Pasirinkite | D84: -
C85: Pasotinti bazėmis (>50 proc.) | D85: 0.491
C86: Nepasotinti (<50 proc.) | D86: 0.082
C87: Nepasotinti ir paveikti cheminės erozijos | D87: -0.042
C88: Dirvožemio cheminė erozija vyrauja dėl dirvožemio rūgštėjimo, nesubalansuoto cheminių trąšų ir pesticidų naudojimo (Mockeviciene et al., 2024).
I89: 11.51
B90: IX | C90: Sliekų skaičius
C91: Gausumas, vnt. | K91: Skirstymas | M91: Procentai
C92: Pasirinkite | D92: 0 | K92: 0.1379 | M92: Pointer | N92: =IFERROR(Skaičiuoklė!F39*1/I89,0) -> 0
C93: Mažas (nėra arba 1 vnt.) | D93: 0.01 | K93: 0.2609 | M93: Thichness | N93: 0.03
C94: Vidutinis (2 - 4 vnt.) | D94: 0.085 | K94: 0.2174 | M94: rest | N94: =2-(N92+N93) -> 1.97
C95: Geras (5 - 7 vnt.) | D95: 0.103 | K95: 0.3478
C96: Labai geras (≥ 8 vnt.) | D96: 0.308 | K96: 1
C98: Sliekų biomasė, g
C99: Pasirinkite | D99: 0
C100: Mažas (nėra arba 1 vnt.) | D100: 0.01
C101: Vidutinis (2 - 4 vnt.) | D101: 0.01
C102: Geras (5 - 7 vnt.) | D102: 0.079
C103: Labai geras (≥ 8 vnt.) | D103: 0.079
C105: Rūšių gausumas, vnt.
C106: Pasirinkite | D106: 0
C107: Mažas (nėra arba 1 vnt.) | D107: 0.01
C108: Vidutinis (2 - 4 vnt.) | D108: 0.01
C109: Geras (5 - 7 vnt.) | D109: 0.103
C110: Labai geras (≥ 8 vnt.) | D110: 0.103
C111: Sliekų gausumo, biomasės ir rušių skaičiaus dirvožemyje svertinės vertės modelyje adaptuotos pagal Meitasari et al., 2024.
B113: X | C113: Mikroorganizmų gausumas ir biomasės sankaupos
C114: Gausumas, KFV g-1
C115: Pasirinkite | D115: 0
C116: Nefiksuota, bet menkas | D116: 0.103
C117: Gausumas ir aktyvumas iki 5 cm gylio | D117: 0.103
C118: Gausumas ir aktyvumas iki 10 cm gylio | D118: 0.113
C119: Gausumas ir aktyvumas ≥ 15 cm gylyje | D119: 0.304
C121: Biomasės sankaupos
C122: Pasirinkite | D122: 0
C123: Nefiksuota, bet menkas | D123: 0.103
C124: Gausumas ir aktyvumas iki 5 cm gylio | D124: 0.103
C125: Gausumas ir aktyvumas iki 10 cm gylio | D125: 0.304
C126: Gausumas ir aktyvumas ≥ 15 cm gylyje | D126: 0.34
C127: Dirvožemio mikroorganizmų gausumo ir biomasės sankaupų svertinės vertės modelyje adaptuotos pagal Meitasari et al., 2024.

Sheet Skaičiuoklė
B8: Humusingumas | H8: Vandens imlumas (nuo paviršiaus ribų)
B10: Pasirinkite | F10: =_xlfn.XLOOKUP(B10,Duomenys!C3:C8,Duomenys!D3:D8) -> - | H10: Pasirinkite | M10: =_xlfn.XLOOKUP(H10,Duomenys!C69:C73,Duomenys!D69:D73) -> -
B12: Granuliometrinė sudėtis | H12: pH rodiklis
B14: Pasirinkite | F14: =_xlfn.XLOOKUP(B14,Duomenys!C12:C20,Duomenys!D12:D20) -> - | H14: Pasirinkite | M14: =_xlfn.XLOOKUP(H14,Duomenys!C76:C81,Duomenys!D76:D81) -> -
B16: Sėjomainas ir organinės liekanos | H16: Pasotinimas bazėmis
B18: Pasirinkite | F18: =_xlfn.XLOOKUP(B18,Duomenys!C24:C30,Duomenys!D24:D30) -> - | H18: Pasirinkite | M18: =_xlfn.XLOOKUP(H18,Duomenys!C84:C87,Duomenys!D84:D87) -> -
B20: Erozija | H20: Sliekų skaičius (pasirinkti vieną)
B22: Dėl žemės dirbimo | C22: Pasirinkite | F22: =_xlfn.XLOOKUP(C22,Duomenys!C35:C38,Duomenys!D35:D38) -> - | H22: Gausumas | J22: Pasirinkite | M22: =_xlfn.XLOOKUP(J22,Duomenys!C92:C96,Duomenys!D92:D96) -> 0
B23: Po derliaus nuėmimo | C23: Pasirinkite | F23: =_xlfn.XLOOKUP(C23,Duomenys!C42:C45,Duomenys!D42:D45) -> - | H23: Sliekų biomasė | J23: Pasirinkite | M23: =_xlfn.XLOOKUP(J23,Duomenys!C99:C103,Duomenys!D99:D103) -> 0
B24: Vandens | C24: Pasirinkite | F24: =_xlfn.XLOOKUP(C24,Duomenys!C49:C52,Duomenys!D49:D52) -> - | H24: Rūšys ir įvairovė | J24: Pasirinkite | M24: =_xlfn.XLOOKUP(J24,Duomenys!C106:C110,Duomenys!D106:D110) -> 0
B25: Vėjo | C25: Pasirinkite | F25: =_xlfn.XLOOKUP(C25,Duomenys!C56:C59,Duomenys!D56:D59) -> -
B27: Tankis ir sutankėjimas | H27: Mikroorganizmų gausumas ir biomasės sankaupos (pasirinkti vieną)
B29: Pasirinkite | F29: =_xlfn.XLOOKUP(B29,Duomenys!C63:C66,Duomenys!D63:D66) -> - | H29: Gausumas | J29: Pasirinkite | M29: =_xlfn.XLOOKUP(J29,Duomenys!C115:C119,Duomenys!D115:D119) -> 0
H30: Biomasės sankaupos | J30: Pasirinkite | M30: =_xlfn.XLOOKUP(J30,Duomenys!C122:C126,Duomenys!D122:D126) -> 0
B39: Dirvožemio sveikatos indeksas: | F39: =IFERROR((F10*F14*F18)*(IF(COUNTIF(F22:F25,0)>0,0,AVERAGE(F22:F25)))+(IF(COUNTIF(F22:F25,0)>0,0,F29+M10+M14+M18+M22+M23+M24+M29+M30)),0) -> 0

Sheet Informacija 2
B7: Žemės dirbimo technologijos trumpas apibūdinimas ir jos sutrumpinimas
B9: GA - skusta ražiena, gilus arimas rudenį 23-25 cm gyliu (kontrolė, gilus arimas)
B10: SA - skusta ražiena, seklus arimas rudenį 10-12 cm gyliu (seklus arimas)
B11: SPR - skusta ražiena, seklus purenimas rudenį diskiniu skutikliu 8-10 cm gyliu (seklus purenimas rudenį)
B12: SPS - neskusta, seklus purenimas prieš sėją diskiniu skutikliu 4-5 cm gyliu (seklus purenimas prieš sėją)
B13: TP - neskusta, tarpinių pasėlių sėja į neįdirbtą dirvą, seklus purenimas prieš sėją diskiniu skutikliu 4-5 cm gyliu (tarpiniai pasėliai)
B14: TS - neskusta, tiesioginė sėja į neįdirbtą dirvą (nulinis žemės dirbimas)

Sheet Bandymų duomenys (hidden)
B7: JAVŲ IR RAPSŲ PLOTAI, DERLINGUMAS, PAJAMOS, SĄNAUDOS IR PELNAS
B9: Iš viso | L9: =SUM(Ūkis20[Pajamos iš viso, Eur]) -> 28744.29 | O9: =SUM(Ūkis20[Sąnaudos iš viso, Eur]) -> 14099.64 | Q9: =SUM(Ūkis20[Pelno marža iš viso, Eur]) -> 14644.65
A10: Eil. Nr. | B10: Žemės ūkio augalas, arba jų grupė | C10: Produktas | D10: Dirvos dirbimo technologija | E10: Plotas ha | F10: Vidutinis derlingumas t/ha | G10: Vidutinis derlingumas ūkyje t/ha | H10: Derlius t | I10: Vidutinė rinkos kaina, Eur/t | J10: Vidutinė ūkio pardavimo kaina, Eur/t | K10: Pajamos, Eur/ha | L10: Pajamos iš viso, Eur | M10: Normatyvinės kintamosios sąnaudos, Eur/ha | N10: Ūkio kintamosios sąnaudos, Eur/ha | O10: Sąnaudos iš viso, Eur | P10: Pelno marža, Eur/ha | Q10: Pelno marža iš viso, Eur | R10: Investicijų poreikis, tūkst. Eur
A11: =ROW()-ROW(Ūkis20[[#Headers],[Eil. Nr.]]) -> 1 | B11: Žieminiai javai | C11: Kviečiai | D11: Gilus arimas (GA) | E11: 1 | F11: =IF(Ūkis20[[#This Row],[Vidutinis derlingumas ūkyje t/ha]]<>0,Ūkis20[[#This Row],[Vidutinis derlingumas ūkyje t/ha]], _xlfn._xlws.FILTER(SanaudosSuv[Vidutinis derlingumas, t/ha], (SanaudosSuv[Žemės ūkio augalas, arba jų grupė]=Ūkis20[[#This Row],[Žemės ūkio augalas, arba jų grupė]]) * (SanaudosSuv[Žemės dirbimo technologija]=Ūkis20[[#This Row],[Dirvos dirbimo technologija]]), 0)) -> 8.35 | H11: =Ūkis20[[#This Row],[Plotas ha]]*Ūkis20[[#This Row],[Vidutinis derlingumas t/ha]] -> 8.35 | I11: =IF(Ūkis20[[#This Row],[Vidutinė ūkio pardavimo kaina, Eur/t]]<>0,Ūkis20[[#This Row],[Vidutinė ūkio pardavimo kaina, Eur/t]],_xlfn.XLOOKUP(Ūkis20[[#This Row],[Produktas]],Kainos[Žemės ūkio produktas],Kainos[Produkcijos kaina Eur/t],0)) -> 227 | K11: =+Ūkis20[[#This Row],[Vidutinė rinkos kaina, Eur/t]]*Ūkis20[[#This Row],[Vidutinis derlingumas t/ha]] -> 1895.45 | L11: =Ūkis20[[#This Row],[Derlius t]]*Ūkis20[[#This Row],[Vidutinė rinkos kaina, Eur/t]] -> 1895.45 | M11: =IF(Ūkis20[[#This Row],[Ūkio kintamosios sąnaudos, Eur/ha]]<>0,Ūkis20[[#This Row],[Ūkio kintamosios sąnaudos, Eur/ha]],SUMIFS(SanaudosSuv[Iš viso tiesioginių sąnaudų, Eur/t],SanaudosSuv[Žemės ūkio augalas, arba jų grupė],Ūkis20[[#This Row],[Žemės ūkio augalas, arba jų grupė]],SanaudosSuv[Žemės dirbimo technologija],Ūkis20[[#This Row],[Dirvos dirbimo technologija]])) -> 678.32 | O11: =Ūkis20[[#This Row],[Plotas ha]]*Ūkis20[[#This Row],[Normatyvinės kintamosios sąnaudos, Eur/ha]] -> 678.32 | P11: =+Ūkis20[[#This Row],[Pajamos, Eur/ha]]-Ūkis20[[#This Row],[Normatyvinės kintamosios sąnaudos, Eur/ha]] -> 1217.13 | Q11: =+Ūkis20[[#This Row],[Pelno marža, Eur/ha]]*Ūkis20[[#This Row],[Plotas ha]] -> 1217.13 | R11: =SUMIFS(SanaudosSuv[Investicijų poreikis, tūkst. Eur],SanaudosSuv[Žemės ūkio augalas, arba jų grupė],Ūkis20[[#This Row],[Žemės ūkio augalas, arba jų grupė]],SanaudosSuv[Žemės dirbimo technologija],Ūkis20[[#This Row],[Dirvos dirbimo technologija]]) -> 1159.78
A12: =ROW()-ROW(Ūkis20[[#Headers],[Eil. Nr.]]) -> 2 | B12: Vasariniai javai | C12: Miežiai | D12: Gilus arimas (GA) | E12: 1 | F12: =IF(Ūkis20[[#This Row],[Vidutinis derlingumas ūkyje t/ha]]<>0,Ūkis20[[#This Row],[Vidutinis derlingumas ūkyje t/ha]], _xlfn._xlws.FILTER(SanaudosSuv[Vidutinis derlingumas, t/ha], (SanaudosSuv[Žemės ūkio augalas, arba jų grupė]=Ūkis20[[#This Row],[Žemės ūkio augalas, arba jų grupė]]) * (SanaudosSuv[Žemės dirbimo technologija]=Ūkis20[[#This Row],[Dirvos dirbimo technologija]]), 0)) -> 4.68 | H12: =Ūkis20[[#This Row],[Plotas ha]]*Ūkis20[[#This Row],[Vidutinis derlingumas t/ha]] -> 4.68 | I12: =IF(Ūkis20[[#This Row],[Vidutinė ūkio pardavimo kaina, Eur/t]]<>0,Ūkis20[[#This Row],[Vidutinė ūkio pardavimo kaina, Eur/t]],_xlfn.XLOOKUP(Ūkis20[[#This Row],[Produktas]],Kainos[Žemės ūkio produktas],Kainos[Produkcijos kaina Eur/t],0)) -> 203 | K12: =+Ūkis20[[#This Row],[Vidutinė rinkos kaina, Eur/t]]*Ūkis20[[#This Row],[Vidutinis derlingumas t/ha]] -> 950.04 | L12: =Ūkis20[[#This Row],[Derlius t]]*Ūkis20[[#This Row],[Vidutinė rinkos kaina, Eur/t]] -> 950.04 | M12: =IF(Ūkis20[[#This Row],[Ūkio kintamosios sąnaudos, Eur/ha]]<>0,Ūkis20[[#This Row],[Ūkio kintamosios sąnaudos, Eur/ha]],SUMIFS(SanaudosSuv[Iš viso tiesioginių sąnaudų, Eur/t],SanaudosSuv[Žemės ūkio augalas, arba jų grupė],Ūkis20[[#This Row],[Žemės ūkio augalas, arba jų grupė]],SanaudosSuv[Žemės dirbimo technologija],Ūkis20[[#This Row],[Dirvos dirbimo technologija]])) -> 562.32 | O12: =Ūkis20[[#This Row],[Plotas ha]]*Ūkis20[[#This Row],[Normatyvinės kintamosios sąnaudos, Eur/ha]] -> 562.32 | P12: =+Ūkis20[[#This Row],[Pajamos, Eur/ha]]-Ūkis20[[#This Row],[Normatyvinės kintamosios sąnaudos, Eur/ha]] -> 387.72 | Q12: =+Ūkis20[[#This Row],[Pelno marža, Eur/ha]]*Ūkis20[[#This Row],[Plotas ha]] -> 387.72 | R12: =SUMIFS(SanaudosSuv[Investicijų poreikis, tūkst. Eur],SanaudosSuv[Žemės ūkio augalas, arba jų grupė],Ūkis20[[#This Row],[Žemės ūkio augalas, arba jų grupė]],SanaudosSuv[Žemės dirbimo technologija],Ūkis20[[#This Row],[Dirvos dirbimo technologija]]) -> 1159.78
A13: =ROW()-ROW(Ūkis20[[#Headers],[Eil. Nr.]]) -> 3 | B13: Žieminiai rapsai | C13: Rapsai | D13: Gilus arimas (GA) | E13: 1 | F13: =IF(Ūkis20[[#This Row],[Vidutinis derlingumas ūkyje t/ha]]<>0,Ūkis20[[#This Row],[Vidutinis derlingumas ūkyje t/ha]], _xlfn._xlws.FILTER(SanaudosSuv[Vidutinis derlingumas, t/ha], (SanaudosSuv[Žemės ūkio augalas, arba jų grupė]=Ūkis20[[#This Row],[Žemės ūkio augalas, arba jų grupė]]) * (SanaudosSuv[Žemės dirbimo technologija]=Ūkis20[[#This Row],[Dirvos dirbimo technologija]]), 0)) -> 2.37 | H13: =Ūkis20[[#This Row],[Plotas ha]]*Ūkis20[[#This Row],[Vidutinis derlingumas t/ha]] -> 2.37 | I13: =IF(Ūkis20[[#This Row],[Vidutinė ūkio pardavimo kaina, Eur/t]]<>0,Ūkis20[[#This Row],[Vidutinė ūkio pardavimo kaina, Eur/t]],_xlfn.XLOOKUP(Ūkis20[[#This Row],[Produktas]],Kainos[Žemės ūkio produktas],Kainos[Produkcijos kaina Eur/t],0)) -> 451 | K13: =+Ūkis20[[#This Row],[Vidutinė rinkos kaina, Eur/t]]*Ūkis20[[#This Row],[Vidutinis derlingumas t/ha]] -> 1068.87 | L13: =Ūkis20[[#This Row],[Derlius t]]*Ūkis20[[#This Row],[Vidutinė rinkos kaina, Eur/t]] -> 1068.87 | M13: =IF(Ūkis20[[#This Row],[Ūkio kintamosios sąnaudos, Eur/ha]]<>0,Ūkis20[[#This Row],[Ūkio kintamosios sąnaudos, Eur/ha]],SUMIFS(SanaudosSuv[Iš viso tiesioginių sąnaudų, Eur/t],SanaudosSuv[Žemės ūkio augalas, arba jų grupė],Ūkis20[[#This Row],[Žemės ūkio augalas, arba jų grupė]],SanaudosSuv[Žemės dirbimo technologija],Ūkis20[[#This Row],[Dirvos dirbimo technologija]])) -> 687.32 | O13: =Ūkis20[[#This Row],[Plotas ha]]*Ūkis20[[#This Row],[Normatyvinės kintamosios sąnaudos, Eur/ha]] -> 687.32 | P13: =+Ūkis20[[#This Row],[Pajamos, Eur/ha]]-Ūkis20[[#This Row],[Normatyvinės kintamosios sąnaudos, Eur/ha]] -> 381.55 | Q13: =+Ūkis20[[#This Row],[Pelno marža, Eur/ha]]*Ūkis20[[#This Row],[Plotas ha]] -> 381.55 | R13: =SUMIFS(SanaudosSuv[Investicijų poreikis, tūkst. Eur],SanaudosSuv[Žemės ūkio augalas, arba jų grupė],Ūkis20[[#This Row],[Žemės ūkio augalas, arba jų grupė]],SanaudosSuv[Žemės dirbimo technologija],Ūkis20[[#This Row],[Dirvos dirbimo technologija]]) -> 1159.78
A14: =ROW()-ROW(Ūkis20[[#Headers],[Eil. Nr.]]) -> 4 | B14: Vasariniai rapsai | C14: Rapsai | D14: Gilus arimas (GA) | E14: 1 | F14: =IF(Ūkis20[[#This Row],[Vidutinis derlingumas ūkyje t/ha]]<>0,Ūkis20[[#This Row],[Vidutinis derlingumas ūkyje t/ha]], _xlfn._xlws.FILTER(SanaudosSuv[Vidutinis derlingumas, t/ha], (SanaudosSuv[Žemės ūkio augalas, arba jų grupė]=Ūkis20[[#This Row],[Žemės ūkio augalas, arba jų grupė]]) * (SanaudosSuv[Žemės dirbimo technologija]=Ūkis20[[#This Row],[Dirvos dirbimo technologija]]), 0)) -> 1.57 | H14: =Ūkis20[[#This Row],[Plotas ha]]*Ūkis20[[#This Row],[Vidutinis derlingumas t/ha]] -> 1.57 | I14: =IF(Ūkis20[[#This Row],[Vidutinė ūkio pardavimo kaina, Eur/t]]<>0,Ūkis20[[#This Row],[Vidutinė ūkio pardavimo kaina, Eur/t]],_xlfn.XLOOKUP(Ūkis20[[#This Row],[Produktas]],Kainos[Žemės ūkio produktas],Kainos[Produkcijos kaina Eur/t],0)) -> 451 | K14: =+Ūkis20[[#This Row],[Vidutinė rinkos kaina, Eur/t]]*Ūkis20[[#This Row],[Vidutinis derlingumas t/ha]] -> 708.07 | L14: =Ūkis20[[#This Row],[Derlius t]]*Ūkis20[[#This Row],[Vidutinė rinkos kaina, Eur/t]] -> 708.07 | M14: =IF(Ūkis20[[#This Row],[Ūkio kintamosios sąnaudos, Eur/ha]]<>0,Ūkis20[[#This Row],[Ūkio kintamosios sąnaudos, Eur/ha]],SUMIFS(SanaudosSuv[Iš viso tiesioginių sąnaudų, Eur/t],SanaudosSuv[Žemės ūkio augalas, arba jų grupė],Ūkis20[[#This Row],[Žemės ūkio augalas, arba jų grupė]],SanaudosSuv[Žemės dirbimo technologija],Ūkis20[[#This Row],[Dirvos dirbimo technologija]])) -> 559.32 | O14: =Ūkis20[[#This Row],[Plotas ha]]*Ūkis20[[#This Row],[Normatyvinės kintamosios sąnaudos, Eur/ha]] -> 559.32 | P14: =+Ūkis20[[#This Row],[Pajamos, Eur/ha]]-Ūkis20[[#This Row],[Normatyvinės kintamosios sąnaudos, Eur/ha]] -> 148.75 | Q14: =+Ūkis20[[#This Row],[Pelno marža, Eur/ha]]*Ūkis20[[#This Row],[Plotas ha]] -> 148.75 | R14: =SUMIFS(SanaudosSuv[Investicijų poreikis, tūkst. Eur],SanaudosSuv[Žemės ūkio augalas, arba jų grupė],Ūkis20[[#This Row],[Žemės ūkio augalas, arba jų grupė]],SanaudosSuv[Žemės dirbimo technologija],Ūkis20[[#This Row],[Dirvos dirbimo technologija]]) -> 1159.78
A15: =ROW()-ROW(Ūkis20[[#Headers],[Eil. Nr.]]) -> 5 | B15: Žieminiai javai | C15: Kviečiai | D15: Seklus arimas (SA) | E15: 1 | F15: =IF(Ūkis20[[#This Row],[Vidutinis derlingumas ūkyje t/ha]]<>0,Ūkis20[[#This Row],[Vidutinis derlingumas ūkyje t/ha]], _xlfn._xlws.FILTER(SanaudosSuv[Vidutinis derlingumas, t/ha], (SanaudosSuv[Žemės ūkio augalas, arba jų grupė]=Ūkis20[[#This Row],[Žemės ūkio augalas, arba jų grupė]]) * (SanaudosSuv[Žemės dirbimo technologija]=Ūkis20[[#This Row],[Dirvos dirbimo technologija]]), 0)) -> 8.16 | H15: =Ūkis20[[#This Row],[Plotas ha]]*Ūkis20[[#This Row],[Vidutinis derlingumas t/ha]] -> 8.16 | I15: =IF(Ūkis20[[#This Row],[Vidutinė ūkio pardavimo kaina, Eur/t]]<>0,Ūkis20[[#This Row],[Vidutinė ūkio pardavimo kaina, Eur/t]],_xlfn.XLOOKUP(Ūkis20[[#This Row],[Produktas]],Kainos[Žemės ūkio produktas],Kainos[Produkcijos kaina Eur/t],0)) -> 227 | K15: =+Ūkis20[[#This Row],[Vidutinė rinkos kaina, Eur/t]]*Ūkis20[[#This Row],[Vidutinis derlingumas t/ha]] -> 1852.32 | L15: =Ūkis20[[#This Row],[Derlius t]]*Ūkis20[[#This Row],[Vidutinė rinkos kaina, Eur/t]] -> 1852.32 | M15: =IF(Ūkis20[[#This Row],[Ūkio kintamosios sąnaudos, Eur/ha]]<>0,Ūkis20[[#This Row],[Ūkio kintamosios sąnaudos, Eur/ha]],SUMIFS(SanaudosSuv[Iš viso tiesioginių sąnaudų, Eur/t],SanaudosSuv[Žemės ūkio augalas, arba jų grupė],Ūkis20[[#This Row],[Žemės ūkio augalas, arba jų grupė]],SanaudosSuv[Žemės dirbimo technologija],Ūkis20[[#This Row],[Dirvos dirbimo technologija]])) -> 658.74 | O15: =Ūkis20[[#This Row],[Plotas ha]]*Ūkis20[[#This Row],[Normatyvinės kintamosios sąnaudos, Eur/ha]] -> 658.74 | P15: =+Ūkis20[[#This Row],[Pajamos, Eur/ha]]-Ūkis20[[#This Row],[Normatyvinės kintamosios sąnaudos, Eur/ha]] -> 1193.58 | Q15: =+Ūkis20[[#This Row],[Pelno marža, Eur/ha]]*Ūkis20[[#This Row],[Plotas ha]] -> 1193.58 | R15: =SUMIFS(SanaudosSuv[Investicijų poreikis, tūkst. Eur],SanaudosSuv[Žemės ūkio augalas, arba jų grupė],Ūkis20[[#This Row],[Žemės ūkio augalas, arba jų grupė]],SanaudosSuv[Žemės dirbimo technologija],Ūkis20[[#This Row],[Dirvos dirbimo technologija]]) -> 1159.78
A16: =ROW()-ROW(Ūkis20[[#Headers],[Eil. Nr.]]) -> 6 | B16: Vasariniai javai | C16: Miežiai | D16: Seklus arimas (SA) | E16: 1 | F16: =IF(Ūkis20[[#This Row],[Vidutinis derlingumas ūkyje t/ha]]<>0,Ūkis20[[#This Row],[Vidutinis derlingumas ūkyje t/ha]], _xlfn._xlws.FILTER(SanaudosSuv[Vidutinis derlingumas, t/ha], (SanaudosSuv[Žemės ūkio augalas, arba jų grupė]=Ūkis20[[#This Row],[Žemės ūkio augalas, arba jų grupė]]) * (SanaudosSuv[Žemės dirbimo technologija]=Ūkis20[[#This Row],[Dirvos dirbimo technologija]]), 0)) -> 4.41 | H16: =Ūkis20[[#This Row],[Plotas ha]]*Ūkis20[[#This Row],[Vidutinis derlingumas t/ha]] -> 4.41 | I16: =IF(Ūkis20[[#This Row],[Vidutinė ūkio pardavimo kaina, Eur/t]]<>0,Ūkis20[[#This Row],[Vidutinė ūkio pardavimo kaina, Eur/t]],_xlfn.XLOOKUP(Ūkis20[[#This Row],[Produktas]],Kainos[Žemės ūkio produktas],Kainos[Produkcijos kaina Eur/t],0)) -> 203 | K16: =+Ūkis20[[#This Row],[Vidutinė rinkos kaina, Eur/t]]*Ūkis20[[#This Row],[Vidutinis derlingumas t/ha]] -> 895.23 | L16: =Ūkis20[[#This Row],[Derlius t]]*Ūkis20[[#This Row],[Vidutinė rinkos kaina, Eur/t]] -> 895.23 | M16: =IF(Ūkis20[[#This Row],[Ūkio kintamosios sąnaudos, Eur/ha]]<>0,Ūkis20[[#This Row],[Ūkio kintamosios sąnaudos, Eur/ha]],SUMIFS(SanaudosSuv[Iš viso tiesioginių sąnaudų, Eur/t],SanaudosSuv[Žemės ūkio augalas, arba jų grupė],Ūkis20[[#This Row],[Žemės ūkio augalas, arba jų grupė]],SanaudosSuv[Žemės dirbimo technologija],Ūkis20[[#This Row],[Dirvos dirbimo technologija]])) -> 542.74 | O16: =Ūkis20[[#This Row],[Plotas ha]]*Ūkis20[[#This Row],[Normatyvinės kintamosios sąnaudos, Eur/ha]] -> 542.74 | P16: =+Ūkis20[[#This Row],[Pajamos, Eur/ha]]-Ūkis20[[#This Row],[Normatyvinės kintamosios sąnaudos, Eur/ha]] -> 352.49 | Q16: =+Ūkis20[[#This Row],[Pelno marža, Eur/ha]]*Ūkis20[[#This Row],[Plotas ha]] -> 352.49 | R16: =SUMIFS(SanaudosSuv[Investicijų poreikis, tūkst. Eur],SanaudosSuv[Žemės ūkio augalas, arba jų grupė],Ūkis20[[#This Row],[Žemės ūkio augalas, arba jų grupė]],SanaudosSuv[Žemės dirbimo technologija],Ūkis20[[#This Row],[Dirvos dirbimo technologija]]) -> 1159.78
A17: =ROW()-ROW(Ūkis20[[#Headers],[Eil. Nr.]]) -> 7 | B17: Žieminiai rapsai | C17: Rapsai | D17: Seklus arimas (SA) | E17: 1 | F17: =IF(Ūkis20[[#This Row],[Vidutinis derlingumas ūkyje t/ha]]<>0,Ūkis20[[#This Row],[Vidutinis derlingumas ūkyje t/ha]], _xlfn._xlws.FILTER(SanaudosSuv[Vidutinis derlingumas, t/ha], (SanaudosSuv[Žemės ūkio augalas, arba jų grupė]=Ūkis20[[#This Row],[Žemės ūkio augalas, arba jų grupė]]) * (SanaudosSuv[Žemės dirbimo technologija]=Ūkis20[[#This Row],[Dirvos dirbimo technologija]]), 0)) -> 2.39 | H17: =Ūkis20[[#This Row],[Plotas ha]]*Ūkis20[[#This Row],[Vidutinis derlingumas t/ha]] -> 2.39 | I17: =IF(Ūkis20[[#This Row],[Vidutinė ūkio pardavimo kaina, Eur/t]]<>0,Ūkis20[[#This Row],[Vidutinė ūkio pardavimo kaina, Eur/t]],_xlfn.XLOOKUP(Ūkis20[[#This Row],[Produktas]],Kainos[Žemės ūkio produktas],Kainos[Produkcijos kaina Eur/t],0)) -> 451 | K17: =+Ūkis20[[#This Row],[Vidutinė rinkos kaina, Eur/t]]*Ūkis20[[#This Row],[Vidutinis derlingumas t/ha]] -> 1077.89 | L17: =Ūkis20[[#This Row],[Derlius t]]*Ūkis20[[#This Row],[Vidutinė rinkos kaina, Eur/t]] -> 1077.89 | M17: =IF(Ūkis20[[#This Row],[Ūkio kintamosios sąnaudos, Eur/ha]]<>0,Ūkis20[[#This Row],[Ūkio kintamosios sąnaudos, Eur/ha]],SUMIFS(SanaudosSuv[Iš viso tiesioginių sąnaudų, Eur/t],SanaudosSuv[Žemės ūkio augalas, arba jų grupė],Ūkis20[[#This Row],[Žemės ūkio augalas, arba jų grupė]],SanaudosSuv[Žemės dirbimo technologija],Ūkis20[[#This Row],[Dirvos dirbimo technologija]])) -> 667.74 | O17: =Ūkis20[[#This Row],[Plotas ha]]*Ūkis20[[#This Row],[Normatyvinės kintamosios sąnaudos, Eur/ha]] -> 667.74 | P17: =+Ūkis20[[#This Row],[Pajamos, Eur/ha]]-Ūkis20[[#This Row],[Normatyvinės kintamosios sąnaudos, Eur/ha]] -> 410.15 | Q17: =+Ūkis20[[#This Row],[Pelno marža, Eur/ha]]*Ūkis20[[#This Row],[Plotas ha]] -> 410.15 | R17: =SUMIFS(SanaudosSuv[Investicijų poreikis, tūkst. Eur],SanaudosSuv[Žemės ūkio augalas, arba jų grupė],Ūkis20[[#This Row],[Žemės ūkio augalas, arba jų grupė]],SanaudosSuv[Žemės dirbimo technologija],Ūkis20[[#This Row],[Dirvos dirbimo technologija]]) -> 1159.78
A18: =ROW()-ROW(Ūkis20[[#Headers],[Eil. Nr.]]) -> 8 | B18: Vasariniai rapsai | C18: Rapsai | D18: Seklus arimas (SA) | E18: 1 | F18: =IF(Ūkis20[[#This Row],[Vidutinis derlingumas ūkyje t/ha]]<>0,Ūkis20[[#This Row],[Vidutinis derlingumas ūkyje t/ha]], _xlfn._xlws.FILTER(SanaudosSuv[Vidutinis derlingumas, t/ha], (SanaudosSuv[Žemės ūkio augalas, arba jų grupė]=Ūkis20[[#This Row],[Žemės ūkio augalas, arba jų grupė]]) * (SanaudosSuv[Žemės dirbimo technologija]=Ūkis20[[#This Row],[Dirvos dirbimo technologija]]), 0)) -> 1.56 | H18: =Ūkis20[[#This Row],[Plotas ha]]*Ūkis20[[#This Row],[Vidutinis derlingumas t/ha]] -> 1.56 | I18: =IF(Ūkis20[[#This Row],[Vidutinė ūkio pardavimo kaina, Eur/t]]<>0,Ūkis20[[#This Row],[Vidutinė ūkio pardavimo kaina, Eur/t]],_xlfn.XLOOKUP(Ūkis20[[#This Row],[Produktas]],Kainos[Žemės ūkio produktas],Kainos[Produkcijos kaina Eur/t],0)) -> 451 | K18: =+Ūkis20[[#This Row],[Vidutinė rinkos kaina, Eur/t]]*Ūkis20[[#This Row],[Vidutinis derlingumas t/ha]] -> 703.56 | L18: =Ūkis20[[#This Row],[Derlius t]]*Ūkis20[[#This Row],[Vidutinė rinkos kaina, Eur/t]] -> 703.56 | M18: =IF(Ūkis20[[#This Row],[Ūkio kintamosios sąnaudos, Eur/ha]]<>0,Ūkis20[[#This Row],[Ūkio kintamosios sąnaudos, Eur/ha]],SUMIFS(SanaudosSuv[Iš viso tiesioginių sąnaudų, Eur/t],SanaudosSuv[Žemės ūkio augalas, arba jų grupė],Ūkis20[[#This Row],[Žemės ūkio augalas, arba jų grupė]],SanaudosSuv[Žemės dirbimo technologija],Ūkis20[[#This Row],[Dirvos dirbimo technologija]])) -> 539.74 | O18: =Ūkis20[[#This Row],[Plotas ha]]*Ūkis20[[#This Row],[Normatyvinės kintamosios sąnaudos, Eur/ha]] -> 539.74 | P18: =+Ūkis20[[#This Row],[Pajamos, Eur/ha]]-Ūkis20[[#This Row],[Normatyvinės kintamosios sąnaudos, Eur/ha]] -> 163.82 | Q18: =+Ūkis20[[#This Row],[Pelno marža, Eur/ha]]*Ūkis20[[#This Row],[Plotas ha]] -> 163.82 | R18: =SUMIFS(SanaudosSuv[Investicijų poreikis, tūkst. Eur],SanaudosSuv[Žemės ūkio augalas, arba jų grupė],Ūkis20[[#This Row],[Žemės ūkio augalas, arba jų grupė]],SanaudosSuv[Žemės dirbimo technologija],Ūkis20[[#This Row],[Dirvos dirbimo technologija]]) -> 1159.78
A19: =ROW()-ROW(Ūkis20[[#Headers],[Eil. Nr.]]) -> 9 | B19: Žieminiai javai | C19: Kviečiai | D19: Seklus purenimas rudenį (SPR) | E19: 1 | F19: =IF(Ūkis20[[#This Row],[Vidutinis derlingumas ūkyje t/ha]]<>0,Ūkis20[[#This Row],[Vidutinis derlingumas ūkyje t/ha]], _xlfn._xlws.FILTER(SanaudosSuv[Vidutinis derlingumas, t/ha], (SanaudosSuv[Žemės ūkio augalas, arba jų grupė]=Ūkis20[[#This Row],[Žemės ūkio augalas, arba jų grupė]]) * (SanaudosSuv[Žemės dirbimo technologija]=Ūkis20[[#This Row],[Dirvos dirbimo technologija]]), 0)) -> 8.26 | H19: =Ūkis20[[#This Row],[Plotas ha]]*Ūkis20[[#This Row],[Vidutinis derlingumas t/ha]] -> 8.26 | I19: =IF(Ūkis20[[#This Row],[Vidutinė ūkio pardavimo kaina, Eur/t]]<>0,Ūkis20[[#This Row],[Vidutinė ūkio pardavimo kaina, Eur/t]],_xlfn.XLOOKUP(Ūkis20[[#This Row],[Produktas]],Kainos[Žemės ūkio produktas],Kainos[Produkcijos kaina Eur/t],0)) -> 227 | K19: =+Ūkis20[[#This Row],[Vidutinė rinkos kaina, Eur/t]]*Ūkis20[[#This Row],[Vidutinis derlingumas t/ha]] -> 1875.02 | L19: =Ūkis20[[#This Row],[Derlius t]]*Ūkis20[[#This Row],[Vidutinė rinkos kaina, Eur/t]] -> 1875.02 | M19: =IF(Ūkis20[[#This Row],[Ūkio kintamosios sąnaudos, Eur/ha]]<>0,Ūkis20[[#This Row],[Ūkio kintamosios sąnaudos, Eur/ha]],SUMIFS(SanaudosSuv[Iš viso tiesioginių sąnaudų, Eur/t],SanaudosSuv[Žemės ūkio augalas, arba jų grupė],Ūkis20[[#This Row],[Žemės ūkio augalas, arba jų grupė]],SanaudosSuv[Žemės dirbimo technologija],Ūkis20[[#This Row],[Dirvos dirbimo technologija]])) -> 573.19 | O19: =Ūkis20[[#This Row],[Plotas ha]]*Ūkis20[[#This Row],[Normatyvinės kintamosios sąnaudos, Eur/ha]] -> 573.19 | P19: =+Ūkis20[[#This Row],[Pajamos, Eur/ha]]-Ūkis20[[#This Row],[Normatyvinės kintamosios sąnaudos, Eur/ha]] -> 1301.83 | Q19: =+Ūkis20[[#This Row],[Pelno marža, Eur/ha]]*Ūkis20[[#This Row],[Plotas ha]] -> 1301.83 | R19: =SUMIFS(SanaudosSuv[Investicijų poreikis, tūkst. Eur],SanaudosSuv[Žemės ūkio augalas, arba jų grupė],Ūkis20[[#This Row],[Žemės ūkio augalas, arba jų grupė]],SanaudosSuv[Žemės dirbimo technologija],Ūkis20[[#This Row],[Dirvos dirbimo technologija]]) -> 1109.22
A20: =ROW()-ROW(Ūkis20[[#Headers],[Eil. Nr.]]) -> 10 | B20: Vasariniai javai | C20: Miežiai | D20: Seklus purenimas rudenį (SPR) | E20: 1 | F20: =IF(Ūkis20[[#This Row],[Vidutinis derlingumas ūkyje t/ha]]<>0,Ūkis20[[#This Row],[Vidutinis derlingumas ūkyje t/ha]], _xlfn._xlws.FILTER(SanaudosSuv[Vidutinis derlingumas, t/ha], (SanaudosSuv[Žemės ūkio augalas, arba jų grupė]=Ūkis20[[#This Row],[Žemės ūkio augalas, arba jų grupė]]) * (SanaudosSuv[Žemės dirbimo technologija]=Ūkis20[[#This Row],[Dirvos dirbimo technologija]]), 0)) -> 4.41 | H20: =Ūkis20[[#This Row],[Plotas ha]]*Ūkis20[[#This Row],[Vidutinis derlingumas t/ha]] -> 4.41 | I20: =IF(Ūkis20[[#This Row],[Vidutinė ūkio pardavimo kaina, Eur/t]]<>0,Ūkis20[[#This Row],[Vidutinė ūkio pardavimo kaina, Eur/t]],_xlfn.XLOOKUP(Ūkis20[[#This Row],[Produktas]],Kainos[Žemės ūkio produktas],Kainos[Produkcijos kaina Eur/t],0)) -> 203 | K20: =+Ūkis20[[#This Row],[Vidutinė rinkos kaina, Eur/t]]*Ūkis20[[#This Row],[Vidutinis derlingumas t/ha]] -> 895.23 | L20: =Ūkis20[[#This Row],[Derlius t]]*Ūkis20[[#This Row],[Vidutinė rinkos kaina, Eur/t]] -> 895.23 | M20: =IF(Ūkis20[[#This Row],[Ūkio kintamosios sąnaudos, Eur/ha]]<>0,Ūkis20[[#This Row],[Ūkio kintamosios sąnaudos, Eur/ha]],SUMIFS(SanaudosSuv[Iš viso tiesioginių sąnaudų, Eur/t],SanaudosSuv[Žemės ūkio augalas, arba jų grupė],Ūkis20[[#This Row],[Žemės ūkio augalas, arba jų grupė]],SanaudosSuv[Žemės dirbimo technologija],Ūkis20[[#This Row],[Dirvos dirbimo technologija]])) -> 457.19 | O20: =Ūkis20[[#This Row],[Plotas ha]]*Ūkis20[[#This Row],[Normatyvinės kintamosios sąnaudos, Eur/ha]] -> 457.19 | P20: =+Ūkis20[[#This Row],[Pajamos, Eur/ha]]-Ūkis20[[#This Row],[Normatyvinės kintamosios sąnaudos, Eur/ha]] -> 438.04 | Q20: =+Ūkis20[[#This Row],[Pelno marža, Eur/ha]]*Ūkis20[[#This Row],[Plotas ha]] -> 438.04 | R20: =SUMIFS(SanaudosSuv[Investicijų poreikis, tūkst. Eur],SanaudosSuv[Žemės ūkio augalas, arba jų grupė],Ūkis20[[#This Row],[Žemės ūkio augalas, arba jų grupė]],SanaudosSuv[Žemės dirbimo technologija],Ūkis20[[#This Row],[Dirvos dirbimo technologija]]) -> 1109.22
A21: =ROW()-ROW(Ūkis20[[#Headers],[Eil. Nr.]]) -> 11 | B21: Žieminiai rapsai | C21: Rapsai | D21: Seklus purenimas rudenį (SPR) | E21: 1 | F21: =IF(Ūkis20[[#This Row],[Vidutinis derlingumas ūkyje t/ha]]<>0,Ūkis20[[#This Row],[Vidutinis derlingumas ūkyje t/ha]], _xlfn._xlws.FILTER(SanaudosSuv[Vidutinis derlingumas, t/ha], (SanaudosSuv[Žemės ūkio augalas, arba jų grupė]=Ūkis20[[#This Row],[Žemės ūkio augalas, arba jų grupė]]) * (SanaudosSuv[Žemės dirbimo technologija]=Ūkis20[[#This Row],[Dirvos dirbimo technologija]]), 0)) -> 2.48 | H21: =Ūkis20[[#This Row],[Plotas ha]]*Ūkis20[[#This Row],[Vidutinis derlingumas t/ha]] -> 2.48 | I21: =IF(Ūkis20[[#This Row],[Vidutinė ūkio pardavimo kaina, Eur/t]]<>0,Ūkis20[[#This Row],[Vidutinė ūkio pardavimo kaina, Eur/t]],_xlfn.XLOOKUP(Ūkis20[[#This Row],[Produktas]],Kainos[Žemės ūkio produktas],Kainos[Produkcijos kaina Eur/t],0)) -> 451 | K21: =+Ūkis20[[#This Row],[Vidutinė rinkos kaina, Eur/t]]*Ūkis20[[#This Row],[Vidutinis derlingumas t/ha]] -> 1118.48 | L21: =Ūkis20[[#This Row],[Derlius t]]*Ūkis20[[#This Row],[Vidutinė rinkos kaina, Eur/t]] -> 1118.48 | M21: =IF(Ūkis20[[#This Row],[Ūkio kintamosios sąnaudos, Eur/ha]]<>0,Ūkis20[[#This Row],[Ūkio kintamosios sąnaudos, Eur/ha]],SUMIFS(SanaudosSuv[Iš viso tiesioginių sąnaudų, Eur/t],SanaudosSuv[Žemės ūkio augalas, arba jų grupė],Ūkis20[[#This Row],[Žemės ūkio augalas, arba jų grupė]],SanaudosSuv[Žemės dirbimo technologija],Ūkis20[[#This Row],[Dirvos dirbimo technologija]])) -> 582.19 | O21: =Ūkis20[[#This Row],[Plotas ha]]*Ūkis20[[#This Row],[Normatyvinės kintamosios sąnaudos, Eur/ha]] -> 582.19 | P21: =+Ūkis20[[#This Row],[Pajamos, Eur/ha]]-Ūkis20[[#This Row],[Normatyvinės kintamosios sąnaudos, Eur/ha]] -> 536.29 | Q21: =+Ūkis20[[#This Row],[Pelno marža, Eur/ha]]*Ūkis20[[#This Row],[Plotas ha]] -> 536.29 | R21: =SUMIFS(SanaudosSuv[Investicijų poreikis, tūkst. Eur],SanaudosSuv[Žemės ūkio augalas, arba jų grupė],Ūkis20[[#This Row],[Žemės ūkio augalas, arba jų grupė]],SanaudosSuv[Žemės dirbimo technologija],Ūkis20[[#This Row],[Dirvos dirbimo technologija]]) -> 1109.22
A22: =ROW()-ROW(Ūkis20[[#Headers],[Eil. Nr.]]) -> 12 | B22: Vasariniai rapsai | C22: Rapsai | D22: Seklus purenimas rudenį (SPR) | E22: 1 | F22: =IF(Ūkis20[[#This Row],[Vidutinis derlingumas ūkyje t/ha]]<>0,Ūkis20[[#This Row],[Vidutinis derlingumas ūkyje t/ha]], _xlfn._xlws.FILTER(SanaudosSuv[Vidutinis derlingumas, t/ha], (SanaudosSuv[Žemės ūkio augalas, arba jų grupė]=Ūkis20[[#This Row],[Žemės ūkio augalas, arba jų grupė]]) * (SanaudosSuv[Žemės dirbimo technologija]=Ūkis20[[#This Row],[Dirvos dirbimo technologija]]), 0)) -> 1.48 | H22: =Ūkis20[[#This Row],[Plotas ha]]*Ūkis20[[#This Row],[Vidutinis derlingumas t/ha]] -> 1.48 | I22: =IF(Ūkis20[[#This Row],[Vidutinė ūkio pardavimo kaina, Eur/t]]<>0,Ūkis20[[#This Row],[Vidutinė ūkio pardavimo kaina, Eur/t]],_xlfn.XLOOKUP(Ūkis20[[#This Row],[Produktas]],Kainos[Žemės ūkio produktas],Kainos[Produkcijos kaina Eur/t],0)) -> 451 | K22: =+Ūkis20[[#This Row],[Vidutinė rinkos kaina, Eur/t]]*Ūkis20[[#This Row],[Vidutinis derlingumas t/ha]] -> 667.48 | L22: =Ūkis20[[#This Row],[Derlius t]]*Ūkis20[[#This Row],[Vidutinė rinkos kaina, Eur/t]] -> 667.48 | M22: =IF(Ūkis20[[#This Row],[Ūkio kintamosios sąnaudos, Eur/ha]]<>0,Ūkis20[[#This Row],[Ūkio kintamosios sąnaudos, Eur/ha]],SUMIFS(SanaudosSuv[Iš viso tiesioginių sąnaudų, Eur/t],SanaudosSuv[Žemės ūkio augalas, arba jų grupė],Ūkis20[[#This Row],[Žemės ūkio augalas, arba jų grupė]],SanaudosSuv[Žemės dirbimo technologija],Ūkis20[[#This Row],[Dirvos dirbimo technologija]])) -> 454.19 | O22: =Ūkis20[[#This Row],[Plotas ha]]*Ūkis20[[#This Row],[Normatyvinės kintamosios sąnaudos, Eur/ha]] -> 454.19 | P22: =+Ūkis20[[#This Row],[Pajamos, Eur/ha]]-Ūkis20[[#This Row],[Normatyvinės kintamosios sąnaudos, Eur/ha]] -> 213.29 | Q22: =+Ūkis20[[#This Row],[Pelno marža, Eur/ha]]*Ūkis20[[#This Row],[Plotas ha]] -> 213.29 | R22: =SUMIFS(SanaudosSuv[Investicijų poreikis, tūkst. Eur],SanaudosSuv[Žemės ūkio augalas, arba jų grupė],Ūkis20[[#This Row],[Žemės ūkio augalas, arba jų grupė]],SanaudosSuv[Žemės dirbimo technologija],Ūkis20[[#This Row],[Dirvos dirbimo technologija]]) -> 1109.22
A23: =ROW()-ROW(Ūkis20[[#Headers],[Eil. Nr.]]) -> 13 | B23: Žieminiai javai | C23: Kviečiai | D23: Seklus purenimas prieš sėją (SPS) | E23: 1 | F23: =IF(Ūkis20[[#This Row],[Vidutinis derlingumas ūkyje t/ha]]<>0,Ūkis20[[#This Row],[Vidutinis derlingumas ūkyje t/ha]], _xlfn._xlws.FILTER(SanaudosSuv[Vidutinis derlingumas, t/ha], (SanaudosSuv[Žemės ūkio augalas, arba jų grupė]=Ūkis20[[#This Row],[Žemės ūkio augalas, arba jų grupė]]) * (SanaudosSuv[Žemės dirbimo technologija]=Ūkis20[[#This Row],[Dirvos dirbimo technologija]]), 0)) -> 9.28 | H23: =Ūkis20[[#This Row],[Plotas ha]]*Ūkis20[[#This Row],[Vidutinis derlingumas t/ha]] -> 9.28 | I23: =IF(Ūkis20[[#This Row],[Vidutinė ūkio pardavimo kaina, Eur/t]]<>0,Ūkis20[[#This Row],[Vidutinė ūkio pardavimo kaina, Eur/t]],_xlfn.XLOOKUP(Ūkis20[[#This Row],[Produktas]],Kainos[Žemės ūkio produktas],Kainos[Produkcijos kaina Eur/t],0)) -> 227 | K23: =+Ūkis20[[#This Row],[Vidutinė rinkos kaina, Eur/t]]*Ūkis20[[#This Row],[Vidutinis derlingumas t/ha]] -> 2106.56 | L23: =Ūkis20[[#This Row],[Derlius t]]*Ūkis20[[#This Row],[Vidutinė rinkos kaina, Eur/t]] -> 2106.56 | M23: =IF(Ūkis20[[#This Row],[Ūkio kintamosios sąnaudos, Eur/ha]]<>0,Ūkis20[[#This Row],[Ūkio kintamosios sąnaudos, Eur/ha]],SUMIFS(SanaudosSuv[Iš viso tiesioginių sąnaudų, Eur/t],SanaudosSuv[Žemės ūkio augalas, arba jų grupė],Ūkis20[[#This Row],[Žemės ūkio augalas, arba jų grupė]],SanaudosSuv[Žemės dirbimo technologija],Ūkis20[[#This Row],[Dirvos dirbimo technologija]])) -> 658.82 | O23: =Ūkis20[[#This Row],[Plotas ha]]*Ūkis20[[#This Row],[Normatyvinės kintamosios sąnaudos, Eur/ha]] -> 658.82 | P23: =+Ūkis20[[#This Row],[Pajamos, Eur/ha]]-Ūkis20[[#This Row],[Normatyvinės kintamosios sąnaudos, Eur/ha]] -> 1447.74 | Q23: =+Ūkis20[[#This Row],[Pelno marža, Eur/ha]]*Ūkis20[[#This Row],[Plotas ha]] -> 1447.74 | R23: =SUMIFS(SanaudosSuv[Investicijų poreikis, tūkst. Eur],SanaudosSuv[Žemės ūkio augalas, arba jų grupė],Ūkis20[[#This Row],[Žemės ūkio augalas, arba jų grupė]],SanaudosSuv[Žemės dirbimo technologija],Ūkis20[[#This Row],[Dirvos dirbimo technologija]]) -> 1029.46
A24: =ROW()-ROW(Ūkis20[[#Headers],[Eil. Nr.]]) -> 14 | B24: Vasariniai javai | C24: Miežiai | D24: Seklus purenimas prieš sėją (SPS) | E24: 1 | F24: =IF(Ūkis20[[#This Row],[Vidutinis derlingumas ūkyje t/ha]]<>0,Ūkis20[[#This Row],[Vidutinis derlingumas ūkyje t/ha]], _xlfn._xlws.FILTER(SanaudosSuv[Vidutinis derlingumas, t/ha], (SanaudosSuv[Žemės ūkio augalas, arba jų grupė]=Ūkis20[[#This Row],[Žemės ūkio augalas, arba jų grupė]]) * (SanaudosSuv[Žemės dirbimo technologija]=Ūkis20[[#This Row],[Dirvos dirbimo technologija]]), 0)) -> 4.38 | H24: =Ūkis20[[#This Row],[Plotas ha]]*Ūkis20[[#This Row],[Vidutinis derlingumas t/ha]] -> 4.38 | I24: =IF(Ūkis20[[#This Row],[Vidutinė ūkio pardavimo kaina, Eur/t]]<>0,Ūkis20[[#This Row],[Vidutinė ūkio pardavimo kaina, Eur/t]],_xlfn.XLOOKUP(Ūkis20[[#This Row],[Produktas]],Kainos[Žemės ūkio produktas],Kainos[Produkcijos kaina Eur/t],0)) -> 203 | K24: =+Ūkis20[[#This Row],[Vidutinė rinkos kaina, Eur/t]]*Ūkis20[[#This Row],[Vidutinis derlingumas t/ha]] -> 889.14 | L24: =Ūkis20[[#This Row],[Derlius t]]*Ūkis20[[#This Row],[Vidutinė rinkos kaina, Eur/t]] -> 889.14 | M24: =IF(Ūkis20[[#This Row],[Ūkio kintamosios sąnaudos, Eur/ha]]<>0,Ūkis20[[#This Row],[Ūkio kintamosios sąnaudos, Eur/ha]],SUMIFS(SanaudosSuv[Iš viso tiesioginių sąnaudų, Eur/t],SanaudosSuv[Žemės ūkio augalas, arba jų grupė],Ūkis20[[#This Row],[Žemės ūkio augalas, arba jų grupė]],SanaudosSuv[Žemės dirbimo technologija],Ūkis20[[#This Row],[Dirvos dirbimo technologija]])) -> 542.82 | O24: =Ūkis20[[#This Row],[Plotas ha]]*Ūkis20[[#This Row],[Normatyvinės kintamosios sąnaudos, Eur/ha]] -> 542.82 | P24: =+Ūkis20[[#This Row],[Pajamos, Eur/ha]]-Ūkis20[[#This Row],[Normatyvinės kintamosios sąnaudos, Eur/ha]] -> 346.32 | Q24: =+Ūkis20[[#This Row],[Pelno marža, Eur/ha]]*Ūkis20[[#This Row],[Plotas ha]] -> 346.32 | R24: =SUMIFS(SanaudosSuv[Investicijų poreikis, tūkst. Eur],SanaudosSuv[Žemės ūkio augalas, arba jų grupė],Ūkis20[[#This Row],[Žemės ūkio augalas, arba jų grupė]],SanaudosSuv[Žemės dirbimo technologija],Ūkis20[[#This Row],[Dirvos dirbimo technologija]]) -> 1029.46
A25: =ROW()-ROW(Ūkis20[[#Headers],[Eil. Nr.]]) -> 15 | B25: Žieminiai rapsai | C25: Rapsai | D25: Seklus purenimas prieš sėją (SPS) | E25: 1 | F25: =IF(Ūkis20[[#This Row],[Vidutinis derlingumas ūkyje t/ha]]<>0,Ūkis20[[#This Row],[Vidutinis derlingumas ūkyje t/ha]], _xlfn._xlws.FILTER(SanaudosSuv[Vidutinis derlingumas, t/ha], (SanaudosSuv[Žemės ūkio augalas, arba jų grupė]=Ūkis20[[#This Row],[Žemės ūkio augalas, arba jų grupė]]) * (SanaudosSuv[Žemės dirbimo technologija]=Ūkis20[[#This Row],[Dirvos dirbimo technologija]]), 0)) -> 2.85 | H25: =Ūkis20[[#This Row],[Plotas ha]]*Ūkis20[[#This Row],[Vidutinis derlingumas t/ha]] -> 2.85 | I25: =IF(Ūkis20[[#This Row],[Vidutinė ūkio pardavimo kaina, Eur/t]]<>0,Ūkis20[[#This Row],[Vidutinė ūkio pardavimo kaina, Eur/t]],_xlfn.XLOOKUP(Ūkis20[[#This Row],[Produktas]],Kainos[Žemės ūkio produktas],Kainos[Produkcijos kaina Eur/t],0)) -> 451 | K25: =+Ūkis20[[#This Row],[Vidutinė rinkos kaina, Eur/t]]*Ūkis20[[#This Row],[Vidutinis derlingumas t/ha]] -> 1285.35 | L25: =Ūkis20[[#This Row],[Derlius t]]*Ūkis20[[#This Row],[Vidutinė rinkos kaina, Eur/t]] -> 1285.35 | M25: =IF(Ūkis20[[#This Row],[Ūkio kintamosios sąnaudos, Eur/ha]]<>0,Ūkis20[[#This Row],[Ūkio kintamosios sąnaudos, Eur/ha]],SUMIFS(SanaudosSuv[Iš viso tiesioginių sąnaudų, Eur/t],SanaudosSuv[Žemės ūkio augalas, arba jų grupė],Ūkis20[[#This Row],[Žemės ūkio augalas, arba jų grupė]],SanaudosSuv[Žemės dirbimo technologija],Ūkis20[[#This Row],[Dirvos dirbimo technologija]])) -> 667.82 | O25: =Ūkis20[[#This Row],[Plotas ha]]*Ūkis20[[#This Row],[Normatyvinės kintamosios sąnaudos, Eur/ha]] -> 667.82 | P25: =+Ūkis20[[#This Row],[Pajamos, Eur/ha]]-Ūkis20[[#This Row],[Normatyvinės kintamosios sąnaudos, Eur/ha]] -> 617.53 | Q25: =+Ūkis20[[#This Row],[Pelno marža, Eur/ha]]*Ūkis20[[#This Row],[Plotas ha]] -> 617.53 | R25: =SUMIFS(SanaudosSuv[Investicijų poreikis, tūkst. Eur],SanaudosSuv[Žemės ūkio augalas, arba jų grupė],Ūkis20[[#This Row],[Žemės ūkio augalas, arba jų grupė]],SanaudosSuv[Žemės dirbimo technologija],Ūkis20[[#This Row],[Dirvos dirbimo technologija]]) -> 1029.46
A26: =ROW()-ROW(Ūkis20[[#Headers],[Eil. Nr.]]) -> 16 | B26: Vasariniai rapsai | C26: Rapsai | D26: Seklus purenimas prieš sėją (SPS) | E26: 1 | F26: =IF(Ūkis20[[#This Row],[Vidutinis derlingumas ūkyje t/ha]]<>0,Ūkis20[[#This Row],[Vidutinis derlingumas ūkyje t/ha]], _xlfn._xlws.FILTER(SanaudosSuv[Vidutinis derlingumas, t/ha], (SanaudosSuv[Žemės ūkio augalas, arba jų grupė]=Ūkis20[[#This Row],[Žemės ūkio augalas, arba jų grupė]]) * (SanaudosSuv[Žemės dirbimo technologija]=Ūkis20[[#This Row],[Dirvos dirbimo technologija]]), 0)) -> 1.51 | H26: =Ūkis20[[#This Row],[Plotas ha]]*Ūkis20[[#This Row],[Vidutinis derlingumas t/ha]] -> 1.51 | I26: =IF(Ūkis20[[#This Row],[Vidutinė ūkio pardavimo kaina, Eur/t]]<>0,Ūkis20[[#This Row],[Vidutinė ūkio pardavimo kaina, Eur/t]],_xlfn.XLOOKUP(Ūkis20[[#This Row],[Produktas]],Kainos[Žemės ūkio produktas],Kainos[Produkcijos kaina Eur/t],0)) -> 451 | K26: =+Ūkis20[[#This Row],[Vidutinė rinkos kaina, Eur/t]]*Ūkis20[[#This Row],[Vidutinis derlingumas t/ha]] -> 681.01 | L26: =Ūkis20[[#This Row],[Derlius t]]*Ūkis20[[#This Row],[Vidutinė rinkos kaina, Eur/t]] -> 681.01 | M26: =IF(Ūkis20[[#This Row],[Ūkio kintamosios sąnaudos, Eur/ha]]<>0,Ūkis20[[#This Row],[Ūkio kintamosios sąnaudos, Eur/ha]],SUMIFS(SanaudosSuv[Iš viso tiesioginių sąnaudų, Eur/t],SanaudosSuv[Žemės ūkio augalas, arba jų grupė],Ūkis20[[#This Row],[Žemės ūkio augalas, arba jų grupė]],SanaudosSuv[Žemės dirbimo technologija],Ūkis20[[#This Row],[Dirvos dirbimo technologija]])) -> 539.82 | O26: =Ūkis20[[#This Row],[Plotas ha]]*Ūkis20[[#This Row],[Normatyvinės kintamosios sąnaudos, Eur/ha]] -> 539.82 | P26: =+Ūkis20[[#This Row],[Pajamos, Eur/ha]]-Ūkis20[[#This Row],[Normatyvinės kintamosios sąnaudos, Eur/ha]] -> 141.19 | Q26: =+Ūkis20[[#This Row],[Pelno marža, Eur/ha]]*Ūkis20[[#This Row],[Plotas ha]] -> 141.19 | R26: =SUMIFS(SanaudosSuv[Investicijų poreikis, tūkst. Eur],SanaudosSuv[Žemės ūkio augalas, arba jų grupė],Ūkis20[[#This Row],[Žemės ūkio augalas, arba jų grupė]],SanaudosSuv[Žemės dirbimo technologija],Ūkis20[[#This Row],[Dirvos dirbimo technologija]]) -> 1029.46
A27: =ROW()-ROW(Ūkis20[[#Headers],[Eil. Nr.]]) -> 17 | B27: Žieminiai javai | C27: Kviečiai | D27: Tarpiniai pasėliai (TP) | E27: 1 | F27: =IF(Ūkis20[[#This Row],[Vidutinis derlingumas ūkyje t/ha]]<>0,Ūkis20[[#This Row],[Vidutinis derlingumas ūkyje t/ha]], _xlfn._xlws.FILTER(SanaudosSuv[Vidutinis derlingumas, t/ha], (SanaudosSuv[Žemės ūkio augalas, arba jų grupė]=Ūkis20[[#This Row],[Žemės ūkio augalas, arba jų grupė]]) * (SanaudosSuv[Žemės dirbimo technologija]=Ūkis20[[#This Row],[Dirvos dirbimo technologija]]), 0)) -> 9.23 | H27: =Ūkis20[[#This Row],[Plotas ha]]*Ūkis20[[#This Row],[Vidutinis derlingumas t/ha]] -> 9.23 | I27: =IF(Ūkis20[[#This Row],[Vidutinė ūkio pardavimo kaina, Eur/t]]<>0,Ūkis20[[#This Row],[Vidutinė ūkio pardavimo kaina, Eur/t]],_xlfn.XLOOKUP(Ūkis20[[#This Row],[Produktas]],Kainos[Žemės ūkio produktas],Kainos[Produkcijos kaina Eur/t],0)) -> 227 | K27: =+Ūkis20[[#This Row],[Vidutinė rinkos kaina, Eur/t]]*Ūkis20[[#This Row],[Vidutinis derlingumas t/ha]] -> 2095.21 | L27: =Ūkis20[[#This Row],[Derlius t]]*Ūkis20[[#This Row],[Vidutinė rinkos kaina, Eur/t]] -> 2095.21 | M27: =IF(Ūkis20[[#This Row],[Ūkio kintamosios sąnaudos, Eur/ha]]<>0,Ūkis20[[#This Row],[Ūkio kintamosios sąnaudos, Eur/ha]],SUMIFS(SanaudosSuv[Iš viso tiesioginių sąnaudų, Eur/t],SanaudosSuv[Žemės ūkio augalas, arba jų grupė],Ūkis20[[#This Row],[Žemės ūkio augalas, arba jų grupė]],SanaudosSuv[Žemės dirbimo technologija],Ūkis20[[#This Row],[Dirvos dirbimo technologija]])) -> 675.81 | O27: =Ūkis20[[#This Row],[Plotas ha]]*Ūkis20[[#This Row],[Normatyvinės kintamosios sąnaudos, Eur/ha]] -> 675.81 | P27: =+Ūkis20[[#This Row],[Pajamos, Eur/ha]]-Ūkis20[[#This Row],[Normatyvinės kintamosios sąnaudos, Eur/ha]] -> 1419.4 | Q27: =+Ūkis20[[#This Row],[Pelno marža, Eur/ha]]*Ūkis20[[#This Row],[Plotas ha]] -> 1419.4 | R27: =SUMIFS(SanaudosSuv[Investicijų poreikis, tūkst. Eur],SanaudosSuv[Žemės ūkio augalas, arba jų grupė],Ūkis20[[#This Row],[Žemės ūkio augalas, arba jų grupė]],SanaudosSuv[Žemės dirbimo technologija],Ūkis20[[#This Row],[Dirvos dirbimo technologija]]) -> 965.6
A28: =ROW()-ROW(Ūkis20[[#Headers],[Eil. Nr.]]) -> 18 | B28: Vasariniai javai | C28: Miežiai | D28: Tarpiniai pasėliai (TP) | E28: 1 | F28: =IF(Ūkis20[[#This Row],[Vidutinis derlingumas ūkyje t/ha]]<>0,Ūkis20[[#This Row],[Vidutinis derlingumas ūkyje t/ha]], _xlfn._xlws.FILTER(SanaudosSuv[Vidutinis derlingumas, t/ha], (SanaudosSuv[Žemės ūkio augalas, arba jų grupė]=Ūkis20[[#This Row],[Žemės ūkio augalas, arba jų grupė]]) * (SanaudosSuv[Žemės dirbimo technologija]=Ūkis20[[#This Row],[Dirvos dirbimo technologija]]), 0)) -> 4.34 | H28: =Ūkis20[[#This Row],[Plotas ha]]*Ūkis20[[#This Row],[Vidutinis derlingumas t/ha]] -> 4.34 | I28: =IF(Ūkis20[[#This Row],[Vidutinė ūkio pardavimo kaina, Eur/t]]<>0,Ūkis20[[#This Row],[Vidutinė ūkio pardavimo kaina, Eur/t]],_xlfn.XLOOKUP(Ūkis20[[#This Row],[Produktas]],Kainos[Žemės ūkio produktas],Kainos[Produkcijos kaina Eur/t],0)) -> 203 | K28: =+Ūkis20[[#This Row],[Vidutinė rinkos kaina, Eur/t]]*Ūkis20[[#This Row],[Vidutinis derlingumas t/ha]] -> 881.02 | L28: =Ūkis20[[#This Row],[Derlius t]]*Ūkis20[[#This Row],[Vidutinė rinkos kaina, Eur/t]] -> 881.02 | M28: =IF(Ūkis20[[#This Row],[Ūkio kintamosios sąnaudos, Eur/ha]]<>0,Ūkis20[[#This Row],[Ūkio kintamosios sąnaudos, Eur/ha]],SUMIFS(SanaudosSuv[Iš viso tiesioginių sąnaudų, Eur/t],SanaudosSuv[Žemės ūkio augalas, arba jų grupė],Ūkis20[[#This Row],[Žemės ūkio augalas, arba jų grupė]],SanaudosSuv[Žemės dirbimo technologija],Ūkis20[[#This Row],[Dirvos dirbimo technologija]])) -> 559.81 | O28: =Ūkis20[[#This Row],[Plotas ha]]*Ūkis20[[#This Row],[Normatyvinės kintamosios sąnaudos, Eur/ha]] -> 559.81 | P28: =+Ūkis20[[#This Row],[Pajamos, Eur/ha]]-Ūkis20[[#This Row],[Normatyvinės kintamosios sąnaudos, Eur/ha]] -> 321.21 | Q28: =+Ūkis20[[#This Row],[Pelno marža, Eur/ha]]*Ūkis20[[#This Row],[Plotas ha]] -> 321.21 | R28: =SUMIFS(SanaudosSuv[Investicijų poreikis, tūkst. Eur],SanaudosSuv[Žemės ūkio augalas, arba jų grupė],Ūkis20[[#This Row],[Žemės ūkio augalas, arba jų grupė]],SanaudosSuv[Žemės dirbimo technologija],Ūkis20[[#This Row],[Dirvos dirbimo technologija]]) -> 965.6
A29: =ROW()-ROW(Ūkis20[[#Headers],[Eil. Nr.]]) -> 19 | B29: Žieminiai rapsai | C29: Rapsai | D29: Tarpiniai pasėliai (TP) | E29: 1 | F29: =IF(Ūkis20[[#This Row],[Vidutinis derlingumas ūkyje t/ha]]<>0,Ūkis20[[#This Row],[Vidutinis derlingumas ūkyje t/ha]], _xlfn._xlws.FILTER(SanaudosSuv[Vidutinis derlingumas, t/ha], (SanaudosSuv[Žemės ūkio augalas, arba jų grupė]=Ūkis20[[#This Row],[Žemės ūkio augalas, arba jų grupė]]) * (SanaudosSuv[Žemės dirbimo technologija]=Ūkis20[[#This Row],[Dirvos dirbimo technologija]]), 0)) -> 3.11 | H29: =Ūkis20[[#This Row],[Plotas ha]]*Ūkis20[[#This Row],[Vidutinis derlingumas t/ha]] -> 3.11 | I29: =IF(Ūkis20[[#This Row],[Vidutinė ūkio pardavimo kaina, Eur/t]]<>0,Ūkis20[[#This Row],[Vidutinė ūkio pardavimo kaina, Eur/t]],_xlfn.XLOOKUP(Ūkis20[[#This Row],[Produktas]],Kainos[Žemės ūkio produktas],Kainos[Produkcijos kaina Eur/t],0)) -> 451 | K29: =+Ūkis20[[#This Row],[Vidutinė rinkos kaina, Eur/t]]*Ūkis20[[#This Row],[Vidutinis derlingumas t/ha]] -> 1402.61 | L29: =Ūkis20[[#This Row],[Derlius t]]*Ūkis20[[#This Row],[Vidutinė rinkos kaina, Eur/t]] -> 1402.61 | M29: =IF(Ūkis20[[#This Row],[Ūkio kintamosios sąnaudos, Eur/ha]]<>0,Ūkis20[[#This Row],[Ūkio kintamosios sąnaudos, Eur/ha]],SUMIFS(SanaudosSuv[Iš viso tiesioginių sąnaudų, Eur/t],SanaudosSuv[Žemės ūkio augalas, arba jų grupė],Ūkis20[[#This Row],[Žemės ūkio augalas, arba jų grupė]],SanaudosSuv[Žemės dirbimo technologija],Ūkis20[[#This Row],[Dirvos dirbimo technologija]])) -> 684.81 | O29: =Ūkis20[[#This Row],[Plotas ha]]*Ūkis20[[#This Row],[Normatyvinės kintamosios sąnaudos, Eur/ha]] -> 684.81 | P29: =+Ūkis20[[#This Row],[Pajamos, Eur/ha]]-Ūkis20[[#This Row],[Normatyvinės kintamosios sąnaudos, Eur/ha]] -> 717.8 | Q29: =+Ūkis20[[#This Row],[Pelno marža, Eur/ha]]*Ūkis20[[#This Row],[Plotas ha]] -> 717.8 | R29: =SUMIFS(SanaudosSuv[Investicijų poreikis, tūkst. Eur],SanaudosSuv[Žemės ūkio augalas, arba jų grupė],Ūkis20[[#This Row],[Žemės ūkio augalas, arba jų grupė]],SanaudosSuv[Žemės dirbimo technologija],Ūkis20[[#This Row],[Dirvos dirbimo technologija]]) -> 965.6
A30: =ROW()-ROW(Ūkis20[[#Headers],[Eil. Nr.]]) -> 20 | B30: Vasariniai rapsai | C30: Rapsai | D30: Tarpiniai pasėliai (TP) | E30: 1 | F30: =IF(Ūkis20[[#This Row],[Vidutinis derlingumas ūkyje t/ha]]<>0,Ūkis20[[#This Row],[Vidutinis derlingumas ūkyje t/ha]], _xlfn._xlws.FILTER(SanaudosSuv[Vidutinis derlingumas, t/ha], (SanaudosSuv[Žemės ūkio augalas, arba jų grupė]=Ūkis20[[#This Row],[Žemės ūkio augalas, arba jų grupė]]) * (SanaudosSuv[Žemės dirbimo technologija]=Ūkis20[[#This Row],[Dirvos dirbimo technologija]]), 0)) -> 1.3 | H30: =Ūkis20[[#This Row],[Plotas ha]]*Ūkis20[[#This Row],[Vidutinis derlingumas t/ha]] -> 1.3 | I30: =IF(Ūkis20[[#This Row],[Vidutinė ūkio pardavimo kaina, Eur/t]]<>0,Ūkis20[[#This Row],[Vidutinė ūkio pardavimo kaina, Eur/t]],_xlfn.XLOOKUP(Ūkis20[[#This Row],[Produktas]],Kainos[Žemės ūkio produktas],Kainos[Produkcijos kaina Eur/t],0)) -> 451 | K30: =+Ūkis20[[#This Row],[Vidutinė rinkos kaina, Eur/t]]*Ūkis20[[#This Row],[Vidutinis derlingumas t/ha]] -> 586.3 | L30: =Ūkis20[[#This Row],[Derlius t]]*Ūkis20[[#This Row],[Vidutinė rinkos kaina, Eur/t]] -> 586.3 | M30: =IF(Ūkis20[[#This Row],[Ūkio kintamosios sąnaudos, Eur/ha]]<>0,Ūkis20[[#This Row],[Ūkio kintamosios sąnaudos, Eur/ha]],SUMIFS(SanaudosSuv[Iš viso tiesioginių sąnaudų, Eur/t],SanaudosSuv[Žemės ūkio augalas, arba jų grupė],Ūkis20[[#This Row],[Žemės ūkio augalas, arba jų grupė]],SanaudosSuv[Žemės dirbimo technologija],Ūkis20[[#This Row],[Dirvos dirbimo technologija]])) -> 551.81 | O30: =Ūkis20[[#This Row],[Plotas ha]]*Ūkis20[[#This Row],[Normatyvinės kintamosios sąnaudos, Eur/ha]] -> 551.81 | P30: =+Ūkis20[[#This Row],[Pajamos, Eur/ha]]-Ūkis20[[#This Row],[Normatyvinės kintamosios sąnaudos, Eur/ha]] -> 34.49 | Q30: =+Ūkis20[[#This Row],[Pelno marža, Eur/ha]]*Ūkis20[[#This Row],[Plotas ha]] -> 34.49 | R30: =SUMIFS(SanaudosSuv[Investicijų poreikis, tūkst. Eur],SanaudosSuv[Žemės ūkio augalas, arba jų grupė],Ūkis20[[#This Row],[Žemės ūkio augalas, arba jų grupė]],SanaudosSuv[Žemės dirbimo technologija],Ūkis20[[#This Row],[Dirvos dirbimo technologija]]) -> 965.6
A31: =ROW()-ROW(Ūkis20[[#Headers],[Eil. Nr.]]) -> 21 | B31: Žieminiai javai | C31: Kviečiai | D31: Tiesioginė sėja (TS) | E31: 1 | F31: =IF(Ūkis20[[#This Row],[Vidutinis derlingumas ūkyje t/ha]]<>0,Ūkis20[[#This Row],[Vidutinis derlingumas ūkyje t/ha]], _xlfn._xlws.FILTER(SanaudosSuv[Vidutinis derlingumas, t/ha], (SanaudosSuv[Žemės ūkio augalas, arba jų grupė]=Ūkis20[[#This Row],[Žemės ūkio augalas, arba jų grupė]]) * (SanaudosSuv[Žemės dirbimo technologija]=Ūkis20[[#This Row],[Dirvos dirbimo technologija]]), 0)) -> 8.92 | H31: =Ūkis20[[#This Row],[Plotas ha]]*Ūkis20[[#This Row],[Vidutinis derlingumas t/ha]] -> 8.92 | I31: =IF(Ūkis20[[#This Row],[Vidutinė ūkio pardavimo kaina, Eur/t]]<>0,Ūkis20[[#This Row],[Vidutinė ūkio pardavimo kaina, Eur/t]],_xlfn.XLOOKUP(Ūkis20[[#This Row],[Produktas]],Kainos[Žemės ūkio produktas],Kainos[Produkcijos kaina Eur/t],0)) -> 227 | K31: =+Ūkis20[[#This Row],[Vidutinė rinkos kaina, Eur/t]]*Ūkis20[[#This Row],[Vidutinis derlingumas t/ha]] -> 2024.84 | L31: =Ūkis20[[#This Row],[Derlius t]]*Ūkis20[[#This Row],[Vidutinė rinkos kaina, Eur/t]] -> 2024.84 | M31: =IF(Ūkis20[[#This Row],[Ūkio kintamosios sąnaudos, Eur/ha]]<>0,Ūkis20[[#This Row],[Ūkio kintamosios sąnaudos, Eur/ha]],SUMIFS(SanaudosSuv[Iš viso tiesioginių sąnaudų, Eur/t],SanaudosSuv[Žemės ūkio augalas, arba jų grupė],Ūkis20[[#This Row],[Žemės ūkio augalas, arba jų grupė]],SanaudosSuv[Žemės dirbimo technologija],Ūkis20[[#This Row],[Dirvos dirbimo technologija]])) -> 621.53 | O31: =Ūkis20[[#This Row],[Plotas ha]]*Ūkis20[[#This Row],[Normatyvinės kintamosios sąnaudos, Eur/ha]] -> 621.53 | P31: =+Ūkis20[[#This Row],[Pajamos, Eur/ha]]-Ūkis20[[#This Row],[Normatyvinės kintamosios sąnaudos, Eur/ha]] -> 1403.31 | Q31: =+Ūkis20[[#This Row],[Pelno marža, Eur/ha]]*Ūkis20[[#This Row],[Plotas ha]] -> 1403.31 | R31: =SUMIFS(SanaudosSuv[Investicijų poreikis, tūkst. Eur],SanaudosSuv[Žemės ūkio augalas, arba jų grupė],Ūkis20[[#This Row],[Žemės ūkio augalas, arba jų grupė]],SanaudosSuv[Žemės dirbimo technologija],Ūkis20[[#This Row],[Dirvos dirbimo technologija]]) -> 965.6
A32: =ROW()-ROW(Ūkis20[[#Headers],[Eil. Nr.]]) -> 22 | B32: Vasariniai javai | C32: Miežiai | D32: Tiesioginė sėja (TS) | E32: 1 | F32: =IF(Ūkis20[[#This Row],[Vidutinis derlingumas ūkyje t/ha]]<>0,Ūkis20[[#This Row],[Vidutinis derlingumas ūkyje t/ha]], _xlfn._xlws.FILTER(SanaudosSuv[Vidutinis derlingumas, t/ha], (SanaudosSuv[Žemės ūkio augalas, arba jų grupė]=Ūkis20[[#This Row],[Žemės ūkio augalas, arba jų grupė]]) * (SanaudosSuv[Žemės dirbimo technologija]=Ūkis20[[#This Row],[Dirvos dirbimo technologija]]), 0)) -> 4.42 | H32: =Ūkis20[[#This Row],[Plotas ha]]*Ūkis20[[#This Row],[Vidutinis derlingumas t/ha]] -> 4.42 | I32: =IF(Ūkis20[[#This Row],[Vidutinė ūkio pardavimo kaina, Eur/t]]<>0,Ūkis20[[#This Row],[Vidutinė ūkio pardavimo kaina, Eur/t]],_xlfn.XLOOKUP(Ūkis20[[#This Row],[Produktas]],Kainos[Žemės ūkio produktas],Kainos[Produkcijos kaina Eur/t],0)) -> 203 | K32: =+Ūkis20[[#This Row],[Vidutinė rinkos kaina, Eur/t]]*Ūkis20[[#This Row],[Vidutinis derlingumas t/ha]] -> 897.26 | L32: =Ūkis20[[#This Row],[Derlius t]]*Ūkis20[[#This Row],[Vidutinė rinkos kaina, Eur/t]] -> 897.26 | M32: =IF(Ūkis20[[#This Row],[Ūkio kintamosios sąnaudos, Eur/ha]]<>0,Ūkis20[[#This Row],[Ūkio kintamosios sąnaudos, Eur/ha]],SUMIFS(SanaudosSuv[Iš viso tiesioginių sąnaudų, Eur/t],SanaudosSuv[Žemės ūkio augalas, arba jų grupė],Ūkis20[[#This Row],[Žemės ūkio augalas, arba jų grupė]],SanaudosSuv[Žemės dirbimo technologija],Ūkis20[[#This Row],[Dirvos dirbimo technologija]])) -> 505.53 | O32: =Ūkis20[[#This Row],[Plotas ha]]*Ūkis20[[#This Row],[Normatyvinės kintamosios sąnaudos, Eur/ha]] -> 505.53 | P32: =+Ūkis20[[#This Row],[Pajamos, Eur/ha]]-Ūkis20[[#This Row],[Normatyvinės kintamosios sąnaudos, Eur/ha]] -> 391.73 | Q32: =+Ūkis20[[#This Row],[Pelno marža, Eur/ha]]*Ūkis20[[#This Row],[Plotas ha]] -> 391.73 | R32: =SUMIFS(SanaudosSuv[Investicijų poreikis, tūkst. Eur],SanaudosSuv[Žemės ūkio augalas, arba jų grupė],Ūkis20[[#This Row],[Žemės ūkio augalas, arba jų grupė]],SanaudosSuv[Žemės dirbimo technologija],Ūkis20[[#This Row],[Dirvos dirbimo technologija]]) -> 965.6
A33: =ROW()-ROW(Ūkis20[[#Headers],[Eil. Nr.]]) -> 23 | B33: Žieminiai rapsai | C33: Rapsai | D33: Tiesioginė sėja (TS) | E33: 1 | F33: =IF(Ūkis20[[#This Row],[Vidutinis derlingumas ūkyje t/ha]]<>0,Ūkis20[[#This Row],[Vidutinis derlingumas ūkyje t/ha]], _xlfn._xlws.FILTER(SanaudosSuv[Vidutinis derlingumas, t/ha], (SanaudosSuv[Žemės ūkio augalas, arba jų grupė]=Ūkis20[[#This Row],[Žemės ūkio augalas, arba jų grupė]]) * (SanaudosSuv[Žemės dirbimo technologija]=Ūkis20[[#This Row],[Dirvos dirbimo technologija]]), 0)) -> 3.37 | H33: =Ūkis20[[#This Row],[Plotas ha]]*Ūkis20[[#This Row],[Vidutinis derlingumas t/ha]] -> 3.37 | I33: =IF(Ūkis20[[#This Row],[Vidutinė ūkio pardavimo kaina, Eur/t]]<>0,Ūkis20[[#This Row],[Vidutinė ūkio pardavimo kaina, Eur/t]],_xlfn.XLOOKUP(Ūkis20[[#This Row],[Produktas]],Kainos[Žemės ūkio produktas],Kainos[Produkcijos kaina Eur/t],0)) -> 451 | K33: =+Ūkis20[[#This Row],[Vidutinė rinkos kaina, Eur/t]]*Ūkis20[[#This Row],[Vidutinis derlingumas t/ha]] -> 1519.87 | L33: =Ūkis20[[#This Row],[Derlius t]]*Ūkis20[[#This Row],[Vidutinė rinkos kaina, Eur/t]] -> 1519.87 | M33: =IF(Ūkis20[[#This Row],[Ūkio kintamosios sąnaudos, Eur/ha]]<>0,Ūkis20[[#This Row],[Ūkio kintamosios sąnaudos, Eur/ha]],SUMIFS(SanaudosSuv[Iš viso tiesioginių sąnaudų, Eur/t],SanaudosSuv[Žemės ūkio augalas, arba jų grupė],Ūkis20[[#This Row],[Žemės ūkio augalas, arba jų grupė]],SanaudosSuv[Žemės dirbimo technologija],Ūkis20[[#This Row],[Dirvos dirbimo technologija]])) -> 630.53 | O33: =Ūkis20[[#This Row],[Plotas ha]]*Ūkis20[[#This Row],[Normatyvinės kintamosios sąnaudos, Eur/ha]] -> 630.53 | P33: =+Ūkis20[[#This Row],[Pajamos, Eur/ha]]-Ūkis20[[#This Row],[Normatyvinės kintamosios sąnaudos, Eur/ha]] -> 889.34 | Q33: =+Ūkis20[[#This Row],[Pelno marža, Eur/ha]]*Ūkis20[[#This Row],[Plotas ha]] -> 889.34 | R33: =SUMIFS(SanaudosSuv[Investicijų poreikis, tūkst. Eur],SanaudosSuv[Žemės ūkio augalas, arba jų grupė],Ūkis20[[#This Row],[Žemės ūkio augalas, arba jų grupė]],SanaudosSuv[Žemės dirbimo technologija],Ūkis20[[#This Row],[Dirvos dirbimo technologija]]) -> 965.6
A34: =ROW()-ROW(Ūkis20[[#Headers],[Eil. Nr.]]) -> 24 | B34: Vasariniai rapsai | C34: Rapsai | D34: Tiesioginė sėja (TS) | E34: 1 | F34: =IF(Ūkis20[[#This Row],[Vidutinis derlingumas ūkyje t/ha]]<>0,Ūkis20[[#This Row],[Vidutinis derlingumas ūkyje t/ha]], _xlfn._xlws.FILTER(SanaudosSuv[Vidutinis derlingumas, t/ha], (SanaudosSuv[Žemės ūkio augalas, arba jų grupė]=Ūkis20[[#This Row],[Žemės ūkio augalas, arba jų grupė]]) * (SanaudosSuv[Žemės dirbimo technologija]=Ūkis20[[#This Row],[Dirvos dirbimo technologija]]), 0)) -> 1.48 | H34: =Ūkis20[[#This Row],[Plotas ha]]*Ūkis20[[#This Row],[Vidutinis derlingumas t/ha]] -> 1.48 | I34: =IF(Ūkis20[[#This Row],[Vidutinė ūkio pardavimo kaina, Eur/t]]<>0,Ūkis20[[#This Row],[Vidutinė ūkio pardavimo kaina, Eur/t]],_xlfn.XLOOKUP(Ūkis20[[#This Row],[Produktas]],Kainos[Žemės ūkio produktas],Kainos[Produkcijos kaina Eur/t],0)) -> 451 | K34: =+Ūkis20[[#This Row],[Vidutinė rinkos kaina, Eur/t]]*Ūkis20[[#This Row],[Vidutinis derlingumas t/ha]] -> 667.48 | L34: =Ūkis20[[#This Row],[Derlius t]]*Ūkis20[[#This Row],[Vidutinė rinkos kaina, Eur/t]] -> 667.48 | M34: =IF(Ūkis20[[#This Row],[Ūkio kintamosios sąnaudos, Eur/ha]]<>0,Ūkis20[[#This Row],[Ūkio kintamosios sąnaudos, Eur/ha]],SUMIFS(SanaudosSuv[Iš viso tiesioginių sąnaudų, Eur/t],SanaudosSuv[Žemės ūkio augalas, arba jų grupė],Ūkis20[[#This Row],[Žemės ūkio augalas, arba jų grupė]],SanaudosSuv[Žemės dirbimo technologija],Ūkis20[[#This Row],[Dirvos dirbimo technologija]])) -> 497.53 | O34: =Ūkis20[[#This Row],[Plotas ha]]*Ūkis20[[#This Row],[Normatyvinės kintamosios sąnaudos, Eur/ha]] -> 497.53 | P34: =+Ūkis20[[#This Row],[Pajamos, Eur/ha]]-Ūkis20[[#This Row],[Normatyvinės kintamosios sąnaudos, Eur/ha]] -> 169.95 | Q34: =+Ūkis20[[#This Row],[Pelno marža, Eur/ha]]*Ūkis20[[#This Row],[Plotas ha]] -> 169.95 | R34: =SUMIFS(SanaudosSuv[Investicijų poreikis, tūkst. Eur],SanaudosSuv[Žemės ūkio augalas, arba jų grupė],Ūkis20[[#This Row],[Žemės ūkio augalas, arba jų grupė]],SanaudosSuv[Žemės dirbimo technologija],Ūkis20[[#This Row],[Dirvos dirbimo technologija]]) -> 965.6

Sheet Ūkio duomenys
A2: INVESTICIJŲ Į DIRVOS DIRBIMO TECHNOLOGIJAS EKONOMINIS VERTINIMAS
A5: 1. | B5: Atsakykite į klausimus:
A7: 1.1. | B7: Šiuo metu ūkyje augalinės atliekos, įskaitant šiaudus, paliekamos lauke | C7: Ne | D7: =IF(C7="Ne", "Šiaudai nepaliekami (R)", "Šiaudai paliekami lauke (S)") -> Šiaudai nepaliekami (R)
A8: 1.2. | B8: Ateityje ūkyje augalinės atliekos, įskaitant šiaudus, bus paliekamos lauke | C8: Taip | D8: =IF(C8="Ne", "Šiaudai nepaliekami (R)", "Šiaudai paliekami lauke (S)") -> Šiaudai paliekami lauke (S)
A10: 2. | B10: Turimos ir planuojamos investicijos javams ir rapsams auginti
A11: 2.1. | B11: Žemės ūkio mašinų ir įrenginių, naudojamų javams ir rapsams, balansinė vertė, Eur | C11: 125000
A12: 2.2. | B12: Papildomų investicijų poreikis, siekiant taikyti naujas technologijas | C12: 500000
A13: 2.3. | B13: Apskaičiuotas investicijų poreikis veiklai vykdyti (pradedant veiklą nuo "nulio") | C13: =MAX(Ūkis[Investicijų vertė tūkst. Eur])*1000 -> 965600
A15: 3. | B15: Tiesioginių išmokų dydis, Eur/ha | C15: 170
A18: 3. | B18: Įveskite duomenis apie auginamus pasėlius:
B20: JAVŲ IR RAPSŲ PLOTAI, DERLINGUMAS, PAJAMOS, SĄNAUDOS IR PELNAS
B22: Iš viso | F22: =SUM(Ūkis[Plotas ha]) -> 260 | M22: =SUMPRODUCT(Ūkis[Plotas ha],Ūkis[Pajamų pokytis, Eur/ha]) -> 27630 | O22: =SUMPRODUCT(Ūkis[Plotas ha],Ūkis[Galimas sąnaudų pokytis, Eur/ha]) -> -13287 | R22: =SUM(Ūkis[Pelno maržos pokytis iš viso, Eur]) -> 40917 | U22: =SUM(Ūkis[Pelnas]) -> 160417
A23: Eil. Nr. | B23: Žemės ūkio augalas, arba jų grupė | C23: Produktas | D23: Taikoma dirvos dirbimo technologija | E23: Planuojama dirvos dirbimo technologija | F23: Plotas ha | G23: Vidutinis derlingumas ūkyje t/ha | H23: Galimas derlingumo pokytis dėl atliekų, t/ha | I23: Galimas derlingumo pokytis dėl technologijos, t/ha | J23: Derlingumo pokytis, proc. | K23: Derlingumo pokytis, t/ha | L23: Vidutinė pardavimo kaina, Eur/t | M23: Pajamų pokytis, Eur/ha | N23: Ūkio kintamosios sąnaudos, Eur/ha | O23: Galimas sąnaudų pokytis, Eur/ha | P23: Sąnaudų pokytis, proc. | Q23: Pelno maržos pokytis, Eur/ha | R23: Pelno maržos pokytis iš viso, Eur | S23: Pajamos | T23: Sąnaudos | U23: Pelnas | V23: Investicijų vertė tūkst. Eur
A24: 1 | B24: Žieminiai javai | C24: Kviečiai | D24: Gilus arimas (GA) | E24: Tiesioginė sėja (TS) | F24: 100 | G24: 6 | H24: =ROUND(_xlfn._xlws.FILTER(SanaudosSuv[Vidutinis derlingumas, t/ha],(SanaudosSuv[Žemės ūkio augalas, arba jų grupė]=Ūkis[[#This Row],[Žemės ūkio augalas, arba jų grupė]]) * (SanaudosSuv[Žemės dirbimo technologija]=$D$8),) / _xlfn._xlws.FILTER(SanaudosSuv[Vidutinis derlingumas, t/ha],(SanaudosSuv[Žemės ūkio augalas, arba jų grupė]=Ūkis[[#This Row],[Žemės ūkio augalas, arba jų grupė]]) * (SanaudosSuv[Žemės dirbimo technologija]=$D$7),) * Ūkis[[#This Row],[Vidutinis derlingumas ūkyje t/ha]],2) - Ūkis[[#This Row],[Vidutinis derlingumas ūkyje t/ha]] -> 0.22 | I24: =ROUND(_xlfn._xlws.FILTER(SanaudosSuv[Vidutinis derlingumas, t/ha],(SanaudosSuv[Žemės ūkio augalas, arba jų grupė]=Ūkis[[#This Row],[Žemės ūkio augalas, arba jų grupė]]) * (SanaudosSuv[Žemės dirbimo technologija]=Ūkis[[#This Row],[Planuojama dirvos dirbimo technologija]]),) / _xlfn._xlws.FILTER(SanaudosSuv[Vidutinis derlingumas, t/ha],(SanaudosSuv[Žemės ūkio augalas, arba jų grupė]=Ūkis[[#This Row],[Žemės ūkio augalas, arba jų grupė]]) * (SanaudosSuv[Žemės dirbimo technologija]=Ūkis[[#This Row],[Taikoma dirvos dirbimo technologija]]),) * Ūkis[[#This Row],[Vidutinis derlingumas ūkyje t/ha]],2) - Ūkis[[#This Row],[Vidutinis derlingumas ūkyje t/ha]] -> 0.41 | J24: =ROUND((Ūkis[[#This Row],[Galimas derlingumo pokytis dėl technologijos, t/ha]]+Ūkis[[#This Row],[Galimas derlingumo pokytis dėl atliekų, t/ha]])/Ūkis[[#This Row],[Vidutinis derlingumas ūkyje t/ha]],4) -> 0.105 | K24: =(Ūkis[[#This Row],[Vidutinis derlingumas ūkyje t/ha]] + Ūkis[[#This Row],[Galimas derlingumo pokytis dėl technologijos, t/ha]] + Ūkis[[#This Row],[Galimas derlingumo pokytis dėl atliekų, t/ha]]) - Ūkis[[#This Row],[Vidutinis derlingumas ūkyje t/ha]] -> 0.63 | L24: 200 | M24: =Ūkis[[#This Row],[Vidutinė pardavimo kaina, Eur/t]]*Ūkis[[#This Row],[Derlingumo pokytis, t/ha]] -> 126 | N24: 600 | O24: =SUMIFS(SanaudosSuv[Iš viso tiesioginių sąnaudų, Eur/t],SanaudosSuv[Žemės ūkio augalas, arba jų grupė],Ūkis[[#This Row],[Žemės ūkio augalas, arba jų grupė]],SanaudosSuv[Žemės dirbimo technologija],Ūkis[[#This Row],[Planuojama dirvos dirbimo technologija]]) - SUMIFS(SanaudosSuv[Iš viso tiesioginių sąnaudų, Eur/t],SanaudosSuv[Žemės ūkio augalas, arba jų grupė],Ūkis[[#This Row],[Žemės ūkio augalas, arba jų grupė]],SanaudosSuv[Žemės dirbimo technologija],Ūkis[[#This Row],[Taikoma dirvos dirbimo technologija]]) -> -56.79 | P24: =SUMIFS(SanaudosSuv[Iš viso tiesioginių sąnaudų, Eur/t],SanaudosSuv[Žemės ūkio augalas, arba jų grupė],Ūkis[[#This Row],[Žemės ūkio augalas, arba jų grupė]],SanaudosSuv[Žemės dirbimo technologija],Ūkis[[#This Row],[Planuojama dirvos dirbimo technologija]]) / SUMIFS(SanaudosSuv[Iš viso tiesioginių sąnaudų, Eur/t],SanaudosSuv[Žemės ūkio augalas, arba jų grupė],Ūkis[[#This Row],[Žemės ūkio augalas, arba jų grupė]],SanaudosSuv[Žemės dirbimo technologija],Ūkis[[#This Row],[Taikoma dirvos dirbimo technologija]]) - 1 -> -0.08372154735 | Q24: =Ūkis[[#This Row],[Pajamų pokytis, Eur/ha]]-Ūkis[[#This Row],[Galimas sąnaudų pokytis, Eur/ha]] -> 182.79 | R24: =+Ūkis[[#This Row],[Pelno maržos pokytis, Eur/ha]]*Ūkis[[#This Row],[Plotas ha]] -> 18279 | S24: =Ūkis[[#This Row],[Plotas ha]]*(Ūkis[[#This Row],[Derlingumo pokytis, t/ha]]+Ūkis[[#This Row],[Vidutinis derlingumas ūkyje t/ha]])*Ūkis[[#This Row],[Vidutinė pardavimo kaina, Eur/t]] -> 132600 | T24: =Ūkis[[#This Row],[Plotas ha]]*(Ūkis[[#This Row],[Ūkio kintamosios sąnaudos, Eur/ha]]+Ūkis[[#This Row],[Galimas sąnaudų pokytis, Eur/ha]]) -> 54321 | U24: =Ūkis[[#This Row],[Pajamos]]-Ūkis[[#This Row],[Sąnaudos]] -> 78279 | V24: =SUMIFS(SanaudosSuv[Investicijų poreikis, tūkst. Eur],SanaudosSuv[Žemės ūkio augalas, arba jų grupė],Ūkis[[#This Row],[Žemės ūkio augalas, arba jų grupė]],SanaudosSuv[Žemės dirbimo technologija],Ūkis[[#This Row],[Planuojama dirvos dirbimo technologija]]) -> 965.6
A25: 2 | B25: Vasariniai javai | C25: Miežiai | D25: Gilus arimas (GA) | E25: Tiesioginė sėja (TS) | F25: 100 | G25: 5 | H25: =ROUND(_xlfn._xlws.FILTER(SanaudosSuv[Vidutinis derlingumas, t/ha],(SanaudosSuv[Žemės ūkio augalas, arba jų grupė]=Ūkis[[#This Row],[Žemės ūkio augalas, arba jų grupė]]) * (SanaudosSuv[Žemės dirbimo technologija]=$D$8),) / _xlfn._xlws.FILTER(SanaudosSuv[Vidutinis derlingumas, t/ha],(SanaudosSuv[Žemės ūkio augalas, arba jų grupė]=Ūkis[[#This Row],[Žemės ūkio augalas, arba jų grupė]]) * (SanaudosSuv[Žemės dirbimo technologija]=$D$7),) * Ūkis[[#This Row],[Vidutinis derlingumas ūkyje t/ha]],2) - Ūkis[[#This Row],[Vidutinis derlingumas ūkyje t/ha]] -> 0.22 | I25: =ROUND(_xlfn._xlws.FILTER(SanaudosSuv[Vidutinis derlingumas, t/ha],(SanaudosSuv[Žemės ūkio augalas, arba jų grupė]=Ūkis[[#This Row],[Žemės ūkio augalas, arba jų grupė]]) * (SanaudosSuv[Žemės dirbimo technologija]=Ūkis[[#This Row],[Planuojama dirvos dirbimo technologija]]),) / _xlfn._xlws.FILTER(SanaudosSuv[Vidutinis derlingumas, t/ha],(SanaudosSuv[Žemės ūkio augalas, arba jų grupė]=Ūkis[[#This Row],[Žemės ūkio augalas, arba jų grupė]]) * (SanaudosSuv[Žemės dirbimo technologija]=Ūkis[[#This Row],[Taikoma dirvos dirbimo technologija]]),) * Ūkis[[#This Row],[Vidutinis derlingumas ūkyje t/ha]],2) - Ūkis[[#This Row],[Vidutinis derlingumas ūkyje t/ha]] -> -0.28 | J25: =ROUND((Ūkis[[#This Row],[Galimas derlingumo pokytis dėl technologijos, t/ha]]+Ūkis[[#This Row],[Galimas derlingumo pokytis dėl atliekų, t/ha]])/Ūkis[[#This Row],[Vidutinis derlingumas ūkyje t/ha]],4) -> -0.012 | K25: =(Ūkis[[#This Row],[Vidutinis derlingumas ūkyje t/ha]] + Ūkis[[#This Row],[Galimas derlingumo pokytis dėl technologijos, t/ha]] + Ūkis[[#This Row],[Galimas derlingumo pokytis dėl atliekų, t/ha]]) - Ūkis[[#This Row],[Vidutinis derlingumas ūkyje t/ha]] -> -0.06 | L25: 150 | M25: =Ūkis[[#This Row],[Vidutinė pardavimo kaina, Eur/t]]*Ūkis[[#This Row],[Derlingumo pokytis, t/ha]] -> -9 | N25: 500 | O25: =SUMIFS(SanaudosSuv[Iš viso tiesioginių sąnaudų, Eur/t],SanaudosSuv[Žemės ūkio augalas, arba jų grupė],Ūkis[[#This Row],[Žemės ūkio augalas, arba jų grupė]],SanaudosSuv[Žemės dirbimo technologija],Ūkis[[#This Row],[Planuojama dirvos dirbimo technologija]]) - SUMIFS(SanaudosSuv[Iš viso tiesioginių sąnaudų, Eur/t],SanaudosSuv[Žemės ūkio augalas, arba jų grupė],Ūkis[[#This Row],[Žemės ūkio augalas, arba jų grupė]],SanaudosSuv[Žemės dirbimo technologija],Ūkis[[#This Row],[Taikoma dirvos dirbimo technologija]]) -> -56.79 | P25: =SUMIFS(SanaudosSuv[Iš viso tiesioginių sąnaudų, Eur/t],SanaudosSuv[Žemės ūkio augalas, arba jų grupė],Ūkis[[#This Row],[Žemės ūkio augalas, arba jų grupė]],SanaudosSuv[Žemės dirbimo technologija],Ūkis[[#This Row],[Planuojama dirvos dirbimo technologija]]) / SUMIFS(SanaudosSuv[Iš viso tiesioginių sąnaudų, Eur/t],SanaudosSuv[Žemės ūkio augalas, arba jų grupė],Ūkis[[#This Row],[Žemės ūkio augalas, arba jų grupė]],SanaudosSuv[Žemės dirbimo technologija],Ūkis[[#This Row],[Taikoma dirvos dirbimo technologija]]) - 1 -> -0.1009923175 | Q25: =Ūkis[[#This Row],[Pajamų pokytis, Eur/ha]]-Ūkis[[#This Row],[Galimas sąnaudų pokytis, Eur/ha]] -> 47.79 | R25: =+Ūkis[[#This Row],[Pelno maržos pokytis, Eur/ha]]*Ūkis[[#This Row],[Plotas ha]] -> 4779 | S25: =Ūkis[[#This Row],[Plotas ha]]*(Ūkis[[#This Row],[Derlingumo pokytis, t/ha]]+Ūkis[[#This Row],[Vidutinis derlingumas ūkyje t/ha]])*Ūkis[[#This Row],[Vidutinė pardavimo kaina, Eur/t]] -> 74100 | T25: =Ūkis[[#This Row],[Plotas ha]]*(Ūkis[[#This Row],[Ūkio kintamosios sąnaudos, Eur/ha]]+Ūkis[[#This Row],[Galimas sąnaudų pokytis, Eur/ha]]) -> 44321 | U25: =Ūkis[[#This Row],[Pajamos]]-Ūkis[[#This Row],[Sąnaudos]] -> 29779 | V25: =SUMIFS(SanaudosSuv[Investicijų poreikis, tūkst. Eur],SanaudosSuv[Žemės ūkio augalas, arba jų grupė],Ūkis[[#This Row],[Žemės ūkio augalas, arba jų grupė]],SanaudosSuv[Žemės dirbimo technologija],Ūkis[[#This Row],[Planuojama dirvos dirbimo technologija]]) -> 965.6
A26: 3 | B26: Žieminiai rapsai | C26: Rapsai | D26: Gilus arimas (GA) | E26: Tarpiniai pasėliai (TP) | F26: 30 | G26: 3.5 | H26: =ROUND(_xlfn._xlws.FILTER(SanaudosSuv[Vidutinis derlingumas, t/ha],(SanaudosSuv[Žemės ūkio augalas, arba jų grupė]=Ūkis[[#This Row],[Žemės ūkio augalas, arba jų grupė]]) * (SanaudosSuv[Žemės dirbimo technologija]=$D$8),) / _xlfn._xlws.FILTER(SanaudosSuv[Vidutinis derlingumas, t/ha],(SanaudosSuv[Žemės ūkio augalas, arba jų grupė]=Ūkis[[#This Row],[Žemės ūkio augalas, arba jų grupė]]) * (SanaudosSuv[Žemės dirbimo technologija]=$D$7),) * Ūkis[[#This Row],[Vidutinis derlingumas ūkyje t/ha]],2) - Ūkis[[#This Row],[Vidutinis derlingumas ūkyje t/ha]] -> 0.2 | I26: =ROUND(_xlfn._xlws.FILTER(SanaudosSuv[Vidutinis derlingumas, t/ha],(SanaudosSuv[Žemės ūkio augalas, arba jų grupė]=Ūkis[[#This Row],[Žemės ūkio augalas, arba jų grupė]]) * (SanaudosSuv[Žemės dirbimo technologija]=Ūkis[[#This Row],[Planuojama dirvos dirbimo technologija]]),) / _xlfn._xlws.FILTER(SanaudosSuv[Vidutinis derlingumas, t/ha],(SanaudosSuv[Žemės ūkio augalas, arba jų grupė]=Ūkis[[#This Row],[Žemės ūkio augalas, arba jų grupė]]) * (SanaudosSuv[Žemės dirbimo technologija]=Ūkis[[#This Row],[Taikoma dirvos dirbimo technologija]]),) * Ūkis[[#This Row],[Vidutinis derlingumas ūkyje t/ha]],2) - Ūkis[[#This Row],[Vidutinis derlingumas ūkyje t/ha]] -> 1.09 | J26: =ROUND((Ūkis[[#This Row],[Galimas derlingumo pokytis dėl technologijos, t/ha]]+Ūkis[[#This Row],[Galimas derlingumo pokytis dėl atliekų, t/ha]])/Ūkis[[#This Row],[Vidutinis derlingumas ūkyje t/ha]],4) -> 0.3686 | K26: =(Ūkis[[#This Row],[Vidutinis derlingumas ūkyje t/ha]] + Ūkis[[#This Row],[Galimas derlingumo pokytis dėl technologijos, t/ha]] + Ūkis[[#This Row],[Galimas derlingumo pokytis dėl atliekų, t/ha]]) - Ūkis[[#This Row],[Vidutinis derlingumas ūkyje t/ha]] -> 1.29 | L26: 450 | M26: =Ūkis[[#This Row],[Vidutinė pardavimo kaina, Eur/t]]*Ūkis[[#This Row],[Derlingumo pokytis, t/ha]] -> 580.5 | N26: 600 | O26: =SUMIFS(SanaudosSuv[Iš viso tiesioginių sąnaudų, Eur/t],SanaudosSuv[Žemės ūkio augalas, arba jų grupė],Ūkis[[#This Row],[Žemės ūkio augalas, arba jų grupė]],SanaudosSuv[Žemės dirbimo technologija],Ūkis[[#This Row],[Planuojama dirvos dirbimo technologija]]) - SUMIFS(SanaudosSuv[Iš viso tiesioginių sąnaudų, Eur/t],SanaudosSuv[Žemės ūkio augalas, arba jų grupė],Ūkis[[#This Row],[Žemės ūkio augalas, arba jų grupė]],SanaudosSuv[Žemės dirbimo technologija],Ūkis[[#This Row],[Taikoma dirvos dirbimo technologija]]) -> -2.51 | P26: =SUMIFS(SanaudosSuv[Iš viso tiesioginių sąnaudų, Eur/t],SanaudosSuv[Žemės ūkio augalas, arba jų grupė],Ūkis[[#This Row],[Žemės ūkio augalas, arba jų grupė]],SanaudosSuv[Žemės dirbimo technologija],Ūkis[[#This Row],[Planuojama dirvos dirbimo technologija]]) / SUMIFS(SanaudosSuv[Iš viso tiesioginių sąnaudų, Eur/t],SanaudosSuv[Žemės ūkio augalas, arba jų grupė],Ūkis[[#This Row],[Žemės ūkio augalas, arba jų grupė]],SanaudosSuv[Žemės dirbimo technologija],Ūkis[[#This Row],[Taikoma dirvos dirbimo technologija]]) - 1 -> -0.003651865216 | Q26: =Ūkis[[#This Row],[Pajamų pokytis, Eur/ha]]-Ūkis[[#This Row],[Galimas sąnaudų pokytis, Eur/ha]] -> 583.01 | R26: =+Ūkis[[#This Row],[Pelno maržos pokytis, Eur/ha]]*Ūkis[[#This Row],[Plotas ha]] -> 17490.3 | S26: =Ūkis[[#This Row],[Plotas ha]]*(Ūkis[[#This Row],[Derlingumo pokytis, t/ha]]+Ūkis[[#This Row],[Vidutinis derlingumas ūkyje t/ha]])*Ūkis[[#This Row],[Vidutinė pardavimo kaina, Eur/t]] -> 64665 | T26: =Ūkis[[#This Row],[Plotas ha]]*(Ūkis[[#This Row],[Ūkio kintamosios sąnaudos, Eur/ha]]+Ūkis[[#This Row],[Galimas sąnaudų pokytis, Eur/ha]]) -> 17924.7 | U26: =Ūkis[[#This Row],[Pajamos]]-Ūkis[[#This Row],[Sąnaudos]] -> 46740.3 | V26: =SUMIFS(SanaudosSuv[Investicijų poreikis, tūkst. Eur],SanaudosSuv[Žemės ūkio augalas, arba jų grupė],Ūkis[[#This Row],[Žemės ūkio augalas, arba jų grupė]],SanaudosSuv[Žemės dirbimo technologija],Ūkis[[#This Row],[Planuojama dirvos dirbimo technologija]]) -> 965.6
A27: 4 | B27: Vasariniai rapsai | C27: Rapsai | D27: Gilus arimas (GA) | E27: Tiesioginė sėja (TS) | F27: 30 | G27: 1.5 | H27: =ROUND(_xlfn._xlws.FILTER(SanaudosSuv[Vidutinis derlingumas, t/ha],(SanaudosSuv[Žemės ūkio augalas, arba jų grupė]=Ūkis[[#This Row],[Žemės ūkio augalas, arba jų grupė]]) * (SanaudosSuv[Žemės dirbimo technologija]=$D$8),) / _xlfn._xlws.FILTER(SanaudosSuv[Vidutinis derlingumas, t/ha],(SanaudosSuv[Žemės ūkio augalas, arba jų grupė]=Ūkis[[#This Row],[Žemės ūkio augalas, arba jų grupė]]) * (SanaudosSuv[Žemės dirbimo technologija]=$D$7),) * Ūkis[[#This Row],[Vidutinis derlingumas ūkyje t/ha]],2) - Ūkis[[#This Row],[Vidutinis derlingumas ūkyje t/ha]] -> -0.02 | I27: =ROUND(_xlfn._xlws.FILTER(SanaudosSuv[Vidutinis derlingumas, t/ha],(SanaudosSuv[Žemės ūkio augalas, arba jų grupė]=Ūkis[[#This Row],[Žemės ūkio augalas, arba jų grupė]]) * (SanaudosSuv[Žemės dirbimo technologija]=Ūkis[[#This Row],[Planuojama dirvos dirbimo technologija]]),) / _xlfn._xlws.FILTER(SanaudosSuv[Vidutinis derlingumas, t/ha],(SanaudosSuv[Žemės ūkio augalas, arba jų grupė]=Ūkis[[#This Row],[Žemės ūkio augalas, arba jų grupė]]) * (SanaudosSuv[Žemės dirbimo technologija]=Ūkis[[#This Row],[Taikoma dirvos dirbimo technologija]]),) * Ūkis[[#This Row],[Vidutinis derlingumas ūkyje t/ha]],2) - Ūkis[[#This Row],[Vidutinis derlingumas ūkyje t/ha]] -> -0.09 | J27: =ROUND((Ūkis[[#This Row],[Galimas derlingumo pokytis dėl technologijos, t/ha]]+Ūkis[[#This Row],[Galimas derlingumo pokytis dėl atliekų, t/ha]])/Ūkis[[#This Row],[Vidutinis derlingumas ūkyje t/ha]],4) -> -0.0733 | K27: =(Ūkis[[#This Row],[Vidutinis derlingumas ūkyje t/ha]] + Ūkis[[#This Row],[Galimas derlingumo pokytis dėl technologijos, t/ha]] + Ūkis[[#This Row],[Galimas derlingumo pokytis dėl atliekų, t/ha]]) - Ūkis[[#This Row],[Vidutinis derlingumas ūkyje t/ha]] -> -0.11 | L27: 450 | M27: =Ūkis[[#This Row],[Vidutinė pardavimo kaina, Eur/t]]*Ūkis[[#This Row],[Derlingumo pokytis, t/ha]] -> -49.5 | N27: 500 | O27: =SUMIFS(SanaudosSuv[Iš viso tiesioginių sąnaudų, Eur/t],SanaudosSuv[Žemės ūkio augalas, arba jų grupė],Ūkis[[#This Row],[Žemės ūkio augalas, arba jų grupė]],SanaudosSuv[Žemės dirbimo technologija],Ūkis[[#This Row],[Planuojama dirvos dirbimo technologija]]) - SUMIFS(SanaudosSuv[Iš viso tiesioginių sąnaudų, Eur/t],SanaudosSuv[Žemės ūkio augalas, arba jų grupė],Ūkis[[#This Row],[Žemės ūkio augalas, arba jų grupė]],SanaudosSuv[Žemės dirbimo technologija],Ūkis[[#This Row],[Taikoma dirvos dirbimo technologija]]) -> -61.79 | P27: =SUMIFS(SanaudosSuv[Iš viso tiesioginių sąnaudų, Eur/t],SanaudosSuv[Žemės ūkio augalas, arba jų grupė],Ūkis[[#This Row],[Žemės ūkio augalas, arba jų grupė]],SanaudosSuv[Žemės dirbimo technologija],Ūkis[[#This Row],[Planuojama dirvos dirbimo technologija]]) / SUMIFS(SanaudosSuv[Iš viso tiesioginių sąnaudų, Eur/t],SanaudosSuv[Žemės ūkio augalas, arba jų grupė],Ūkis[[#This Row],[Žemės ūkio augalas, arba jų grupė]],SanaudosSuv[Žemės dirbimo technologija],Ūkis[[#This Row],[Taikoma dirvos dirbimo technologija]]) - 1 -> -0.110473432 | Q27: =Ūkis[[#This Row],[Pajamų pokytis, Eur/ha]]-Ūkis[[#This Row],[Galimas sąnaudų pokytis, Eur/ha]] -> 12.29 | R27: =+Ūkis[[#This Row],[Pelno maržos pokytis, Eur/ha]]*Ūkis[[#This Row],[Plotas ha]] -> 368.7 | S27: =Ūkis[[#This Row],[Plotas ha]]*(Ūkis[[#This Row],[Derlingumo pokytis, t/ha]]+Ūkis[[#This Row],[Vidutinis derlingumas ūkyje t/ha]])*Ūkis[[#This Row],[Vidutinė pardavimo kaina, Eur/t]] -> 18765 | T27: =Ūkis[[#This Row],[Plotas ha]]*(Ūkis[[#This Row],[Ūkio kintamosios sąnaudos, Eur/ha]]+Ūkis[[#This Row],[Galimas sąnaudų pokytis, Eur/ha]]) -> 13146.3 | U27: =Ūkis[[#This Row],[Pajamos]]-Ūkis[[#This Row],[Sąnaudos]] -> 5618.7 | V27: =SUMIFS(SanaudosSuv[Investicijų poreikis, tūkst. Eur],SanaudosSuv[Žemės ūkio augalas, arba jų grupė],Ūkis[[#This Row],[Žemės ūkio augalas, arba jų grupė]],SanaudosSuv[Žemės dirbimo technologija],Ūkis[[#This Row],[Planuojama dirvos dirbimo technologija]]) -> 965.6
E30: Apskaičiuoti pinigų srautai planuojamų investicijų (projekto), į dirvos dirbimo technologijas, pagrindu
E31: Metai | F31: 0 | G31: =+F31+1 -> 1 | H31: =+G31+1 -> 2 | I31: 3 | J31: 4 | K31: 5
E32: Pinigų srautas | G32: =+$R$22+($C$15*$F$22) -> 85117 | H32: =+G32 -> 85117 | I32: =+H32 -> 85117 | J32: =+I32 -> 85117 | K32: =+J32 -> 85117
E33: Investicijos | F33: =-(C12) -> -500000
E34: Pinigų srautas iš viso | F34: =+F33+F32 -> -500000 | G34: =+G33+G32 -> 85117 | H34: 85117 | I34: 85117 | J34: 85117 | K34: 85117
E36: Vidinė grąžos norma | F36: =IRR(F34:K34) -> -0.05141723359
E37: Investicijų atsipirkimo trukmė, metais | F37: =-F34/G32 -> 5.874267185
E39: Apskaičiuoti pinigų srautai investicijų, naudojamų ir planuojamų įsigyti, pagrindu
E40: Metai | F40: 0 | G40: =+F40+1 -> 1 | H40: =+G40+1 -> 2 | I40: 3 | J40: 4 | K40: 5
E41: Pinigų srautas | G41: =$U$22+($C$15*$F$22) -> 204617 | H41: =+G41 -> 204617 | I41: =+H41 -> 204617 | J41: =+I41 -> 204617 | K41: =+J41 -> 204617
E42: Investicijos | F42: =-(C11+C12) -> -625000
E43: Pinigų srautas iš viso | F43: =+F42+F41 -> -625000 | G43: =+G42+G41 -> 204617 | H43: =+H42+H41 -> 204617 | I43: =+I42+I41 -> 204617 | J43: =+J42+J41 -> 204617 | K43: =+K42+K41 -> 204617
E45: Vidinė grąžos norma | F45: =IRR(F43:K43) -> 0.1904615355
E46: Investicijų atsipirkimo trukmė, metais | F46: =-F43/G41 -> 3.054487164
E48: Apskaičiuoti pinigų srautai pradinių investicijų, pagrindu
E49: Metai | F49: 0 | G49: =+F49+1 -> 1 | H49: =+G49+1 -> 2 | I49: 3 | J49: 4 | K49: 5
E50: Pinigų srautas | G50: =$U$22+($C$15*$F$22) -> 204617 | H50: =+G50 -> 204617 | I50: =+H50 -> 204617 | J50: =+I50 -> 204617 | K50: =+J50 -> 204617
E51: Investicijos | F51: =-C13 -> -965600
E52: Pinigų srautas iš viso | F52: =+F51+F50 -> -965600 | G52: =+G51+G50 -> 204617 | H52: =+H51+H50 -> 204617 | I52: =+I51+I50 -> 204617 | J52: =+J51+J50 -> 204617 | K52: =+K51+K50 -> 204617
E54: Vidinė grąžos norma | F54: =IRR(F52:K52) -> 0.01959095603
E55: Investicijų atsipirkimo trukmė, metais | F55: =-F52/G50 -> 4.719060489

Sheet SanaudosSUV
A3: SĄNAUDOS HEKTARUI, DERLINGUMAS IR INVESTICIJŲ POREIKIS
A10: Eil. Nr. | B10: Žemės ūkio augalas, arba jų grupė | C10: Žemės dirbimo technologija | D10: Mechanizuotų darbų sąnaudos, Eur/ha | E10: Sunaudotos žaliavos ir medžiagos, Eur/ha | F10: Iš viso tiesioginių sąnaudų, Eur/t | G10: Vidutinis derlingumas, t/ha | H10: Investicijų poreikis, tūkst. Eur | I10: Žemės ūkio augalas
A11: =ROW()-ROW(SanaudosSuv[[#Headers],[Eil. Nr.]]) -> 1 | B11: Vasariniai javai | C11: Gilus arimas (GA) | D11: =SUMIFS(Tech_SąnaudosSuv[Iš viso, Eur],Tech_SąnaudosSuv[Technologija],SanaudosSuv[[#This Row],[Žemės dirbimo technologija]]) -> 212.32 | E11: =SUMIFS(MedžiagųSąnaudosPasėliui[Eur/ha],MedžiagųSąnaudosPasėliui[Pasėlis],SanaudosSuv[[#This Row],[Žemės ūkio augalas]],MedžiagųSąnaudosPasėliui[Technologija],SanaudosSuv[[#This Row],[Žemės dirbimo technologija]]) -> 350 | F11: =SUM(SanaudosSuv[[#This Row],[Mechanizuotų darbų sąnaudos, Eur/ha]:[Sunaudotos žaliavos ir medžiagos, Eur/ha]]) -> 562.32 | G11: =ROUND(AVERAGEIFS(DerlingBandRez[Derlingumas],DerlingBandRez[Žemės ūkio augalas],SanaudosSuv[[#This Row],[Žemės ūkio augalas]],DerlingBandRez[Technologija],SanaudosSuv[[#This Row],[Žemės dirbimo technologija]]),2) -> 4.68 | H11: =IF(SanaudosSuv[[#This Row],[Mechanizuotų darbų sąnaudos, Eur/ha]]=0,0,SUMIFS(Tech_SąnaudosSuv[Padargo kaina, tūkst. Eur],Tech_SąnaudosSuv[Technologija],SanaudosSuv[[#This Row],[Žemės dirbimo technologija]]) + SUM(Sąnaudos!$L$7:$L$8)) -> 1159.78 | I11: Vasariniai miežiai
A12: =ROW()-ROW(SanaudosSuv[[#Headers],[Eil. Nr.]]) -> 2 | B12: Vasariniai javai | C12: Seklus arimas (SA) | D12: =SUMIFS(Tech_SąnaudosSuv[Iš viso, Eur],Tech_SąnaudosSuv[Technologija],SanaudosSuv[[#This Row],[Žemės dirbimo technologija]]) -> 192.74 | E12: =SUMIFS(MedžiagųSąnaudosPasėliui[Eur/ha],MedžiagųSąnaudosPasėliui[Pasėlis],SanaudosSuv[[#This Row],[Žemės ūkio augalas]],MedžiagųSąnaudosPasėliui[Technologija],SanaudosSuv[[#This Row],[Žemės dirbimo technologija]]) -> 350 | F12: =SUM(SanaudosSuv[[#This Row],[Mechanizuotų darbų sąnaudos, Eur/ha]:[Sunaudotos žaliavos ir medžiagos, Eur/ha]]) -> 542.74 | G12: =ROUND(AVERAGEIFS(DerlingBandRez[Derlingumas],DerlingBandRez[Žemės ūkio augalas],SanaudosSuv[[#This Row],[Žemės ūkio augalas]],DerlingBandRez[Technologija],SanaudosSuv[[#This Row],[Žemės dirbimo technologija]]),2) -> 4.41 | H12: =IF(SanaudosSuv[[#This Row],[Mechanizuotų darbų sąnaudos, Eur/ha]]=0,0,SUMIFS(Tech_SąnaudosSuv[Padargo kaina, tūkst. Eur],Tech_SąnaudosSuv[Technologija],SanaudosSuv[[#This Row],[Žemės dirbimo technologija]]) + SUM(Sąnaudos!$L$7:$L$8)) -> 1159.78 | I12: Vasariniai miežiai
A13: =ROW()-ROW(SanaudosSuv[[#Headers],[Eil. Nr.]]) -> 3 | B13: Vasariniai javai | C13: Seklus purenimas rudenį (SPR) | D13: =SUMIFS(Tech_SąnaudosSuv[Iš viso, Eur],Tech_SąnaudosSuv[Technologija],SanaudosSuv[[#This Row],[Žemės dirbimo technologija]]) -> 107.19 | E13: =SUMIFS(MedžiagųSąnaudosPasėliui[Eur/ha],MedžiagųSąnaudosPasėliui[Pasėlis],SanaudosSuv[[#This Row],[Žemės ūkio augalas]],MedžiagųSąnaudosPasėliui[Technologija],SanaudosSuv[[#This Row],[Žemės dirbimo technologija]]) -> 350 | F13: =SUM(SanaudosSuv[[#This Row],[Mechanizuotų darbų sąnaudos, Eur/ha]:[Sunaudotos žaliavos ir medžiagos, Eur/ha]]) -> 457.19 | G13: =ROUND(AVERAGEIFS(DerlingBandRez[Derlingumas],DerlingBandRez[Žemės ūkio augalas],SanaudosSuv[[#This Row],[Žemės ūkio augalas]],DerlingBandRez[Technologija],SanaudosSuv[[#This Row],[Žemės dirbimo technologija]]),2) -> 4.41 | H13: =IF(SanaudosSuv[[#This Row],[Mechanizuotų darbų sąnaudos, Eur/ha]]=0,0,SUMIFS(Tech_SąnaudosSuv[Padargo kaina, tūkst. Eur],Tech_SąnaudosSuv[Technologija],SanaudosSuv[[#This Row],[Žemės dirbimo technologija]]) + SUM(Sąnaudos!$L$7:$L$8)) -> 1109.22 | I13: Vasariniai miežiai
A14: =ROW()-ROW(SanaudosSuv[[#Headers],[Eil. Nr.]]) -> 4 | B14: Vasariniai javai | C14: Seklus purenimas prieš sėją (SPS) | D14: =SUMIFS(Tech_SąnaudosSuv[Iš viso, Eur],Tech_SąnaudosSuv[Technologija],SanaudosSuv[[#This Row],[Žemės dirbimo technologija]]) -> 192.82 | E14: =SUMIFS(MedžiagųSąnaudosPasėliui[Eur/ha],MedžiagųSąnaudosPasėliui[Pasėlis],SanaudosSuv[[#This Row],[Žemės ūkio augalas]],MedžiagųSąnaudosPasėliui[Technologija],SanaudosSuv[[#This Row],[Žemės dirbimo technologija]]) -> 350 | F14: =SUM(SanaudosSuv[[#This Row],[Mechanizuotų darbų sąnaudos, Eur/ha]:[Sunaudotos žaliavos ir medžiagos, Eur/ha]]) -> 542.82 | G14: =ROUND(AVERAGEIFS(DerlingBandRez[Derlingumas],DerlingBandRez[Žemės ūkio augalas],SanaudosSuv[[#This Row],[Žemės ūkio augalas]],DerlingBandRez[Technologija],SanaudosSuv[[#This Row],[Žemės dirbimo technologija]]),2) -> 4.38 | H14: =IF(SanaudosSuv[[#This Row],[Mechanizuotų darbų sąnaudos, Eur/ha]]=0,0,SUMIFS(Tech_SąnaudosSuv[Padargo kaina, tūkst. Eur],Tech_SąnaudosSuv[Technologija],SanaudosSuv[[#This Row],[Žemės dirbimo technologija]]) + SUM(Sąnaudos!$L$7:$L$8)) -> 1029.46 | I14: Vasariniai miežiai
A15: =ROW()-ROW(SanaudosSuv[[#Headers],[Eil. Nr.]]) -> 5 | B15: Vasariniai javai | C15: Tarpiniai pasėliai (TP) | D15: =SUMIFS(Tech_SąnaudosSuv[Iš viso, Eur],Tech_SąnaudosSuv[Technologija],SanaudosSuv[[#This Row],[Žemės dirbimo technologija]]) -> 127.81 | E15: =SUMIFS(MedžiagųSąnaudosPasėliui[Eur/ha],MedžiagųSąnaudosPasėliui[Pasėlis],SanaudosSuv[[#This Row],[Žemės ūkio augalas]],MedžiagųSąnaudosPasėliui[Technologija],SanaudosSuv[[#This Row],[Žemės dirbimo technologija]]) -> 432 | F15: =SUM(SanaudosSuv[[#This Row],[Mechanizuotų darbų sąnaudos, Eur/ha]:[Sunaudotos žaliavos ir medžiagos, Eur/ha]]) -> 559.81 | G15: =ROUND(AVERAGEIFS(DerlingBandRez[Derlingumas],DerlingBandRez[Žemės ūkio augalas],SanaudosSuv[[#This Row],[Žemės ūkio augalas]],DerlingBandRez[Technologija],SanaudosSuv[[#This Row],[Žemės dirbimo technologija]]),2) -> 4.34 | H15: =IF(SanaudosSuv[[#This Row],[Mechanizuotų darbų sąnaudos, Eur/ha]]=0,0,SUMIFS(Tech_SąnaudosSuv[Padargo kaina, tūkst. Eur],Tech_SąnaudosSuv[Technologija],SanaudosSuv[[#This Row],[Žemės dirbimo technologija]]) + SUM(Sąnaudos!$L$7:$L$8)) -> 965.6 | I15: Vasariniai miežiai
A16: =ROW()-ROW(SanaudosSuv[[#Headers],[Eil. Nr.]]) -> 6 | B16: Vasariniai javai | C16: Tiesioginė sėja (TS) | D16: =SUMIFS(Tech_SąnaudosSuv[Iš viso, Eur],Tech_SąnaudosSuv[Technologija],SanaudosSuv[[#This Row],[Žemės dirbimo technologija]]) -> 123.53 | E16: =SUMIFS(MedžiagųSąnaudosPasėliui[Eur/ha],MedžiagųSąnaudosPasėliui[Pasėlis],SanaudosSuv[[#This Row],[Žemės ūkio augalas]],MedžiagųSąnaudosPasėliui[Technologija],SanaudosSuv[[#This Row],[Žemės dirbimo technologija]]) -> 382 | F16: =SUM(SanaudosSuv[[#This Row],[Mechanizuotų darbų sąnaudos, Eur/ha]:[Sunaudotos žaliavos ir medžiagos, Eur/ha]]) -> 505.53 | G16: =ROUND(AVERAGEIFS(DerlingBandRez[Derlingumas],DerlingBandRez[Žemės ūkio augalas],SanaudosSuv[[#This Row],[Žemės ūkio augalas]],DerlingBandRez[Technologija],SanaudosSuv[[#This Row],[Žemės dirbimo technologija]]),2) -> 4.42 | H16: =IF(SanaudosSuv[[#This Row],[Mechanizuotų darbų sąnaudos, Eur/ha]]=0,0,SUMIFS(Tech_SąnaudosSuv[Padargo kaina, tūkst. Eur],Tech_SąnaudosSuv[Technologija],SanaudosSuv[[#This Row],[Žemės dirbimo technologija]]) + SUM(Sąnaudos!$L$7:$L$8)) -> 965.6 | I16: Vasariniai miežiai
A17: =ROW()-ROW(SanaudosSuv[[#Headers],[Eil. Nr.]]) -> 7 | B17: Vasariniai rapsai | C17: Gilus arimas (GA) | D17: =SUMIFS(Tech_SąnaudosSuv[Iš viso, Eur],Tech_SąnaudosSuv[Technologija],SanaudosSuv[[#This Row],[Žemės dirbimo technologija]]) -> 212.32 | E17: =SUMIFS(MedžiagųSąnaudosPasėliui[Eur/ha],MedžiagųSąnaudosPasėliui[Pasėlis],SanaudosSuv[[#This Row],[Žemės ūkio augalas]],MedžiagųSąnaudosPasėliui[Technologija],SanaudosSuv[[#This Row],[Žemės dirbimo technologija]]) -> 347 | F17: =SUM(SanaudosSuv[[#This Row],[Mechanizuotų darbų sąnaudos, Eur/ha]:[Sunaudotos žaliavos ir medžiagos, Eur/ha]]) -> 559.32 | G17: =ROUND(AVERAGEIFS(DerlingBandRez[Derlingumas],DerlingBandRez[Žemės ūkio augalas],SanaudosSuv[[#This Row],[Žemės ūkio augalas]],DerlingBandRez[Technologija],SanaudosSuv[[#This Row],[Žemės dirbimo technologija]]),2) -> 1.57 | H17: =IF(SanaudosSuv[[#This Row],[Mechanizuotų darbų sąnaudos, Eur/ha]]=0,0,SUMIFS(Tech_SąnaudosSuv[Padargo kaina, tūkst. Eur],Tech_SąnaudosSuv[Technologija],SanaudosSuv[[#This Row],[Žemės dirbimo technologija]]) + SUM(Sąnaudos!$L$7:$L$8)) -> 1159.78 | I17: Vasariniai rapsai
A18: =ROW()-ROW(SanaudosSuv[[#Headers],[Eil. Nr.]]) -> 8 | B18: Vasariniai rapsai | C18: Seklus arimas (SA) | D18: =SUMIFS(Tech_SąnaudosSuv[Iš viso, Eur],Tech_SąnaudosSuv[Technologija],SanaudosSuv[[#This Row],[Žemės dirbimo technologija]]) -> 192.74 | E18: =SUMIFS(MedžiagųSąnaudosPasėliui[Eur/ha],MedžiagųSąnaudosPasėliui[Pasėlis],SanaudosSuv[[#This Row],[Žemės ūkio augalas]],MedžiagųSąnaudosPasėliui[Technologija],SanaudosSuv[[#This Row],[Žemės dirbimo technologija]]) -> 347 | F18: =SUM(SanaudosSuv[[#This Row],[Mechanizuotų darbų sąnaudos, Eur/ha]:[Sunaudotos žaliavos ir medžiagos, Eur/ha]]) -> 539.74 | G18: =ROUND(AVERAGEIFS(DerlingBandRez[Derlingumas],DerlingBandRez[Žemės ūkio augalas],SanaudosSuv[[#This Row],[Žemės ūkio augalas]],DerlingBandRez[Technologija],SanaudosSuv[[#This Row],[Žemės dirbimo technologija]]),2) -> 1.56 | H18: =IF(SanaudosSuv[[#This Row],[Mechanizuotų darbų sąnaudos, Eur/ha]]=0,0,SUMIFS(Tech_SąnaudosSuv[Padargo kaina, tūkst. Eur],Tech_SąnaudosSuv[Technologija],SanaudosSuv[[#This Row],[Žemės dirbimo technologija]]) + SUM(Sąnaudos!$L$7:$L$8)) -> 1159.78 | I18: Vasariniai rapsai
A19: =ROW()-ROW(SanaudosSuv[[#Headers],[Eil. Nr.]]) -> 9 | B19: Vasariniai rapsai | C19: Seklus purenimas rudenį (SPR) | D19: =SUMIFS(Tech_SąnaudosSuv[Iš viso, Eur],Tech_SąnaudosSuv[Technologija],SanaudosSuv[[#This Row],[Žemės dirbimo technologija]]) -> 107.19 | E19: =SUMIFS(MedžiagųSąnaudosPasėliui[Eur/ha],MedžiagųSąnaudosPasėliui[Pasėlis],SanaudosSuv[[#This Row],[Žemės ūkio augalas]],MedžiagųSąnaudosPasėliui[Technologija],SanaudosSuv[[#This Row],[Žemės dirbimo technologija]]) -> 347 | F19: =SUM(SanaudosSuv[[#This Row],[Mechanizuotų darbų sąnaudos, Eur/ha]:[Sunaudotos žaliavos ir medžiagos, Eur/ha]]) -> 454.19 | G19: =ROUND(AVERAGEIFS(DerlingBandRez[Derlingumas],DerlingBandRez[Žemės ūkio augalas],SanaudosSuv[[#This Row],[Žemės ūkio augalas]],DerlingBandRez[Technologija],SanaudosSuv[[#This Row],[Žemės dirbimo technologija]]),2) -> 1.48 | H19: =IF(SanaudosSuv[[#This Row],[Mechanizuotų darbų sąnaudos, Eur/ha]]=0,0,SUMIFS(Tech_SąnaudosSuv[Padargo kaina, tūkst. Eur],Tech_SąnaudosSuv[Technologija],SanaudosSuv[[#This Row],[Žemės dirbimo technologija]]) + SUM(Sąnaudos!$L$7:$L$8)) -> 1109.22 | I19: Vasariniai rapsai
A20: =ROW()-ROW(SanaudosSuv[[#Headers],[Eil. Nr.]]) -> 10 | B20: Vasariniai rapsai | C20: Seklus purenimas prieš sėją (SPS) | D20: =SUMIFS(Tech_SąnaudosSuv[Iš viso, Eur],Tech_SąnaudosSuv[Technologija],SanaudosSuv[[#This Row],[Žemės dirbimo technologija]]) -> 192.82 | E20: =SUMIFS(MedžiagųSąnaudosPasėliui[Eur/ha],MedžiagųSąnaudosPasėliui[Pasėlis],SanaudosSuv[[#This Row],[Žemės ūkio augalas]],MedžiagųSąnaudosPasėliui[Technologija],SanaudosSuv[[#This Row],[Žemės dirbimo technologija]]) -> 347 | F20: =SUM(SanaudosSuv[[#This Row],[Mechanizuotų darbų sąnaudos, Eur/ha]:[Sunaudotos žaliavos ir medžiagos, Eur/ha]]) -> 539.82 | G20: =ROUND(AVERAGEIFS(DerlingBandRez[Derlingumas],DerlingBandRez[Žemės ūkio augalas],SanaudosSuv[[#This Row],[Žemės ūkio augalas]],DerlingBandRez[Technologija],SanaudosSuv[[#This Row],[Žemės dirbimo technologija]]),2) -> 1.51 | H20: =IF(SanaudosSuv[[#This Row],[Mechanizuotų darbų sąnaudos, Eur/ha]]=0,0,SUMIFS(Tech_SąnaudosSuv[Padargo kaina, tūkst. Eur],Tech_SąnaudosSuv[Technologija],SanaudosSuv[[#This Row],[Žemės dirbimo technologija]]) + SUM(Sąnaudos!$L$7:$L$8)) -> 1029.46 | I20: Vasariniai rapsai
A21: =ROW()-ROW(SanaudosSuv[[#Headers],[Eil. Nr.]]) -> 11 | B21: Vasariniai rapsai | C21: Tarpiniai pasėliai (TP) | D21: =SUMIFS(Tech_SąnaudosSuv[Iš viso, Eur],Tech_SąnaudosSuv[Technologija],SanaudosSuv[[#This Row],[Žemės dirbimo technologija]]) -> 127.81 | E21: =SUMIFS(MedžiagųSąnaudosPasėliui[Eur/ha],MedžiagųSąnaudosPasėliui[Pasėlis],SanaudosSuv[[#This Row],[Žemės ūkio augalas]],MedžiagųSąnaudosPasėliui[Technologija],SanaudosSuv[[#This Row],[Žemės dirbimo technologija]]) -> 424 | F21: =SUM(SanaudosSuv[[#This Row],[Mechanizuotų darbų sąnaudos, Eur/ha]:[Sunaudotos žaliavos ir medžiagos, Eur/ha]]) -> 551.81 | G21: =ROUND(AVERAGEIFS(DerlingBandRez[Derlingumas],DerlingBandRez[Žemės ūkio augalas],SanaudosSuv[[#This Row],[Žemės ūkio augalas]],DerlingBandRez[Technologija],SanaudosSuv[[#This Row],[Žemės dirbimo technologija]]),2) -> 1.3 | H21: =IF(SanaudosSuv[[#This Row],[Mechanizuotų darbų sąnaudos, Eur/ha]]=0,0,SUMIFS(Tech_SąnaudosSuv[Padargo kaina, tūkst. Eur],Tech_SąnaudosSuv[Technologija],SanaudosSuv[[#This Row],[Žemės dirbimo technologija]]) + SUM(Sąnaudos!$L$7:$L$8)) -> 965.6 | I21: Vasariniai rapsai
A22: =ROW()-ROW(SanaudosSuv[[#Headers],[Eil. Nr.]]) -> 12 | B22: Vasariniai rapsai | C22: Tiesioginė sėja (TS) | D22: =SUMIFS(Tech_SąnaudosSuv[Iš viso, Eur],Tech_SąnaudosSuv[Technologija],SanaudosSuv[[#This Row],[Žemės dirbimo technologija]]) -> 123.53 | E22: =SUMIFS(MedžiagųSąnaudosPasėliui[Eur/ha],MedžiagųSąnaudosPasėliui[Pasėlis],SanaudosSuv[[#This Row],[Žemės ūkio augalas]],MedžiagųSąnaudosPasėliui[Technologija],SanaudosSuv[[#This Row],[Žemės dirbimo technologija]]) -> 374 | F22: =SUM(SanaudosSuv[[#This Row],[Mechanizuotų darbų sąnaudos, Eur/ha]:[Sunaudotos žaliavos ir medžiagos, Eur/ha]]) -> 497.53 | G22: =ROUND(AVERAGEIFS(DerlingBandRez[Derlingumas],DerlingBandRez[Žemės ūkio augalas],SanaudosSuv[[#This Row],[Žemės ūkio augalas]],DerlingBandRez[Technologija],SanaudosSuv[[#This Row],[Žemės dirbimo technologija]]),2) -> 1.48 | H22: =IF(SanaudosSuv[[#This Row],[Mechanizuotų darbų sąnaudos, Eur/ha]]=0,0,SUMIFS(Tech_SąnaudosSuv[Padargo kaina, tūkst. Eur],Tech_SąnaudosSuv[Technologija],SanaudosSuv[[#This Row],[Žemės dirbimo technologija]]) + SUM(Sąnaudos!$L$7:$L$8)) -> 965.6 | I22: Vasariniai rapsai
A23: =ROW()-ROW(SanaudosSuv[[#Headers],[Eil. Nr.]]) -> 13 | B23: Žieminiai javai | C23: Gilus arimas (GA) | D23: =SUMIFS(Tech_SąnaudosSuv[Iš viso, Eur],Tech_SąnaudosSuv[Technologija],SanaudosSuv[[#This Row],[Žemės dirbimo technologija]]) -> 212.32 | E23: =SUMIFS(MedžiagųSąnaudosPasėliui[Eur/ha],MedžiagųSąnaudosPasėliui[Pasėlis],SanaudosSuv[[#This Row],[Žemės ūkio augalas]],MedžiagųSąnaudosPasėliui[Technologija],SanaudosSuv[[#This Row],[Žemės dirbimo technologija]]) -> 466 | F23: =SUM(SanaudosSuv[[#This Row],[Mechanizuotų darbų sąnaudos, Eur/ha]:[Sunaudotos žaliavos ir medžiagos, Eur/ha]]) -> 678.32 | G23: =ROUND(AVERAGEIFS(DerlingBandRez[Derlingumas],DerlingBandRez[Žemės ūkio augalas],SanaudosSuv[[#This Row],[Žemės ūkio augalas]],DerlingBandRez[Technologija],SanaudosSuv[[#This Row],[Žemės dirbimo technologija]]),2) -> 8.35 | H23: =IF(SanaudosSuv[[#This Row],[Mechanizuotų darbų sąnaudos, Eur/ha]]=0,0,SUMIFS(Tech_SąnaudosSuv[Padargo kaina, tūkst. Eur],Tech_SąnaudosSuv[Technologija],SanaudosSuv[[#This Row],[Žemės dirbimo technologija]]) + SUM(Sąnaudos!$L$7:$L$8)) -> 1159.78 | I23: Žieminiai kviečiai
A24: =ROW()-ROW(SanaudosSuv[[#Headers],[Eil. Nr.]]) -> 14 | B24: Žieminiai javai | C24: Seklus arimas (SA) | D24: =SUMIFS(Tech_SąnaudosSuv[Iš viso, Eur],Tech_SąnaudosSuv[Technologija],SanaudosSuv[[#This Row],[Žemės dirbimo technologija]]) -> 192.74 | E24: =SUMIFS(MedžiagųSąnaudosPasėliui[Eur/ha],MedžiagųSąnaudosPasėliui[Pasėlis],SanaudosSuv[[#This Row],[Žemės ūkio augalas]],MedžiagųSąnaudosPasėliui[Technologija],SanaudosSuv[[#This Row],[Žemės dirbimo technologija]]) -> 466 | F24: =SUM(SanaudosSuv[[#This Row],[Mechanizuotų darbų sąnaudos, Eur/ha]:[Sunaudotos žaliavos ir medžiagos, Eur/ha]]) -> 658.74 | G24: =ROUND(AVERAGEIFS(DerlingBandRez[Derlingumas],DerlingBandRez[Žemės ūkio augalas],SanaudosSuv[[#This Row],[Žemės ūkio augalas]],DerlingBandRez[Technologija],SanaudosSuv[[#This Row],[Žemės dirbimo technologija]]),2) -> 8.16 | H24: =IF(SanaudosSuv[[#This Row],[Mechanizuotų darbų sąnaudos, Eur/ha]]=0,0,SUMIFS(Tech_SąnaudosSuv[Padargo kaina, tūkst. Eur],Tech_SąnaudosSuv[Technologija],SanaudosSuv[[#This Row],[Žemės dirbimo technologija]]) + SUM(Sąnaudos!$L$7:$L$8)) -> 1159.78 | I24: Žieminiai kviečiai
A25: =ROW()-ROW(SanaudosSuv[[#Headers],[Eil. Nr.]]) -> 15 | B25: Žieminiai javai | C25: Seklus purenimas rudenį (SPR) | D25: =SUMIFS(Tech_SąnaudosSuv[Iš viso, Eur],Tech_SąnaudosSuv[Technologija],SanaudosSuv[[#This Row],[Žemės dirbimo technologija]]) -> 107.19 | E25: =SUMIFS(MedžiagųSąnaudosPasėliui[Eur/ha],MedžiagųSąnaudosPasėliui[Pasėlis],SanaudosSuv[[#This Row],[Žemės ūkio augalas]],MedžiagųSąnaudosPasėliui[Technologija],SanaudosSuv[[#This Row],[Žemės dirbimo technologija]]) -> 466 | F25: =SUM(SanaudosSuv[[#This Row],[Mechanizuotų darbų sąnaudos, Eur/ha]:[Sunaudotos žaliavos ir medžiagos, Eur/ha]]) -> 573.19 | G25: =ROUND(AVERAGEIFS(DerlingBandRez[Derlingumas],DerlingBandRez[Žemės ūkio augalas],SanaudosSuv[[#This Row],[Žemės ūkio augalas]],DerlingBandRez[Technologija],SanaudosSuv[[#This Row],[Žemės dirbimo technologija]]),2) -> 8.26 | H25: =IF(SanaudosSuv[[#This Row],[Mechanizuotų darbų sąnaudos, Eur/ha]]=0,0,SUMIFS(Tech_SąnaudosSuv[Padargo kaina, tūkst. Eur],Tech_SąnaudosSuv[Technologija],SanaudosSuv[[#This Row],[Žemės dirbimo technologija]]) + SUM(Sąnaudos!$L$7:$L$8)) -> 1109.22 | I25: Žieminiai kviečiai
A26: =ROW()-ROW(SanaudosSuv[[#Headers],[Eil. Nr.]]) -> 16 | B26: Žieminiai javai | C26: Seklus purenimas prieš sėją (SPS) | D26: =SUMIFS(Tech_SąnaudosSuv[Iš viso, Eur],Tech_SąnaudosSuv[Technologija],SanaudosSuv[[#This Row],[Žemės dirbimo technologija]]) -> 192.82 | E26: =SUMIFS(MedžiagųSąnaudosPasėliui[Eur/ha],MedžiagųSąnaudosPasėliui[Pasėlis],SanaudosSuv[[#This Row],[Žemės ūkio augalas]],MedžiagųSąnaudosPasėliui[Technologija],SanaudosSuv[[#This Row],[Žemės dirbimo technologija]]) -> 466 | F26: =SUM(SanaudosSuv[[#This Row],[Mechanizuotų darbų sąnaudos, Eur/ha]:[Sunaudotos žaliavos ir medžiagos, Eur/ha]]) -> 658.82 | G26: =ROUND(AVERAGEIFS(DerlingBandRez[Derlingumas],DerlingBandRez[Žemės ūkio augalas],SanaudosSuv[[#This Row],[Žemės ūkio augalas]],DerlingBandRez[Technologija],SanaudosSuv[[#This Row],[Žemės dirbimo technologija]]),2) -> 9.28 | H26: =IF(SanaudosSuv[[#This Row],[Mechanizuotų darbų sąnaudos, Eur/ha]]=0,0,SUMIFS(Tech_SąnaudosSuv[Padargo kaina, tūkst. Eur],Tech_SąnaudosSuv[Technologija],SanaudosSuv[[#This Row],[Žemės dirbimo technologija]]) + SUM(Sąnaudos!$L$7:$L$8)) -> 1029.46 | I26: Žieminiai kviečiai
A27: =ROW()-ROW(SanaudosSuv[[#Headers],[Eil. Nr.]]) -> 17 | B27: Žieminiai javai | C27: Tarpiniai pasėliai (TP) | D27: =SUMIFS(Tech_SąnaudosSuv[Iš viso, Eur],Tech_SąnaudosSuv[Technologija],SanaudosSuv[[#This Row],[Žemės dirbimo technologija]]) -> 127.81 | E27: =SUMIFS(MedžiagųSąnaudosPasėliui[Eur/ha],MedžiagųSąnaudosPasėliui[Pasėlis],SanaudosSuv[[#This Row],[Žemės ūkio augalas]],MedžiagųSąnaudosPasėliui[Technologija],SanaudosSuv[[#This Row],[Žemės dirbimo technologija]]) -> 548 | F27: =SUM(SanaudosSuv[[#This Row],[Mechanizuotų darbų sąnaudos, Eur/ha]:[Sunaudotos žaliavos ir medžiagos, Eur/ha]]) -> 675.81 | G27: =ROUND(AVERAGEIFS(DerlingBandRez[Derlingumas],DerlingBandRez[Žemės ūkio augalas],SanaudosSuv[[#This Row],[Žemės ūkio augalas]],DerlingBandRez[Technologija],SanaudosSuv[[#This Row],[Žemės dirbimo technologija]]),2) -> 9.23 | H27: =IF(SanaudosSuv[[#This Row],[Mechanizuotų darbų sąnaudos, Eur/ha]]=0,0,SUMIFS(Tech_SąnaudosSuv[Padargo kaina, tūkst. Eur],Tech_SąnaudosSuv[Technologija],SanaudosSuv[[#This Row],[Žemės dirbimo technologija]]) + SUM(Sąnaudos!$L$7:$L$8)) -> 965.6 | I27: Žieminiai kviečiai
A28: =ROW()-ROW(SanaudosSuv[[#Headers],[Eil. Nr.]]) -> 18 | B28: Žieminiai javai | C28: Tiesioginė sėja (TS) | D28: =SUMIFS(Tech_SąnaudosSuv[Iš viso, Eur],Tech_SąnaudosSuv[Technologija],SanaudosSuv[[#This Row],[Žemės dirbimo technologija]]) -> 123.53 | E28: =SUMIFS(MedžiagųSąnaudosPasėliui[Eur/ha],MedžiagųSąnaudosPasėliui[Pasėlis],SanaudosSuv[[#This Row],[Žemės ūkio augalas]],MedžiagųSąnaudosPasėliui[Technologija],SanaudosSuv[[#This Row],[Žemės dirbimo technologija]]) -> 498 | F28: =SUM(SanaudosSuv[[#This Row],[Mechanizuotų darbų sąnaudos, Eur/ha]:[Sunaudotos žaliavos ir medžiagos, Eur/ha]]) -> 621.53 | G28: =ROUND(AVERAGEIFS(DerlingBandRez[Derlingumas],DerlingBandRez[Žemės ūkio augalas],SanaudosSuv[[#This Row],[Žemės ūkio augalas]],DerlingBandRez[Technologija],SanaudosSuv[[#This Row],[Žemės dirbimo technologija]]),2) -> 8.92 | H28: =IF(SanaudosSuv[[#This Row],[Mechanizuotų darbų sąnaudos, Eur/ha]]=0,0,SUMIFS(Tech_SąnaudosSuv[Padargo kaina, tūkst. Eur],Tech_SąnaudosSuv[Technologija],SanaudosSuv[[#This Row],[Žemės dirbimo technologija]]) + SUM(Sąnaudos!$L$7:$L$8)) -> 965.6 | I28: Žieminiai kviečiai
A29: =ROW()-ROW(SanaudosSuv[[#Headers],[Eil. Nr.]]) -> 19 | B29: Žieminiai rapsai | C29: Gilus arimas (GA) | D29: =SUMIFS(Tech_SąnaudosSuv[Iš viso, Eur],Tech_SąnaudosSuv[Technologija],SanaudosSuv[[#This Row],[Žemės dirbimo technologija]]) -> 212.32 | E29: =SUMIFS(MedžiagųSąnaudosPasėliui[Eur/ha],MedžiagųSąnaudosPasėliui[Pasėlis],SanaudosSuv[[#This Row],[Žemės ūkio augalas]],MedžiagųSąnaudosPasėliui[Technologija],SanaudosSuv[[#This Row],[Žemės dirbimo technologija]]) -> 475 | F29: =SUM(SanaudosSuv[[#This Row],[Mechanizuotų darbų sąnaudos, Eur/ha]:[Sunaudotos žaliavos ir medžiagos, Eur/ha]]) -> 687.32 | G29: =ROUND(AVERAGEIFS(DerlingBandRez[Derlingumas],DerlingBandRez[Žemės ūkio augalas],SanaudosSuv[[#This Row],[Žemės ūkio augalas]],DerlingBandRez[Technologija],SanaudosSuv[[#This Row],[Žemės dirbimo technologija]]),2) -> 2.37 | H29: =IF(SanaudosSuv[[#This Row],[Mechanizuotų darbų sąnaudos, Eur/ha]]=0,0,SUMIFS(Tech_SąnaudosSuv[Padargo kaina, tūkst. Eur],Tech_SąnaudosSuv[Technologija],SanaudosSuv[[#This Row],[Žemės dirbimo technologija]]) + SUM(Sąnaudos!$L$7:$L$8)) -> 1159.78 | I29: Žieminiai rapsai
A30: =ROW()-ROW(SanaudosSuv[[#Headers],[Eil. Nr.]]) -> 20 | B30: Žieminiai rapsai | C30: Seklus arimas (SA) | D30: =SUMIFS(Tech_SąnaudosSuv[Iš viso, Eur],Tech_SąnaudosSuv[Technologija],SanaudosSuv[[#This Row],[Žemės dirbimo technologija]]) -> 192.74 | E30: =SUMIFS(MedžiagųSąnaudosPasėliui[Eur/ha],MedžiagųSąnaudosPasėliui[Pasėlis],SanaudosSuv[[#This Row],[Žemės ūkio augalas]],MedžiagųSąnaudosPasėliui[Technologija],SanaudosSuv[[#This Row],[Žemės dirbimo technologija]]) -> 475 | F30: =SUM(SanaudosSuv[[#This Row],[Mechanizuotų darbų sąnaudos, Eur/ha]:[Sunaudotos žaliavos ir medžiagos, Eur/ha]]) -> 667.74 | G30: =ROUND(AVERAGEIFS(DerlingBandRez[Derlingumas],DerlingBandRez[Žemės ūkio augalas],SanaudosSuv[[#This Row],[Žemės ūkio augalas]],DerlingBandRez[Technologija],SanaudosSuv[[#This Row],[Žemės dirbimo technologija]]),2) -> 2.39 | H30: =IF(SanaudosSuv[[#This Row],[Mechanizuotų darbų sąnaudos, Eur/ha]]=0,0,SUMIFS(Tech_SąnaudosSuv[Padargo kaina, tūkst. Eur],Tech_SąnaudosSuv[Technologija],SanaudosSuv[[#This Row],[Žemės dirbimo technologija]]) + SUM(Sąnaudos!$L$7:$L$8)) -> 1159.78 | I30: Žieminiai rapsai
A31: =ROW()-ROW(SanaudosSuv[[#Headers],[Eil. Nr.]]) -> 21 | B31: Žieminiai rapsai | C31: Seklus purenimas rudenį (SPR) | D31: =SUMIFS(Tech_SąnaudosSuv[Iš viso, Eur],Tech_SąnaudosSuv[Technologija],SanaudosSuv[[#This Row],[Žemės dirbimo technologija]]) -> 107.19 | E31: =SUMIFS(MedžiagųSąnaudosPasėliui[Eur/ha],MedžiagųSąnaudosPasėliui[Pasėlis],SanaudosSuv[[#This Row],[Žemės ūkio augalas]],MedžiagųSąnaudosPasėliui[Technologija],SanaudosSuv[[#This Row],[Žemės dirbimo technologija]]) -> 475 | F31: =SUM(SanaudosSuv[[#This Row],[Mechanizuotų darbų sąnaudos, Eur/ha]:[Sunaudotos žaliavos ir medžiagos, Eur/ha]]) -> 582.19 | G31: =ROUND(AVERAGEIFS(DerlingBandRez[Derlingumas],DerlingBandRez[Žemės ūkio augalas],SanaudosSuv[[#This Row],[Žemės ūkio augalas]],DerlingBandRez[Technologija],SanaudosSuv[[#This Row],[Žemės dirbimo technologija]]),2) -> 2.48 | H31: =IF(SanaudosSuv[[#This Row],[Mechanizuotų darbų sąnaudos, Eur/ha]]=0,0,SUMIFS(Tech_SąnaudosSuv[Padargo kaina, tūkst. Eur],Tech_SąnaudosSuv[Technologija],SanaudosSuv[[#This Row],[Žemės dirbimo technologija]]) + SUM(Sąnaudos!$L$7:$L$8)) -> 1109.22 | I31: Žieminiai rapsai
A32: =ROW()-ROW(SanaudosSuv[[#Headers],[Eil. Nr.]]) -> 22 | B32: Žieminiai rapsai | C32: Seklus purenimas prieš sėją (SPS) | D32: =SUMIFS(Tech_SąnaudosSuv[Iš viso, Eur],Tech_SąnaudosSuv[Technologija],SanaudosSuv[[#This Row],[Žemės dirbimo technologija]]) -> 192.82 | E32: =SUMIFS(MedžiagųSąnaudosPasėliui[Eur/ha],MedžiagųSąnaudosPasėliui[Pasėlis],SanaudosSuv[[#This Row],[Žemės ūkio augalas]],MedžiagųSąnaudosPasėliui[Technologija],SanaudosSuv[[#This Row],[Žemės dirbimo technologija]]) -> 475 | F32: =SUM(SanaudosSuv[[#This Row],[Mechanizuotų darbų sąnaudos, Eur/ha]:[Sunaudotos žaliavos ir medžiagos, Eur/ha]]) -> 667.82 | G32: =ROUND(AVERAGEIFS(DerlingBandRez[Derlingumas],DerlingBandRez[Žemės ūkio augalas],SanaudosSuv[[#This Row],[Žemės ūkio augalas]],DerlingBandRez[Technologija],SanaudosSuv[[#This Row],[Žemės dirbimo technologija]]),2) -> 2.85 | H32: =IF(SanaudosSuv[[#This Row],[Mechanizuotų darbų sąnaudos, Eur/ha]]=0,0,SUMIFS(Tech_SąnaudosSuv[Padargo kaina, tūkst. Eur],Tech_SąnaudosSuv[Technologija],SanaudosSuv[[#This Row],[Žemės dirbimo technologija]]) + SUM(Sąnaudos!$L$7:$L$8)) -> 1029.46 | I32: Žieminiai rapsai
A33: =ROW()-ROW(SanaudosSuv[[#Headers],[Eil. Nr.]]) -> 23 | B33: Žieminiai rapsai | C33: Tarpiniai pasėliai (TP) | D33: =SUMIFS(Tech_SąnaudosSuv[Iš viso, Eur],Tech_SąnaudosSuv[Technologija],SanaudosSuv[[#This Row],[Žemės dirbimo technologija]]) -> 127.81 | E33: =SUMIFS(MedžiagųSąnaudosPasėliui[Eur/ha],MedžiagųSąnaudosPasėliui[Pasėlis],SanaudosSuv[[#This Row],[Žemės ūkio augalas]],MedžiagųSąnaudosPasėliui[Technologija],SanaudosSuv[[#This Row],[Žemės dirbimo technologija]]) -> 557 | F33: =SUM(SanaudosSuv[[#This Row],[Mechanizuotų darbų sąnaudos, Eur/ha]:[Sunaudotos žaliavos ir medžiagos, Eur/ha]]) -> 684.81 | G33: =ROUND(AVERAGEIFS(DerlingBandRez[Derlingumas],DerlingBandRez[Žemės ūkio augalas],SanaudosSuv[[#This Row],[Žemės ūkio augalas]],DerlingBandRez[Technologija],SanaudosSuv[[#This Row],[Žemės dirbimo technologija]]),2) -> 3.11 | H33: =IF(SanaudosSuv[[#This Row],[Mechanizuotų darbų sąnaudos, Eur/ha]]=0,0,SUMIFS(Tech_SąnaudosSuv[Padargo kaina, tūkst. Eur],Tech_SąnaudosSuv[Technologija],SanaudosSuv[[#This Row],[Žemės dirbimo technologija]]) + SUM(Sąnaudos!$L$7:$L$8)) -> 965.6 | I33: Žieminiai rapsai
A34: =ROW()-ROW(SanaudosSuv[[#Headers],[Eil. Nr.]]) -> 24 | B34: Žieminiai rapsai | C34: Tiesioginė sėja (TS) | D34: =SUMIFS(Tech_SąnaudosSuv[Iš viso, Eur],Tech_SąnaudosSuv[Technologija],SanaudosSuv[[#This Row],[Žemės dirbimo technologija]]) -> 123.53 | E34: =SUMIFS(MedžiagųSąnaudosPasėliui[Eur/ha],MedžiagųSąnaudosPasėliui[Pasėlis],SanaudosSuv[[#This Row],[Žemės ūkio augalas]],MedžiagųSąnaudosPasėliui[Technologija],SanaudosSuv[[#This Row],[Žemės dirbimo technologija]]) -> 507 | F34: =SUM(SanaudosSuv[[#This Row],[Mechanizuotų darbų sąnaudos, Eur/ha]:[Sunaudotos žaliavos ir medžiagos, Eur/ha]]) -> 630.53 | G34: =ROUND(AVERAGEIFS(DerlingBandRez[Derlingumas],DerlingBandRez[Žemės ūkio augalas],SanaudosSuv[[#This Row],[Žemės ūkio augalas]],DerlingBandRez[Technologija],SanaudosSuv[[#This Row],[Žemės dirbimo technologija]]),2) -> 3.37 | H34: =IF(SanaudosSuv[[#This Row],[Mechanizuotų darbų sąnaudos, Eur/ha]]=0,0,SUMIFS(Tech_SąnaudosSuv[Padargo kaina, tūkst. Eur],Tech_SąnaudosSuv[Technologija],SanaudosSuv[[#This Row],[Žemės dirbimo technologija]]) + SUM(Sąnaudos!$L$7:$L$8)) -> 965.6 | I34: Žieminiai rapsai
A35: =ROW()-ROW(SanaudosSuv[[#Headers],[Eil. Nr.]]) -> 25 | B35: Vasariniai javai | C35: Šiaudai nepaliekami (R) | D35: =SUMIFS(Tech_SąnaudosSuv[Iš viso, Eur],Tech_SąnaudosSuv[Technologija],SanaudosSuv[[#This Row],[Žemės dirbimo technologija]]) -> 0 | E35: =SUMIFS(MedžiagųSąnaudosPasėliui[Eur/ha],MedžiagųSąnaudosPasėliui[Pasėlis],SanaudosSuv[[#This Row],[Žemės ūkio augalas]],MedžiagųSąnaudosPasėliui[Technologija],SanaudosSuv[[#This Row],[Žemės dirbimo technologija]]) -> 0 | F35: =SUM(SanaudosSuv[[#This Row],[Mechanizuotų darbų sąnaudos, Eur/ha]:[Sunaudotos žaliavos ir medžiagos, Eur/ha]]) -> 0 | G35: =ROUND(AVERAGEIFS(DerlingBandRez[Derlingumas],DerlingBandRez[Žemės ūkio augalas],SanaudosSuv[[#This Row],[Žemės ūkio augalas]],DerlingBandRez[Technologija],SanaudosSuv[[#This Row],[Žemės dirbimo technologija]]),2) -> 4.34 | H35: =IF(SanaudosSuv[[#This Row],[Mechanizuotų darbų sąnaudos, Eur/ha]]=0,0,SUMIFS(Tech_SąnaudosSuv[Padargo kaina, tūkst. Eur],Tech_SąnaudosSuv[Technologija],SanaudosSuv[[#This Row],[Žemės dirbimo technologija]]) + SUM(Sąnaudos!$L$7:$L$8)) -> 0 | I35: Vasariniai miežiai
A36: =ROW()-ROW(SanaudosSuv[[#Headers],[Eil. Nr.]]) -> 26 | B36: Vasariniai javai | C36: Šiaudai paliekami lauke (S) | D36: =SUMIFS(Tech_SąnaudosSuv[Iš viso, Eur],Tech_SąnaudosSuv[Technologija],SanaudosSuv[[#This Row],[Žemės dirbimo technologija]]) -> 0 | E36: =SUMIFS(MedžiagųSąnaudosPasėliui[Eur/ha],MedžiagųSąnaudosPasėliui[Pasėlis],SanaudosSuv[[#This Row],[Žemės ūkio augalas]],MedžiagųSąnaudosPasėliui[Technologija],SanaudosSuv[[#This Row],[Žemės dirbimo technologija]]) -> 0 | F36: =SUM(SanaudosSuv[[#This Row],[Mechanizuotų darbų sąnaudos, Eur/ha]:[Sunaudotos žaliavos ir medžiagos, Eur/ha]]) -> 0 | G36: =ROUND(AVERAGEIFS(DerlingBandRez[Derlingumas],DerlingBandRez[Žemės ūkio augalas],SanaudosSuv[[#This Row],[Žemės ūkio augalas]],DerlingBandRez[Technologija],SanaudosSuv[[#This Row],[Žemės dirbimo technologija]]),2) -> 4.53 | H36: =IF(SanaudosSuv[[#This Row],[Mechanizuotų darbų sąnaudos, Eur/ha]]=0,0,SUMIFS(Tech_SąnaudosSuv[Padargo kaina, tūkst. Eur],Tech_SąnaudosSuv[Technologija],SanaudosSuv[[#This Row],[Žemės dirbimo technologija]]) + SUM(Sąnaudos!$L$7:$L$8)) -> 0 | I36: Vasariniai miežiai
A37: =ROW()-ROW(SanaudosSuv[[#Headers],[Eil. Nr.]]) -> 27 | B37: Vasariniai rapsai | C37: Šiaudai nepaliekami (R) | D37: =SUMIFS(Tech_SąnaudosSuv[Iš viso, Eur],Tech_SąnaudosSuv[Technologija],SanaudosSuv[[#This Row],[Žemės dirbimo technologija]]) -> 0 | E37: =SUMIFS(MedžiagųSąnaudosPasėliui[Eur/ha],MedžiagųSąnaudosPasėliui[Pasėlis],SanaudosSuv[[#This Row],[Žemės ūkio augalas]],MedžiagųSąnaudosPasėliui[Technologija],SanaudosSuv[[#This Row],[Žemės dirbimo technologija]]) -> 0 | F37: =SUM(SanaudosSuv[[#This Row],[Mechanizuotų darbų sąnaudos, Eur/ha]:[Sunaudotos žaliavos ir medžiagos, Eur/ha]]) -> 0 | G37: =ROUND(AVERAGEIFS(DerlingBandRez[Derlingumas],DerlingBandRez[Žemės ūkio augalas],SanaudosSuv[[#This Row],[Žemės ūkio augalas]],DerlingBandRez[Technologija],SanaudosSuv[[#This Row],[Žemės dirbimo technologija]]),2) -> 1.55 | H37: =IF(SanaudosSuv[[#This Row],[Mechanizuotų darbų sąnaudos, Eur/ha]]=0,0,SUMIFS(Tech_SąnaudosSuv[Padargo kaina, tūkst. Eur],Tech_SąnaudosSuv[Technologija],SanaudosSuv[[#This Row],[Žemės dirbimo technologija]]) + SUM(Sąnaudos!$L$7:$L$8)) -> 0 | I37: Vasariniai rapsai
A38: =ROW()-ROW(SanaudosSuv[[#Headers],[Eil. Nr.]]) -> 28 | B38: Vasariniai rapsai | C38: Šiaudai paliekami lauke (S) | D38: =SUMIFS(Tech_SąnaudosSuv[Iš viso, Eur],Tech_SąnaudosSuv[Technologija],SanaudosSuv[[#This Row],[Žemės dirbimo technologija]]) -> 0 | E38: =SUMIFS(MedžiagųSąnaudosPasėliui[Eur/ha],MedžiagųSąnaudosPasėliui[Pasėlis],SanaudosSuv[[#This Row],[Žemės ūkio augalas]],MedžiagųSąnaudosPasėliui[Technologija],SanaudosSuv[[#This Row],[Žemės dirbimo technologija]]) -> 0 | F38: =SUM(SanaudosSuv[[#This Row],[Mechanizuotų darbų sąnaudos, Eur/ha]:[Sunaudotos žaliavos ir medžiagos, Eur/ha]]) -> 0 | G38: =ROUND(AVERAGEIFS(DerlingBandRez[Derlingumas],DerlingBandRez[Žemės ūkio augalas],SanaudosSuv[[#This Row],[Žemės ūkio augalas]],DerlingBandRez[Technologija],SanaudosSuv[[#This Row],[Žemės dirbimo technologija]]),2) -> 1.53 | H38: =IF(SanaudosSuv[[#This Row],[Mechanizuotų darbų sąnaudos, Eur/ha]]=0,0,SUMIFS(Tech_SąnaudosSuv[Padargo kaina, tūkst. Eur],Tech_SąnaudosSuv[Technologija],SanaudosSuv[[#This Row],[Žemės dirbimo technologija]]) + SUM(Sąnaudos!$L$7:$L$8)) -> 0 | I38: Vasariniai rapsai
A39: =ROW()-ROW(SanaudosSuv[[#Headers],[Eil. Nr.]]) -> 29 | B39: Žieminiai javai | C39: Šiaudai nepaliekami (R) | D39: =SUMIFS(Tech_SąnaudosSuv[Iš viso, Eur],Tech_SąnaudosSuv[Technologija],SanaudosSuv[[#This Row],[Žemės dirbimo technologija]]) -> 0 | E39: =SUMIFS(MedžiagųSąnaudosPasėliui[Eur/ha],MedžiagųSąnaudosPasėliui[Pasėlis],SanaudosSuv[[#This Row],[Žemės ūkio augalas]],MedžiagųSąnaudosPasėliui[Technologija],SanaudosSuv[[#This Row],[Žemės dirbimo technologija]]) -> 0 | F39: =SUM(SanaudosSuv[[#This Row],[Mechanizuotų darbų sąnaudos, Eur/ha]:[Sunaudotos žaliavos ir medžiagos, Eur/ha]]) -> 0 | G39: =ROUND(AVERAGEIFS(DerlingBandRez[Derlingumas],DerlingBandRez[Žemės ūkio augalas],SanaudosSuv[[#This Row],[Žemės ūkio augalas]],DerlingBandRez[Technologija],SanaudosSuv[[#This Row],[Žemės dirbimo technologija]]),2) -> 8.52 | H39: =IF(SanaudosSuv[[#This Row],[Mechanizuotų darbų sąnaudos, Eur/ha]]=0,0,SUMIFS(Tech_SąnaudosSuv[Padargo kaina, tūkst. Eur],Tech_SąnaudosSuv[Technologija],SanaudosSuv[[#This Row],[Žemės dirbimo technologija]]) + SUM(Sąnaudos!$L$7:$L$8)) -> 0 | I39: Žieminiai kviečiai
A40: =ROW()-ROW(SanaudosSuv[[#Headers],[Eil. Nr.]]) -> 30 | B40: Žieminiai javai | C40: Šiaudai paliekami lauke (S) | D40: =SUMIFS(Tech_SąnaudosSuv[Iš viso, Eur],Tech_SąnaudosSuv[Technologija],SanaudosSuv[[#This Row],[Žemės dirbimo technologija]]) -> 0 | E40: =SUMIFS(MedžiagųSąnaudosPasėliui[Eur/ha],MedžiagųSąnaudosPasėliui[Pasėlis],SanaudosSuv[[#This Row],[Žemės ūkio augalas]],MedžiagųSąnaudosPasėliui[Technologija],SanaudosSuv[[#This Row],[Žemės dirbimo technologija]]) -> 0 | F40: =SUM(SanaudosSuv[[#This Row],[Mechanizuotų darbų sąnaudos, Eur/ha]:[Sunaudotos žaliavos ir medžiagos, Eur/ha]]) -> 0 | G40: =ROUND(AVERAGEIFS(DerlingBandRez[Derlingumas],DerlingBandRez[Žemės ūkio augalas],SanaudosSuv[[#This Row],[Žemės ūkio augalas]],DerlingBandRez[Technologija],SanaudosSuv[[#This Row],[Žemės dirbimo technologija]]),2) -> 8.83 | H40: =IF(SanaudosSuv[[#This Row],[Mechanizuotų darbų sąnaudos, Eur/ha]]=0,0,SUMIFS(Tech_SąnaudosSuv[Padargo kaina, tūkst. Eur],Tech_SąnaudosSuv[Technologija],SanaudosSuv[[#This Row],[Žemės dirbimo technologija]]) + SUM(Sąnaudos!$L$7:$L$8)) -> 0 | I40: Žieminiai kviečiai
A41: =ROW()-ROW(SanaudosSuv[[#Headers],[Eil. Nr.]]) -> 31 | B41: Žieminiai rapsai | C41: Šiaudai nepaliekami (R) | D41: =SUMIFS(Tech_SąnaudosSuv[Iš viso, Eur],Tech_SąnaudosSuv[Technologija],SanaudosSuv[[#This Row],[Žemės dirbimo technologija]]) -> 0 | E41: =SUMIFS(MedžiagųSąnaudosPasėliui[Eur/ha],MedžiagųSąnaudosPasėliui[Pasėlis],SanaudosSuv[[#This Row],[Žemės ūkio augalas]],MedžiagųSąnaudosPasėliui[Technologija],SanaudosSuv[[#This Row],[Žemės dirbimo technologija]]) -> 0 | F41: =SUM(SanaudosSuv[[#This Row],[Mechanizuotų darbų sąnaudos, Eur/ha]:[Sunaudotos žaliavos ir medžiagos, Eur/ha]]) -> 0 | G41: =ROUND(AVERAGEIFS(DerlingBandRez[Derlingumas],DerlingBandRez[Žemės ūkio augalas],SanaudosSuv[[#This Row],[Žemės ūkio augalas]],DerlingBandRez[Technologija],SanaudosSuv[[#This Row],[Žemės dirbimo technologija]]),2) -> 2.69 | H41: =IF(SanaudosSuv[[#This Row],[Mechanizuotų darbų sąnaudos, Eur/ha]]=0,0,SUMIFS(Tech_SąnaudosSuv[Padargo kaina, tūkst. Eur],Tech_SąnaudosSuv[Technologija],SanaudosSuv[[#This Row],[Žemės dirbimo technologija]]) + SUM(Sąnaudos!$L$7:$L$8)) -> 0 | I41: Žieminiai rapsai
A42: =ROW()-ROW(SanaudosSuv[[#Headers],[Eil. Nr.]]) -> 32 | B42: Žieminiai rapsai | C42: Šiaudai paliekami lauke (S) | D42: =SUMIFS(Tech_SąnaudosSuv[Iš viso, Eur],Tech_SąnaudosSuv[Technologija],SanaudosSuv[[#This Row],[Žemės dirbimo technologija]]) -> 0 | E42: =SUMIFS(MedžiagųSąnaudosPasėliui[Eur/ha],MedžiagųSąnaudosPasėliui[Pasėlis],SanaudosSuv[[#This Row],[Žemės ūkio augalas]],MedžiagųSąnaudosPasėliui[Technologija],SanaudosSuv[[#This Row],[Žemės dirbimo technologija]]) -> 0 | F42: =SUM(SanaudosSuv[[#This Row],[Mechanizuotų darbų sąnaudos, Eur/ha]:[Sunaudotos žaliavos ir medžiagos, Eur/ha]]) -> 0 | G42: =ROUND(AVERAGEIFS(DerlingBandRez[Derlingumas],DerlingBandRez[Žemės ūkio augalas],SanaudosSuv[[#This Row],[Žemės ūkio augalas]],DerlingBandRez[Technologija],SanaudosSuv[[#This Row],[Žemės dirbimo technologija]]),2) -> 2.84 | H42: =IF(SanaudosSuv[[#This Row],[Mechanizuotų darbų sąnaudos, Eur/ha]]=0,0,SUMIFS(Tech_SąnaudosSuv[Padargo kaina, tūkst. Eur],Tech_SąnaudosSuv[Technologija],SanaudosSuv[[#This Row],[Žemės dirbimo technologija]]) + SUM(Sąnaudos!$L$7:$L$8)) -> 0 | I42: Žieminiai rapsai

Sheet Sąnaudos (hidden)
Q1: Min kW | R1: Max kW
P2: Traktorius | Q2: =+'ŽŪ mašinos pagal plotą'!G86 -> 232.6583601 | R2: =+'ŽŪ mašinos pagal plotą'!H86 -> 290.8229501
Q3: Parametras | R3: Dienos
P4: Kombainas | Q4: =U18 -> 10.5 | R4: =ROUND('ŽŪ mašinos pagal plotą'!I49,1) -> 8.6 | S4: ='ŽŪ mašinos pagal plotą'!N49 -> 18.06
P5: Purkštuvas (nesavaeigiai) | Q5: =U17 -> 15 | R5: =ROUND('ŽŪ mašinos pagal plotą'!I50,1) -> 4.8
P6: Sėjamoji | Q6: =U16 -> 9 | R6: =ROUND('ŽŪ mašinos pagal plotą'!I51,1) -> 5.2
F7: 100 | G7: ha | K7: Traktorius | L7: =MAX(X11:X17,X19:X21) -> 263.75 | P7: Plūgas | Q7: =+U12 -> 3.5 | R7: =ROUND('ŽŪ mašinos pagal plotą'!I52,1) -> 14.5
F8: =SUM(AK11:AK22) -> 308.04 | G8: Eur/ha | K8: Kombainas | L8: =X18 -> 456.14 | P8: Skutikas (diskinis) | Q8: =U11 -> 10 | R8: =ROUND('ŽŪ mašinos pagal plotą'!I53,1) -> 9.3
P9: Sėjamoji | U9: Iš viso | Y9: =SUM(Y11:Y22) -> 657.3 | Z9: 64.08 | AA9: 118.87 | AB9: 215.62 | AC9: 152.32 | AD9: 89.18 | AE9: 30.45 | AF9: 487.57 | AG9: 36.09 | AH9: 523.66 | AI9: 26.19 | AJ9: 549.85 | AK9: =SUM(AK11:AK22) -> 308.04
A10: Eil. Nr. | B10: Technologija | C10: Sutrumpinimas | D10: Technologinė operacija | E10: Operacijos skaičius | F10: Degalai ir tepalai, Eur/ha | G10: Išlaidos remontui ir tech. aptarnavimui, Eur/ha | H10: Darbo užmokesčio sąnaudos, Eur/ha | I10: Kitos, Eur/ha | J10: Žemės ūkio paslaugos pirkimas, Eur | K10: Iš viso, Eur | L10: Padargo kaina, tūkst. Eur | P10: Unikalių darbų sąrašas | T10: Darbas | U10: Darbinis plotis, m | V10: Papildomas parametras | W10: Traktoriaus (kombaino) galia, kW | X10: Traktoriaus (kombaino) kaina, tūkst. Eur | Y10: Žemės ūkio mašinos (cisternos) kaina, tūkst. Eur | Z10: Išdirbio norma, ha/val. | AA10: Degalų sąnaudų norma, l/ha | AB10: Išlaidos atnaujinimui, Eur/ha | AC10: Išlaidos remontui ir tech. aptarnavimui, Eur/ha | AD10: Išlaidos degalams ir tepalams, Eur/ha | AE10: Darbo užmokesčio sąnaudos, Eur/ha | AF10: Išlaidos iš viso, Eur/ha | AG10: Kitos, Eur/ha | AH10: Savikaina, Eur/ha | AI10: Pelnas, Eur/ha | AJ10: Įkainis, Eur/ha | AK10: Kintamieji kaštai, Eur/ha
A11: =ROW()-ROW(Tech_SąnaudosSuv[[#Headers],[Eil. Nr.]]) -> 1 | B11: Gilus arimas (GA) | C11: GA | D11: Seklus ražienų skutimas | E11: 1 | F11: =SUMIFS($AD$11:$AD$22,_xlfn.ANCHORARRAY($P$11),Tech_SąnaudosSuv[[#This Row],[Technologinė operacija]:[Technologinė operacija]])*Tech_SąnaudosSuv[[#This Row],[Operacijos skaičius]:[Operacijos skaičius]] -> 6.53 | G11: =SUMIFS($AC$11:$AC$22,_xlfn.ANCHORARRAY($P$11),Tech_SąnaudosSuv[[#This Row],[Technologinė operacija]:[Technologinė operacija]])*Tech_SąnaudosSuv[[#This Row],[Operacijos skaičius]:[Operacijos skaičius]] -> 8.97 | H11: =SUMIFS($AE$11:$AE$22,_xlfn.ANCHORARRAY($P$11),Tech_SąnaudosSuv[[#This Row],[Technologinė operacija]:[Technologinė operacija]])*Tech_SąnaudosSuv[[#This Row],[Operacijos skaičius]:[Operacijos skaičius]] -> 1.56 | I11: =SUMIFS($AG$11:$AG$22,_xlfn.ANCHORARRAY($P$11),Tech_SąnaudosSuv[[#This Row],[Technologinė operacija]:[Technologinė operacija]])*Tech_SąnaudosSuv[[#This Row],[Operacijos skaičius]:[Operacijos skaičius]] -> 1.19 | J11: =IF(AND(Tech_SąnaudosSuv[[#This Row],[Technologinė operacija]] = $P$22, $W$22 > $R$2), $AJ$22, 0) -> 0 | K11: =SUM(Tech_SąnaudosSuv[[#This Row],[Degalai ir tepalai, Eur/ha]:[Kitos, Eur/ha]]) -> 18.25 | L11: =IF(Tech_SąnaudosSuv[[#This Row],[Žemės ūkio paslaugos pirkimas, Eur]]=0,SUMIFS($Y$11:$Y$22,_xlfn.ANCHORARRAY($P$11),Tech_SąnaudosSuv[[#This Row],[Technologinė operacija]:[Technologinė operacija]]),0) -> 79.76 | P11: =_xlfn.UNIQUE(Tech_SąnaudosSuv[Technologinė operacija]) -> Seklus ražienų skutimas | T11: =_xlfn.LET(_xlpm.Masyvas, _xlfn._xlws.FILTER(DarbųĮkainiai2024[[Žemės ūkio mašina]:[Kintamieji kaštai, Eur/ha]], (DarbųĮkainiai2024[Aktualus darbo pavadinimas] = Sąnaudos!P11) * (DarbųĮkainiai2024[Traktoriaus (kombaino) galia, kW] <= IF(Sąnaudos!$R$2<67,67,Sąnaudos!$R$2) ) * (DarbųĮkainiai2024[Traktoriaus (kombaino) galia, kW] = MAX(_xlfn._xlws.FILTER(DarbųĮkainiai2024[Traktoriaus (kombaino) galia, kW], (DarbųĮkainiai2024[Aktualus darbo pavadinimas] = Sąnaudos!P11) * (DarbųĮkainiai2024[Traktoriaus (kombaino) galia, kW] <= IF(Sąnaudos!$R$2<67,67,Sąnaudos!$R$2)) * (DarbųĮkainiai2024[Žemės ūkio mašinų kilmė] <> "NVS"), 0))) * (DarbųĮkainiai2024[Žemės ūkio mašinų kilmė] <> "NVS"), ""),_xlpm.MasyvoMax, _xlfn._xlws.FILTER(_xlpm.Masyvas, INDEX(_xlpm.Masyvas,,2)=MAX(INDEX(_xlpm.Masyvas,, 2))), _xlpm.MasyvoMax) -> Seklusis ražienų skutimas | U11: 10 | V11: 0 | W11: 233 | X11: 229.38 | Y11: 79.76 | Z11: 7.14 | AA11: 8.7 | AB11: 11.46 | AC11: 8.97 | AD11: 6.53 | AE11: 1.56 | AF11: 28.52 | AG11: 1.19 | AH11: 29.71 | AI11: 1.49 | AJ11: 31.2 | AK11: 18.25
A12: =ROW()-ROW(Tech_SąnaudosSuv[[#Headers],[Eil. Nr.]]) -> 2 | B12: Gilus arimas (GA) | C12: GA | D12: Gilus arimas | E12: 1 | F12: =SUMIFS($AD$11:$AD$22,_xlfn.ANCHORARRAY($P$11),Tech_SąnaudosSuv[[#This Row],[Technologinė operacija]:[Technologinė operacija]])*Tech_SąnaudosSuv[[#This Row],[Operacijos skaičius]:[Operacijos skaičius]] -> 20.93 | G12: =SUMIFS($AC$11:$AC$22,_xlfn.ANCHORARRAY($P$11),Tech_SąnaudosSuv[[#This Row],[Technologinė operacija]:[Technologinė operacija]])*Tech_SąnaudosSuv[[#This Row],[Operacijos skaičius]:[Operacijos skaičius]] -> 33.22 | H12: =SUMIFS($AE$11:$AE$22,_xlfn.ANCHORARRAY($P$11),Tech_SąnaudosSuv[[#This Row],[Technologinė operacija]:[Technologinė operacija]])*Tech_SąnaudosSuv[[#This Row],[Operacijos skaičius]:[Operacijos skaičius]] -> 6.35 | I12: =SUMIFS($AG$11:$AG$22,_xlfn.ANCHORARRAY($P$11),Tech_SąnaudosSuv[[#This Row],[Technologinė operacija]:[Technologinė operacija]])*Tech_SąnaudosSuv[[#This Row],[Operacijos skaičius]:[Operacijos skaičius]] -> 6.29 | J12: =IF(AND(Tech_SąnaudosSuv[[#This Row],[Technologinė operacija]] = $P$22, $W$22 > $R$2), $AJ$22, 0) -> 0 | K12: =SUM(Tech_SąnaudosSuv[[#This Row],[Degalai ir tepalai, Eur/ha]:[Kitos, Eur/ha]]) -> 66.79 | L12: =IF(Tech_SąnaudosSuv[[#This Row],[Žemės ūkio paslaugos pirkimas, Eur]]=0,SUMIFS($Y$11:$Y$22,_xlfn.ANCHORARRAY($P$11),Tech_SąnaudosSuv[[#This Row],[Technologinė operacija]:[Technologinė operacija]]),0) -> 79.15 | P12: Gilus arimas | T12: =_xlfn.LET(_xlpm.Masyvas, _xlfn._xlws.FILTER(DarbųĮkainiai2024[[Žemės ūkio mašina]:[Kintamieji kaštai, Eur/ha]], (DarbųĮkainiai2024[Aktualus darbo pavadinimas] = Sąnaudos!P12) * (DarbųĮkainiai2024[Traktoriaus (kombaino) galia, kW] <= IF(Sąnaudos!$R$2<67,67,Sąnaudos!$R$2) ) * (DarbųĮkainiai2024[Traktoriaus (kombaino) galia, kW] = MAX(_xlfn._xlws.FILTER(DarbųĮkainiai2024[Traktoriaus (kombaino) galia, kW], (DarbųĮkainiai2024[Aktualus darbo pavadinimas] = Sąnaudos!P12) * (DarbųĮkainiai2024[Traktoriaus (kombaino) galia, kW] <= IF(Sąnaudos!$R$2<67,67,Sąnaudos!$R$2)) * (DarbųĮkainiai2024[Žemės ūkio mašinų kilmė] <> "NVS"), 0))) * (DarbųĮkainiai2024[Žemės ūkio mašinų kilmė] <> "NVS"), ""),_xlpm.MasyvoMax, _xlfn._xlws.FILTER(_xlpm.Masyvas, INDEX(_xlpm.Masyvas,,2)=MAX(INDEX(_xlpm.Masyvas,, 2))), _xlpm.MasyvoMax) -> Prikabinamaisiais apverčiamaisiais plūgais su tankintuvais | U12: 3.5 | V12: 0 | W12: 275 | X12: 263.75 | Y12: 79.15 | Z12: 1.75 | AA12: 27.9 | AB12: 34.36 | AC12: 33.22 | AD12: 20.93 | AE12: 6.35 | AF12: 94.86 | AG12: 6.29 | AH12: 101.15 | AI12: 5.06 | AJ12: 106.21 | AK12: 66.79
A13: =ROW()-ROW(Tech_SąnaudosSuv[[#Headers],[Eil. Nr.]]) -> 3 | B13: Gilus arimas (GA) | C13: GA | D13: Pirminis kultivavimas | E13: 1 | F13: =SUMIFS($AD$11:$AD$22,_xlfn.ANCHORARRAY($P$11),Tech_SąnaudosSuv[[#This Row],[Technologinė operacija]:[Technologinė operacija]])*Tech_SąnaudosSuv[[#This Row],[Operacijos skaičius]:[Operacijos skaičius]] -> 7.35 | G13: =SUMIFS($AC$11:$AC$22,_xlfn.ANCHORARRAY($P$11),Tech_SąnaudosSuv[[#This Row],[Technologinė operacija]:[Technologinė operacija]])*Tech_SąnaudosSuv[[#This Row],[Operacijos skaičius]:[Operacijos skaičius]] -> 11.11 | H13: =SUMIFS($AE$11:$AE$22,_xlfn.ANCHORARRAY($P$11),Tech_SąnaudosSuv[[#This Row],[Technologinė operacija]:[Technologinė operacija]])*Tech_SąnaudosSuv[[#This Row],[Operacijos skaičius]:[Operacijos skaičius]] -> 2.82 | I13: =SUMIFS($AG$11:$AG$22,_xlfn.ANCHORARRAY($P$11),Tech_SąnaudosSuv[[#This Row],[Technologinė operacija]:[Technologinė operacija]])*Tech_SąnaudosSuv[[#This Row],[Operacijos skaičius]:[Operacijos skaičius]] -> 2.34 | J13: =IF(AND(Tech_SąnaudosSuv[[#This Row],[Technologinė operacija]] = $P$22, $W$22 > $R$2), $AJ$22, 0) -> 0 | K13: =SUM(Tech_SąnaudosSuv[[#This Row],[Degalai ir tepalai, Eur/ha]:[Kitos, Eur/ha]]) -> 23.62 | L13: =IF(Tech_SąnaudosSuv[[#This Row],[Žemės ūkio paslaugos pirkimas, Eur]]=0,SUMIFS($Y$11:$Y$22,_xlfn.ANCHORARRAY($P$11),Tech_SąnaudosSuv[[#This Row],[Technologinė operacija]:[Technologinė operacija]]),0) -> 53.99 | P13: Pirminis kultivavimas | T13: =_xlfn.LET(_xlpm.Masyvas, _xlfn._xlws.FILTER(DarbųĮkainiai2024[[Žemės ūkio mašina]:[Kintamieji kaštai, Eur/ha]], (DarbųĮkainiai2024[Aktualus darbo pavadinimas] = Sąnaudos!P13) * (DarbųĮkainiai2024[Traktoriaus (kombaino) galia, kW] <= IF(Sąnaudos!$R$2<67,67,Sąnaudos!$R$2) ) * (DarbųĮkainiai2024[Traktoriaus (kombaino) galia, kW] = MAX(_xlfn._xlws.FILTER(DarbųĮkainiai2024[Traktoriaus (kombaino) galia, kW], (DarbųĮkainiai2024[Aktualus darbo pavadinimas] = Sąnaudos!P13) * (DarbųĮkainiai2024[Traktoriaus (kombaino) galia, kW] <= IF(Sąnaudos!$R$2<67,67,Sąnaudos!$R$2)) * (DarbųĮkainiai2024[Žemės ūkio mašinų kilmė] <> "NVS"), 0))) * (DarbųĮkainiai2024[Žemės ūkio mašinų kilmė] <> "NVS"), ""),_xlpm.MasyvoMax, _xlfn._xlws.FILTER(_xlpm.Masyvas, INDEX(_xlpm.Masyvas,,2)=MAX(INDEX(_xlpm.Masyvas,, 2))), _xlpm.MasyvoMax) -> lėkštinėmis akėčiomis | U13: 8 | V13: 0 | W13: 176 | X13: 161.54 | Y13: 53.99 | Z13: 3.94 | AA13: 9.8 | AB13: 14.23 | AC13: 11.11 | AD13: 7.35 | AE13: 2.82 | AF13: 35.51 | AG13: 2.34 | AH13: 37.85 | AI13: 1.89 | AJ13: 39.74 | AK13: 23.62
A14: =ROW()-ROW(Tech_SąnaudosSuv[[#Headers],[Eil. Nr.]]) -> 4 | B14: Gilus arimas (GA) | C14: GA | D14: Priešsėjinis kultivavimas | E14: 1 | F14: =SUMIFS($AD$11:$AD$22,_xlfn.ANCHORARRAY($P$11),Tech_SąnaudosSuv[[#This Row],[Technologinė operacija]:[Technologinė operacija]])*Tech_SąnaudosSuv[[#This Row],[Operacijos skaičius]:[Operacijos skaičius]] -> 4.8 | G14: =SUMIFS($AC$11:$AC$22,_xlfn.ANCHORARRAY($P$11),Tech_SąnaudosSuv[[#This Row],[Technologinė operacija]:[Technologinė operacija]])*Tech_SąnaudosSuv[[#This Row],[Operacijos skaičius]:[Operacijos skaičius]] -> 5.48 | H14: =SUMIFS($AE$11:$AE$22,_xlfn.ANCHORARRAY($P$11),Tech_SąnaudosSuv[[#This Row],[Technologinė operacija]:[Technologinė operacija]])*Tech_SąnaudosSuv[[#This Row],[Operacijos skaičius]:[Operacijos skaičius]] -> 2.14 | I14: =SUMIFS($AG$11:$AG$22,_xlfn.ANCHORARRAY($P$11),Tech_SąnaudosSuv[[#This Row],[Technologinė operacija]:[Technologinė operacija]])*Tech_SąnaudosSuv[[#This Row],[Operacijos skaičius]:[Operacijos skaičius]] -> 1.18 | J14: =IF(AND(Tech_SąnaudosSuv[[#This Row],[Technologinė operacija]] = $P$22, $W$22 > $R$2), $AJ$22, 0) -> 0 | K14: =SUM(Tech_SąnaudosSuv[[#This Row],[Degalai ir tepalai, Eur/ha]:[Kitos, Eur/ha]]) -> 13.6 | L14: =IF(Tech_SąnaudosSuv[[#This Row],[Žemės ūkio paslaugos pirkimas, Eur]]=0,SUMIFS($Y$11:$Y$22,_xlfn.ANCHORARRAY($P$11),Tech_SąnaudosSuv[[#This Row],[Technologinė operacija]:[Technologinė operacija]]),0) -> 28.59 | P14: Priešsėjinis kultivavimas | T14: =_xlfn.LET(_xlpm.Masyvas, _xlfn._xlws.FILTER(DarbųĮkainiai2024[[Žemės ūkio mašina]:[Kintamieji kaštai, Eur/ha]], (DarbųĮkainiai2024[Aktualus darbo pavadinimas] = Sąnaudos!P14) * (DarbųĮkainiai2024[Traktoriaus (kombaino) galia, kW] <= IF(Sąnaudos!$R$2<67,67,Sąnaudos!$R$2) ) * (DarbųĮkainiai2024[Traktoriaus (kombaino) galia, kW] = MAX(_xlfn._xlws.FILTER(DarbųĮkainiai2024[Traktoriaus (kombaino) galia, kW], (DarbųĮkainiai2024[Aktualus darbo pavadinimas] = Sąnaudos!P14) * (DarbųĮkainiai2024[Traktoriaus (kombaino) galia, kW] <= IF(Sąnaudos!$R$2<67,67,Sąnaudos!$R$2)) * (DarbųĮkainiai2024[Žemės ūkio mašinų kilmė] <> "NVS"), 0))) * (DarbųĮkainiai2024[Žemės ūkio mašinų kilmė] <> "NVS"), ""),_xlpm.MasyvoMax, _xlfn._xlws.FILTER(_xlpm.Masyvas, INDEX(_xlpm.Masyvas,,2)=MAX(INDEX(_xlpm.Masyvas,, 2))), _xlpm.MasyvoMax) -> kultivatoriais | U14: 8 | V14: 0 | W14: 138 | X14: 119.07 | Y14: 28.59 | Z14: 5.18 | AA14: 6.4 | AB14: 5.82 | AC14: 5.48 | AD14: 4.8 | AE14: 2.14 | AF14: 18.24 | AG14: 1.18 | AH14: 19.42 | AI14: 0.97 | AJ14: 20.39 | AK14: 13.6
A15: =ROW()-ROW(Tech_SąnaudosSuv[[#Headers],[Eil. Nr.]]) -> 5 | B15: Gilus arimas (GA) | C15: GA | D15: Tręšimas | E15: 1 | F15: =SUMIFS($AD$11:$AD$22,_xlfn.ANCHORARRAY($P$11),Tech_SąnaudosSuv[[#This Row],[Technologinė operacija]:[Technologinė operacija]])*Tech_SąnaudosSuv[[#This Row],[Operacijos skaičius]:[Operacijos skaičius]] -> 0.53 | G15: =SUMIFS($AC$11:$AC$22,_xlfn.ANCHORARRAY($P$11),Tech_SąnaudosSuv[[#This Row],[Technologinė operacija]:[Technologinė operacija]])*Tech_SąnaudosSuv[[#This Row],[Operacijos skaičius]:[Operacijos skaičius]] -> 0.8 | H15: =SUMIFS($AE$11:$AE$22,_xlfn.ANCHORARRAY($P$11),Tech_SąnaudosSuv[[#This Row],[Technologinė operacija]:[Technologinė operacija]])*Tech_SąnaudosSuv[[#This Row],[Operacijos skaičius]:[Operacijos skaičius]] -> 0.55 | I15: =SUMIFS($AG$11:$AG$22,_xlfn.ANCHORARRAY($P$11),Tech_SąnaudosSuv[[#This Row],[Technologinė operacija]:[Technologinė operacija]])*Tech_SąnaudosSuv[[#This Row],[Operacijos skaičius]:[Operacijos skaičius]] -> 0.12 | J15: =IF(AND(Tech_SąnaudosSuv[[#This Row],[Technologinė operacija]] = $P$22, $W$22 > $R$2), $AJ$22, 0) -> 0 | K15: =SUM(Tech_SąnaudosSuv[[#This Row],[Degalai ir tepalai, Eur/ha]:[Kitos, Eur/ha]]) -> 2 | L15: =IF(Tech_SąnaudosSuv[[#This Row],[Žemės ūkio paslaugos pirkimas, Eur]]=0,SUMIFS($Y$11:$Y$22,_xlfn.ANCHORARRAY($P$11),Tech_SąnaudosSuv[[#This Row],[Technologinė operacija]:[Technologinė operacija]]),0) -> 30.68 | P15: Tręšimas | T15: =_xlfn.LET(_xlpm.Masyvas, _xlfn._xlws.FILTER(DarbųĮkainiai2024[[Žemės ūkio mašina]:[Kintamieji kaštai, Eur/ha]], (DarbųĮkainiai2024[Aktualus darbo pavadinimas] = Sąnaudos!P15) * (DarbųĮkainiai2024[Traktoriaus (kombaino) galia, kW] <= IF(Sąnaudos!$R$2<67,67,Sąnaudos!$R$2) ) * (DarbųĮkainiai2024[Traktoriaus (kombaino) galia, kW] = MAX(_xlfn._xlws.FILTER(DarbųĮkainiai2024[Traktoriaus (kombaino) galia, kW], (DarbųĮkainiai2024[Aktualus darbo pavadinimas] = Sąnaudos!P15) * (DarbųĮkainiai2024[Traktoriaus (kombaino) galia, kW] <= IF(Sąnaudos!$R$2<67,67,Sąnaudos!$R$2)) * (DarbųĮkainiai2024[Žemės ūkio mašinų kilmė] <> "NVS"), 0))) * (DarbųĮkainiai2024[Žemės ūkio mašinų kilmė] <> "NVS"), ""),_xlpm.MasyvoMax, _xlfn._xlws.FILTER(_xlpm.Masyvas, INDEX(_xlpm.Masyvas,,2)=MAX(INDEX(_xlpm.Masyvas,, 2))), _xlpm.MasyvoMax) -> 4,0 m3 talpos prikabinamaisiais barstytuvais | U15: 36 | V15: 200 | W15: 83 | X15: 74.66 | Y15: 30.68 | Z15: 20.13 | AA15: 0.7 | AB15: 1.12 | AC15: 0.8 | AD15: 0.53 | AE15: 0.55 | AF15: 3 | AG15: 0.12 | AH15: 3.12 | AI15: 0.16 | AJ15: 3.28 | AK15: 2
A16: =ROW()-ROW(Tech_SąnaudosSuv[[#Headers],[Eil. Nr.]]) -> 6 | B16: Gilus arimas (GA) | C16: GA | D16: Sėja | E16: 1 | F16: =SUMIFS($AD$11:$AD$22,_xlfn.ANCHORARRAY($P$11),Tech_SąnaudosSuv[[#This Row],[Technologinė operacija]:[Technologinė operacija]])*Tech_SąnaudosSuv[[#This Row],[Operacijos skaičius]:[Operacijos skaičius]] -> 2.7 | G16: =SUMIFS($AC$11:$AC$22,_xlfn.ANCHORARRAY($P$11),Tech_SąnaudosSuv[[#This Row],[Technologinė operacija]:[Technologinė operacija]])*Tech_SąnaudosSuv[[#This Row],[Operacijos skaičius]:[Operacijos skaičius]] -> 10.25 | H16: =SUMIFS($AE$11:$AE$22,_xlfn.ANCHORARRAY($P$11),Tech_SąnaudosSuv[[#This Row],[Technologinė operacija]:[Technologinė operacija]])*Tech_SąnaudosSuv[[#This Row],[Operacijos skaičius]:[Operacijos skaičius]] -> 2.37 | I16: =SUMIFS($AG$11:$AG$22,_xlfn.ANCHORARRAY($P$11),Tech_SąnaudosSuv[[#This Row],[Technologinė operacija]:[Technologinė operacija]])*Tech_SąnaudosSuv[[#This Row],[Operacijos skaičius]:[Operacijos skaičius]] -> 1.32 | J16: =IF(AND(Tech_SąnaudosSuv[[#This Row],[Technologinė operacija]] = $P$22, $W$22 > $R$2), $AJ$22, 0) -> 0 | K16: =SUM(Tech_SąnaudosSuv[[#This Row],[Degalai ir tepalai, Eur/ha]:[Kitos, Eur/ha]]) -> 16.64 | L16: =IF(Tech_SąnaudosSuv[[#This Row],[Žemės ūkio paslaugos pirkimas, Eur]]=0,SUMIFS($Y$11:$Y$22,_xlfn.ANCHORARRAY($P$11),Tech_SąnaudosSuv[[#This Row],[Technologinė operacija]:[Technologinė operacija]]),0) -> 115.04 | P16: Sėja | T16: =_xlfn.LET(_xlpm.Masyvas, _xlfn._xlws.FILTER(DarbųĮkainiai2024[[Žemės ūkio mašina]:[Kintamieji kaštai, Eur/ha]], (DarbųĮkainiai2024[Aktualus darbo pavadinimas] = Sąnaudos!P16) * (DarbųĮkainiai2024[Traktoriaus (kombaino) galia, kW] <= IF(Sąnaudos!$R$2<67,67,Sąnaudos!$R$2) ) * (DarbųĮkainiai2024[Traktoriaus (kombaino) galia, kW] = MAX(_xlfn._xlws.FILTER(DarbųĮkainiai2024[Traktoriaus (kombaino) galia, kW], (DarbųĮkainiai2024[Aktualus darbo pavadinimas] = Sąnaudos!P16) * (DarbųĮkainiai2024[Traktoriaus (kombaino) galia, kW] <= IF(Sąnaudos!$R$2<67,67,Sąnaudos!$R$2)) * (DarbųĮkainiai2024[Žemės ūkio mašinų kilmė] <> "NVS"), 0))) * (DarbųĮkainiai2024[Žemės ūkio mašinų kilmė] <> "NVS"), ""),_xlpm.MasyvoMax, _xlfn._xlws.FILTER(_xlpm.Masyvas, INDEX(_xlpm.Masyvas,,2)=MAX(INDEX(_xlpm.Masyvas,, 2))), _xlpm.MasyvoMax) -> prikabinamosiomis pneumatinėmis sėjamosiomis | U16: 9 | V16: 200 | W16: 120 | X16: 109 | Y16: 115.04 | Z16: 4.68 | AA16: 3.6 | AB16: 17.75 | AC16: 10.25 | AD16: 2.7 | AE16: 2.37 | AF16: 33.07 | AG16: 1.32 | AH16: 34.39 | AI16: 1.72 | AJ16: 36.11 | AK16: 16.64
A17: =ROW()-ROW(Tech_SąnaudosSuv[[#Headers],[Eil. Nr.]]) -> 7 | B17: Gilus arimas (GA) | C17: GA | D17: Purškimas | E17: 4 | F17: =SUMIFS($AD$11:$AD$22,_xlfn.ANCHORARRAY($P$11),Tech_SąnaudosSuv[[#This Row],[Technologinė operacija]:[Technologinė operacija]])*Tech_SąnaudosSuv[[#This Row],[Operacijos skaičius]:[Operacijos skaičius]] -> 2.84 | G17: =SUMIFS($AC$11:$AC$22,_xlfn.ANCHORARRAY($P$11),Tech_SąnaudosSuv[[#This Row],[Technologinė operacija]:[Technologinė operacija]])*Tech_SąnaudosSuv[[#This Row],[Operacijos skaičius]:[Operacijos skaičius]] -> 4.24 | H17: =SUMIFS($AE$11:$AE$22,_xlfn.ANCHORARRAY($P$11),Tech_SąnaudosSuv[[#This Row],[Technologinė operacija]:[Technologinė operacija]])*Tech_SąnaudosSuv[[#This Row],[Operacijos skaičius]:[Operacijos skaičius]] -> 6.48 | I17: =SUMIFS($AG$11:$AG$22,_xlfn.ANCHORARRAY($P$11),Tech_SąnaudosSuv[[#This Row],[Technologinė operacija]:[Technologinė operacija]])*Tech_SąnaudosSuv[[#This Row],[Operacijos skaičius]:[Operacijos skaičius]] -> 1.92 | J17: =IF(AND(Tech_SąnaudosSuv[[#This Row],[Technologinė operacija]] = $P$22, $W$22 > $R$2), $AJ$22, 0) -> 0 | K17: =SUM(Tech_SąnaudosSuv[[#This Row],[Degalai ir tepalai, Eur/ha]:[Kitos, Eur/ha]]) -> 15.48 | L17: =IF(Tech_SąnaudosSuv[[#This Row],[Žemės ūkio paslaugos pirkimas, Eur]]=0,SUMIFS($Y$11:$Y$22,_xlfn.ANCHORARRAY($P$11),Tech_SąnaudosSuv[[#This Row],[Technologinė operacija]:[Technologinė operacija]]),0) -> 22 | P17: Purškimas | T17: =_xlfn.LET(_xlpm.Masyvas, _xlfn._xlws.FILTER(DarbųĮkainiai2024[[Žemės ūkio mašina]:[Kintamieji kaštai, Eur/ha]], (DarbųĮkainiai2024[Aktualus darbo pavadinimas] = Sąnaudos!P17) * (DarbųĮkainiai2024[Traktoriaus (kombaino) galia, kW] <= IF(Sąnaudos!$R$2<67,67,Sąnaudos!$R$2) ) * (DarbųĮkainiai2024[Traktoriaus (kombaino) galia, kW] = MAX(_xlfn._xlws.FILTER(DarbųĮkainiai2024[Traktoriaus (kombaino) galia, kW], (DarbųĮkainiai2024[Aktualus darbo pavadinimas] = Sąnaudos!P17) * (DarbųĮkainiai2024[Traktoriaus (kombaino) galia, kW] <= IF(Sąnaudos!$R$2<67,67,Sąnaudos!$R$2)) * (DarbųĮkainiai2024[Žemės ūkio mašinų kilmė] <> "NVS"), 0))) * (DarbųĮkainiai2024[Žemės ūkio mašinų kilmė] <> "NVS"), ""),_xlpm.MasyvoMax, _xlfn._xlws.FILTER(_xlpm.Masyvas, INDEX(_xlpm.Masyvas,,2)=MAX(INDEX(_xlpm.Masyvas,, 2))), _xlpm.MasyvoMax) -> pakabinamaisiais purkštuvais | U17: 15 | V17: 300 | W17: 54 | X17: 41.08 | Y17: 22 | Z17: 6.86 | AA17: 0.94 | AB17: 2.17 | AC17: 1.06 | AD17: 0.71 | AE17: 1.62 | AF17: 5.56 | AG17: 0.48 | AH17: 6.04 | AI17: 0.3 | AJ17: 6.34 | AK17: 3.87
A18: =ROW()-ROW(Tech_SąnaudosSuv[[#Headers],[Eil. Nr.]]) -> 8 | B18: Gilus arimas (GA) | C18: GA | D18: Tręšimas | E18: 2 | F18: =SUMIFS($AD$11:$AD$22,_xlfn.ANCHORARRAY($P$11),Tech_SąnaudosSuv[[#This Row],[Technologinė operacija]:[Technologinė operacija]])*Tech_SąnaudosSuv[[#This Row],[Operacijos skaičius]:[Operacijos skaičius]] -> 1.06 | G18: =SUMIFS($AC$11:$AC$22,_xlfn.ANCHORARRAY($P$11),Tech_SąnaudosSuv[[#This Row],[Technologinė operacija]:[Technologinė operacija]])*Tech_SąnaudosSuv[[#This Row],[Operacijos skaičius]:[Operacijos skaičius]] -> 1.6 | H18: =SUMIFS($AE$11:$AE$22,_xlfn.ANCHORARRAY($P$11),Tech_SąnaudosSuv[[#This Row],[Technologinė operacija]:[Technologinė operacija]])*Tech_SąnaudosSuv[[#This Row],[Operacijos skaičius]:[Operacijos skaičius]] -> 1.1 | I18: =SUMIFS($AG$11:$AG$22,_xlfn.ANCHORARRAY($P$11),Tech_SąnaudosSuv[[#This Row],[Technologinė operacija]:[Technologinė operacija]])*Tech_SąnaudosSuv[[#This Row],[Operacijos skaičius]:[Operacijos skaičius]] -> 0.24 | J18: =IF(AND(Tech_SąnaudosSuv[[#This Row],[Technologinė operacija]] = $P$22, $W$22 > $R$2), $AJ$22, 0) -> 0 | K18: =SUM(Tech_SąnaudosSuv[[#This Row],[Degalai ir tepalai, Eur/ha]:[Kitos, Eur/ha]]) -> 4 | L18: =IF(Tech_SąnaudosSuv[[#This Row],[Žemės ūkio paslaugos pirkimas, Eur]]=0,SUMIFS($Y$11:$Y$22,_xlfn.ANCHORARRAY($P$11),Tech_SąnaudosSuv[[#This Row],[Technologinė operacija]:[Technologinė operacija]]),0) -> 30.68 | P18: Derliaus nuėmimas | T18: =_xlfn.LET(_xlpm.Masyvas, _xlfn._xlws.FILTER(DarbųĮkainiai2024[[Žemės ūkio mašina]:[Kintamieji kaštai, Eur/ha]], (DarbųĮkainiai2024[Aktualus darbo pavadinimas] = Sąnaudos!P18) * (DarbųĮkainiai2024[Darbinis plotis, m] <= IF(Sąnaudos!$S$4<3,3,Sąnaudos!$S$4)) * (DarbųĮkainiai2024[Traktoriaus (kombaino) galia, kW] = MAX(_xlfn._xlws.FILTER(DarbųĮkainiai2024[Traktoriaus (kombaino) galia, kW], (DarbųĮkainiai2024[Aktualus darbo pavadinimas] = Sąnaudos!P18) * (DarbųĮkainiai2024[Darbinis plotis, m] <= IF(Sąnaudos!$S$4<3,3,Sąnaudos!$S$4)) * (DarbųĮkainiai2024[Žemės ūkio mašinų kilmė] <> "NVS"), 0))) * (DarbųĮkainiai2024[Žemės ūkio mašinų kilmė] <> "NVS"), ""),_xlpm.MasyvoMax, _xlfn._xlws.FILTER(_xlpm.Masyvas, INDEX(_xlpm.Masyvas,,3)=MAX(INDEX(_xlpm.Masyvas,, 3))), _xlpm.MasyvoMax) -> Vakarų Europos gamybos kombainais | U18: 10.5 | V18: 8 | W18: 400 | X18: 456.14 | Y18: 0 | Z18: 3.23 | AA18: 20.43 | AB18: 51.79 | AC18: 26.52 | AD18: 15.32 | AE18: 3.44 | AF18: 97.07 | AG18: 6.66 | AH18: 103.73 | AI18: 5.19 | AJ18: 108.92 | AK18: 51.94
A19: =ROW()-ROW(Tech_SąnaudosSuv[[#Headers],[Eil. Nr.]]) -> 9 | B19: Gilus arimas (GA) | C19: GA | D19: Derliaus nuėmimas | E19: 1 | F19: =SUMIFS($AD$11:$AD$22,_xlfn.ANCHORARRAY($P$11),Tech_SąnaudosSuv[[#This Row],[Technologinė operacija]:[Technologinė operacija]])*Tech_SąnaudosSuv[[#This Row],[Operacijos skaičius]:[Operacijos skaičius]] -> 15.32 | G19: =SUMIFS($AC$11:$AC$22,_xlfn.ANCHORARRAY($P$11),Tech_SąnaudosSuv[[#This Row],[Technologinė operacija]:[Technologinė operacija]])*Tech_SąnaudosSuv[[#This Row],[Operacijos skaičius]:[Operacijos skaičius]] -> 26.52 | H19: =SUMIFS($AE$11:$AE$22,_xlfn.ANCHORARRAY($P$11),Tech_SąnaudosSuv[[#This Row],[Technologinė operacija]:[Technologinė operacija]])*Tech_SąnaudosSuv[[#This Row],[Operacijos skaičius]:[Operacijos skaičius]] -> 3.44 | I19: =SUMIFS($AG$11:$AG$22,_xlfn.ANCHORARRAY($P$11),Tech_SąnaudosSuv[[#This Row],[Technologinė operacija]:[Technologinė operacija]])*Tech_SąnaudosSuv[[#This Row],[Operacijos skaičius]:[Operacijos skaičius]] -> 6.66 | J19: =IF(AND(Tech_SąnaudosSuv[[#This Row],[Technologinė operacija]] = $P$22, $W$22 > $R$2), $AJ$22, 0) -> 0 | K19: =SUM(Tech_SąnaudosSuv[[#This Row],[Degalai ir tepalai, Eur/ha]:[Kitos, Eur/ha]]) -> 51.94 | L19: =IF(Tech_SąnaudosSuv[[#This Row],[Žemės ūkio paslaugos pirkimas, Eur]]=0,SUMIFS($Y$11:$Y$22,_xlfn.ANCHORARRAY($P$11),Tech_SąnaudosSuv[[#This Row],[Technologinė operacija]:[Technologinė operacija]]),0) -> 0 | P19: Seklus arimas | T19: =_xlfn.LET(_xlpm.Masyvas, _xlfn._xlws.FILTER(DarbųĮkainiai2024[[Žemės ūkio mašina]:[Kintamieji kaštai, Eur/ha]], (DarbųĮkainiai2024[Aktualus darbo pavadinimas] = Sąnaudos!P19) * (DarbųĮkainiai2024[Traktoriaus (kombaino) galia, kW] <= IF(Sąnaudos!$R$2<67,67,Sąnaudos!$R$2) ) * (DarbųĮkainiai2024[Traktoriaus (kombaino) galia, kW] = MAX(_xlfn._xlws.FILTER(DarbųĮkainiai2024[Traktoriaus (kombaino) galia, kW], (DarbųĮkainiai2024[Aktualus darbo pavadinimas] = Sąnaudos!P19) * (DarbųĮkainiai2024[Traktoriaus (kombaino) galia, kW] <= IF(Sąnaudos!$R$2<67,67,Sąnaudos!$R$2)) * (DarbųĮkainiai2024[Žemės ūkio mašinų kilmė] <> "NVS"), 0))) * (DarbųĮkainiai2024[Žemės ūkio mašinų kilmė] <> "NVS"), ""),_xlpm.MasyvoMax, _xlfn._xlws.FILTER(_xlpm.Masyvas, INDEX(_xlpm.Masyvas,,2)=MAX(INDEX(_xlpm.Masyvas,, 2))), _xlpm.MasyvoMax) -> Prikabinamaisiais apverčiamaisiais plūgais su tankintuvais | U19: 3.5 | V19: 0 | W19: 275 | X19: 263.75 | Y19: 79.15 | Z19: 2.77 | AA19: 16.7 | AB19: 27.49 | AC19: 26.58 | AD19: 12.53 | AE19: 4.01 | AF19: 70.61 | AG19: 4.09 | AH19: 74.7 | AI19: 3.74 | AJ19: 78.44 | AK19: 47.21
A20: =ROW()-ROW(Tech_SąnaudosSuv[[#Headers],[Eil. Nr.]]) -> 10 | B20: Seklus arimas (SA) | C20: SA | D20: Seklus ražienų skutimas | E20: 1 | F20: =SUMIFS($AD$11:$AD$22,_xlfn.ANCHORARRAY($P$11),Tech_SąnaudosSuv[[#This Row],[Technologinė operacija]:[Technologinė operacija]])*Tech_SąnaudosSuv[[#This Row],[Operacijos skaičius]:[Operacijos skaičius]] -> 6.53 | G20: =SUMIFS($AC$11:$AC$22,_xlfn.ANCHORARRAY($P$11),Tech_SąnaudosSuv[[#This Row],[Technologinė operacija]:[Technologinė operacija]])*Tech_SąnaudosSuv[[#This Row],[Operacijos skaičius]:[Operacijos skaičius]] -> 8.97 | H20: =SUMIFS($AE$11:$AE$22,_xlfn.ANCHORARRAY($P$11),Tech_SąnaudosSuv[[#This Row],[Technologinė operacija]:[Technologinė operacija]])*Tech_SąnaudosSuv[[#This Row],[Operacijos skaičius]:[Operacijos skaičius]] -> 1.56 | I20: =SUMIFS($AG$11:$AG$22,_xlfn.ANCHORARRAY($P$11),Tech_SąnaudosSuv[[#This Row],[Technologinė operacija]:[Technologinė operacija]])*Tech_SąnaudosSuv[[#This Row],[Operacijos skaičius]:[Operacijos skaičius]] -> 1.19 | J20: =IF(AND(Tech_SąnaudosSuv[[#This Row],[Technologinė operacija]] = $P$22, $W$22 > $R$2), $AJ$22, 0) -> 0 | K20: =SUM(Tech_SąnaudosSuv[[#This Row],[Degalai ir tepalai, Eur/ha]:[Kitos, Eur/ha]]) -> 18.25 | L20: =IF(Tech_SąnaudosSuv[[#This Row],[Žemės ūkio paslaugos pirkimas, Eur]]=0,SUMIFS($Y$11:$Y$22,_xlfn.ANCHORARRAY($P$11),Tech_SąnaudosSuv[[#This Row],[Technologinė operacija]:[Technologinė operacija]]),0) -> 79.76 | P20: Seklus purenimas | T20: =_xlfn.LET(_xlpm.Masyvas, _xlfn._xlws.FILTER(DarbųĮkainiai2024[[Žemės ūkio mašina]:[Kintamieji kaštai, Eur/ha]], (DarbųĮkainiai2024[Aktualus darbo pavadinimas] = Sąnaudos!P20) * (DarbųĮkainiai2024[Traktoriaus (kombaino) galia, kW] <= IF(Sąnaudos!$R$2<67,67,Sąnaudos!$R$2) ) * (DarbųĮkainiai2024[Traktoriaus (kombaino) galia, kW] = MAX(_xlfn._xlws.FILTER(DarbųĮkainiai2024[Traktoriaus (kombaino) galia, kW], (DarbųĮkainiai2024[Aktualus darbo pavadinimas] = Sąnaudos!P20) * (DarbųĮkainiai2024[Traktoriaus (kombaino) galia, kW] <= IF(Sąnaudos!$R$2<67,67,Sąnaudos!$R$2)) * (DarbųĮkainiai2024[Žemės ūkio mašinų kilmė] <> "NVS"), 0))) * (DarbųĮkainiai2024[Žemės ūkio mašinų kilmė] <> "NVS"), ""),_xlpm.MasyvoMax, _xlfn._xlws.FILTER(_xlpm.Masyvas, INDEX(_xlpm.Masyvas,,2)=MAX(INDEX(_xlpm.Masyvas,, 2))), _xlpm.MasyvoMax) -> kultivatoriais | U20: 8 | V20: 0 | W20: 138 | X20: 119.07 | Y20: 28.59 | Z20: 5.18 | AA20: 6.4 | AB20: 5.82 | AC20: 5.48 | AD20: 4.8 | AE20: 2.14 | AF20: 18.24 | AG20: 1.18 | AH20: 19.42 | AI20: 0.97 | AJ20: 20.39 | AK20: 13.6
A21: =ROW()-ROW(Tech_SąnaudosSuv[[#Headers],[Eil. Nr.]]) -> 11 | B21: Seklus arimas (SA) | C21: SA | D21: Seklus arimas | E21: 1 | F21: =SUMIFS($AD$11:$AD$22,_xlfn.ANCHORARRAY($P$11),Tech_SąnaudosSuv[[#This Row],[Technologinė operacija]:[Technologinė operacija]])*Tech_SąnaudosSuv[[#This Row],[Operacijos skaičius]:[Operacijos skaičius]] -> 12.53 | G21: =SUMIFS($AC$11:$AC$22,_xlfn.ANCHORARRAY($P$11),Tech_SąnaudosSuv[[#This Row],[Technologinė operacija]:[Technologinė operacija]])*Tech_SąnaudosSuv[[#This Row],[Operacijos skaičius]:[Operacijos skaičius]] -> 26.58 | H21: =SUMIFS($AE$11:$AE$22,_xlfn.ANCHORARRAY($P$11),Tech_SąnaudosSuv[[#This Row],[Technologinė operacija]:[Technologinė operacija]])*Tech_SąnaudosSuv[[#This Row],[Operacijos skaičius]:[Operacijos skaičius]] -> 4.01 | I21: =SUMIFS($AG$11:$AG$22,_xlfn.ANCHORARRAY($P$11),Tech_SąnaudosSuv[[#This Row],[Technologinė operacija]:[Technologinė operacija]])*Tech_SąnaudosSuv[[#This Row],[Operacijos skaičius]:[Operacijos skaičius]] -> 4.09 | J21: =IF(AND(Tech_SąnaudosSuv[[#This Row],[Technologinė operacija]] = $P$22, $W$22 > $R$2), $AJ$22, 0) -> 0 | K21: =SUM(Tech_SąnaudosSuv[[#This Row],[Degalai ir tepalai, Eur/ha]:[Kitos, Eur/ha]]) -> 47.21 | L21: =IF(Tech_SąnaudosSuv[[#This Row],[Žemės ūkio paslaugos pirkimas, Eur]]=0,SUMIFS($Y$11:$Y$22,_xlfn.ANCHORARRAY($P$11),Tech_SąnaudosSuv[[#This Row],[Technologinė operacija]:[Technologinė operacija]]),0) -> 79.15 | P21: Tarpinių pasėlių sėja | T21: =_xlfn.LET(_xlpm.Masyvas, _xlfn._xlws.FILTER(DarbųĮkainiai2024[[Žemės ūkio mašina]:[Kintamieji kaštai, Eur/ha]], (DarbųĮkainiai2024[Aktualus darbo pavadinimas] = Sąnaudos!P21) * (DarbųĮkainiai2024[Traktoriaus (kombaino) galia, kW] <= IF(Sąnaudos!$R$2<67,67,Sąnaudos!$R$2) ) * (DarbųĮkainiai2024[Traktoriaus (kombaino) galia, kW] = MAX(_xlfn._xlws.FILTER(DarbųĮkainiai2024[Traktoriaus (kombaino) galia, kW], (DarbųĮkainiai2024[Aktualus darbo pavadinimas] = Sąnaudos!P21) * (DarbųĮkainiai2024[Traktoriaus (kombaino) galia, kW] <= IF(Sąnaudos!$R$2<67,67,Sąnaudos!$R$2)) * (DarbųĮkainiai2024[Žemės ūkio mašinų kilmė] <> "NVS"), 0))) * (DarbųĮkainiai2024[Žemės ūkio mašinų kilmė] <> "NVS"), ""),_xlpm.MasyvoMax, _xlfn._xlws.FILTER(_xlpm.Masyvas, INDEX(_xlpm.Masyvas,,2)=MAX(INDEX(_xlpm.Masyvas,, 2))), _xlpm.MasyvoMax) -> Seklusis ražienų skutimas su tarpinių pasėlių sėja | U21: 10 | V21: 0 | W21: 233 | X21: 0 | Y21: 0 | Z21: 0 | AA21: 0 | AB21: 0 | AC21: 0 | AD21: 0 | AE21: 0 | AF21: 0 | AG21: 4.28 | AH21: 4.28 | AI21: 0.21 | AJ21: 4.49 | AK21: 4.28
A22: =ROW()-ROW(Tech_SąnaudosSuv[[#Headers],[Eil. Nr.]]) -> 12 | B22: Seklus arimas (SA) | C22: SA | D22: Pirminis kultivavimas | E22: 1 | F22: =SUMIFS($AD$11:$AD$22,_xlfn.ANCHORARRAY($P$11),Tech_SąnaudosSuv[[#This Row],[Technologinė operacija]:[Technologinė operacija]])*Tech_SąnaudosSuv[[#This Row],[Operacijos skaičius]:[Operacijos skaičius]] -> 7.35 | G22: =SUMIFS($AC$11:$AC$22,_xlfn.ANCHORARRAY($P$11),Tech_SąnaudosSuv[[#This Row],[Technologinė operacija]:[Technologinė operacija]])*Tech_SąnaudosSuv[[#This Row],[Operacijos skaičius]:[Operacijos skaičius]] -> 11.11 | H22: =SUMIFS($AE$11:$AE$22,_xlfn.ANCHORARRAY($P$11),Tech_SąnaudosSuv[[#This Row],[Technologinė operacija]:[Technologinė operacija]])*Tech_SąnaudosSuv[[#This Row],[Operacijos skaičius]:[Operacijos skaičius]] -> 2.82 | I22: =SUMIFS($AG$11:$AG$22,_xlfn.ANCHORARRAY($P$11),Tech_SąnaudosSuv[[#This Row],[Technologinė operacija]:[Technologinė operacija]])*Tech_SąnaudosSuv[[#This Row],[Operacijos skaičius]:[Operacijos skaičius]] -> 2.34 | J22: =IF(AND(Tech_SąnaudosSuv[[#This Row],[Technologinė operacija]] = $P$22, $W$22 > $R$2), $AJ$22, 0) -> 0 | K22: =SUM(Tech_SąnaudosSuv[[#This Row],[Degalai ir tepalai, Eur/ha]:[Kitos, Eur/ha]]) -> 23.62 | L22: =IF(Tech_SąnaudosSuv[[#This Row],[Žemės ūkio paslaugos pirkimas, Eur]]=0,SUMIFS($Y$11:$Y$22,_xlfn.ANCHORARRAY($P$11),Tech_SąnaudosSuv[[#This Row],[Technologinė operacija]:[Technologinė operacija]]),0) -> 53.99 | P22: Tiesioginė sėja | T22: =_xlfn.LET(_xlpm.Masyvas, _xlfn._xlws.FILTER(DarbųĮkainiai2024[[Žemės ūkio mašina]:[Kintamieji kaštai, Eur/ha]], (DarbųĮkainiai2024[Aktualus darbo pavadinimas] = Sąnaudos!P22) * (DarbųĮkainiai2024[Traktoriaus (kombaino) galia, kW] <= IF(Sąnaudos!$R$2<240,240,Sąnaudos!$R$2) ) * (DarbųĮkainiai2024[Traktoriaus (kombaino) galia, kW] = MAX(_xlfn._xlws.FILTER(DarbųĮkainiai2024[Traktoriaus (kombaino) galia, kW], (DarbųĮkainiai2024[Aktualus darbo pavadinimas] = Sąnaudos!P22) * (DarbųĮkainiai2024[Traktoriaus (kombaino) galia, kW] <= IF(Sąnaudos!$R$2<240,240,Sąnaudos!$R$2)) * (DarbųĮkainiai2024[Žemės ūkio mašinų kilmė] <> "NVS"), 0))) * (DarbųĮkainiai2024[Žemės ūkio mašinų kilmė] <> "NVS"), ""),_xlpm.MasyvoMax, _xlfn._xlws.FILTER(_xlpm.Masyvas, INDEX(_xlpm.Masyvas,,2)=MAX(INDEX(_xlpm.Masyvas,, 2))), _xlpm.MasyvoMax) -> tiesioginės sėjos (ražieninėmis) sėjamosiomis | U22: 4 | V22: 200 | W22: 240 | X22: 221.18 | Y22: 140.35 | Z22: 3.22 | AA22: 17.3 | AB22: 43.61 | AC22: 22.85 | AD22: 12.98 | AE22: 3.45 | AF22: 82.89 | AG22: 6.96 | AH22: 89.85 | AI22: 4.49 | AJ22: 94.34 | AK22: 46.24
A23: =ROW()-ROW(Tech_SąnaudosSuv[[#Headers],[Eil. Nr.]]) -> 13 | B23: Seklus arimas (SA) | C23: SA | D23: Priešsėjinis kultivavimas | E23: 1 | F23: =SUMIFS($AD$11:$AD$22,_xlfn.ANCHORARRAY($P$11),Tech_SąnaudosSuv[[#This Row],[Technologinė operacija]:[Technologinė operacija]])*Tech_SąnaudosSuv[[#This Row],[Operacijos skaičius]:[Operacijos skaičius]] -> 4.8 | G23: =SUMIFS($AC$11:$AC$22,_xlfn.ANCHORARRAY($P$11),Tech_SąnaudosSuv[[#This Row],[Technologinė operacija]:[Technologinė operacija]])*Tech_SąnaudosSuv[[#This Row],[Operacijos skaičius]:[Operacijos skaičius]] -> 5.48 | H23: =SUMIFS($AE$11:$AE$22,_xlfn.ANCHORARRAY($P$11),Tech_SąnaudosSuv[[#This Row],[Technologinė operacija]:[Technologinė operacija]])*Tech_SąnaudosSuv[[#This Row],[Operacijos skaičius]:[Operacijos skaičius]] -> 2.14 | I23: =SUMIFS($AG$11:$AG$22,_xlfn.ANCHORARRAY($P$11),Tech_SąnaudosSuv[[#This Row],[Technologinė operacija]:[Technologinė operacija]])*Tech_SąnaudosSuv[[#This Row],[Operacijos skaičius]:[Operacijos skaičius]] -> 1.18 | J23: =IF(AND(Tech_SąnaudosSuv[[#This Row],[Technologinė operacija]] = $P$22, $W$22 > $R$2), $AJ$22, 0) -> 0 | K23: =SUM(Tech_SąnaudosSuv[[#This Row],[Degalai ir tepalai, Eur/ha]:[Kitos, Eur/ha]]) -> 13.6 | L23: =IF(Tech_SąnaudosSuv[[#This Row],[Žemės ūkio paslaugos pirkimas, Eur]]=0,SUMIFS($Y$11:$Y$22,_xlfn.ANCHORARRAY($P$11),Tech_SąnaudosSuv[[#This Row],[Technologinė operacija]:[Technologinė operacija]]),0) -> 28.59
A24: =ROW()-ROW(Tech_SąnaudosSuv[[#Headers],[Eil. Nr.]]) -> 14 | B24: Seklus arimas (SA) | C24: SA | D24: Tręšimas | E24: 1 | F24: =SUMIFS($AD$11:$AD$22,_xlfn.ANCHORARRAY($P$11),Tech_SąnaudosSuv[[#This Row],[Technologinė operacija]:[Technologinė operacija]])*Tech_SąnaudosSuv[[#This Row],[Operacijos skaičius]:[Operacijos skaičius]] -> 0.53 | G24: =SUMIFS($AC$11:$AC$22,_xlfn.ANCHORARRAY($P$11),Tech_SąnaudosSuv[[#This Row],[Technologinė operacija]:[Technologinė operacija]])*Tech_SąnaudosSuv[[#This Row],[Operacijos skaičius]:[Operacijos skaičius]] -> 0.8 | H24: =SUMIFS($AE$11:$AE$22,_xlfn.ANCHORARRAY($P$11),Tech_SąnaudosSuv[[#This Row],[Technologinė operacija]:[Technologinė operacija]])*Tech_SąnaudosSuv[[#This Row],[Operacijos skaičius]:[Operacijos skaičius]] -> 0.55 | I24: =SUMIFS($AG$11:$AG$22,_xlfn.ANCHORARRAY($P$11),Tech_SąnaudosSuv[[#This Row],[Technologinė operacija]:[Technologinė operacija]])*Tech_SąnaudosSuv[[#This Row],[Operacijos skaičius]:[Operacijos skaičius]] -> 0.12 | J24: =IF(AND(Tech_SąnaudosSuv[[#This Row],[Technologinė operacija]] = $P$22, $W$22 > $R$2), $AJ$22, 0) -> 0 | K24: =SUM(Tech_SąnaudosSuv[[#This Row],[Degalai ir tepalai, Eur/ha]:[Kitos, Eur/ha]]) -> 2 | L24: =IF(Tech_SąnaudosSuv[[#This Row],[Žemės ūkio paslaugos pirkimas, Eur]]=0,SUMIFS($Y$11:$Y$22,_xlfn.ANCHORARRAY($P$11),Tech_SąnaudosSuv[[#This Row],[Technologinė operacija]:[Technologinė operacija]]),0) -> 30.68
A25: =ROW()-ROW(Tech_SąnaudosSuv[[#Headers],[Eil. Nr.]]) -> 15 | B25: Seklus arimas (SA) | C25: SA | D25: Sėja | E25: 1 | F25: =SUMIFS($AD$11:$AD$22,_xlfn.ANCHORARRAY($P$11),Tech_SąnaudosSuv[[#This Row],[Technologinė operacija]:[Technologinė operacija]])*Tech_SąnaudosSuv[[#This Row],[Operacijos skaičius]:[Operacijos skaičius]] -> 2.7 | G25: =SUMIFS($AC$11:$AC$22,_xlfn.ANCHORARRAY($P$11),Tech_SąnaudosSuv[[#This Row],[Technologinė operacija]:[Technologinė operacija]])*Tech_SąnaudosSuv[[#This Row],[Operacijos skaičius]:[Operacijos skaičius]] -> 10.25 | H25: =SUMIFS($AE$11:$AE$22,_xlfn.ANCHORARRAY($P$11),Tech_SąnaudosSuv[[#This Row],[Technologinė operacija]:[Technologinė operacija]])*Tech_SąnaudosSuv[[#This Row],[Operacijos skaičius]:[Operacijos skaičius]] -> 2.37 | I25: =SUMIFS($AG$11:$AG$22,_xlfn.ANCHORARRAY($P$11),Tech_SąnaudosSuv[[#This Row],[Technologinė operacija]:[Technologinė operacija]])*Tech_SąnaudosSuv[[#This Row],[Operacijos skaičius]:[Operacijos skaičius]] -> 1.32 | J25: =IF(AND(Tech_SąnaudosSuv[[#This Row],[Technologinė operacija]] = $P$22, $W$22 > $R$2), $AJ$22, 0) -> 0 | K25: =SUM(Tech_SąnaudosSuv[[#This Row],[Degalai ir tepalai, Eur/ha]:[Kitos, Eur/ha]]) -> 16.64 | L25: =IF(Tech_SąnaudosSuv[[#This Row],[Žemės ūkio paslaugos pirkimas, Eur]]=0,SUMIFS($Y$11:$Y$22,_xlfn.ANCHORARRAY($P$11),Tech_SąnaudosSuv[[#This Row],[Technologinė operacija]:[Technologinė operacija]]),0) -> 115.04
A26: =ROW()-ROW(Tech_SąnaudosSuv[[#Headers],[Eil. Nr.]]) -> 16 | B26: Seklus arimas (SA) | C26: SA | D26: Purškimas | E26: 4 | F26: =SUMIFS($AD$11:$AD$22,_xlfn.ANCHORARRAY($P$11),Tech_SąnaudosSuv[[#This Row],[Technologinė operacija]:[Technologinė operacija]])*Tech_SąnaudosSuv[[#This Row],[Operacijos skaičius]:[Operacijos skaičius]] -> 2.84 | G26: =SUMIFS($AC$11:$AC$22,_xlfn.ANCHORARRAY($P$11),Tech_SąnaudosSuv[[#This Row],[Technologinė operacija]:[Technologinė operacija]])*Tech_SąnaudosSuv[[#This Row],[Operacijos skaičius]:[Operacijos skaičius]] -> 4.24 | H26: =SUMIFS($AE$11:$AE$22,_xlfn.ANCHORARRAY($P$11),Tech_SąnaudosSuv[[#This Row],[Technologinė operacija]:[Technologinė operacija]])*Tech_SąnaudosSuv[[#This Row],[Operacijos skaičius]:[Operacijos skaičius]] -> 6.48 | I26: =SUMIFS($AG$11:$AG$22,_xlfn.ANCHORARRAY($P$11),Tech_SąnaudosSuv[[#This Row],[Technologinė operacija]:[Technologinė operacija]])*Tech_SąnaudosSuv[[#This Row],[Operacijos skaičius]:[Operacijos skaičius]] -> 1.92 | J26: =IF(AND(Tech_SąnaudosSuv[[#This Row],[Technologinė operacija]] = $P$22, $W$22 > $R$2), $AJ$22, 0) -> 0 | K26: =SUM(Tech_SąnaudosSuv[[#This Row],[Degalai ir tepalai, Eur/ha]:[Kitos, Eur/ha]]) -> 15.48 | L26: =IF(Tech_SąnaudosSuv[[#This Row],[Žemės ūkio paslaugos pirkimas, Eur]]=0,SUMIFS($Y$11:$Y$22,_xlfn.ANCHORARRAY($P$11),Tech_SąnaudosSuv[[#This Row],[Technologinė operacija]:[Technologinė operacija]]),0) -> 22
A27: =ROW()-ROW(Tech_SąnaudosSuv[[#Headers],[Eil. Nr.]]) -> 17 | B27: Seklus arimas (SA) | C27: SA | D27: Tręšimas | E27: 2 | F27: =SUMIFS($AD$11:$AD$22,_xlfn.ANCHORARRAY($P$11),Tech_SąnaudosSuv[[#This Row],[Technologinė operacija]:[Technologinė operacija]])*Tech_SąnaudosSuv[[#This Row],[Operacijos skaičius]:[Operacijos skaičius]] -> 1.06 | G27: =SUMIFS($AC$11:$AC$22,_xlfn.ANCHORARRAY($P$11),Tech_SąnaudosSuv[[#This Row],[Technologinė operacija]:[Technologinė operacija]])*Tech_SąnaudosSuv[[#This Row],[Operacijos skaičius]:[Operacijos skaičius]] -> 1.6 | H27: =SUMIFS($AE$11:$AE$22,_xlfn.ANCHORARRAY($P$11),Tech_SąnaudosSuv[[#This Row],[Technologinė operacija]:[Technologinė operacija]])*Tech_SąnaudosSuv[[#This Row],[Operacijos skaičius]:[Operacijos skaičius]] -> 1.1 | I27: =SUMIFS($AG$11:$AG$22,_xlfn.ANCHORARRAY($P$11),Tech_SąnaudosSuv[[#This Row],[Technologinė operacija]:[Technologinė operacija]])*Tech_SąnaudosSuv[[#This Row],[Operacijos skaičius]:[Operacijos skaičius]] -> 0.24 | J27: =IF(AND(Tech_SąnaudosSuv[[#This Row],[Technologinė operacija]] = $P$22, $W$22 > $R$2), $AJ$22, 0) -> 0 | K27: =SUM(Tech_SąnaudosSuv[[#This Row],[Degalai ir tepalai, Eur/ha]:[Kitos, Eur/ha]]) -> 4 | L27: =IF(Tech_SąnaudosSuv[[#This Row],[Žemės ūkio paslaugos pirkimas, Eur]]=0,SUMIFS($Y$11:$Y$22,_xlfn.ANCHORARRAY($P$11),Tech_SąnaudosSuv[[#This Row],[Technologinė operacija]:[Technologinė operacija]]),0) -> 30.68
A28: =ROW()-ROW(Tech_SąnaudosSuv[[#Headers],[Eil. Nr.]]) -> 18 | B28: Seklus arimas (SA) | C28: SA | D28: Derliaus nuėmimas | E28: 1 | F28: =SUMIFS($AD$11:$AD$22,_xlfn.ANCHORARRAY($P$11),Tech_SąnaudosSuv[[#This Row],[Technologinė operacija]:[Technologinė operacija]])*Tech_SąnaudosSuv[[#This Row],[Operacijos skaičius]:[Operacijos skaičius]] -> 15.32 | G28: =SUMIFS($AC$11:$AC$22,_xlfn.ANCHORARRAY($P$11),Tech_SąnaudosSuv[[#This Row],[Technologinė operacija]:[Technologinė operacija]])*Tech_SąnaudosSuv[[#This Row],[Operacijos skaičius]:[Operacijos skaičius]] -> 26.52 | H28: =SUMIFS($AE$11:$AE$22,_xlfn.ANCHORARRAY($P$11),Tech_SąnaudosSuv[[#This Row],[Technologinė operacija]:[Technologinė operacija]])*Tech_SąnaudosSuv[[#This Row],[Operacijos skaičius]:[Operacijos skaičius]] -> 3.44 | I28: =SUMIFS($AG$11:$AG$22,_xlfn.ANCHORARRAY($P$11),Tech_SąnaudosSuv[[#This Row],[Technologinė operacija]:[Technologinė operacija]])*Tech_SąnaudosSuv[[#This Row],[Operacijos skaičius]:[Operacijos skaičius]] -> 6.66 | J28: =IF(AND(Tech_SąnaudosSuv[[#This Row],[Technologinė operacija]] = $P$22, $W$22 > $R$2), $AJ$22, 0) -> 0 | K28: =SUM(Tech_SąnaudosSuv[[#This Row],[Degalai ir tepalai, Eur/ha]:[Kitos, Eur/ha]]) -> 51.94 | L28: =IF(Tech_SąnaudosSuv[[#This Row],[Žemės ūkio paslaugos pirkimas, Eur]]=0,SUMIFS($Y$11:$Y$22,_xlfn.ANCHORARRAY($P$11),Tech_SąnaudosSuv[[#This Row],[Technologinė operacija]:[Technologinė operacija]]),0) -> 0
A29: =ROW()-ROW(Tech_SąnaudosSuv[[#Headers],[Eil. Nr.]]) -> 19 | B29: Seklus purenimas rudenį (SPR) | C29: SPR | D29: Seklus ražienų skutimas | E29: 1 | F29: =SUMIFS($AD$11:$AD$22,_xlfn.ANCHORARRAY($P$11),Tech_SąnaudosSuv[[#This Row],[Technologinė operacija]:[Technologinė operacija]])*Tech_SąnaudosSuv[[#This Row],[Operacijos skaičius]:[Operacijos skaičius]] -> 6.53 | G29: =SUMIFS($AC$11:$AC$22,_xlfn.ANCHORARRAY($P$11),Tech_SąnaudosSuv[[#This Row],[Technologinė operacija]:[Technologinė operacija]])*Tech_SąnaudosSuv[[#This Row],[Operacijos skaičius]:[Operacijos skaičius]] -> 8.97 | H29: =SUMIFS($AE$11:$AE$22,_xlfn.ANCHORARRAY($P$11),Tech_SąnaudosSuv[[#This Row],[Technologinė operacija]:[Technologinė operacija]])*Tech_SąnaudosSuv[[#This Row],[Operacijos skaičius]:[Operacijos skaičius]] -> 1.56 | I29: =SUMIFS($AG$11:$AG$22,_xlfn.ANCHORARRAY($P$11),Tech_SąnaudosSuv[[#This Row],[Technologinė operacija]:[Technologinė operacija]])*Tech_SąnaudosSuv[[#This Row],[Operacijos skaičius]:[Operacijos skaičius]] -> 1.19 | J29: =IF(AND(Tech_SąnaudosSuv[[#This Row],[Technologinė operacija]] = $P$22, $W$22 > $R$2), $AJ$22, 0) -> 0 | K29: =SUM(Tech_SąnaudosSuv[[#This Row],[Degalai ir tepalai, Eur/ha]:[Kitos, Eur/ha]]) -> 18.25 | L29: =IF(Tech_SąnaudosSuv[[#This Row],[Žemės ūkio paslaugos pirkimas, Eur]]=0,SUMIFS($Y$11:$Y$22,_xlfn.ANCHORARRAY($P$11),Tech_SąnaudosSuv[[#This Row],[Technologinė operacija]:[Technologinė operacija]]),0) -> 79.76
A30: =ROW()-ROW(Tech_SąnaudosSuv[[#Headers],[Eil. Nr.]]) -> 20 | B30: Seklus purenimas rudenį (SPR) | C30: SPR | D30: Seklus purenimas | E30: 1 | F30: =SUMIFS($AD$11:$AD$22,_xlfn.ANCHORARRAY($P$11),Tech_SąnaudosSuv[[#This Row],[Technologinė operacija]:[Technologinė operacija]])*Tech_SąnaudosSuv[[#This Row],[Operacijos skaičius]:[Operacijos skaičius]] -> 4.8 | G30: =SUMIFS($AC$11:$AC$22,_xlfn.ANCHORARRAY($P$11),Tech_SąnaudosSuv[[#This Row],[Technologinė operacija]:[Technologinė operacija]])*Tech_SąnaudosSuv[[#This Row],[Operacijos skaičius]:[Operacijos skaičius]] -> 5.48 | H30: =SUMIFS($AE$11:$AE$22,_xlfn.ANCHORARRAY($P$11),Tech_SąnaudosSuv[[#This Row],[Technologinė operacija]:[Technologinė operacija]])*Tech_SąnaudosSuv[[#This Row],[Operacijos skaičius]:[Operacijos skaičius]] -> 2.14 | I30: =SUMIFS($AG$11:$AG$22,_xlfn.ANCHORARRAY($P$11),Tech_SąnaudosSuv[[#This Row],[Technologinė operacija]:[Technologinė operacija]])*Tech_SąnaudosSuv[[#This Row],[Operacijos skaičius]:[Operacijos skaičius]] -> 1.18 | J30: =IF(AND(Tech_SąnaudosSuv[[#This Row],[Technologinė operacija]] = $P$22, $W$22 > $R$2), $AJ$22, 0) -> 0 | K30: =SUM(Tech_SąnaudosSuv[[#This Row],[Degalai ir tepalai, Eur/ha]:[Kitos, Eur/ha]]) -> 13.6 | L30: =IF(Tech_SąnaudosSuv[[#This Row],[Žemės ūkio paslaugos pirkimas, Eur]]=0,SUMIFS($Y$11:$Y$22,_xlfn.ANCHORARRAY($P$11),Tech_SąnaudosSuv[[#This Row],[Technologinė operacija]:[Technologinė operacija]]),0) -> 28.59
A31: =ROW()-ROW(Tech_SąnaudosSuv[[#Headers],[Eil. Nr.]]) -> 21 | B31: Seklus purenimas rudenį (SPR) | C31: SPR | D31: Pirminis kultivavimas | E31: 1 | F31: =SUMIFS($AD$11:$AD$22,_xlfn.ANCHORARRAY($P$11),Tech_SąnaudosSuv[[#This Row],[Technologinė operacija]:[Technologinė operacija]])*Tech_SąnaudosSuv[[#This Row],[Operacijos skaičius]:[Operacijos skaičius]] -> 7.35 | G31: =SUMIFS($AC$11:$AC$22,_xlfn.ANCHORARRAY($P$11),Tech_SąnaudosSuv[[#This Row],[Technologinė operacija]:[Technologinė operacija]])*Tech_SąnaudosSuv[[#This Row],[Operacijos skaičius]:[Operacijos skaičius]] -> 11.11 | H31: =SUMIFS($AE$11:$AE$22,_xlfn.ANCHORARRAY($P$11),Tech_SąnaudosSuv[[#This Row],[Technologinė operacija]:[Technologinė operacija]])*Tech_SąnaudosSuv[[#This Row],[Operacijos skaičius]:[Operacijos skaičius]] -> 2.82 | I31: =SUMIFS($AG$11:$AG$22,_xlfn.ANCHORARRAY($P$11),Tech_SąnaudosSuv[[#This Row],[Technologinė operacija]:[Technologinė operacija]])*Tech_SąnaudosSuv[[#This Row],[Operacijos skaičius]:[Operacijos skaičius]] -> 2.34 | J31: =IF(AND(Tech_SąnaudosSuv[[#This Row],[Technologinė operacija]] = $P$22, $W$22 > $R$2), $AJ$22, 0) -> 0 | K31: =SUM(Tech_SąnaudosSuv[[#This Row],[Degalai ir tepalai, Eur/ha]:[Kitos, Eur/ha]]) -> 23.62 | L31: =IF(Tech_SąnaudosSuv[[#This Row],[Žemės ūkio paslaugos pirkimas, Eur]]=0,SUMIFS($Y$11:$Y$22,_xlfn.ANCHORARRAY($P$11),Tech_SąnaudosSuv[[#This Row],[Technologinė operacija]:[Technologinė operacija]]),0) -> 53.99
A32: =ROW()-ROW(Tech_SąnaudosSuv[[#Headers],[Eil. Nr.]]) -> 22 | B32: Seklus purenimas rudenį (SPR) | C32: SPR | D32: Priešsėjinis kultivavimas | E32: 1 | F32: =SUMIFS($AD$11:$AD$22,_xlfn.ANCHORARRAY($P$11),Tech_SąnaudosSuv[[#This Row],[Technologinė operacija]:[Technologinė operacija]])*Tech_SąnaudosSuv[[#This Row],[Operacijos skaičius]:[Operacijos skaičius]] -> 4.8 | G32: =SUMIFS($AC$11:$AC$22,_xlfn.ANCHORARRAY($P$11),Tech_SąnaudosSuv[[#This Row],[Technologinė operacija]:[Technologinė operacija]])*Tech_SąnaudosSuv[[#This Row],[Operacijos skaičius]:[Operacijos skaičius]] -> 5.48 | H32: =SUMIFS($AE$11:$AE$22,_xlfn.ANCHORARRAY($P$11),Tech_SąnaudosSuv[[#This Row],[Technologinė operacija]:[Technologinė operacija]])*Tech_SąnaudosSuv[[#This Row],[Operacijos skaičius]:[Operacijos skaičius]] -> 2.14 | I32: =SUMIFS($AG$11:$AG$22,_xlfn.ANCHORARRAY($P$11),Tech_SąnaudosSuv[[#This Row],[Technologinė operacija]:[Technologinė operacija]])*Tech_SąnaudosSuv[[#This Row],[Operacijos skaičius]:[Operacijos skaičius]] -> 1.18 | J32: =IF(AND(Tech_SąnaudosSuv[[#This Row],[Technologinė operacija]] = $P$22, $W$22 > $R$2), $AJ$22, 0) -> 0 | K32: =SUM(Tech_SąnaudosSuv[[#This Row],[Degalai ir tepalai, Eur/ha]:[Kitos, Eur/ha]]) -> 13.6 | L32: =IF(Tech_SąnaudosSuv[[#This Row],[Žemės ūkio paslaugos pirkimas, Eur]]=0,SUMIFS($Y$11:$Y$22,_xlfn.ANCHORARRAY($P$11),Tech_SąnaudosSuv[[#This Row],[Technologinė operacija]:[Technologinė operacija]]),0) -> 28.59
A33: =ROW()-ROW(Tech_SąnaudosSuv[[#Headers],[Eil. Nr.]]) -> 23 | B33: Seklus purenimas rudenį (SPR) | C33: SPR | D33: Tręšimas | E33: 1 | F33: =SUMIFS($AD$11:$AD$22,_xlfn.ANCHORARRAY($P$11),Tech_SąnaudosSuv[[#This Row],[Technologinė operacija]:[Technologinė operacija]])*Tech_SąnaudosSuv[[#This Row],[Operacijos skaičius]:[Operacijos skaičius]] -> 0.53 | G33: =SUMIFS($AC$11:$AC$22,_xlfn.ANCHORARRAY($P$11),Tech_SąnaudosSuv[[#This Row],[Technologinė operacija]:[Technologinė operacija]])*Tech_SąnaudosSuv[[#This Row],[Operacijos skaičius]:[Operacijos skaičius]] -> 0.8 | H33: =SUMIFS($AE$11:$AE$22,_xlfn.ANCHORARRAY($P$11),Tech_SąnaudosSuv[[#This Row],[Technologinė operacija]:[Technologinė operacija]])*Tech_SąnaudosSuv[[#This Row],[Operacijos skaičius]:[Operacijos skaičius]] -> 0.55 | I33: =SUMIFS($AG$11:$AG$22,_xlfn.ANCHORARRAY($P$11),Tech_SąnaudosSuv[[#This Row],[Technologinė operacija]:[Technologinė operacija]])*Tech_SąnaudosSuv[[#This Row],[Operacijos skaičius]:[Operacijos skaičius]] -> 0.12 | J33: =IF(AND(Tech_SąnaudosSuv[[#This Row],[Technologinė operacija]] = $P$22, $W$22 > $R$2), $AJ$22, 0) -> 0 | K33: =SUM(Tech_SąnaudosSuv[[#This Row],[Degalai ir tepalai, Eur/ha]:[Kitos, Eur/ha]]) -> 2 | L33: =IF(Tech_SąnaudosSuv[[#This Row],[Žemės ūkio paslaugos pirkimas, Eur]]=0,SUMIFS($Y$11:$Y$22,_xlfn.ANCHORARRAY($P$11),Tech_SąnaudosSuv[[#This Row],[Technologinė operacija]:[Technologinė operacija]]),0) -> 30.68
A34: =ROW()-ROW(Tech_SąnaudosSuv[[#Headers],[Eil. Nr.]]) -> 24 | B34: Seklus purenimas rudenį (SPR) | C34: SPR | D34: Sėja | E34: 1 | F34: =SUMIFS($AD$11:$AD$22,_xlfn.ANCHORARRAY($P$11),Tech_SąnaudosSuv[[#This Row],[Technologinė operacija]:[Technologinė operacija]])*Tech_SąnaudosSuv[[#This Row],[Operacijos skaičius]:[Operacijos skaičius]] -> 2.7 | G34: =SUMIFS($AC$11:$AC$22,_xlfn.ANCHORARRAY($P$11),Tech_SąnaudosSuv[[#This Row],[Technologinė operacija]:[Technologinė operacija]])*Tech_SąnaudosSuv[[#This Row],[Operacijos skaičius]:[Operacijos skaičius]] -> 10.25 | H34: =SUMIFS($AE$11:$AE$22,_xlfn.ANCHORARRAY($P$11),Tech_SąnaudosSuv[[#This Row],[Technologinė operacija]:[Technologinė operacija]])*Tech_SąnaudosSuv[[#This Row],[Operacijos skaičius]:[Operacijos skaičius]] -> 2.37 | I34: =SUMIFS($AG$11:$AG$22,_xlfn.ANCHORARRAY($P$11),Tech_SąnaudosSuv[[#This Row],[Technologinė operacija]:[Technologinė operacija]])*Tech_SąnaudosSuv[[#This Row],[Operacijos skaičius]:[Operacijos skaičius]] -> 1.32 | J34: =IF(AND(Tech_SąnaudosSuv[[#This Row],[Technologinė operacija]] = $P$22, $W$22 > $R$2), $AJ$22, 0) -> 0 | K34: =SUM(Tech_SąnaudosSuv[[#This Row],[Degalai ir tepalai, Eur/ha]:[Kitos, Eur/ha]]) -> 16.64 | L34: =IF(Tech_SąnaudosSuv[[#This Row],[Žemės ūkio paslaugos pirkimas, Eur]]=0,SUMIFS($Y$11:$Y$22,_xlfn.ANCHORARRAY($P$11),Tech_SąnaudosSuv[[#This Row],[Technologinė operacija]:[Technologinė operacija]]),0) -> 115.04
A35: =ROW()-ROW(Tech_SąnaudosSuv[[#Headers],[Eil. Nr.]]) -> 25 | B35: Seklus purenimas rudenį (SPR) | C35: SPR | D35: Purškimas | E35: 4 | F35: =SUMIFS($AD$11:$AD$22,_xlfn.ANCHORARRAY($P$11),Tech_SąnaudosSuv[[#This Row],[Technologinė operacija]:[Technologinė operacija]])*Tech_SąnaudosSuv[[#This Row],[Operacijos skaičius]:[Operacijos skaičius]] -> 2.84 | G35: =SUMIFS($AC$11:$AC$22,_xlfn.ANCHORARRAY($P$11),Tech_SąnaudosSuv[[#This Row],[Technologinė operacija]:[Technologinė operacija]])*Tech_SąnaudosSuv[[#This Row],[Operacijos skaičius]:[Operacijos skaičius]] -> 4.24 | H35: =SUMIFS($AE$11:$AE$22,_xlfn.ANCHORARRAY($P$11),Tech_SąnaudosSuv[[#This Row],[Technologinė operacija]:[Technologinė operacija]])*Tech_SąnaudosSuv[[#This Row],[Operacijos skaičius]:[Operacijos skaičius]] -> 6.48 | I35: =SUMIFS($AG$11:$AG$22,_xlfn.ANCHORARRAY($P$11),Tech_SąnaudosSuv[[#This Row],[Technologinė operacija]:[Technologinė operacija]])*Tech_SąnaudosSuv[[#This Row],[Operacijos skaičius]:[Operacijos skaičius]] -> 1.92 | J35: =IF(AND(Tech_SąnaudosSuv[[#This Row],[Technologinė operacija]] = $P$22, $W$22 > $R$2), $AJ$22, 0) -> 0 | K35: =SUM(Tech_SąnaudosSuv[[#This Row],[Degalai ir tepalai, Eur/ha]:[Kitos, Eur/ha]]) -> 15.48 | L35: =IF(Tech_SąnaudosSuv[[#This Row],[Žemės ūkio paslaugos pirkimas, Eur]]=0,SUMIFS($Y$11:$Y$22,_xlfn.ANCHORARRAY($P$11),Tech_SąnaudosSuv[[#This Row],[Technologinė operacija]:[Technologinė operacija]]),0) -> 22
A36: =ROW()-ROW(Tech_SąnaudosSuv[[#Headers],[Eil. Nr.]]) -> 26 | B36: Seklus purenimas rudenį (SPR) | C36: SPR | D36: Tręšimas | E36: 2 | F36: =SUMIFS($AD$11:$AD$22,_xlfn.ANCHORARRAY($P$11),Tech_SąnaudosSuv[[#This Row],[Technologinė operacija]:[Technologinė operacija]])*Tech_SąnaudosSuv[[#This Row],[Operacijos skaičius]:[Operacijos skaičius]] -> 1.06 | G36: =SUMIFS($AC$11:$AC$22,_xlfn.ANCHORARRAY($P$11),Tech_SąnaudosSuv[[#This Row],[Technologinė operacija]:[Technologinė operacija]])*Tech_SąnaudosSuv[[#This Row],[Operacijos skaičius]:[Operacijos skaičius]] -> 1.6 | H36: =SUMIFS($AE$11:$AE$22,_xlfn.ANCHORARRAY($P$11),Tech_SąnaudosSuv[[#This Row],[Technologinė operacija]:[Technologinė operacija]])*Tech_SąnaudosSuv[[#This Row],[Operacijos skaičius]:[Operacijos skaičius]] -> 1.1 | I36: =SUMIFS($AG$11:$AG$22,_xlfn.ANCHORARRAY($P$11),Tech_SąnaudosSuv[[#This Row],[Technologinė operacija]:[Technologinė operacija]])*Tech_SąnaudosSuv[[#This Row],[Operacijos skaičius]:[Operacijos skaičius]] -> 0.24 | J36: =IF(AND(Tech_SąnaudosSuv[[#This Row],[Technologinė operacija]] = $P$22, $W$22 > $R$2), $AJ$22, 0) -> 0 | K36: =SUM(Tech_SąnaudosSuv[[#This Row],[Degalai ir tepalai, Eur/ha]:[Kitos, Eur/ha]]) -> 4 | L36: =IF(Tech_SąnaudosSuv[[#This Row],[Žemės ūkio paslaugos pirkimas, Eur]]=0,SUMIFS($Y$11:$Y$22,_xlfn.ANCHORARRAY($P$11),Tech_SąnaudosSuv[[#This Row],[Technologinė operacija]:[Technologinė operacija]]),0) -> 30.68
A37: =ROW()-ROW(Tech_SąnaudosSuv[[#Headers],[Eil. Nr.]]) -> 27 | B37: Seklus purenimas prieš sėją (SPS) | C37: SPR | D37: Derliaus nuėmimas | E37: 1 | F37: =SUMIFS($AD$11:$AD$22,_xlfn.ANCHORARRAY($P$11),Tech_SąnaudosSuv[[#This Row],[Technologinė operacija]:[Technologinė operacija]])*Tech_SąnaudosSuv[[#This Row],[Operacijos skaičius]:[Operacijos skaičius]] -> 15.32 | G37: =SUMIFS($AC$11:$AC$22,_xlfn.ANCHORARRAY($P$11),Tech_SąnaudosSuv[[#This Row],[Technologinė operacija]:[Technologinė operacija]])*Tech_SąnaudosSuv[[#This Row],[Operacijos skaičius]:[Operacijos skaičius]] -> 26.52 | H37: =SUMIFS($AE$11:$AE$22,_xlfn.ANCHORARRAY($P$11),Tech_SąnaudosSuv[[#This Row],[Technologinė operacija]:[Technologinė operacija]])*Tech_SąnaudosSuv[[#This Row],[Operacijos skaičius]:[Operacijos skaičius]] -> 3.44 | I37: =SUMIFS($AG$11:$AG$22,_xlfn.ANCHORARRAY($P$11),Tech_SąnaudosSuv[[#This Row],[Technologinė operacija]:[Technologinė operacija]])*Tech_SąnaudosSuv[[#This Row],[Operacijos skaičius]:[Operacijos skaičius]] -> 6.66 | J37: =IF(AND(Tech_SąnaudosSuv[[#This Row],[Technologinė operacija]] = $P$22, $W$22 > $R$2), $AJ$22, 0) -> 0 | K37: =SUM(Tech_SąnaudosSuv[[#This Row],[Degalai ir tepalai, Eur/ha]:[Kitos, Eur/ha]]) -> 51.94 | L37: =IF(Tech_SąnaudosSuv[[#This Row],[Žemės ūkio paslaugos pirkimas, Eur]]=0,SUMIFS($Y$11:$Y$22,_xlfn.ANCHORARRAY($P$11),Tech_SąnaudosSuv[[#This Row],[Technologinė operacija]:[Technologinė operacija]]),0) -> 0
A38: =ROW()-ROW(Tech_SąnaudosSuv[[#Headers],[Eil. Nr.]]) -> 28 | B38: Seklus purenimas prieš sėją (SPS) | C38: SPS | D38: Seklus purenimas | E38: 1 | F38: =SUMIFS($AD$11:$AD$22,_xlfn.ANCHORARRAY($P$11),Tech_SąnaudosSuv[[#This Row],[Technologinė operacija]:[Technologinė operacija]])*Tech_SąnaudosSuv[[#This Row],[Operacijos skaičius]:[Operacijos skaičius]] -> 4.8 | G38: =SUMIFS($AC$11:$AC$22,_xlfn.ANCHORARRAY($P$11),Tech_SąnaudosSuv[[#This Row],[Technologinė operacija]:[Technologinė operacija]])*Tech_SąnaudosSuv[[#This Row],[Operacijos skaičius]:[Operacijos skaičius]] -> 5.48 | H38: =SUMIFS($AE$11:$AE$22,_xlfn.ANCHORARRAY($P$11),Tech_SąnaudosSuv[[#This Row],[Technologinė operacija]:[Technologinė operacija]])*Tech_SąnaudosSuv[[#This Row],[Operacijos skaičius]:[Operacijos skaičius]] -> 2.14 | I38: =SUMIFS($AG$11:$AG$22,_xlfn.ANCHORARRAY($P$11),Tech_SąnaudosSuv[[#This Row],[Technologinė operacija]:[Technologinė operacija]])*Tech_SąnaudosSuv[[#This Row],[Operacijos skaičius]:[Operacijos skaičius]] -> 1.18 | J38: =IF(AND(Tech_SąnaudosSuv[[#This Row],[Technologinė operacija]] = $P$22, $W$22 > $R$2), $AJ$22, 0) -> 0 | K38: =SUM(Tech_SąnaudosSuv[[#This Row],[Degalai ir tepalai, Eur/ha]:[Kitos, Eur/ha]]) -> 13.6 | L38: =IF(Tech_SąnaudosSuv[[#This Row],[Žemės ūkio paslaugos pirkimas, Eur]]=0,SUMIFS($Y$11:$Y$22,_xlfn.ANCHORARRAY($P$11),Tech_SąnaudosSuv[[#This Row],[Technologinė operacija]:[Technologinė operacija]]),0) -> 28.59
A39: =ROW()-ROW(Tech_SąnaudosSuv[[#Headers],[Eil. Nr.]]) -> 29 | B39: Seklus purenimas prieš sėją (SPS) | C39: SPS | D39: Pirminis kultivavimas | E39: 1 | F39: =SUMIFS($AD$11:$AD$22,_xlfn.ANCHORARRAY($P$11),Tech_SąnaudosSuv[[#This Row],[Technologinė operacija]:[Technologinė operacija]])*Tech_SąnaudosSuv[[#This Row],[Operacijos skaičius]:[Operacijos skaičius]] -> 7.35 | G39: =SUMIFS($AC$11:$AC$22,_xlfn.ANCHORARRAY($P$11),Tech_SąnaudosSuv[[#This Row],[Technologinė operacija]:[Technologinė operacija]])*Tech_SąnaudosSuv[[#This Row],[Operacijos skaičius]:[Operacijos skaičius]] -> 11.11 | H39: =SUMIFS($AE$11:$AE$22,_xlfn.ANCHORARRAY($P$11),Tech_SąnaudosSuv[[#This Row],[Technologinė operacija]:[Technologinė operacija]])*Tech_SąnaudosSuv[[#This Row],[Operacijos skaičius]:[Operacijos skaičius]] -> 2.82 | I39: =SUMIFS($AG$11:$AG$22,_xlfn.ANCHORARRAY($P$11),Tech_SąnaudosSuv[[#This Row],[Technologinė operacija]:[Technologinė operacija]])*Tech_SąnaudosSuv[[#This Row],[Operacijos skaičius]:[Operacijos skaičius]] -> 2.34 | J39: =IF(AND(Tech_SąnaudosSuv[[#This Row],[Technologinė operacija]] = $P$22, $W$22 > $R$2), $AJ$22, 0) -> 0 | K39: =SUM(Tech_SąnaudosSuv[[#This Row],[Degalai ir tepalai, Eur/ha]:[Kitos, Eur/ha]]) -> 23.62 | L39: =IF(Tech_SąnaudosSuv[[#This Row],[Žemės ūkio paslaugos pirkimas, Eur]]=0,SUMIFS($Y$11:$Y$22,_xlfn.ANCHORARRAY($P$11),Tech_SąnaudosSuv[[#This Row],[Technologinė operacija]:[Technologinė operacija]]),0) -> 53.99
A40: =ROW()-ROW(Tech_SąnaudosSuv[[#Headers],[Eil. Nr.]]) -> 30 | B40: Seklus purenimas prieš sėją (SPS) | C40: SPS | D40: Priešsėjinis kultivavimas | E40: 1 | F40: =SUMIFS($AD$11:$AD$22,_xlfn.ANCHORARRAY($P$11),Tech_SąnaudosSuv[[#This Row],[Technologinė operacija]:[Technologinė operacija]])*Tech_SąnaudosSuv[[#This Row],[Operacijos skaičius]:[Operacijos skaičius]] -> 4.8 | G40: =SUMIFS($AC$11:$AC$22,_xlfn.ANCHORARRAY($P$11),Tech_SąnaudosSuv[[#This Row],[Technologinė operacija]:[Technologinė operacija]])*Tech_SąnaudosSuv[[#This Row],[Operacijos skaičius]:[Operacijos skaičius]] -> 5.48 | H40: =SUMIFS($AE$11:$AE$22,_xlfn.ANCHORARRAY($P$11),Tech_SąnaudosSuv[[#This Row],[Technologinė operacija]:[Technologinė operacija]])*Tech_SąnaudosSuv[[#This Row],[Operacijos skaičius]:[Operacijos skaičius]] -> 2.14 | I40: =SUMIFS($AG$11:$AG$22,_xlfn.ANCHORARRAY($P$11),Tech_SąnaudosSuv[[#This Row],[Technologinė operacija]:[Technologinė operacija]])*Tech_SąnaudosSuv[[#This Row],[Operacijos skaičius]:[Operacijos skaičius]] -> 1.18 | J40: =IF(AND(Tech_SąnaudosSuv[[#This Row],[Technologinė operacija]] = $P$22, $W$22 > $R$2), $AJ$22, 0) -> 0 | K40: =SUM(Tech_SąnaudosSuv[[#This Row],[Degalai ir tepalai, Eur/ha]:[Kitos, Eur/ha]]) -> 13.6 | L40: =IF(Tech_SąnaudosSuv[[#This Row],[Žemės ūkio paslaugos pirkimas, Eur]]=0,SUMIFS($Y$11:$Y$22,_xlfn.ANCHORARRAY($P$11),Tech_SąnaudosSuv[[#This Row],[Technologinė operacija]:[Technologinė operacija]]),0) -> 28.59
A41: =ROW()-ROW(Tech_SąnaudosSuv[[#Headers],[Eil. Nr.]]) -> 31 | B41: Seklus purenimas prieš sėją (SPS) | C41: SPS | D41: Tręšimas | E41: 1 | F41: =SUMIFS($AD$11:$AD$22,_xlfn.ANCHORARRAY($P$11),Tech_SąnaudosSuv[[#This Row],[Technologinė operacija]:[Technologinė operacija]])*Tech_SąnaudosSuv[[#This Row],[Operacijos skaičius]:[Operacijos skaičius]] -> 0.53 | G41: =SUMIFS($AC$11:$AC$22,_xlfn.ANCHORARRAY($P$11),Tech_SąnaudosSuv[[#This Row],[Technologinė operacija]:[Technologinė operacija]])*Tech_SąnaudosSuv[[#This Row],[Operacijos skaičius]:[Operacijos skaičius]] -> 0.8 | H41: =SUMIFS($AE$11:$AE$22,_xlfn.ANCHORARRAY($P$11),Tech_SąnaudosSuv[[#This Row],[Technologinė operacija]:[Technologinė operacija]])*Tech_SąnaudosSuv[[#This Row],[Operacijos skaičius]:[Operacijos skaičius]] -> 0.55 | I41: =SUMIFS($AG$11:$AG$22,_xlfn.ANCHORARRAY($P$11),Tech_SąnaudosSuv[[#This Row],[Technologinė operacija]:[Technologinė operacija]])*Tech_SąnaudosSuv[[#This Row],[Operacijos skaičius]:[Operacijos skaičius]] -> 0.12 | J41: =IF(AND(Tech_SąnaudosSuv[[#This Row],[Technologinė operacija]] = $P$22, $W$22 > $R$2), $AJ$22, 0) -> 0 | K41: =SUM(Tech_SąnaudosSuv[[#This Row],[Degalai ir tepalai, Eur/ha]:[Kitos, Eur/ha]]) -> 2 | L41: =IF(Tech_SąnaudosSuv[[#This Row],[Žemės ūkio paslaugos pirkimas, Eur]]=0,SUMIFS($Y$11:$Y$22,_xlfn.ANCHORARRAY($P$11),Tech_SąnaudosSuv[[#This Row],[Technologinė operacija]:[Technologinė operacija]]),0) -> 30.68
A42: =ROW()-ROW(Tech_SąnaudosSuv[[#Headers],[Eil. Nr.]]) -> 32 | B42: Seklus purenimas prieš sėją (SPS) | C42: SPS | D42: Sėja | E42: 1 | F42: =SUMIFS($AD$11:$AD$22,_xlfn.ANCHORARRAY($P$11),Tech_SąnaudosSuv[[#This Row],[Technologinė operacija]:[Technologinė operacija]])*Tech_SąnaudosSuv[[#This Row],[Operacijos skaičius]:[Operacijos skaičius]] -> 2.7 | G42: =SUMIFS($AC$11:$AC$22,_xlfn.ANCHORARRAY($P$11),Tech_SąnaudosSuv[[#This Row],[Technologinė operacija]:[Technologinė operacija]])*Tech_SąnaudosSuv[[#This Row],[Operacijos skaičius]:[Operacijos skaičius]] -> 10.25 | H42: =SUMIFS($AE$11:$AE$22,_xlfn.ANCHORARRAY($P$11),Tech_SąnaudosSuv[[#This Row],[Technologinė operacija]:[Technologinė operacija]])*Tech_SąnaudosSuv[[#This Row],[Operacijos skaičius]:[Operacijos skaičius]] -> 2.37 | I42: =SUMIFS($AG$11:$AG$22,_xlfn.ANCHORARRAY($P$11),Tech_SąnaudosSuv[[#This Row],[Technologinė operacija]:[Technologinė operacija]])*Tech_SąnaudosSuv[[#This Row],[Operacijos skaičius]:[Operacijos skaičius]] -> 1.32 | J42: =IF(AND(Tech_SąnaudosSuv[[#This Row],[Technologinė operacija]] = $P$22, $W$22 > $R$2), $AJ$22, 0) -> 0 | K42: =SUM(Tech_SąnaudosSuv[[#This Row],[Degalai ir tepalai, Eur/ha]:[Kitos, Eur/ha]]) -> 16.64 | L42: =IF(Tech_SąnaudosSuv[[#This Row],[Žemės ūkio paslaugos pirkimas, Eur]]=0,SUMIFS($Y$11:$Y$22,_xlfn.ANCHORARRAY($P$11),Tech_SąnaudosSuv[[#This Row],[Technologinė operacija]:[Technologinė operacija]]),0) -> 115.04
A43: =ROW()-ROW(Tech_SąnaudosSuv[[#Headers],[Eil. Nr.]]) -> 33 | B43: Seklus purenimas prieš sėją (SPS) | C43: SPS | D43: Purškimas | E43: 4 | F43: =SUMIFS($AD$11:$AD$22,_xlfn.ANCHORARRAY($P$11),Tech_SąnaudosSuv[[#This Row],[Technologinė operacija]:[Technologinė operacija]])*Tech_SąnaudosSuv[[#This Row],[Operacijos skaičius]:[Operacijos skaičius]] -> 2.84 | G43: =SUMIFS($AC$11:$AC$22,_xlfn.ANCHORARRAY($P$11),Tech_SąnaudosSuv[[#This Row],[Technologinė operacija]:[Technologinė operacija]])*Tech_SąnaudosSuv[[#This Row],[Operacijos skaičius]:[Operacijos skaičius]] -> 4.24 | H43: =SUMIFS($AE$11:$AE$22,_xlfn.ANCHORARRAY($P$11),Tech_SąnaudosSuv[[#This Row],[Technologinė operacija]:[Technologinė operacija]])*Tech_SąnaudosSuv[[#This Row],[Operacijos skaičius]:[Operacijos skaičius]] -> 6.48 | I43: =SUMIFS($AG$11:$AG$22,_xlfn.ANCHORARRAY($P$11),Tech_SąnaudosSuv[[#This Row],[Technologinė operacija]:[Technologinė operacija]])*Tech_SąnaudosSuv[[#This Row],[Operacijos skaičius]:[Operacijos skaičius]] -> 1.92 | J43: =IF(AND(Tech_SąnaudosSuv[[#This Row],[Technologinė operacija]] = $P$22, $W$22 > $R$2), $AJ$22, 0) -> 0 | K43: =SUM(Tech_SąnaudosSuv[[#This Row],[Degalai ir tepalai, Eur/ha]:[Kitos, Eur/ha]]) -> 15.48 | L43: =IF(Tech_SąnaudosSuv[[#This Row],[Žemės ūkio paslaugos pirkimas, Eur]]=0,SUMIFS($Y$11:$Y$22,_xlfn.ANCHORARRAY($P$11),Tech_SąnaudosSuv[[#This Row],[Technologinė operacija]:[Technologinė operacija]]),0) -> 22
A44: =ROW()-ROW(Tech_SąnaudosSuv[[#Headers],[Eil. Nr.]]) -> 34 | B44: Seklus purenimas prieš sėją (SPS) | C44: SPS | D44: Tręšimas | E44: 2 | F44: =SUMIFS($AD$11:$AD$22,_xlfn.ANCHORARRAY($P$11),Tech_SąnaudosSuv[[#This Row],[Technologinė operacija]:[Technologinė operacija]])*Tech_SąnaudosSuv[[#This Row],[Operacijos skaičius]:[Operacijos skaičius]] -> 1.06 | G44: =SUMIFS($AC$11:$AC$22,_xlfn.ANCHORARRAY($P$11),Tech_SąnaudosSuv[[#This Row],[Technologinė operacija]:[Technologinė operacija]])*Tech_SąnaudosSuv[[#This Row],[Operacijos skaičius]:[Operacijos skaičius]] -> 1.6 | H44: =SUMIFS($AE$11:$AE$22,_xlfn.ANCHORARRAY($P$11),Tech_SąnaudosSuv[[#This Row],[Technologinė operacija]:[Technologinė operacija]])*Tech_SąnaudosSuv[[#This Row],[Operacijos skaičius]:[Operacijos skaičius]] -> 1.1 | I44: =SUMIFS($AG$11:$AG$22,_xlfn.ANCHORARRAY($P$11),Tech_SąnaudosSuv[[#This Row],[Technologinė operacija]:[Technologinė operacija]])*Tech_SąnaudosSuv[[#This Row],[Operacijos skaičius]:[Operacijos skaičius]] -> 0.24 | J44: =IF(AND(Tech_SąnaudosSuv[[#This Row],[Technologinė operacija]] = $P$22, $W$22 > $R$2), $AJ$22, 0) -> 0 | K44: =SUM(Tech_SąnaudosSuv[[#This Row],[Degalai ir tepalai, Eur/ha]:[Kitos, Eur/ha]]) -> 4 | L44: =IF(Tech_SąnaudosSuv[[#This Row],[Žemės ūkio paslaugos pirkimas, Eur]]=0,SUMIFS($Y$11:$Y$22,_xlfn.ANCHORARRAY($P$11),Tech_SąnaudosSuv[[#This Row],[Technologinė operacija]:[Technologinė operacija]]),0) -> 30.68
A45: =ROW()-ROW(Tech_SąnaudosSuv[[#Headers],[Eil. Nr.]]) -> 35 | B45: Seklus purenimas prieš sėją (SPS) | C45: SPS | D45: Derliaus nuėmimas | E45: 1 | F45: =SUMIFS($AD$11:$AD$22,_xlfn.ANCHORARRAY($P$11),Tech_SąnaudosSuv[[#This Row],[Technologinė operacija]:[Technologinė operacija]])*Tech_SąnaudosSuv[[#This Row],[Operacijos skaičius]:[Operacijos skaičius]] -> 15.32 | G45: =SUMIFS($AC$11:$AC$22,_xlfn.ANCHORARRAY($P$11),Tech_SąnaudosSuv[[#This Row],[Technologinė operacija]:[Technologinė operacija]])*Tech_SąnaudosSuv[[#This Row],[Operacijos skaičius]:[Operacijos skaičius]] -> 26.52 | H45: =SUMIFS($AE$11:$AE$22,_xlfn.ANCHORARRAY($P$11),Tech_SąnaudosSuv[[#This Row],[Technologinė operacija]:[Technologinė operacija]])*Tech_SąnaudosSuv[[#This Row],[Operacijos skaičius]:[Operacijos skaičius]] -> 3.44 | I45: =SUMIFS($AG$11:$AG$22,_xlfn.ANCHORARRAY($P$11),Tech_SąnaudosSuv[[#This Row],[Technologinė operacija]:[Technologinė operacija]])*Tech_SąnaudosSuv[[#This Row],[Operacijos skaičius]:[Operacijos skaičius]] -> 6.66 | J45: =IF(AND(Tech_SąnaudosSuv[[#This Row],[Technologinė operacija]] = $P$22, $W$22 > $R$2), $AJ$22, 0) -> 0 | K45: =SUM(Tech_SąnaudosSuv[[#This Row],[Degalai ir tepalai, Eur/ha]:[Kitos, Eur/ha]]) -> 51.94 | L45: =IF(Tech_SąnaudosSuv[[#This Row],[Žemės ūkio paslaugos pirkimas, Eur]]=0,SUMIFS($Y$11:$Y$22,_xlfn.ANCHORARRAY($P$11),Tech_SąnaudosSuv[[#This Row],[Technologinė operacija]:[Technologinė operacija]]),0) -> 0
A46: =ROW()-ROW(Tech_SąnaudosSuv[[#Headers],[Eil. Nr.]]) -> 36 | B46: Tarpiniai pasėliai (TP) | C46: TP | D46: Tarpinių pasėlių sėja | E46: 1 | F46: =SUMIFS($AD$11:$AD$22,_xlfn.ANCHORARRAY($P$11),Tech_SąnaudosSuv[[#This Row],[Technologinė operacija]:[Technologinė operacija]])*Tech_SąnaudosSuv[[#This Row],[Operacijos skaičius]:[Operacijos skaičius]] -> 0 | G46: =SUMIFS($AC$11:$AC$22,_xlfn.ANCHORARRAY($P$11),Tech_SąnaudosSuv[[#This Row],[Technologinė operacija]:[Technologinė operacija]])*Tech_SąnaudosSuv[[#This Row],[Operacijos skaičius]:[Operacijos skaičius]] -> 0 | H46: =SUMIFS($AE$11:$AE$22,_xlfn.ANCHORARRAY($P$11),Tech_SąnaudosSuv[[#This Row],[Technologinė operacija]:[Technologinė operacija]])*Tech_SąnaudosSuv[[#This Row],[Operacijos skaičius]:[Operacijos skaičius]] -> 0 | I46: =SUMIFS($AG$11:$AG$22,_xlfn.ANCHORARRAY($P$11),Tech_SąnaudosSuv[[#This Row],[Technologinė operacija]:[Technologinė operacija]])*Tech_SąnaudosSuv[[#This Row],[Operacijos skaičius]:[Operacijos skaičius]] -> 4.28 | J46: =IF(AND(Tech_SąnaudosSuv[[#This Row],[Technologinė operacija]] = $P$22, $W$22 > $R$2), $AJ$22, 0) -> 0 | K46: =SUM(Tech_SąnaudosSuv[[#This Row],[Degalai ir tepalai, Eur/ha]:[Kitos, Eur/ha]]) -> 4.28 | L46: =IF(Tech_SąnaudosSuv[[#This Row],[Žemės ūkio paslaugos pirkimas, Eur]]=0,SUMIFS($Y$11:$Y$22,_xlfn.ANCHORARRAY($P$11),Tech_SąnaudosSuv[[#This Row],[Technologinė operacija]:[Technologinė operacija]]),0) -> 0
A47: =ROW()-ROW(Tech_SąnaudosSuv[[#Headers],[Eil. Nr.]]) -> 37 | B47: Tarpiniai pasėliai (TP) | C47: TP | D47: Tręšimas | E47: 1 | F47: =SUMIFS($AD$11:$AD$22,_xlfn.ANCHORARRAY($P$11),Tech_SąnaudosSuv[[#This Row],[Technologinė operacija]:[Technologinė operacija]])*Tech_SąnaudosSuv[[#This Row],[Operacijos skaičius]:[Operacijos skaičius]] -> 0.53 | G47: =SUMIFS($AC$11:$AC$22,_xlfn.ANCHORARRAY($P$11),Tech_SąnaudosSuv[[#This Row],[Technologinė operacija]:[Technologinė operacija]])*Tech_SąnaudosSuv[[#This Row],[Operacijos skaičius]:[Operacijos skaičius]] -> 0.8 | H47: =SUMIFS($AE$11:$AE$22,_xlfn.ANCHORARRAY($P$11),Tech_SąnaudosSuv[[#This Row],[Technologinė operacija]:[Technologinė operacija]])*Tech_SąnaudosSuv[[#This Row],[Operacijos skaičius]:[Operacijos skaičius]] -> 0.55 | I47: =SUMIFS($AG$11:$AG$22,_xlfn.ANCHORARRAY($P$11),Tech_SąnaudosSuv[[#This Row],[Technologinė operacija]:[Technologinė operacija]])*Tech_SąnaudosSuv[[#This Row],[Operacijos skaičius]:[Operacijos skaičius]] -> 0.12 | J47: =IF(AND(Tech_SąnaudosSuv[[#This Row],[Technologinė operacija]] = $P$22, $W$22 > $R$2), $AJ$22, 0) -> 0 | K47: =SUM(Tech_SąnaudosSuv[[#This Row],[Degalai ir tepalai, Eur/ha]:[Kitos, Eur/ha]]) -> 2 | L47: =IF(Tech_SąnaudosSuv[[#This Row],[Žemės ūkio paslaugos pirkimas, Eur]]=0,SUMIFS($Y$11:$Y$22,_xlfn.ANCHORARRAY($P$11),Tech_SąnaudosSuv[[#This Row],[Technologinė operacija]:[Technologinė operacija]]),0) -> 30.68
A48: =ROW()-ROW(Tech_SąnaudosSuv[[#Headers],[Eil. Nr.]]) -> 38 | B48: Tarpiniai pasėliai (TP) | C48: TP | D48: Purškimas | E48: 1 | F48: =SUMIFS($AD$11:$AD$22,_xlfn.ANCHORARRAY($P$11),Tech_SąnaudosSuv[[#This Row],[Technologinė operacija]:[Technologinė operacija]])*Tech_SąnaudosSuv[[#This Row],[Operacijos skaičius]:[Operacijos skaičius]] -> 0.71 | G48: =SUMIFS($AC$11:$AC$22,_xlfn.ANCHORARRAY($P$11),Tech_SąnaudosSuv[[#This Row],[Technologinė operacija]:[Technologinė operacija]])*Tech_SąnaudosSuv[[#This Row],[Operacijos skaičius]:[Operacijos skaičius]] -> 1.06 | H48: =SUMIFS($AE$11:$AE$22,_xlfn.ANCHORARRAY($P$11),Tech_SąnaudosSuv[[#This Row],[Technologinė operacija]:[Technologinė operacija]])*Tech_SąnaudosSuv[[#This Row],[Operacijos skaičius]:[Operacijos skaičius]] -> 1.62 | I48: =SUMIFS($AG$11:$AG$22,_xlfn.ANCHORARRAY($P$11),Tech_SąnaudosSuv[[#This Row],[Technologinė operacija]:[Technologinė operacija]])*Tech_SąnaudosSuv[[#This Row],[Operacijos skaičius]:[Operacijos skaičius]] -> 0.48 | J48: =IF(AND(Tech_SąnaudosSuv[[#This Row],[Technologinė operacija]] = $P$22, $W$22 > $R$2), $AJ$22, 0) -> 0 | K48: =SUM(Tech_SąnaudosSuv[[#This Row],[Degalai ir tepalai, Eur/ha]:[Kitos, Eur/ha]]) -> 3.87 | L48: =IF(Tech_SąnaudosSuv[[#This Row],[Žemės ūkio paslaugos pirkimas, Eur]]=0,SUMIFS($Y$11:$Y$22,_xlfn.ANCHORARRAY($P$11),Tech_SąnaudosSuv[[#This Row],[Technologinė operacija]:[Technologinė operacija]]),0) -> 22
A49: =ROW()-ROW(Tech_SąnaudosSuv[[#Headers],[Eil. Nr.]]) -> 39 | B49: Tarpiniai pasėliai (TP) | C49: TP | D49: Tiesioginė sėja | E49: 1 | F49: =SUMIFS($AD$11:$AD$22,_xlfn.ANCHORARRAY($P$11),Tech_SąnaudosSuv[[#This Row],[Technologinė operacija]:[Technologinė operacija]])*Tech_SąnaudosSuv[[#This Row],[Operacijos skaičius]:[Operacijos skaičius]] -> 12.98 | G49: =SUMIFS($AC$11:$AC$22,_xlfn.ANCHORARRAY($P$11),Tech_SąnaudosSuv[[#This Row],[Technologinė operacija]:[Technologinė operacija]])*Tech_SąnaudosSuv[[#This Row],[Operacijos skaičius]:[Operacijos skaičius]] -> 22.85 | H49: =SUMIFS($AE$11:$AE$22,_xlfn.ANCHORARRAY($P$11),Tech_SąnaudosSuv[[#This Row],[Technologinė operacija]:[Technologinė operacija]])*Tech_SąnaudosSuv[[#This Row],[Operacijos skaičius]:[Operacijos skaičius]] -> 3.45 | I49: =SUMIFS($AG$11:$AG$22,_xlfn.ANCHORARRAY($P$11),Tech_SąnaudosSuv[[#This Row],[Technologinė operacija]:[Technologinė operacija]])*Tech_SąnaudosSuv[[#This Row],[Operacijos skaičius]:[Operacijos skaičius]] -> 6.96 | J49: =IF(AND(Tech_SąnaudosSuv[[#This Row],[Technologinė operacija]] = $P$22, $W$22 > $R$2), $AJ$22, 0) -> 0 | K49: =SUM(Tech_SąnaudosSuv[[#This Row],[Degalai ir tepalai, Eur/ha]:[Kitos, Eur/ha]]) -> 46.24 | L49: =IF(Tech_SąnaudosSuv[[#This Row],[Žemės ūkio paslaugos pirkimas, Eur]]=0,SUMIFS($Y$11:$Y$22,_xlfn.ANCHORARRAY($P$11),Tech_SąnaudosSuv[[#This Row],[Technologinė operacija]:[Technologinė operacija]]),0) -> 140.35
A50: =ROW()-ROW(Tech_SąnaudosSuv[[#Headers],[Eil. Nr.]]) -> 40 | B50: Tarpiniai pasėliai (TP) | C50: TP | D50: Purškimas | E50: 4 | F50: =SUMIFS($AD$11:$AD$22,_xlfn.ANCHORARRAY($P$11),Tech_SąnaudosSuv[[#This Row],[Technologinė operacija]:[Technologinė operacija]])*Tech_SąnaudosSuv[[#This Row],[Operacijos skaičius]:[Operacijos skaičius]] -> 2.84 | G50: =SUMIFS($AC$11:$AC$22,_xlfn.ANCHORARRAY($P$11),Tech_SąnaudosSuv[[#This Row],[Technologinė operacija]:[Technologinė operacija]])*Tech_SąnaudosSuv[[#This Row],[Operacijos skaičius]:[Operacijos skaičius]] -> 4.24 | H50: =SUMIFS($AE$11:$AE$22,_xlfn.ANCHORARRAY($P$11),Tech_SąnaudosSuv[[#This Row],[Technologinė operacija]:[Technologinė operacija]])*Tech_SąnaudosSuv[[#This Row],[Operacijos skaičius]:[Operacijos skaičius]] -> 6.48 | I50: =SUMIFS($AG$11:$AG$22,_xlfn.ANCHORARRAY($P$11),Tech_SąnaudosSuv[[#This Row],[Technologinė operacija]:[Technologinė operacija]])*Tech_SąnaudosSuv[[#This Row],[Operacijos skaičius]:[Operacijos skaičius]] -> 1.92 | J50: =IF(AND(Tech_SąnaudosSuv[[#This Row],[Technologinė operacija]] = $P$22, $W$22 > $R$2), $AJ$22, 0) -> 0 | K50: =SUM(Tech_SąnaudosSuv[[#This Row],[Degalai ir tepalai, Eur/ha]:[Kitos, Eur/ha]]) -> 15.48 | L50: =IF(Tech_SąnaudosSuv[[#This Row],[Žemės ūkio paslaugos pirkimas, Eur]]=0,SUMIFS($Y$11:$Y$22,_xlfn.ANCHORARRAY($P$11),Tech_SąnaudosSuv[[#This Row],[Technologinė operacija]:[Technologinė operacija]]),0) -> 22
A51: =ROW()-ROW(Tech_SąnaudosSuv[[#Headers],[Eil. Nr.]]) -> 41 | B51: Tarpiniai pasėliai (TP) | C51: TP | D51: Tręšimas | E51: 2 | F51: =SUMIFS($AD$11:$AD$22,_xlfn.ANCHORARRAY($P$11),Tech_SąnaudosSuv[[#This Row],[Technologinė operacija]:[Technologinė operacija]])*Tech_SąnaudosSuv[[#This Row],[Operacijos skaičius]:[Operacijos skaičius]] -> 1.06 | G51: =SUMIFS($AC$11:$AC$22,_xlfn.ANCHORARRAY($P$11),Tech_SąnaudosSuv[[#This Row],[Technologinė operacija]:[Technologinė operacija]])*Tech_SąnaudosSuv[[#This Row],[Operacijos skaičius]:[Operacijos skaičius]] -> 1.6 | H51: =SUMIFS($AE$11:$AE$22,_xlfn.ANCHORARRAY($P$11),Tech_SąnaudosSuv[[#This Row],[Technologinė operacija]:[Technologinė operacija]])*Tech_SąnaudosSuv[[#This Row],[Operacijos skaičius]:[Operacijos skaičius]] -> 1.1 | I51: =SUMIFS($AG$11:$AG$22,_xlfn.ANCHORARRAY($P$11),Tech_SąnaudosSuv[[#This Row],[Technologinė operacija]:[Technologinė operacija]])*Tech_SąnaudosSuv[[#This Row],[Operacijos skaičius]:[Operacijos skaičius]] -> 0.24 | J51: =IF(AND(Tech_SąnaudosSuv[[#This Row],[Technologinė operacija]] = $P$22, $W$22 > $R$2), $AJ$22, 0) -> 0 | K51: =SUM(Tech_SąnaudosSuv[[#This Row],[Degalai ir tepalai, Eur/ha]:[Kitos, Eur/ha]]) -> 4 | L51: =IF(Tech_SąnaudosSuv[[#This Row],[Žemės ūkio paslaugos pirkimas, Eur]]=0,SUMIFS($Y$11:$Y$22,_xlfn.ANCHORARRAY($P$11),Tech_SąnaudosSuv[[#This Row],[Technologinė operacija]:[Technologinė operacija]]),0) -> 30.68
A52: =ROW()-ROW(Tech_SąnaudosSuv[[#Headers],[Eil. Nr.]]) -> 42 | B52: Tarpiniai pasėliai (TP) | C52: TP | D52: Derliaus nuėmimas | E52: 1 | F52: =SUMIFS($AD$11:$AD$22,_xlfn.ANCHORARRAY($P$11),Tech_SąnaudosSuv[[#This Row],[Technologinė operacija]:[Technologinė operacija]])*Tech_SąnaudosSuv[[#This Row],[Operacijos skaičius]:[Operacijos skaičius]] -> 15.32 | G52: =SUMIFS($AC$11:$AC$22,_xlfn.ANCHORARRAY($P$11),Tech_SąnaudosSuv[[#This Row],[Technologinė operacija]:[Technologinė operacija]])*Tech_SąnaudosSuv[[#This Row],[Operacijos skaičius]:[Operacijos skaičius]] -> 26.52 | H52: =SUMIFS($AE$11:$AE$22,_xlfn.ANCHORARRAY($P$11),Tech_SąnaudosSuv[[#This Row],[Technologinė operacija]:[Technologinė operacija]])*Tech_SąnaudosSuv[[#This Row],[Operacijos skaičius]:[Operacijos skaičius]] -> 3.44 | I52: =SUMIFS($AG$11:$AG$22,_xlfn.ANCHORARRAY($P$11),Tech_SąnaudosSuv[[#This Row],[Technologinė operacija]:[Technologinė operacija]])*Tech_SąnaudosSuv[[#This Row],[Operacijos skaičius]:[Operacijos skaičius]] -> 6.66 | J52: =IF(AND(Tech_SąnaudosSuv[[#This Row],[Technologinė operacija]] = $P$22, $W$22 > $R$2), $AJ$22, 0) -> 0 | K52: =SUM(Tech_SąnaudosSuv[[#This Row],[Degalai ir tepalai, Eur/ha]:[Kitos, Eur/ha]]) -> 51.94 | L52: =IF(Tech_SąnaudosSuv[[#This Row],[Žemės ūkio paslaugos pirkimas, Eur]]=0,SUMIFS($Y$11:$Y$22,_xlfn.ANCHORARRAY($P$11),Tech_SąnaudosSuv[[#This Row],[Technologinė operacija]:[Technologinė operacija]]),0) -> 0
A53: =ROW()-ROW(Tech_SąnaudosSuv[[#Headers],[Eil. Nr.]]) -> 43 | B53: Tiesioginė sėja (TS) | C53: TS | D53: Purškimas | E53: 1 | F53: =SUMIFS($AD$11:$AD$22,_xlfn.ANCHORARRAY($P$11),Tech_SąnaudosSuv[[#This Row],[Technologinė operacija]:[Technologinė operacija]])*Tech_SąnaudosSuv[[#This Row],[Operacijos skaičius]:[Operacijos skaičius]] -> 0.71 | G53: =SUMIFS($AC$11:$AC$22,_xlfn.ANCHORARRAY($P$11),Tech_SąnaudosSuv[[#This Row],[Technologinė operacija]:[Technologinė operacija]])*Tech_SąnaudosSuv[[#This Row],[Operacijos skaičius]:[Operacijos skaičius]] -> 1.06 | H53: =SUMIFS($AE$11:$AE$22,_xlfn.ANCHORARRAY($P$11),Tech_SąnaudosSuv[[#This Row],[Technologinė operacija]:[Technologinė operacija]])*Tech_SąnaudosSuv[[#This Row],[Operacijos skaičius]:[Operacijos skaičius]] -> 1.62 | I53: =SUMIFS($AG$11:$AG$22,_xlfn.ANCHORARRAY($P$11),Tech_SąnaudosSuv[[#This Row],[Technologinė operacija]:[Technologinė operacija]])*Tech_SąnaudosSuv[[#This Row],[Operacijos skaičius]:[Operacijos skaičius]] -> 0.48 | J53: =IF(AND(Tech_SąnaudosSuv[[#This Row],[Technologinė operacija]] = $P$22, $W$22 > $R$2), $AJ$22, 0) -> 0 | K53: =SUM(Tech_SąnaudosSuv[[#This Row],[Degalai ir tepalai, Eur/ha]:[Kitos, Eur/ha]]) -> 3.87 | L53: =IF(Tech_SąnaudosSuv[[#This Row],[Žemės ūkio paslaugos pirkimas, Eur]]=0,SUMIFS($Y$11:$Y$22,_xlfn.ANCHORARRAY($P$11),Tech_SąnaudosSuv[[#This Row],[Technologinė operacija]:[Technologinė operacija]]),0) -> 22
A54: =ROW()-ROW(Tech_SąnaudosSuv[[#Headers],[Eil. Nr.]]) -> 44 | B54: Tiesioginė sėja (TS) | C54: TS | D54: Tręšimas | E54: 1 | F54: =SUMIFS($AD$11:$AD$22,_xlfn.ANCHORARRAY($P$11),Tech_SąnaudosSuv[[#This Row],[Technologinė operacija]:[Technologinė operacija]])*Tech_SąnaudosSuv[[#This Row],[Operacijos skaičius]:[Operacijos skaičius]] -> 0.53 | G54: =SUMIFS($AC$11:$AC$22,_xlfn.ANCHORARRAY($P$11),Tech_SąnaudosSuv[[#This Row],[Technologinė operacija]:[Technologinė operacija]])*Tech_SąnaudosSuv[[#This Row],[Operacijos skaičius]:[Operacijos skaičius]] -> 0.8 | H54: =SUMIFS($AE$11:$AE$22,_xlfn.ANCHORARRAY($P$11),Tech_SąnaudosSuv[[#This Row],[Technologinė operacija]:[Technologinė operacija]])*Tech_SąnaudosSuv[[#This Row],[Operacijos skaičius]:[Operacijos skaičius]] -> 0.55 | I54: =SUMIFS($AG$11:$AG$22,_xlfn.ANCHORARRAY($P$11),Tech_SąnaudosSuv[[#This Row],[Technologinė operacija]:[Technologinė operacija]])*Tech_SąnaudosSuv[[#This Row],[Operacijos skaičius]:[Operacijos skaičius]] -> 0.12 | J54: =IF(AND(Tech_SąnaudosSuv[[#This Row],[Technologinė operacija]] = $P$22, $W$22 > $R$2), $AJ$22, 0) -> 0 | K54: =SUM(Tech_SąnaudosSuv[[#This Row],[Degalai ir tepalai, Eur/ha]:[Kitos, Eur/ha]]) -> 2 | L54: =IF(Tech_SąnaudosSuv[[#This Row],[Žemės ūkio paslaugos pirkimas, Eur]]=0,SUMIFS($Y$11:$Y$22,_xlfn.ANCHORARRAY($P$11),Tech_SąnaudosSuv[[#This Row],[Technologinė operacija]:[Technologinė operacija]]),0) -> 30.68
A55: =ROW()-ROW(Tech_SąnaudosSuv[[#Headers],[Eil. Nr.]]) -> 45 | B55: Tiesioginė sėja (TS) | C55: TS | D55: Tiesioginė sėja | E55: 1 | F55: =SUMIFS($AD$11:$AD$22,_xlfn.ANCHORARRAY($P$11),Tech_SąnaudosSuv[[#This Row],[Technologinė operacija]:[Technologinė operacija]])*Tech_SąnaudosSuv[[#This Row],[Operacijos skaičius]:[Operacijos skaičius]] -> 12.98 | G55: =SUMIFS($AC$11:$AC$22,_xlfn.ANCHORARRAY($P$11),Tech_SąnaudosSuv[[#This Row],[Technologinė operacija]:[Technologinė operacija]])*Tech_SąnaudosSuv[[#This Row],[Operacijos skaičius]:[Operacijos skaičius]] -> 22.85 | H55: =SUMIFS($AE$11:$AE$22,_xlfn.ANCHORARRAY($P$11),Tech_SąnaudosSuv[[#This Row],[Technologinė operacija]:[Technologinė operacija]])*Tech_SąnaudosSuv[[#This Row],[Operacijos skaičius]:[Operacijos skaičius]] -> 3.45 | I55: =SUMIFS($AG$11:$AG$22,_xlfn.ANCHORARRAY($P$11),Tech_SąnaudosSuv[[#This Row],[Technologinė operacija]:[Technologinė operacija]])*Tech_SąnaudosSuv[[#This Row],[Operacijos skaičius]:[Operacijos skaičius]] -> 6.96 | J55: =IF(AND(Tech_SąnaudosSuv[[#This Row],[Technologinė operacija]] = $P$22, $W$22 > $R$2), $AJ$22, 0) -> 0 | K55: =SUM(Tech_SąnaudosSuv[[#This Row],[Degalai ir tepalai, Eur/ha]:[Kitos, Eur/ha]]) -> 46.24 | L55: =IF(Tech_SąnaudosSuv[[#This Row],[Žemės ūkio paslaugos pirkimas, Eur]]=0,SUMIFS($Y$11:$Y$22,_xlfn.ANCHORARRAY($P$11),Tech_SąnaudosSuv[[#This Row],[Technologinė operacija]:[Technologinė operacija]]),0) -> 140.35
A56: =ROW()-ROW(Tech_SąnaudosSuv[[#Headers],[Eil. Nr.]]) -> 46 | B56: Tiesioginė sėja (TS) | C56: TS | D56: Purškimas | E56: 4 | F56: =SUMIFS($AD$11:$AD$22,_xlfn.ANCHORARRAY($P$11),Tech_SąnaudosSuv[[#This Row],[Technologinė operacija]:[Technologinė operacija]])*Tech_SąnaudosSuv[[#This Row],[Operacijos skaičius]:[Operacijos skaičius]] -> 2.84 | G56: =SUMIFS($AC$11:$AC$22,_xlfn.ANCHORARRAY($P$11),Tech_SąnaudosSuv[[#This Row],[Technologinė operacija]:[Technologinė operacija]])*Tech_SąnaudosSuv[[#This Row],[Operacijos skaičius]:[Operacijos skaičius]] -> 4.24 | H56: =SUMIFS($AE$11:$AE$22,_xlfn.ANCHORARRAY($P$11),Tech_SąnaudosSuv[[#This Row],[Technologinė operacija]:[Technologinė operacija]])*Tech_SąnaudosSuv[[#This Row],[Operacijos skaičius]:[Operacijos skaičius]] -> 6.48 | I56: =SUMIFS($AG$11:$AG$22,_xlfn.ANCHORARRAY($P$11),Tech_SąnaudosSuv[[#This Row],[Technologinė operacija]:[Technologinė operacija]])*Tech_SąnaudosSuv[[#This Row],[Operacijos skaičius]:[Operacijos skaičius]] -> 1.92 | J56: =IF(AND(Tech_SąnaudosSuv[[#This Row],[Technologinė operacija]] = $P$22, $W$22 > $R$2), $AJ$22, 0) -> 0 | K56: =SUM(Tech_SąnaudosSuv[[#This Row],[Degalai ir tepalai, Eur/ha]:[Kitos, Eur/ha]]) -> 15.48 | L56: =IF(Tech_SąnaudosSuv[[#This Row],[Žemės ūkio paslaugos pirkimas, Eur]]=0,SUMIFS($Y$11:$Y$22,_xlfn.ANCHORARRAY($P$11),Tech_SąnaudosSuv[[#This Row],[Technologinė operacija]:[Technologinė operacija]]),0) -> 22
A57: =ROW()-ROW(Tech_SąnaudosSuv[[#Headers],[Eil. Nr.]]) -> 47 | B57: Tiesioginė sėja (TS) | C57: TS | D57: Tręšimas | E57: 2 | F57: =SUMIFS($AD$11:$AD$22,_xlfn.ANCHORARRAY($P$11),Tech_SąnaudosSuv[[#This Row],[Technologinė operacija]:[Technologinė operacija]])*Tech_SąnaudosSuv[[#This Row],[Operacijos skaičius]:[Operacijos skaičius]] -> 1.06 | G57: =SUMIFS($AC$11:$AC$22,_xlfn.ANCHORARRAY($P$11),Tech_SąnaudosSuv[[#This Row],[Technologinė operacija]:[Technologinė operacija]])*Tech_SąnaudosSuv[[#This Row],[Operacijos skaičius]:[Operacijos skaičius]] -> 1.6 | H57: =SUMIFS($AE$11:$AE$22,_xlfn.ANCHORARRAY($P$11),Tech_SąnaudosSuv[[#This Row],[Technologinė operacija]:[Technologinė operacija]])*Tech_SąnaudosSuv[[#This Row],[Operacijos skaičius]:[Operacijos skaičius]] -> 1.1 | I57: =SUMIFS($AG$11:$AG$22,_xlfn.ANCHORARRAY($P$11),Tech_SąnaudosSuv[[#This Row],[Technologinė operacija]:[Technologinė operacija]])*Tech_SąnaudosSuv[[#This Row],[Operacijos skaičius]:[Operacijos skaičius]] -> 0.24 | J57: =IF(AND(Tech_SąnaudosSuv[[#This Row],[Technologinė operacija]] = $P$22, $W$22 > $R$2), $AJ$22, 0) -> 0 | K57: =SUM(Tech_SąnaudosSuv[[#This Row],[Degalai ir tepalai, Eur/ha]:[Kitos, Eur/ha]]) -> 4 | L57: =IF(Tech_SąnaudosSuv[[#This Row],[Žemės ūkio paslaugos pirkimas, Eur]]=0,SUMIFS($Y$11:$Y$22,_xlfn.ANCHORARRAY($P$11),Tech_SąnaudosSuv[[#This Row],[Technologinė operacija]:[Technologinė operacija]]),0) -> 30.68
A58: =ROW()-ROW(Tech_SąnaudosSuv[[#Headers],[Eil. Nr.]]) -> 48 | B58: Tiesioginė sėja (TS) | C58: TS | D58: Derliaus nuėmimas | E58: 1 | F58: =SUMIFS($AD$11:$AD$22,_xlfn.ANCHORARRAY($P$11),Tech_SąnaudosSuv[[#This Row],[Technologinė operacija]:[Technologinė operacija]])*Tech_SąnaudosSuv[[#This Row],[Operacijos skaičius]:[Operacijos skaičius]] -> 15.32 | G58: =SUMIFS($AC$11:$AC$22,_xlfn.ANCHORARRAY($P$11),Tech_SąnaudosSuv[[#This Row],[Technologinė operacija]:[Technologinė operacija]])*Tech_SąnaudosSuv[[#This Row],[Operacijos skaičius]:[Operacijos skaičius]] -> 26.52 | H58: =SUMIFS($AE$11:$AE$22,_xlfn.ANCHORARRAY($P$11),Tech_SąnaudosSuv[[#This Row],[Technologinė operacija]:[Technologinė operacija]])*Tech_SąnaudosSuv[[#This Row],[Operacijos skaičius]:[Operacijos skaičius]] -> 3.44 | I58: =SUMIFS($AG$11:$AG$22,_xlfn.ANCHORARRAY($P$11),Tech_SąnaudosSuv[[#This Row],[Technologinė operacija]:[Technologinė operacija]])*Tech_SąnaudosSuv[[#This Row],[Operacijos skaičius]:[Operacijos skaičius]] -> 6.66 | J58: =IF(AND(Tech_SąnaudosSuv[[#This Row],[Technologinė operacija]] = $P$22, $W$22 > $R$2), $AJ$22, 0) -> 0 | K58: =SUM(Tech_SąnaudosSuv[[#This Row],[Degalai ir tepalai, Eur/ha]:[Kitos, Eur/ha]]) -> 51.94 | L58: =IF(Tech_SąnaudosSuv[[#This Row],[Žemės ūkio paslaugos pirkimas, Eur]]=0,SUMIFS($Y$11:$Y$22,_xlfn.ANCHORARRAY($P$11),Tech_SąnaudosSuv[[#This Row],[Technologinė operacija]:[Technologinė operacija]]),0) -> 0

Sheet DerlingBandRez (hidden)
A10: Eil. Nr. | B10: Metai | C10: Žemės ūkio augalas | D10: Derlingumas | E10: Technologija
A11: =ROW()-ROW(DerlingBandRez[[#Headers],[Eil. Nr.]]) -> 1 | B11: 2000 | C11: Vasariniai miežiai | D11: 2.3 | E11: Šiaudai nepaliekami (R)
A12: =ROW()-ROW(DerlingBandRez[[#Headers],[Eil. Nr.]]) -> 2 | B12: 2000 | C12: Vasariniai miežiai | D12: 2.3 | E12: Šiaudai paliekami lauke (S)
A13: =ROW()-ROW(DerlingBandRez[[#Headers],[Eil. Nr.]]) -> 3 | B13: 2000 | C13: Vasariniai miežiai | D13: 2.5 | E13: Gilus arimas (GA)
A14: =ROW()-ROW(DerlingBandRez[[#Headers],[Eil. Nr.]]) -> 4 | B14: 2000 | C14: Vasariniai miežiai | D14: 2.4 | E14: Seklus arimas (SA)
A15: =ROW()-ROW(DerlingBandRez[[#Headers],[Eil. Nr.]]) -> 5 | B15: 2000 | C15: Vasariniai miežiai | D15: 2.3 | E15: Seklus purenimas rudenį (SPR)
A16: =ROW()-ROW(DerlingBandRez[[#Headers],[Eil. Nr.]]) -> 6 | B16: 2000 | C16: Vasariniai miežiai | D16: 2.3 | E16: Seklus purenimas prieš sėją (SPS)
A17: =ROW()-ROW(DerlingBandRez[[#Headers],[Eil. Nr.]]) -> 7 | B17: 2000 | C17: Vasariniai miežiai | D17: 2.1 | E17: Tarpiniai pasėliai (TP)
A18: =ROW()-ROW(DerlingBandRez[[#Headers],[Eil. Nr.]]) -> 8 | B18: 2000 | C18: Vasariniai miežiai | D18: 2.1 | E18: Tiesioginė sėja (TS)
A19: =ROW()-ROW(DerlingBandRez[[#Headers],[Eil. Nr.]]) -> 9 | B19: 2001 | C19: Vasariniai miežiai | D19: 4 | E19: Šiaudai nepaliekami (R)
A20: =ROW()-ROW(DerlingBandRez[[#Headers],[Eil. Nr.]]) -> 10 | B20: 2001 | C20: Vasariniai miežiai | D20: 4.2 | E20: Šiaudai paliekami lauke (S)
A21: =ROW()-ROW(DerlingBandRez[[#Headers],[Eil. Nr.]]) -> 11 | B21: 2001 | C21: Vasariniai miežiai | D21: 4.4 | E21: Gilus arimas (GA)
A22: =ROW()-ROW(DerlingBandRez[[#Headers],[Eil. Nr.]]) -> 12 | B22: 2001 | C22: Vasariniai miežiai | D22: 4.4 | E22: Seklus arimas (SA)
A23: =ROW()-ROW(DerlingBandRez[[#Headers],[Eil. Nr.]]) -> 13 | B23: 2001 | C23: Vasariniai miežiai | D23: 4.4 | E23: Seklus purenimas rudenį (SPR)
A24: =ROW()-ROW(DerlingBandRez[[#Headers],[Eil. Nr.]]) -> 14 | B24: 2001 | C24: Vasariniai miežiai | D24: 3.9 | E24: Seklus purenimas prieš sėją (SPS)
A25: =ROW()-ROW(DerlingBandRez[[#Headers],[Eil. Nr.]]) -> 15 | B25: 2001 | C25: Vasariniai miežiai | D25: 3.7 | E25: Tarpiniai pasėliai (TP)
A26: =ROW()-ROW(DerlingBandRez[[#Headers],[Eil. Nr.]]) -> 16 | B26: 2001 | C26: Vasariniai miežiai | D26: 3.7 | E26: Tiesioginė sėja (TS)
A27: =ROW()-ROW(DerlingBandRez[[#Headers],[Eil. Nr.]]) -> 17 | B27: 2002 | C27: Vasariniai miežiai | D27: 5 | E27: Šiaudai nepaliekami (R)
A28: =ROW()-ROW(DerlingBandRez[[#Headers],[Eil. Nr.]]) -> 18 | B28: 2002 | C28: Vasariniai miežiai | D28: 5.1 | E28: Šiaudai paliekami lauke (S)
A29: =ROW()-ROW(DerlingBandRez[[#Headers],[Eil. Nr.]]) -> 19 | B29: 2002 | C29: Vasariniai miežiai | D29: 5.4 | E29: Gilus arimas (GA)
A30: =ROW()-ROW(DerlingBandRez[[#Headers],[Eil. Nr.]]) -> 20 | B30: 2002 | C30: Vasariniai miežiai | D30: 4.9 | E30: Seklus arimas (SA)
A31: =ROW()-ROW(DerlingBandRez[[#Headers],[Eil. Nr.]]) -> 21 | B31: 2002 | C31: Vasariniai miežiai | D31: 5.2 | E31: Seklus purenimas rudenį (SPR)
A32: =ROW()-ROW(DerlingBandRez[[#Headers],[Eil. Nr.]]) -> 22 | B32: 2002 | C32: Vasariniai miežiai | D32: 5.2 | E32: Seklus purenimas prieš sėją (SPS)
A33: =ROW()-ROW(DerlingBandRez[[#Headers],[Eil. Nr.]]) -> 23 | B33: 2002 | C33: Vasariniai miežiai | D33: 4.8 | E33: Tarpiniai pasėliai (TP)
A34: =ROW()-ROW(DerlingBandRez[[#Headers],[Eil. Nr.]]) -> 24 | B34: 2002 | C34: Vasariniai miežiai | D34: 4.9 | E34: Tiesioginė sėja (TS)
A35: =ROW()-ROW(DerlingBandRez[[#Headers],[Eil. Nr.]]) -> 25 | B35: 2003 | C35: Vasariniai miežiai | D35: 4.1 | E35: Šiaudai nepaliekami (R)
A36: =ROW()-ROW(DerlingBandRez[[#Headers],[Eil. Nr.]]) -> 26 | B36: 2003 | C36: Vasariniai miežiai | D36: 4.4 | E36: Šiaudai paliekami lauke (S)
A37: =ROW()-ROW(DerlingBandRez[[#Headers],[Eil. Nr.]]) -> 27 | B37: 2003 | C37: Vasariniai miežiai | D37: 4.5 | E37: Gilus arimas (GA)
A38: =ROW()-ROW(DerlingBandRez[[#Headers],[Eil. Nr.]]) -> 28 | B38: 2003 | C38: Vasariniai miežiai | D38: 4.3 | E38: Seklus arimas (SA)
A39: =ROW()-ROW(DerlingBandRez[[#Headers],[Eil. Nr.]]) -> 29 | B39: 2003 | C39: Vasariniai miežiai | D39: 4.1 | E39: Seklus purenimas rudenį (SPR)
A40: =ROW()-ROW(DerlingBandRez[[#Headers],[Eil. Nr.]]) -> 30 | B40: 2003 | C40: Vasariniai miežiai | D40: 4.2 | E40: Seklus purenimas prieš sėją (SPS)
A41: =ROW()-ROW(DerlingBandRez[[#Headers],[Eil. Nr.]]) -> 31 | B41: 2003 | C41: Vasariniai miežiai | D41: 4.3 | E41: Tarpiniai pasėliai (TP)
A42: =ROW()-ROW(DerlingBandRez[[#Headers],[Eil. Nr.]]) -> 32 | B42: 2003 | C42: Vasariniai miežiai | D42: 4.1 | E42: Tiesioginė sėja (TS)
A43: =ROW()-ROW(DerlingBandRez[[#Headers],[Eil. Nr.]]) -> 33 | B43: 2004 | C43: Vasariniai rapsai | D43: 2.4 | E43: Šiaudai nepaliekami (R)
A44: =ROW()-ROW(DerlingBandRez[[#Headers],[Eil. Nr.]]) -> 34 | B44: 2004 | C44: Vasariniai rapsai | D44: 2.3 | E44: Šiaudai paliekami lauke (S)
A45: =ROW()-ROW(DerlingBandRez[[#Headers],[Eil. Nr.]]) -> 35 | B45: 2004 | C45: Vasariniai rapsai | D45: 2.4 | E45: Gilus arimas (GA)
A46: =ROW()-ROW(DerlingBandRez[[#Headers],[Eil. Nr.]]) -> 36 | B46: 2004 | C46: Vasariniai rapsai | D46: 2.3 | E46: Seklus arimas (SA)
A47: =ROW()-ROW(DerlingBandRez[[#Headers],[Eil. Nr.]]) -> 37 | B47: 2004 | C47: Vasariniai rapsai | D47: 2 | E47: Seklus purenimas rudenį (SPR)
A48: =ROW()-ROW(DerlingBandRez[[#Headers],[Eil. Nr.]]) -> 38 | B48: 2004 | C48: Vasariniai rapsai | D48: 2.5 | E48: Seklus purenimas prieš sėją (SPS)
A49: =ROW()-ROW(DerlingBandRez[[#Headers],[Eil. Nr.]]) -> 39 | B49: 2004 | C49: Vasariniai rapsai | D49: - | E49: Tarpiniai pasėliai (TP)
A50: =ROW()-ROW(DerlingBandRez[[#Headers],[Eil. Nr.]]) -> 40 | B50: 2004 | C50: Vasariniai rapsai | D50: 2.1 | E50: Tiesioginė sėja (TS)
A51: =ROW()-ROW(DerlingBandRez[[#Headers],[Eil. Nr.]]) -> 41 | B51: 2005 | C51: Žieminiai kviečiai | D51: 9.8 | E51: Šiaudai nepaliekami (R)
A52: =ROW()-ROW(DerlingBandRez[[#Headers],[Eil. Nr.]]) -> 42 | B52: 2005 | C52: Žieminiai kviečiai | D52: 10.4 | E52: Šiaudai paliekami lauke (S)
A53: =ROW()-ROW(DerlingBandRez[[#Headers],[Eil. Nr.]]) -> 43 | B53: 2005 | C53: Žieminiai kviečiai | D53: 9.7 | E53: Gilus arimas (GA)
A54: =ROW()-ROW(DerlingBandRez[[#Headers],[Eil. Nr.]]) -> 44 | B54: 2005 | C54: Žieminiai kviečiai | D54: 9.1 | E54: Seklus arimas (SA)
A55: =ROW()-ROW(DerlingBandRez[[#Headers],[Eil. Nr.]]) -> 45 | B55: 2005 | C55: Žieminiai kviečiai | D55: 9.6 | E55: Seklus purenimas rudenį (SPR)
A56: =ROW()-ROW(DerlingBandRez[[#Headers],[Eil. Nr.]]) -> 46 | B56: 2005 | C56: Žieminiai kviečiai | D56: 10.9 | E56: Seklus purenimas prieš sėją (SPS)
A57: =ROW()-ROW(DerlingBandRez[[#Headers],[Eil. Nr.]]) -> 47 | B57: 2005 | C57: Žieminiai kviečiai | D57: 10.9 | E57: Tarpiniai pasėliai (TP)
A58: =ROW()-ROW(DerlingBandRez[[#Headers],[Eil. Nr.]]) -> 48 | B58: 2005 | C58: Žieminiai kviečiai | D58: 10.4 | E58: Tiesioginė sėja (TS)
A59: =ROW()-ROW(DerlingBandRez[[#Headers],[Eil. Nr.]]) -> 49 | B59: 2006 | C59: Vasariniai miežiai | D59: 3.3 | E59: Šiaudai nepaliekami (R)
A60: =ROW()-ROW(DerlingBandRez[[#Headers],[Eil. Nr.]]) -> 50 | B60: 2006 | C60: Vasariniai miežiai | D60: 3.6 | E60: Šiaudai paliekami lauke (S)
A61: =ROW()-ROW(DerlingBandRez[[#Headers],[Eil. Nr.]]) -> 51 | B61: 2006 | C61: Vasariniai miežiai | D61: 3.6 | E61: Gilus arimas (GA)
A62: =ROW()-ROW(DerlingBandRez[[#Headers],[Eil. Nr.]]) -> 52 | B62: 2006 | C62: Vasariniai miežiai | D62: 3.2 | E62: Seklus arimas (SA)
A63: =ROW()-ROW(DerlingBandRez[[#Headers],[Eil. Nr.]]) -> 53 | B63: 2006 | C63: Vasariniai miežiai | D63: 3.7 | E63: Seklus purenimas rudenį (SPR)
A64: =ROW()-ROW(DerlingBandRez[[#Headers],[Eil. Nr.]]) -> 54 | B64: 2006 | C64: Vasariniai miežiai | D64: 3.2 | E64: Seklus purenimas prieš sėją (SPS)
A65: =ROW()-ROW(DerlingBandRez[[#Headers],[Eil. Nr.]]) -> 55 | B65: 2006 | C65: Vasariniai miežiai | D65: 3.6 | E65: Tarpiniai pasėliai (TP)
A66: =ROW()-ROW(DerlingBandRez[[#Headers],[Eil. Nr.]]) -> 56 | B66: 2006 | C66: Vasariniai miežiai | D66: 3.4 | E66: Tiesioginė sėja (TS)
A67: =ROW()-ROW(DerlingBandRez[[#Headers],[Eil. Nr.]]) -> 57 | B67: 2007 | C67: Vasariniai rapsai | D67: 2.1 | E67: Šiaudai nepaliekami (R)
A68: =ROW()-ROW(DerlingBandRez[[#Headers],[Eil. Nr.]]) -> 58 | B68: 2007 | C68: Vasariniai rapsai | D68: 2.1 | E68: Šiaudai paliekami lauke (S)
A69: =ROW()-ROW(DerlingBandRez[[#Headers],[Eil. Nr.]]) -> 59 | B69: 2007 | C69: Vasariniai rapsai | D69: 2.1 | E69: Gilus arimas (GA)
A70: =ROW()-ROW(DerlingBandRez[[#Headers],[Eil. Nr.]]) -> 60 | B70: 2007 | C70: Vasariniai rapsai | D70: 2.2 | E70: Seklus arimas (SA)
A71: =ROW()-ROW(DerlingBandRez[[#Headers],[Eil. Nr.]]) -> 61 | B71: 2007 | C71: Vasariniai rapsai | D71: 2.1 | E71: Seklus purenimas rudenį (SPR)
A72: =ROW()-ROW(DerlingBandRez[[#Headers],[Eil. Nr.]]) -> 62 | B72: 2007 | C72: Vasariniai rapsai | D72: 2.1 | E72: Seklus purenimas prieš sėją (SPS)
A73: =ROW()-ROW(DerlingBandRez[[#Headers],[Eil. Nr.]]) -> 63 | B73: 2007 | C73: Vasariniai rapsai | D73: 1.8 | E73: Tarpiniai pasėliai (TP)
A74: =ROW()-ROW(DerlingBandRez[[#Headers],[Eil. Nr.]]) -> 64 | B74: 2007 | C74: Vasariniai rapsai | D74: 2.1 | E74: Tiesioginė sėja (TS)
A75: =ROW()-ROW(DerlingBandRez[[#Headers],[Eil. Nr.]]) -> 65 | B75: 2008 | C75: Žieminiai kviečiai | D75: 7.1 | E75: Šiaudai nepaliekami (R)
A76: =ROW()-ROW(DerlingBandRez[[#Headers],[Eil. Nr.]]) -> 66 | B76: 2008 | C76: Žieminiai kviečiai | D76: 7.6 | E76: Šiaudai paliekami lauke (S)
A77: =ROW()-ROW(DerlingBandRez[[#Headers],[Eil. Nr.]]) -> 67 | B77: 2008 | C77: Žieminiai kviečiai | D77: 7.2 | E77: Gilus arimas (GA)
A78: =ROW()-ROW(DerlingBandRez[[#Headers],[Eil. Nr.]]) -> 68 | B78: 2008 | C78: Žieminiai kviečiai | D78: 6.7 | E78: Seklus arimas (SA)
A79: =ROW()-ROW(DerlingBandRez[[#Headers],[Eil. Nr.]]) -> 69 | B79: 2008 | C79: Žieminiai kviečiai | D79: 7.1 | E79: Seklus purenimas rudenį (SPR)
A80: =ROW()-ROW(DerlingBandRez[[#Headers],[Eil. Nr.]]) -> 70 | B80: 2008 | C80: Žieminiai kviečiai | D80: 7.9 | E80: Seklus purenimas prieš sėją (SPS)
A81: =ROW()-ROW(DerlingBandRez[[#Headers],[Eil. Nr.]]) -> 71 | B81: 2008 | C81: Žieminiai kviečiai | D81: 7.3 | E81: Tarpiniai pasėliai (TP)
A82: =ROW()-ROW(DerlingBandRez[[#Headers],[Eil. Nr.]]) -> 72 | B82: 2008 | C82: Žieminiai kviečiai | D82: 7.8 | E82: Tiesioginė sėja (TS)
A83: =ROW()-ROW(DerlingBandRez[[#Headers],[Eil. Nr.]]) -> 73 | B83: 2009 | C83: Vasariniai miežiai | D83: 4.6 | E83: Šiaudai nepaliekami (R)
A84: =ROW()-ROW(DerlingBandRez[[#Headers],[Eil. Nr.]]) -> 74 | B84: 2009 | C84: Vasariniai miežiai | D84: 5.1 | E84: Šiaudai paliekami lauke (S)
A85: =ROW()-ROW(DerlingBandRez[[#Headers],[Eil. Nr.]]) -> 75 | B85: 2009 | C85: Vasariniai miežiai | D85: 5.4 | E85: Gilus arimas (GA)
A86: =ROW()-ROW(DerlingBandRez[[#Headers],[Eil. Nr.]]) -> 76 | B86: 2009 | C86: Vasariniai miežiai | D86: 5.1 | E86: Seklus arimas (SA)
A87: =ROW()-ROW(DerlingBandRez[[#Headers],[Eil. Nr.]]) -> 77 | B87: 2009 | C87: Vasariniai miežiai | D87: 5.2 | E87: Seklus purenimas rudenį (SPR)
A88: =ROW()-ROW(DerlingBandRez[[#Headers],[Eil. Nr.]]) -> 78 | B88: 2009 | C88: Vasariniai miežiai | D88: 4.5 | E88: Seklus purenimas prieš sėją (SPS)
A89: =ROW()-ROW(DerlingBandRez[[#Headers],[Eil. Nr.]]) -> 79 | B89: 2009 | C89: Vasariniai miežiai | D89: 4.6 | E89: Tarpiniai pasėliai (TP)
A90: =ROW()-ROW(DerlingBandRez[[#Headers],[Eil. Nr.]]) -> 80 | B90: 2009 | C90: Vasariniai miežiai | D90: 4.5 | E90: Tiesioginė sėja (TS)
A91: =ROW()-ROW(DerlingBandRez[[#Headers],[Eil. Nr.]]) -> 81 | B91: 2010 | C91: Vasariniai rapsai | D91: 1.5 | E91: Šiaudai nepaliekami (R)
A92: =ROW()-ROW(DerlingBandRez[[#Headers],[Eil. Nr.]]) -> 82 | B92: 2010 | C92: Vasariniai rapsai | D92: 1.5 | E92: Šiaudai paliekami lauke (S)
A93: =ROW()-ROW(DerlingBandRez[[#Headers],[Eil. Nr.]]) -> 83 | B93: 2010 | C93: Vasariniai rapsai | D93: 1.7 | E93: Gilus arimas (GA)
A94: =ROW()-ROW(DerlingBandRez[[#Headers],[Eil. Nr.]]) -> 84 | B94: 2010 | C94: Vasariniai rapsai | D94: 1.6 | E94: Seklus arimas (SA)
A95: =ROW()-ROW(DerlingBandRez[[#Headers],[Eil. Nr.]]) -> 85 | B95: 2010 | C95: Vasariniai rapsai | D95: 1.5 | E95: Seklus purenimas rudenį (SPR)
A96: =ROW()-ROW(DerlingBandRez[[#Headers],[Eil. Nr.]]) -> 86 | B96: 2010 | C96: Vasariniai rapsai | D96: 1.5 | E96: Seklus purenimas prieš sėją (SPS)
A97: =ROW()-ROW(DerlingBandRez[[#Headers],[Eil. Nr.]]) -> 87 | B97: 2010 | C97: Vasariniai rapsai | D97: 1.3 | E97: Tarpiniai pasėliai (TP)
A98: =ROW()-ROW(DerlingBandRez[[#Headers],[Eil. Nr.]]) -> 88 | B98: 2010 | C98: Vasariniai rapsai | D98: 1.5 | E98: Tiesioginė sėja (TS)
A99: =ROW()-ROW(DerlingBandRez[[#Headers],[Eil. Nr.]]) -> 89 | B99: 2011 | C99: Žieminiai kviečiai | D99: 5.8 | E99: Šiaudai nepaliekami (R)
A100: =ROW()-ROW(DerlingBandRez[[#Headers],[Eil. Nr.]]) -> 90 | B100: 2011 | C100: Žieminiai kviečiai | D100: 6.1 | E100: Šiaudai paliekami lauke (S)
A101: =ROW()-ROW(DerlingBandRez[[#Headers],[Eil. Nr.]]) -> 91 | B101: 2011 | C101: Žieminiai kviečiai | D101: 5.7 | E101: Gilus arimas (GA)
A102: =ROW()-ROW(DerlingBandRez[[#Headers],[Eil. Nr.]]) -> 92 | B102: 2011 | C102: Žieminiai kviečiai | D102: 5.2 | E102: Seklus arimas (SA)
A103: =ROW()-ROW(DerlingBandRez[[#Headers],[Eil. Nr.]]) -> 93 | B103: 2011 | C103: Žieminiai kviečiai | D103: 5.3 | E103: Seklus purenimas rudenį (SPR)
A104: =ROW()-ROW(DerlingBandRez[[#Headers],[Eil. Nr.]]) -> 94 | B104: 2011 | C104: Žieminiai kviečiai | D104: 6.5 | E104: Seklus purenimas prieš sėją (SPS)
A105: =ROW()-ROW(DerlingBandRez[[#Headers],[Eil. Nr.]]) -> 95 | B105: 2011 | C105: Žieminiai kviečiai | D105: 6.6 | E105: Tarpiniai pasėliai (TP)
A106: =ROW()-ROW(DerlingBandRez[[#Headers],[Eil. Nr.]]) -> 96 | B106: 2011 | C106: Žieminiai kviečiai | D106: 6.4 | E106: Tiesioginė sėja (TS)
A107: =ROW()-ROW(DerlingBandRez[[#Headers],[Eil. Nr.]]) -> 97 | B107: 2012 | C107: Vasariniai miežiai | D107: 4.6 | E107: Šiaudai nepaliekami (R)
A108: =ROW()-ROW(DerlingBandRez[[#Headers],[Eil. Nr.]]) -> 98 | B108: 2012 | C108: Vasariniai miežiai | D108: 4.5 | E108: Šiaudai paliekami lauke (S)
A109: =ROW()-ROW(DerlingBandRez[[#Headers],[Eil. Nr.]]) -> 99 | B109: 2012 | C109: Vasariniai miežiai | D109: 5.1 | E109: Gilus arimas (GA)
A110: =ROW()-ROW(DerlingBandRez[[#Headers],[Eil. Nr.]]) -> 100 | B110: 2012 | C110: Vasariniai miežiai | D110: 4.4 | E110: Seklus arimas (SA)
A111: =ROW()-ROW(DerlingBandRez[[#Headers],[Eil. Nr.]]) -> 101 | B111: 2012 | C111: Vasariniai miežiai | D111: 4.3 | E111: Seklus purenimas rudenį (SPR)
A112: =ROW()-ROW(DerlingBandRez[[#Headers],[Eil. Nr.]]) -> 102 | B112: 2012 | C112: Vasariniai miežiai | D112: 4.5 | E112: Seklus purenimas prieš sėją (SPS)
A113: =ROW()-ROW(DerlingBandRez[[#Headers],[Eil. Nr.]]) -> 103 | B113: 2012 | C113: Vasariniai miežiai | D113: 4.5 | E113: Tarpiniai pasėliai (TP)
A114: =ROW()-ROW(DerlingBandRez[[#Headers],[Eil. Nr.]]) -> 104 | B114: 2012 | C114: Vasariniai miežiai | D114: 4.6 | E114: Tiesioginė sėja (TS)
A115: =ROW()-ROW(DerlingBandRez[[#Headers],[Eil. Nr.]]) -> 105 | B115: 2013 | C115: Vasariniai rapsai | D115: 0.6 | E115: Šiaudai nepaliekami (R)
A116: =ROW()-ROW(DerlingBandRez[[#Headers],[Eil. Nr.]]) -> 106 | B116: 2013 | C116: Vasariniai rapsai | D116: 0.6 | E116: Šiaudai paliekami lauke (S)
A117: =ROW()-ROW(DerlingBandRez[[#Headers],[Eil. Nr.]]) -> 107 | B117: 2013 | C117: Vasariniai rapsai | D117: 0.6 | E117: Gilus arimas (GA)
A118: =ROW()-ROW(DerlingBandRez[[#Headers],[Eil. Nr.]]) -> 108 | B118: 2013 | C118: Vasariniai rapsai | D118: 0.6 | E118: Seklus arimas (SA)
A119: =ROW()-ROW(DerlingBandRez[[#Headers],[Eil. Nr.]]) -> 109 | B119: 2013 | C119: Vasariniai rapsai | D119: 0.6 | E119: Seklus purenimas rudenį (SPR)
A120: =ROW()-ROW(DerlingBandRez[[#Headers],[Eil. Nr.]]) -> 110 | B120: 2013 | C120: Vasariniai rapsai | D120: 0.3 | E120: Seklus purenimas prieš sėją (SPS)
A121: =ROW()-ROW(DerlingBandRez[[#Headers],[Eil. Nr.]]) -> 111 | B121: 2013 | C121: Vasariniai rapsai | D121: 0.5 | E121: Tarpiniai pasėliai (TP)
A122: =ROW()-ROW(DerlingBandRez[[#Headers],[Eil. Nr.]]) -> 112 | B122: 2013 | C122: Vasariniai rapsai | D122: 0.6 | E122: Tiesioginė sėja (TS)
A123: =ROW()-ROW(DerlingBandRez[[#Headers],[Eil. Nr.]]) -> 113 | B123: 2014 | C123: Žieminiai kviečiai | D123: 7.8 | E123: Šiaudai nepaliekami (R)
A124: =ROW()-ROW(DerlingBandRez[[#Headers],[Eil. Nr.]]) -> 114 | B124: 2014 | C124: Žieminiai kviečiai | D124: 8.4 | E124: Šiaudai paliekami lauke (S)
A125: =ROW()-ROW(DerlingBandRez[[#Headers],[Eil. Nr.]]) -> 115 | B125: 2014 | C125: Žieminiai kviečiai | D125: 8 | E125: Gilus arimas (GA)
A126: =ROW()-ROW(DerlingBandRez[[#Headers],[Eil. Nr.]]) -> 116 | B126: 2014 | C126: Žieminiai kviečiai | D126: 7.8 | E126: Seklus arimas (SA)
A127: =ROW()-ROW(DerlingBandRez[[#Headers],[Eil. Nr.]]) -> 117 | B127: 2014 | C127: Žieminiai kviečiai | D127: 7.8 | E127: Seklus purenimas rudenį (SPR)
A128: =ROW()-ROW(DerlingBandRez[[#Headers],[Eil. Nr.]]) -> 118 | B128: 2014 | C128: Žieminiai kviečiai | D128: 8 | E128: Seklus purenimas prieš sėją (SPS)
A129: =ROW()-ROW(DerlingBandRez[[#Headers],[Eil. Nr.]]) -> 119 | B129: 2014 | C129: Žieminiai kviečiai | D129: 8.8 | E129: Tarpiniai pasėliai (TP)
A130: =ROW()-ROW(DerlingBandRez[[#Headers],[Eil. Nr.]]) -> 120 | B130: 2014 | C130: Žieminiai kviečiai | D130: 8.3 | E130: Tiesioginė sėja (TS)
A131: =ROW()-ROW(DerlingBandRez[[#Headers],[Eil. Nr.]]) -> 121 | B131: 2015 | C131: Vasariniai miežiai | D131: 7.2 | E131: Šiaudai nepaliekami (R)
A132: =ROW()-ROW(DerlingBandRez[[#Headers],[Eil. Nr.]]) -> 122 | B132: 2015 | C132: Vasariniai miežiai | D132: 7.3 | E132: Šiaudai paliekami lauke (S)
A133: =ROW()-ROW(DerlingBandRez[[#Headers],[Eil. Nr.]]) -> 123 | B133: 2015 | C133: Vasariniai miežiai | D133: 7.3 | E133: Gilus arimas (GA)
A134: =ROW()-ROW(DerlingBandRez[[#Headers],[Eil. Nr.]]) -> 124 | B134: 2015 | C134: Vasariniai miežiai | D134: 6.7 | E134: Seklus arimas (SA)
A135: =ROW()-ROW(DerlingBandRez[[#Headers],[Eil. Nr.]]) -> 125 | B135: 2015 | C135: Vasariniai miežiai | D135: 7.2 | E135: Seklus purenimas rudenį (SPR)
A136: =ROW()-ROW(DerlingBandRez[[#Headers],[Eil. Nr.]]) -> 126 | B136: 2015 | C136: Vasariniai miežiai | D136: 7.4 | E136: Seklus purenimas prieš sėją (SPS)
A137: =ROW()-ROW(DerlingBandRez[[#Headers],[Eil. Nr.]]) -> 127 | B137: 2015 | C137: Vasariniai miežiai | D137: 7.4 | E137: Tarpiniai pasėliai (TP)
A138: =ROW()-ROW(DerlingBandRez[[#Headers],[Eil. Nr.]]) -> 128 | B138: 2015 | C138: Vasariniai miežiai | D138: 7.5 | E138: Tiesioginė sėja (TS)
A139: =ROW()-ROW(DerlingBandRez[[#Headers],[Eil. Nr.]]) -> 129 | B139: 2016 | C139: Vasariniai rapsai | D139: 1.23 | E139: Šiaudai nepaliekami (R)
A140: =ROW()-ROW(DerlingBandRez[[#Headers],[Eil. Nr.]]) -> 130 | B140: 2016 | C140: Vasariniai rapsai | D140: 1.18 | E140: Šiaudai paliekami lauke (S)
A141: =ROW()-ROW(DerlingBandRez[[#Headers],[Eil. Nr.]]) -> 131 | B141: 2016 | C141: Vasariniai rapsai | D141: 1.12 | E141: Gilus arimas (GA)
A142: =ROW()-ROW(DerlingBandRez[[#Headers],[Eil. Nr.]]) -> 132 | B142: 2016 | C142: Vasariniai rapsai | D142: 1.2 | E142: Seklus arimas (SA)
A143: =ROW()-ROW(DerlingBandRez[[#Headers],[Eil. Nr.]]) -> 133 | B143: 2016 | C143: Vasariniai rapsai | D143: 1.2 | E143: Seklus purenimas rudenį (SPR)
A144: =ROW()-ROW(DerlingBandRez[[#Headers],[Eil. Nr.]]) -> 134 | B144: 2016 | C144: Vasariniai rapsai | D144: 1.21 | E144: Seklus purenimas prieš sėją (SPS)
A145: =ROW()-ROW(DerlingBandRez[[#Headers],[Eil. Nr.]]) -> 135 | B145: 2016 | C145: Vasariniai rapsai | D145: 1.34 | E145: Tarpiniai pasėliai (TP)
A146: =ROW()-ROW(DerlingBandRez[[#Headers],[Eil. Nr.]]) -> 136 | B146: 2016 | C146: Vasariniai rapsai | D146: 1.15 | E146: Tiesioginė sėja (TS)
A147: =ROW()-ROW(DerlingBandRez[[#Headers],[Eil. Nr.]]) -> 137 | B147: 2017 | C147: Žieminiai kviečiai | D147: 9.3 | E147: Šiaudai nepaliekami (R)
A148: =ROW()-ROW(DerlingBandRez[[#Headers],[Eil. Nr.]]) -> 138 | B148: 2017 | C148: Žieminiai kviečiai | D148: 9.82 | E148: Šiaudai paliekami lauke (S)
A149: =ROW()-ROW(DerlingBandRez[[#Headers],[Eil. Nr.]]) -> 139 | B149: 2017 | C149: Žieminiai kviečiai | D149: 9 | E149: Gilus arimas (GA)
A150: =ROW()-ROW(DerlingBandRez[[#Headers],[Eil. Nr.]]) -> 140 | B150: 2017 | C150: Žieminiai kviečiai | D150: 8.93 | E150: Seklus arimas (SA)
A151: =ROW()-ROW(DerlingBandRez[[#Headers],[Eil. Nr.]]) -> 141 | B151: 2017 | C151: Žieminiai kviečiai | D151: 9.27 | E151: Seklus purenimas rudenį (SPR)
A152: =ROW()-ROW(DerlingBandRez[[#Headers],[Eil. Nr.]]) -> 142 | B152: 2017 | C152: Žieminiai kviečiai | D152: 10.83 | E152: Seklus purenimas prieš sėją (SPS)
A153: =ROW()-ROW(DerlingBandRez[[#Headers],[Eil. Nr.]]) -> 143 | B153: 2017 | C153: Žieminiai kviečiai | D153: 10.27 | E153: Tarpiniai pasėliai (TP)
A154: =ROW()-ROW(DerlingBandRez[[#Headers],[Eil. Nr.]]) -> 144 | B154: 2017 | C154: Žieminiai kviečiai | D154: 9.8 | E154: Tiesioginė sėja (TS)
A155: =ROW()-ROW(DerlingBandRez[[#Headers],[Eil. Nr.]]) -> 145 | B155: 2018 | C155: Vasariniai miežiai | D155: 4.72 | E155: Šiaudai nepaliekami (R)
A156: =ROW()-ROW(DerlingBandRez[[#Headers],[Eil. Nr.]]) -> 146 | B156: 2018 | C156: Vasariniai miežiai | D156: 4.84 | E156: Šiaudai paliekami lauke (S)
A157: =ROW()-ROW(DerlingBandRez[[#Headers],[Eil. Nr.]]) -> 147 | B157: 2018 | C157: Vasariniai miežiai | D157: 4.95 | E157: Gilus arimas (GA)
A158: =ROW()-ROW(DerlingBandRez[[#Headers],[Eil. Nr.]]) -> 148 | B158: 2018 | C158: Vasariniai miežiai | D158: 4.6 | E158: Seklus arimas (SA)
A159: =ROW()-ROW(DerlingBandRez[[#Headers],[Eil. Nr.]]) -> 149 | B159: 2018 | C159: Vasariniai miežiai | D159: 4.4 | E159: Seklus purenimas rudenį (SPR)
A160: =ROW()-ROW(DerlingBandRez[[#Headers],[Eil. Nr.]]) -> 150 | B160: 2018 | C160: Vasariniai miežiai | D160: 4.64 | E160: Seklus purenimas prieš sėją (SPS)
A161: =ROW()-ROW(DerlingBandRez[[#Headers],[Eil. Nr.]]) -> 151 | B161: 2018 | C161: Vasariniai miežiai | D161: 4.84 | E161: Tarpiniai pasėliai (TP)
A162: =ROW()-ROW(DerlingBandRez[[#Headers],[Eil. Nr.]]) -> 152 | B162: 2018 | C162: Vasariniai miežiai | D162: 5.27 | E162: Tiesioginė sėja (TS)
A163: =ROW()-ROW(DerlingBandRez[[#Headers],[Eil. Nr.]]) -> 153 | B163: 2019 | C163: Vasariniai rapsai | D163: 1.45 | E163: Šiaudai nepaliekami (R)
A164: =ROW()-ROW(DerlingBandRez[[#Headers],[Eil. Nr.]]) -> 154 | B164: 2019 | C164: Vasariniai rapsai | D164: 1.52 | E164: Šiaudai paliekami lauke (S)
A165: =ROW()-ROW(DerlingBandRez[[#Headers],[Eil. Nr.]]) -> 155 | B165: 2019 | C165: Vasariniai rapsai | D165: 1.48 | E165: Gilus arimas (GA)
A166: =ROW()-ROW(DerlingBandRez[[#Headers],[Eil. Nr.]]) -> 156 | B166: 2019 | C166: Vasariniai rapsai | D166: 1.47 | E166: Seklus arimas (SA)
A167: =ROW()-ROW(DerlingBandRez[[#Headers],[Eil. Nr.]]) -> 157 | B167: 2019 | C167: Vasariniai rapsai | D167: 1.48 | E167: Seklus purenimas rudenį (SPR)
A168: =ROW()-ROW(DerlingBandRez[[#Headers],[Eil. Nr.]]) -> 158 | B168: 2019 | C168: Vasariniai rapsai | D168: 1.47 | E168: Seklus purenimas prieš sėją (SPS)
A169: =ROW()-ROW(DerlingBandRez[[#Headers],[Eil. Nr.]]) -> 159 | B169: 2019 | C169: Vasariniai rapsai | D169: 1.58 | E169: Tarpiniai pasėliai (TP)
A170: =ROW()-ROW(DerlingBandRez[[#Headers],[Eil. Nr.]]) -> 160 | B170: 2019 | C170: Vasariniai rapsai | D170: 1.45 | E170: Tiesioginė sėja (TS)
A171: =ROW()-ROW(DerlingBandRez[[#Headers],[Eil. Nr.]]) -> 161 | B171: 2020 | C171: Žieminiai kviečiai | D171: 9.93 | E171: Šiaudai nepaliekami (R)
A172: =ROW()-ROW(DerlingBandRez[[#Headers],[Eil. Nr.]]) -> 162 | B172: 2020 | C172: Žieminiai kviečiai | D172: 9.4 | E172: Šiaudai paliekami lauke (S)
A173: =ROW()-ROW(DerlingBandRez[[#Headers],[Eil. Nr.]]) -> 163 | B173: 2020 | C173: Žieminiai kviečiai | D173: 9.45 | E173: Gilus arimas (GA)
A174: =ROW()-ROW(DerlingBandRez[[#Headers],[Eil. Nr.]]) -> 164 | B174: 2020 | C174: Žieminiai kviečiai | D174: 9.69 | E174: Seklus arimas (SA)
A175: =ROW()-ROW(DerlingBandRez[[#Headers],[Eil. Nr.]]) -> 165 | B175: 2020 | C175: Žieminiai kviečiai | D175: 8.81 | E175: Seklus purenimas rudenį (SPR)
A176: =ROW()-ROW(DerlingBandRez[[#Headers],[Eil. Nr.]]) -> 166 | B176: 2020 | C176: Žieminiai kviečiai | D176: 10.34 | E176: Seklus purenimas prieš sėją (SPS)
A177: =ROW()-ROW(DerlingBandRez[[#Headers],[Eil. Nr.]]) -> 167 | B177: 2020 | C177: Žieminiai kviečiai | D177: 10.06 | E177: Tarpiniai pasėliai (TP)
A178: =ROW()-ROW(DerlingBandRez[[#Headers],[Eil. Nr.]]) -> 168 | B178: 2020 | C178: Žieminiai kviečiai | D178: 9.63 | E178: Tiesioginė sėja (TS)
A179: =ROW()-ROW(DerlingBandRez[[#Headers],[Eil. Nr.]]) -> 169 | B179: 2021 | C179: Vasariniai miežiai | D179: 3.62 | E179: Šiaudai nepaliekami (R)
A180: =ROW()-ROW(DerlingBandRez[[#Headers],[Eil. Nr.]]) -> 170 | B180: 2021 | C180: Vasariniai miežiai | D180: 3.93 | E180: Šiaudai paliekami lauke (S)
A181: =ROW()-ROW(DerlingBandRez[[#Headers],[Eil. Nr.]]) -> 171 | B181: 2021 | C181: Vasariniai miežiai | D181: 3.62 | E181: Gilus arimas (GA)
A182: =ROW()-ROW(DerlingBandRez[[#Headers],[Eil. Nr.]]) -> 172 | B182: 2021 | C182: Vasariniai miežiai | D182: 4.13 | E182: Seklus arimas (SA)
A183: =ROW()-ROW(DerlingBandRez[[#Headers],[Eil. Nr.]]) -> 173 | B183: 2021 | C183: Vasariniai miežiai | D183: 3.29 | E183: Seklus purenimas rudenį (SPR)
A184: =ROW()-ROW(DerlingBandRez[[#Headers],[Eil. Nr.]]) -> 174 | B184: 2021 | C184: Vasariniai miežiai | D184: 3.94 | E184: Seklus purenimas prieš sėją (SPS)
A185: =ROW()-ROW(DerlingBandRez[[#Headers],[Eil. Nr.]]) -> 175 | B185: 2021 | C185: Vasariniai miežiai | D185: 3.53 | E185: Tarpiniai pasėliai (TP)
A186: =ROW()-ROW(DerlingBandRez[[#Headers],[Eil. Nr.]]) -> 176 | B186: 2021 | C186: Vasariniai miežiai | D186: 4.14 | E186: Tiesioginė sėja (TS)
A187: =ROW()-ROW(DerlingBandRez[[#Headers],[Eil. Nr.]]) -> 177 | B187: 2022 | C187: Žieminiai rapsai | D187: 2.69 | E187: Šiaudai nepaliekami (R)
A188: =ROW()-ROW(DerlingBandRez[[#Headers],[Eil. Nr.]]) -> 178 | B188: 2022 | C188: Žieminiai rapsai | D188: 2.84 | E188: Šiaudai paliekami lauke (S)
A189: =ROW()-ROW(DerlingBandRez[[#Headers],[Eil. Nr.]]) -> 179 | B189: 2022 | C189: Žieminiai rapsai | D189: 2.37 | E189: Gilus arimas (GA)
A190: =ROW()-ROW(DerlingBandRez[[#Headers],[Eil. Nr.]]) -> 180 | B190: 2022 | C190: Žieminiai rapsai | D190: 2.39 | E190: Seklus arimas (SA)
A191: =ROW()-ROW(DerlingBandRez[[#Headers],[Eil. Nr.]]) -> 181 | B191: 2022 | C191: Žieminiai rapsai | D191: 2.48 | E191: Seklus purenimas rudenį (SPR)
A192: =ROW()-ROW(DerlingBandRez[[#Headers],[Eil. Nr.]]) -> 182 | B192: 2022 | C192: Žieminiai rapsai | D192: 2.85 | E192: Seklus purenimas prieš sėją (SPS)
A193: =ROW()-ROW(DerlingBandRez[[#Headers],[Eil. Nr.]]) -> 183 | B193: 2022 | C193: Žieminiai rapsai | D193: 3.11 | E193: Tarpiniai pasėliai (TP)
A194: =ROW()-ROW(DerlingBandRez[[#Headers],[Eil. Nr.]]) -> 184 | B194: 2022 | C194: Žieminiai rapsai | D194: 3.37 | E194: Tiesioginė sėja (TS)
A195: =ROW()-ROW(DerlingBandRez[[#Headers],[Eil. Nr.]]) -> 185 | B195: 2023 | C195: Žieminiai kviečiai | D195: 9.9 | E195: Šiaudai nepaliekami (R)
A196: =ROW()-ROW(DerlingBandRez[[#Headers],[Eil. Nr.]]) -> 186 | B196: 2023 | C196: Žieminiai kviečiai | D196: 10.1 | E196: Šiaudai paliekami lauke (S)
A197: =ROW()-ROW(DerlingBandRez[[#Headers],[Eil. Nr.]]) -> 187 | B197: 2023 | C197: Žieminiai kviečiai | D197: 9.37 | E197: Gilus arimas (GA)
A198: =ROW()-ROW(DerlingBandRez[[#Headers],[Eil. Nr.]]) -> 188 | B198: 2023 | C198: Žieminiai kviečiai | D198: 9.73 | E198: Seklus arimas (SA)
A199: =ROW()-ROW(DerlingBandRez[[#Headers],[Eil. Nr.]]) -> 189 | B199: 2023 | C199: Žieminiai kviečiai | D199: 9.97 | E199: Seklus purenimas rudenį (SPR)
A200: =ROW()-ROW(DerlingBandRez[[#Headers],[Eil. Nr.]]) -> 190 | B200: 2023 | C200: Žieminiai kviečiai | D200: 10.47 | E200: Seklus purenimas prieš sėją (SPS)
A201: =ROW()-ROW(DerlingBandRez[[#Headers],[Eil. Nr.]]) -> 191 | B201: 2023 | C201: Žieminiai kviečiai | D201: 10.71 | E201: Tarpiniai pasėliai (TP)
A202: =ROW()-ROW(DerlingBandRez[[#Headers],[Eil. Nr.]]) -> 192 | B202: 2023 | C202: Žieminiai kviečiai | D202: 10.1 | E202: Tiesioginė sėja (TS)

Sheet Madžiagos pasėliui (hidden)
H1: Išlaidų rūšis | I1: Išlaidos, Eur/ha
I2: Žieminiai kviečiai | J2: Vasariniai rapsai | K2: Vasariniai miežiai
H3: Sėklos įsigijimas | I3: 80 | J3: 39 | K3: 70
H4: Trąšos: | I4: 200 | J4: 130 | K4: 130
H5: Purškimai (augalų apsaugos priemonės, augimo reguliatoriai) | I5: 130 | J5: 130 | K5: 110
H6: Džiovinimas (nuo 16 % iki 14 %), kai 7 t/ha | I6: 56 | J6: 48 | K6: 40
A7: IŠLAIDOS SĖKLAI, TRĄŠOMS, AUGALŲ APSAUGOS IR KITOMS PRIEMONĖMS | H7: Viso | I7: 466 | J7: 347 | K7: 350
A10: Eil. Nr. | B10: Technologija | C10: Pasėlis | D10: Eur/ha
A11: =ROW()-ROW(MedžiagųSąnaudosPasėliui[[#Headers],[Eil. Nr.]]) -> 1 | B11: Gilus arimas (GA) | C11: Žieminiai kviečiai | D11: 466
A12: =ROW()-ROW(MedžiagųSąnaudosPasėliui[[#Headers],[Eil. Nr.]]) -> 2 | B12: Gilus arimas (GA) | C12: Vasariniai rapsai | D12: 347
A13: =ROW()-ROW(MedžiagųSąnaudosPasėliui[[#Headers],[Eil. Nr.]]) -> 3 | B13: Gilus arimas (GA) | C13: Vasariniai miežiai | D13: 350
A14: =ROW()-ROW(MedžiagųSąnaudosPasėliui[[#Headers],[Eil. Nr.]]) -> 4 | B14: Gilus arimas (GA) | C14: Žieminiai rapsai | D14: 475
A15: =ROW()-ROW(MedžiagųSąnaudosPasėliui[[#Headers],[Eil. Nr.]]) -> 5 | B15: Seklus arimas (SA) | C15: Žieminiai kviečiai | D15: 466
A16: =ROW()-ROW(MedžiagųSąnaudosPasėliui[[#Headers],[Eil. Nr.]]) -> 6 | B16: Seklus arimas (SA) | C16: Vasariniai rapsai | D16: 347
A17: =ROW()-ROW(MedžiagųSąnaudosPasėliui[[#Headers],[Eil. Nr.]]) -> 7 | B17: Seklus arimas (SA) | C17: Vasariniai miežiai | D17: 350
A18: =ROW()-ROW(MedžiagųSąnaudosPasėliui[[#Headers],[Eil. Nr.]]) -> 8 | B18: Seklus arimas (SA) | C18: Žieminiai rapsai | D18: 475
A19: =ROW()-ROW(MedžiagųSąnaudosPasėliui[[#Headers],[Eil. Nr.]]) -> 9 | B19: Seklus purenimas rudenį (SPR) | C19: Žieminiai kviečiai | D19: 466
A20: =ROW()-ROW(MedžiagųSąnaudosPasėliui[[#Headers],[Eil. Nr.]]) -> 10 | B20: Seklus purenimas rudenį (SPR) | C20: Vasariniai rapsai | D20: 347
A21: =ROW()-ROW(MedžiagųSąnaudosPasėliui[[#Headers],[Eil. Nr.]]) -> 11 | B21: Seklus purenimas rudenį (SPR) | C21: Vasariniai miežiai | D21: 350
A22: =ROW()-ROW(MedžiagųSąnaudosPasėliui[[#Headers],[Eil. Nr.]]) -> 12 | B22: Seklus purenimas rudenį (SPR) | C22: Žieminiai rapsai | D22: 475
A23: =ROW()-ROW(MedžiagųSąnaudosPasėliui[[#Headers],[Eil. Nr.]]) -> 13 | B23: Seklus purenimas prieš sėją (SPS) | C23: Žieminiai kviečiai | D23: 466
A24: =ROW()-ROW(MedžiagųSąnaudosPasėliui[[#Headers],[Eil. Nr.]]) -> 14 | B24: Seklus purenimas prieš sėją (SPS) | C24: Vasariniai rapsai | D24: 347
A25: =ROW()-ROW(MedžiagųSąnaudosPasėliui[[#Headers],[Eil. Nr.]]) -> 15 | B25: Seklus purenimas prieš sėją (SPS) | C25: Vasariniai miežiai | D25: 350
A26: =ROW()-ROW(MedžiagųSąnaudosPasėliui[[#Headers],[Eil. Nr.]]) -> 16 | B26: Seklus purenimas prieš sėją (SPS) | C26: Žieminiai rapsai | D26: 475
A27: =ROW()-ROW(MedžiagųSąnaudosPasėliui[[#Headers],[Eil. Nr.]]) -> 17 | B27: Tarpiniai pasėliai (TP) | C27: Žieminiai kviečiai | D27: 548
A28: =ROW()-ROW(MedžiagųSąnaudosPasėliui[[#Headers],[Eil. Nr.]]) -> 18 | B28: Tarpiniai pasėliai (TP) | C28: Vasariniai rapsai | D28: 424
A29: =ROW()-ROW(MedžiagųSąnaudosPasėliui[[#Headers],[Eil. Nr.]]) -> 19 | B29: Tarpiniai pasėliai (TP) | C29: Vasariniai miežiai | D29: 432
A30: =ROW()-ROW(MedžiagųSąnaudosPasėliui[[#Headers],[Eil. Nr.]]) -> 20 | B30: Tarpiniai pasėliai (TP) | C30: Žieminiai rapsai | D30: 557
A31: =ROW()-ROW(MedžiagųSąnaudosPasėliui[[#Headers],[Eil. Nr.]]) -> 21 | B31: Tiesioginė sėja (TS) | C31: Žieminiai kviečiai | D31: 498
A32: =ROW()-ROW(MedžiagųSąnaudosPasėliui[[#Headers],[Eil. Nr.]]) -> 22 | B32: Tiesioginė sėja (TS) | C32: Vasariniai rapsai | D32: 374
A33: =ROW()-ROW(MedžiagųSąnaudosPasėliui[[#Headers],[Eil. Nr.]]) -> 23 | B33: Tiesioginė sėja (TS) | C33: Vasariniai miežiai | D33: 382
A34: =ROW()-ROW(MedžiagųSąnaudosPasėliui[[#Headers],[Eil. Nr.]]) -> 24 | B34: Tiesioginė sėja (TS) | C34: Žieminiai rapsai | D34: 507
A38: VIDUTINIS DERLINGUMO POKYTIS DĖL AUGALŲ LIEKANŲ, ĮSKAITANT ŠIAUDUS, PALIKIMO LAUKE
A41: Eil. Nr. | B41: Technologija | C41: Pasėlis | D41: t/ha
A42: =ROW()-ROW(DerlingumoPokytisDėlŠiaudų[[#Headers],[Eil. Nr.]]) -> 1 | B42: Gilus arimas (GA) | C42: Vasariniai miežiai | D42: =IFERROR(ROUND(AVERAGE(_xlfn._xlws.FILTER(DerlingBandRez[Derlingumas], (DerlingBandRez[Žemės ūkio augalas] = DerlingumoPokytisDėlŠiaudų[[#This Row],[Pasėlis]]) * (DerlingBandRez[Technologija] = DerlingumoPokytisDėlŠiaudų[[#This Row],[Technologija]]), "-")),2),) -> 4.68
A43: =ROW()-ROW(DerlingumoPokytisDėlŠiaudų[[#Headers],[Eil. Nr.]]) -> 2 | B43: Seklus arimas (SA) | C43: Vasariniai miežiai | D43: =IFERROR(ROUND(AVERAGE(_xlfn._xlws.FILTER(DerlingBandRez[Derlingumas], (DerlingBandRez[Žemės ūkio augalas] = DerlingumoPokytisDėlŠiaudų[[#This Row],[Pasėlis]]) * (DerlingBandRez[Technologija] = DerlingumoPokytisDėlŠiaudų[[#This Row],[Technologija]]), "-")),2),) -> 4.41
A44: =ROW()-ROW(DerlingumoPokytisDėlŠiaudų[[#Headers],[Eil. Nr.]]) -> 3 | B44: Seklus purenimas rudenį (SPR) | C44: Vasariniai miežiai | D44: =IFERROR(ROUND(AVERAGE(_xlfn._xlws.FILTER(DerlingBandRez[Derlingumas], (DerlingBandRez[Žemės ūkio augalas] = DerlingumoPokytisDėlŠiaudų[[#This Row],[Pasėlis]]) * (DerlingBandRez[Technologija] = DerlingumoPokytisDėlŠiaudų[[#This Row],[Technologija]]), "-")),2),) -> 4.41
A45: =ROW()-ROW(DerlingumoPokytisDėlŠiaudų[[#Headers],[Eil. Nr.]]) -> 4 | B45: Seklus purenimas prieš sėją (SPS) | C45: Vasariniai miežiai | D45: =IFERROR(ROUND(AVERAGE(_xlfn._xlws.FILTER(DerlingBandRez[Derlingumas], (DerlingBandRez[Žemės ūkio augalas] = DerlingumoPokytisDėlŠiaudų[[#This Row],[Pasėlis]]) * (DerlingBandRez[Technologija] = DerlingumoPokytisDėlŠiaudų[[#This Row],[Technologija]]), "-")),2),) -> 4.38
A46: =ROW()-ROW(DerlingumoPokytisDėlŠiaudų[[#Headers],[Eil. Nr.]]) -> 5 | B46: Tarpiniai pasėliai (TP) | C46: Vasariniai miežiai | D46: =IFERROR(ROUND(AVERAGE(_xlfn._xlws.FILTER(DerlingBandRez[Derlingumas], (DerlingBandRez[Žemės ūkio augalas] = DerlingumoPokytisDėlŠiaudų[[#This Row],[Pasėlis]]) * (DerlingBandRez[Technologija] = DerlingumoPokytisDėlŠiaudų[[#This Row],[Technologija]]), "-")),2),) -> 4.34
A47: =ROW()-ROW(DerlingumoPokytisDėlŠiaudų[[#Headers],[Eil. Nr.]]) -> 6 | B47: Tiesioginė sėja (TS) | C47: Vasariniai miežiai | D47: =IFERROR(ROUND(AVERAGE(_xlfn._xlws.FILTER(DerlingBandRez[Derlingumas], (DerlingBandRez[Žemės ūkio augalas] = DerlingumoPokytisDėlŠiaudų[[#This Row],[Pasėlis]]) * (DerlingBandRez[Technologija] = DerlingumoPokytisDėlŠiaudų[[#This Row],[Technologija]]), "-")),2),) -> 4.42
A48: =ROW()-ROW(DerlingumoPokytisDėlŠiaudų[[#Headers],[Eil. Nr.]]) -> 7 | B48: R | C48: Vasariniai miežiai | D48: =IFERROR(ROUND(AVERAGE(_xlfn._xlws.FILTER(DerlingBandRez[Derlingumas], (DerlingBandRez[Žemės ūkio augalas] = DerlingumoPokytisDėlŠiaudų[[#This Row],[Pasėlis]]) * (DerlingBandRez[Technologija] = DerlingumoPokytisDėlŠiaudų[[#This Row],[Technologija]]), "-")),2),) -> 0
A49: =ROW()-ROW(DerlingumoPokytisDėlŠiaudų[[#Headers],[Eil. Nr.]]) -> 8 | B49: S | C49: Vasariniai miežiai | D49: =IFERROR(ROUND(AVERAGE(_xlfn._xlws.FILTER(DerlingBandRez[Derlingumas], (DerlingBandRez[Žemės ūkio augalas] = DerlingumoPokytisDėlŠiaudų[[#This Row],[Pasėlis]]) * (DerlingBandRez[Technologija] = DerlingumoPokytisDėlŠiaudų[[#This Row],[Technologija]]), "-")),2),) -> 0
A50: =ROW()-ROW(DerlingumoPokytisDėlŠiaudų[[#Headers],[Eil. Nr.]]) -> 9 | B50: Gilus arimas (GA) | C50: Vasariniai rapsai | D50: =IFERROR(ROUND(AVERAGE(_xlfn._xlws.FILTER(DerlingBandRez[Derlingumas], (DerlingBandRez[Žemės ūkio augalas] = DerlingumoPokytisDėlŠiaudų[[#This Row],[Pasėlis]]) * (DerlingBandRez[Technologija] = DerlingumoPokytisDėlŠiaudų[[#This Row],[Technologija]]), "-")),2),) -> 1.57
A51: =ROW()-ROW(DerlingumoPokytisDėlŠiaudų[[#Headers],[Eil. Nr.]]) -> 10 | B51: Seklus arimas (SA) | C51: Vasariniai rapsai | D51: =IFERROR(ROUND(AVERAGE(_xlfn._xlws.FILTER(DerlingBandRez[Derlingumas], (DerlingBandRez[Žemės ūkio augalas] = DerlingumoPokytisDėlŠiaudų[[#This Row],[Pasėlis]]) * (DerlingBandRez[Technologija] = DerlingumoPokytisDėlŠiaudų[[#This Row],[Technologija]]), "-")),2),) -> 1.56
A52: =ROW()-ROW(DerlingumoPokytisDėlŠiaudų[[#Headers],[Eil. Nr.]]) -> 11 | B52: Seklus purenimas rudenį (SPR) | C52: Vasariniai rapsai | D52: =IFERROR(ROUND(AVERAGE(_xlfn._xlws.FILTER(DerlingBandRez[Derlingumas], (DerlingBandRez[Žemės ūkio augalas] = DerlingumoPokytisDėlŠiaudų[[#This Row],[Pasėlis]]) * (DerlingBandRez[Technologija] = DerlingumoPokytisDėlŠiaudų[[#This Row],[Technologija]]), "-")),2),) -> 1.48
A53: =ROW()-ROW(DerlingumoPokytisDėlŠiaudų[[#Headers],[Eil. Nr.]]) -> 12 | B53: Seklus purenimas prieš sėją (SPS) | C53: Vasariniai rapsai | D53: =IFERROR(ROUND(AVERAGE(_xlfn._xlws.FILTER(DerlingBandRez[Derlingumas], (DerlingBandRez[Žemės ūkio augalas] = DerlingumoPokytisDėlŠiaudų[[#This Row],[Pasėlis]]) * (DerlingBandRez[Technologija] = DerlingumoPokytisDėlŠiaudų[[#This Row],[Technologija]]), "-")),2),) -> 1.51
A54: =ROW()-ROW(DerlingumoPokytisDėlŠiaudų[[#Headers],[Eil. Nr.]]) -> 13 | B54: Tarpiniai pasėliai (TP) | C54: Vasariniai rapsai | D54: =IFERROR(ROUND(AVERAGE(_xlfn._xlws.FILTER(DerlingBandRez[Derlingumas], (DerlingBandRez[Žemės ūkio augalas] = DerlingumoPokytisDėlŠiaudų[[#This Row],[Pasėlis]]) * (DerlingBandRez[Technologija] = DerlingumoPokytisDėlŠiaudų[[#This Row],[Technologija]]), "-")),2),) -> 1.3
A55: =ROW()-ROW(DerlingumoPokytisDėlŠiaudų[[#Headers],[Eil. Nr.]]) -> 14 | B55: Tiesioginė sėja (TS) | C55: Vasariniai rapsai | D55: =IFERROR(ROUND(AVERAGE(_xlfn._xlws.FILTER(DerlingBandRez[Derlingumas], (DerlingBandRez[Žemės ūkio augalas] = DerlingumoPokytisDėlŠiaudų[[#This Row],[Pasėlis]]) * (DerlingBandRez[Technologija] = DerlingumoPokytisDėlŠiaudų[[#This Row],[Technologija]]), "-")),2),) -> 1.48
A56: =ROW()-ROW(DerlingumoPokytisDėlŠiaudų[[#Headers],[Eil. Nr.]]) -> 15 | B56: R | C56: Vasariniai rapsai | D56: =IFERROR(ROUND(AVERAGE(_xlfn._xlws.FILTER(DerlingBandRez[Derlingumas], (DerlingBandRez[Žemės ūkio augalas] = DerlingumoPokytisDėlŠiaudų[[#This Row],[Pasėlis]]) * (DerlingBandRez[Technologija] = DerlingumoPokytisDėlŠiaudų[[#This Row],[Technologija]]), "-")),2),) -> 0
A57: =ROW()-ROW(DerlingumoPokytisDėlŠiaudų[[#Headers],[Eil. Nr.]]) -> 16 | B57: S | C57: Vasariniai rapsai | D57: =IFERROR(ROUND(AVERAGE(_xlfn._xlws.FILTER(DerlingBandRez[Derlingumas], (DerlingBandRez[Žemės ūkio augalas] = DerlingumoPokytisDėlŠiaudų[[#This Row],[Pasėlis]]) * (DerlingBandRez[Technologija] = DerlingumoPokytisDėlŠiaudų[[#This Row],[Technologija]]), "-")),2),) -> 0
A58: =ROW()-ROW(DerlingumoPokytisDėlŠiaudų[[#Headers],[Eil. Nr.]]) -> 17 | B58: Gilus arimas (GA) | C58: Žieminiai kviečiai | D58: =IFERROR(ROUND(AVERAGE(_xlfn._xlws.FILTER(DerlingBandRez[Derlingumas], (DerlingBandRez[Žemės ūkio augalas] = DerlingumoPokytisDėlŠiaudų[[#This Row],[Pasėlis]]) * (DerlingBandRez[Technologija] = DerlingumoPokytisDėlŠiaudų[[#This Row],[Technologija]]), "-")),2),) -> 8.35
A59: =ROW()-ROW(DerlingumoPokytisDėlŠiaudų[[#Headers],[Eil. Nr.]]) -> 18 | B59: Seklus arimas (SA) | C59: Žieminiai kviečiai | D59: =IFERROR(ROUND(AVERAGE(_xlfn._xlws.FILTER(DerlingBandRez[Derlingumas], (DerlingBandRez[Žemės ūkio augalas] = DerlingumoPokytisDėlŠiaudų[[#This Row],[Pasėlis]]) * (DerlingBandRez[Technologija] = DerlingumoPokytisDėlŠiaudų[[#This Row],[Technologija]]), "-")),2),) -> 8.16
A60: =ROW()-ROW(DerlingumoPokytisDėlŠiaudų[[#Headers],[Eil. Nr.]]) -> 19 | B60: Seklus purenimas rudenį (SPR) | C60: Žieminiai kviečiai | D60: =IFERROR(ROUND(AVERAGE(_xlfn._xlws.FILTER(DerlingBandRez[Derlingumas], (DerlingBandRez[Žemės ūkio augalas] = DerlingumoPokytisDėlŠiaudų[[#This Row],[Pasėlis]]) * (DerlingBandRez[Technologija] = DerlingumoPokytisDėlŠiaudų[[#This Row],[Technologija]]), "-")),2),) -> 8.26
A61: =ROW()-ROW(DerlingumoPokytisDėlŠiaudų[[#Headers],[Eil. Nr.]]) -> 20 | B61: Seklus purenimas prieš sėją (SPS) | C61: Žieminiai kviečiai | D61: =IFERROR(ROUND(AVERAGE(_xlfn._xlws.FILTER(DerlingBandRez[Derlingumas], (DerlingBandRez[Žemės ūkio augalas] = DerlingumoPokytisDėlŠiaudų[[#This Row],[Pasėlis]]) * (DerlingBandRez[Technologija] = DerlingumoPokytisDėlŠiaudų[[#This Row],[Technologija]]), "-")),2),) -> 9.28
A62: =ROW()-ROW(DerlingumoPokytisDėlŠiaudų[[#Headers],[Eil. Nr.]]) -> 21 | B62: Tarpiniai pasėliai (TP) | C62: Žieminiai kviečiai | D62: =IFERROR(ROUND(AVERAGE(_xlfn._xlws.FILTER(DerlingBandRez[Derlingumas], (DerlingBandRez[Žemės ūkio augalas] = DerlingumoPokytisDėlŠiaudų[[#This Row],[Pasėlis]]) * (DerlingBandRez[Technologija] = DerlingumoPokytisDėlŠiaudų[[#This Row],[Technologija]]), "-")),2),) -> 9.23
A63: =ROW()-ROW(DerlingumoPokytisDėlŠiaudų[[#Headers],[Eil. Nr.]]) -> 22 | B63: Tiesioginė sėja (TS) | C63: Žieminiai kviečiai | D63: =IFERROR(ROUND(AVERAGE(_xlfn._xlws.FILTER(DerlingBandRez[Derlingumas], (DerlingBandRez[Žemės ūkio augalas] = DerlingumoPokytisDėlŠiaudų[[#This Row],[Pasėlis]]) * (DerlingBandRez[Technologija] = DerlingumoPokytisDėlŠiaudų[[#This Row],[Technologija]]), "-")),2),) -> 8.92
A64: =ROW()-ROW(DerlingumoPokytisDėlŠiaudų[[#Headers],[Eil. Nr.]]) -> 23 | B64: R | C64: Žieminiai kviečiai | D64: =IFERROR(ROUND(AVERAGE(_xlfn._xlws.FILTER(DerlingBandRez[Derlingumas], (DerlingBandRez[Žemės ūkio augalas] = DerlingumoPokytisDėlŠiaudų[[#This Row],[Pasėlis]]) * (DerlingBandRez[Technologija] = DerlingumoPokytisDėlŠiaudų[[#This Row],[Technologija]]), "-")),2),) -> 0
A65: =ROW()-ROW(DerlingumoPokytisDėlŠiaudų[[#Headers],[Eil. Nr.]]) -> 24 | B65: S | C65: Žieminiai kviečiai | D65: =IFERROR(ROUND(AVERAGE(_xlfn._xlws.FILTER(DerlingBandRez[Derlingumas], (DerlingBandRez[Žemės ūkio augalas] = DerlingumoPokytisDėlŠiaudų[[#This Row],[Pasėlis]]) * (DerlingBandRez[Technologija] = DerlingumoPokytisDėlŠiaudų[[#This Row],[Technologija]]), "-")),2),) -> 0
A66: =ROW()-ROW(DerlingumoPokytisDėlŠiaudų[[#Headers],[Eil. Nr.]]) -> 25 | B66: Gilus arimas (GA) | C66: Žieminiai rapsai | D66: =IFERROR(ROUND(AVERAGE(_xlfn._xlws.FILTER(DerlingBandRez[Derlingumas], (DerlingBandRez[Žemės ūkio augalas] = DerlingumoPokytisDėlŠiaudų[[#This Row],[Pasėlis]]) * (DerlingBandRez[Technologija] = DerlingumoPokytisDėlŠiaudų[[#This Row],[Technologija]]), "-")),2),) -> 2.37
A67: =ROW()-ROW(DerlingumoPokytisDėlŠiaudų[[#Headers],[Eil. Nr.]]) -> 26 | B67: Seklus arimas (SA) | C67: Žieminiai rapsai | D67: =IFERROR(ROUND(AVERAGE(_xlfn._xlws.FILTER(DerlingBandRez[Derlingumas], (DerlingBandRez[Žemės ūkio augalas] = DerlingumoPokytisDėlŠiaudų[[#This Row],[Pasėlis]]) * (DerlingBandRez[Technologija] = DerlingumoPokytisDėlŠiaudų[[#This Row],[Technologija]]), "-")),2),) -> 2.39
A68: =ROW()-ROW(DerlingumoPokytisDėlŠiaudų[[#Headers],[Eil. Nr.]]) -> 27 | B68: Seklus purenimas rudenį (SPR) | C68: Žieminiai rapsai | D68: =IFERROR(ROUND(AVERAGE(_xlfn._xlws.FILTER(DerlingBandRez[Derlingumas], (DerlingBandRez[Žemės ūkio augalas] = DerlingumoPokytisDėlŠiaudų[[#This Row],[Pasėlis]]) * (DerlingBandRez[Technologija] = DerlingumoPokytisDėlŠiaudų[[#This Row],[Technologija]]), "-")),2),) -> 2.48
A69: =ROW()-ROW(DerlingumoPokytisDėlŠiaudų[[#Headers],[Eil. Nr.]]) -> 28 | B69: Seklus purenimas prieš sėją (SPS) | C69: Žieminiai rapsai | D69: =IFERROR(ROUND(AVERAGE(_xlfn._xlws.FILTER(DerlingBandRez[Derlingumas], (DerlingBandRez[Žemės ūkio augalas] = DerlingumoPokytisDėlŠiaudų[[#This Row],[Pasėlis]]) * (DerlingBandRez[Technologija] = DerlingumoPokytisDėlŠiaudų[[#This Row],[Technologija]]), "-")),2),) -> 2.85
A70: =ROW()-ROW(DerlingumoPokytisDėlŠiaudų[[#Headers],[Eil. Nr.]]) -> 29 | B70: Tarpiniai pasėliai (TP) | C70: Žieminiai rapsai | D70: =IFERROR(ROUND(AVERAGE(_xlfn._xlws.FILTER(DerlingBandRez[Derlingumas], (DerlingBandRez[Žemės ūkio augalas] = DerlingumoPokytisDėlŠiaudų[[#This Row],[Pasėlis]]) * (DerlingBandRez[Technologija] = DerlingumoPokytisDėlŠiaudų[[#This Row],[Technologija]]), "-")),2),) -> 3.11
A71: =ROW()-ROW(DerlingumoPokytisDėlŠiaudų[[#Headers],[Eil. Nr.]]) -> 30 | B71: Tiesioginė sėja (TS) | C71: Žieminiai rapsai | D71: =IFERROR(ROUND(AVERAGE(_xlfn._xlws.FILTER(DerlingBandRez[Derlingumas], (DerlingBandRez[Žemės ūkio augalas] = DerlingumoPokytisDėlŠiaudų[[#This Row],[Pasėlis]]) * (DerlingBandRez[Technologija] = DerlingumoPokytisDėlŠiaudų[[#This Row],[Technologija]]), "-")),2),) -> 3.37
A72: =ROW()-ROW(DerlingumoPokytisDėlŠiaudų[[#Headers],[Eil. Nr.]]) -> 31 | B72: R | C72: Žieminiai rapsai | D72: =IFERROR(ROUND(AVERAGE(_xlfn._xlws.FILTER(DerlingBandRez[Derlingumas], (DerlingBandRez[Žemės ūkio augalas] = DerlingumoPokytisDėlŠiaudų[[#This Row],[Pasėlis]]) * (DerlingBandRez[Technologija] = DerlingumoPokytisDėlŠiaudų[[#This Row],[Technologija]]), "-")),2),) -> 0
A73: =ROW()-ROW(DerlingumoPokytisDėlŠiaudų[[#Headers],[Eil. Nr.]]) -> 32 | B73: S | C73: Žieminiai rapsai | D73: =IFERROR(ROUND(AVERAGE(_xlfn._xlws.FILTER(DerlingBandRez[Derlingumas], (DerlingBandRez[Žemės ūkio augalas] = DerlingumoPokytisDėlŠiaudų[[#This Row],[Pasėlis]]) * (DerlingBandRez[Technologija] = DerlingumoPokytisDėlŠiaudų[[#This Row],[Technologija]]), "-")),2),) -> 0

Sheet KainosDB (hidden)
A2: Vidutinės žemės ūkio produkcijos kainos*
A3: Duomenų bazė
A10: Eil. Nr. | B10: Žemės ūkio produktas | C10: Produkcijos kaina Eur/t
A11: =ROW()-ROW(Kainos[[#Headers],[Eil. Nr.]]) -> 1 | B11: Kviečiai | C11: 227
A12: =ROW()-ROW(Kainos[[#Headers],[Eil. Nr.]]) -> 2 | B12: Miežiai | C12: 203
A13: =ROW()-ROW(Kainos[[#Headers],[Eil. Nr.]]) -> 3 | B13: Rapsai | C13: 451
A14: =ROW()-ROW(Kainos[[#Headers],[Eil. Nr.]]) -> 4 | B14: Kiti grūdai | C14: 170

Sheet ŽŪ išteklių kainų indeksai (hidden)
A3: Žemės ūkio produkcijos gamybos reikmėms įsigytų prekių ir paslaugų kainų indeksai (2018 m. – 100), Žemės ūkio investicijoms panaudotų prekių kainų indeksai (2018 m. – 100)
A10: Eil. Nr. | B10: Metai | C10: Ištekliai ir investicijos | D10: Indeksas
A11: =ROW()-ROW(Lentelė9[[#Headers],[Eil. Nr.]]) -> 1 | B11: 2015 | C11: Visos prekės ir paslaugos | D11: 0.8583690987
A12: =ROW()-ROW(Lentelė9[[#Headers],[Eil. Nr.]]) -> 2 | B12: 2015 | C12: Priemonės | D12: 0.9940357853
A13: =ROW()-ROW(Lentelė9[[#Headers],[Eil. Nr.]]) -> 3 | B13: 2015 | C13: Mašinos ir kiti įrenginiai | D13: 0.772797527
A14: =ROW()-ROW(Lentelė9[[#Headers],[Eil. Nr.]]) -> 4 | B14: 2015 | C14: Plūgai ir dviratė technika | D14: 0.8488964346
A15: =ROW()-ROW(Lentelė9[[#Headers],[Eil. Nr.]]) -> 5 | B15: 2015 | C15: Mašinos ir kultivatoriai | D15: 1.154734411
A16: =ROW()-ROW(Lentelė9[[#Headers],[Eil. Nr.]]) -> 6 | B16: 2015 | C16: Mašinos ir derliaus nuėmimo mašinos | D16: 0.705716302
A17: =ROW()-ROW(Lentelė9[[#Headers],[Eil. Nr.]]) -> 7 | B17: 2015 | C17: Žemės ūkio mašinos ir įrenginiai | D17: 1.061571125
A18: =ROW()-ROW(Lentelė9[[#Headers],[Eil. Nr.]]) -> 8 | B18: 2015 | C18: Žemės ūkio mašinos ir įrenginiai, naudojami augalininkystės produktų gamybai | D18: 0.8912655971
A19: =ROW()-ROW(Lentelė9[[#Headers],[Eil. Nr.]]) -> 9 | B19: 2015 | C19: Traktoriai (Ratiniai) | D19: 1.275510204
A20: =ROW()-ROW(Lentelė9[[#Headers],[Eil. Nr.]]) -> 10 | B20: 2016 | C20: Visos prekės ir paslaugos | D20: 1.075536481
A21: =ROW()-ROW(Lentelė9[[#Headers],[Eil. Nr.]]) -> 11 | B21: 2016 | C21: Priemonės | D21: 1.05666004
A22: =ROW()-ROW(Lentelė9[[#Headers],[Eil. Nr.]]) -> 12 | B22: 2016 | C22: Mašinos ir kiti įrenginiai | D22: 0.8423493045
A23: =ROW()-ROW(Lentelė9[[#Headers],[Eil. Nr.]]) -> 13 | B23: 2016 | C23: Plūgai ir dviratė technika | D23: 1.279286927
A24: =ROW()-ROW(Lentelė9[[#Headers],[Eil. Nr.]]) -> 14 | B24: 2016 | C24: Mašinos ir kultivatoriai | D24: 1.359122402
A25: =ROW()-ROW(Lentelė9[[#Headers],[Eil. Nr.]]) -> 15 | B25: 2016 | C25: Mašinos ir derliaus nuėmimo mašinos | D25: 0.7268877911
A26: =ROW()-ROW(Lentelė9[[#Headers],[Eil. Nr.]]) -> 16 | B26: 2016 | C26: Žemės ūkio mašinos ir įrenginiai | D26: 0.957537155
A27: =ROW()-ROW(Lentelė9[[#Headers],[Eil. Nr.]]) -> 17 | B27: 2016 | C27: Žemės ūkio mašinos ir įrenginiai, naudojami augalininkystės produktų gamybai | D27: 0.8975044563
A28: =ROW()-ROW(Lentelė9[[#Headers],[Eil. Nr.]]) -> 18 | B28: 2016 | C28: Traktoriai (Ratiniai) | D28: 1.329081633
A29: =ROW()-ROW(Lentelė9[[#Headers],[Eil. Nr.]]) -> 19 | B29: 2017 | C29: Visos prekės ir paslaugos | D29: 1.089270386
A30: =ROW()-ROW(Lentelė9[[#Headers],[Eil. Nr.]]) -> 20 | B30: 2017 | C30: Priemonės | D30: 0.8787276342
A31: =ROW()-ROW(Lentelė9[[#Headers],[Eil. Nr.]]) -> 21 | B31: 2017 | C31: Mašinos ir kiti įrenginiai | D31: 0.7658423493
A32: =ROW()-ROW(Lentelė9[[#Headers],[Eil. Nr.]]) -> 22 | B32: 2017 | C32: Plūgai ir dviratė technika | D32: 0.7894736842
A33: =ROW()-ROW(Lentelė9[[#Headers],[Eil. Nr.]]) -> 23 | B33: 2017 | C33: Mašinos ir kultivatoriai | D33: 1.390300231
A34: =ROW()-ROW(Lentelė9[[#Headers],[Eil. Nr.]]) -> 24 | B34: 2017 | C34: Mašinos ir derliaus nuėmimo mašinos | D34: 0.6711362032
A35: =ROW()-ROW(Lentelė9[[#Headers],[Eil. Nr.]]) -> 25 | B35: 2017 | C35: Žemės ūkio mašinos ir įrenginiai | D35: 1.059447983
A36: =ROW()-ROW(Lentelė9[[#Headers],[Eil. Nr.]]) -> 26 | B36: 2017 | C36: Žemės ūkio mašinos ir įrenginiai, naudojami augalininkystės produktų gamybai | D36: 0.8368983957
A37: =ROW()-ROW(Lentelė9[[#Headers],[Eil. Nr.]]) -> 27 | B37: 2017 | C37: Traktoriai (Ratiniai) | D37: 1.024234694
A38: =ROW()-ROW(Lentelė9[[#Headers],[Eil. Nr.]]) -> 28 | B38: 2018 | C38: Visos prekės ir paslaugos | D38: 1
A39: =ROW()-ROW(Lentelė9[[#Headers],[Eil. Nr.]]) -> 29 | B39: 2018 | C39: Priemonės | D39: 1
A40: =ROW()-ROW(Lentelė9[[#Headers],[Eil. Nr.]]) -> 30 | B40: 2018 | C40: Mašinos ir kiti įrenginiai | D40: 1
A41: =ROW()-ROW(Lentelė9[[#Headers],[Eil. Nr.]]) -> 31 | B41: 2018 | C41: Plūgai ir dviratė technika | D41: 1
A42: =ROW()-ROW(Lentelė9[[#Headers],[Eil. Nr.]]) -> 32 | B42: 2018 | C42: Mašinos ir kultivatoriai | D42: 1
A43: =ROW()-ROW(Lentelė9[[#Headers],[Eil. Nr.]]) -> 33 | B43: 2018 | C43: Mašinos ir derliaus nuėmimo mašinos | D43: 1
A44: =ROW()-ROW(Lentelė9[[#Headers],[Eil. Nr.]]) -> 34 | B44: 2018 | C44: Žemės ūkio mašinos ir įrenginiai | D44: 1
A45: =ROW()-ROW(Lentelė9[[#Headers],[Eil. Nr.]]) -> 35 | B45: 2018 | C45: Žemės ūkio mašinos ir įrenginiai, naudojami augalininkystės produktų gamybai | D45: 1
A46: =ROW()-ROW(Lentelė9[[#Headers],[Eil. Nr.]]) -> 36 | B46: 2018 | C46: Traktoriai (Ratiniai) | D46: 1
A47: =ROW()-ROW(Lentelė9[[#Headers],[Eil. Nr.]]) -> 37 | B47: 2019 | C47: Visos prekės ir paslaugos | D47: 0.8111587983
A48: =ROW()-ROW(Lentelė9[[#Headers],[Eil. Nr.]]) -> 38 | B48: 2019 | C48: Priemonės | D48: 0.7365805169
A49: =ROW()-ROW(Lentelė9[[#Headers],[Eil. Nr.]]) -> 39 | B49: 2019 | C49: Mašinos ir kiti įrenginiai | D49: 0.7248840804
A50: =ROW()-ROW(Lentelė9[[#Headers],[Eil. Nr.]]) -> 40 | B50: 2019 | C50: Plūgai ir dviratė technika | D50: 0.2962648557
A51: =ROW()-ROW(Lentelė9[[#Headers],[Eil. Nr.]]) -> 41 | B51: 2019 | C51: Mašinos ir kultivatoriai | D51: 0.8868360277
A52: =ROW()-ROW(Lentelė9[[#Headers],[Eil. Nr.]]) -> 42 | B52: 2019 | C52: Mašinos ir derliaus nuėmimo mašinos | D52: 0.7353563867
A53: =ROW()-ROW(Lentelė9[[#Headers],[Eil. Nr.]]) -> 43 | B53: 2019 | C53: Žemės ūkio mašinos ir įrenginiai | D53: 1.043524416
A54: =ROW()-ROW(Lentelė9[[#Headers],[Eil. Nr.]]) -> 44 | B54: 2019 | C54: Žemės ūkio mašinos ir įrenginiai, naudojami augalininkystės produktų gamybai | D54: 1.054367201
A55: =ROW()-ROW(Lentelė9[[#Headers],[Eil. Nr.]]) -> 45 | B55: 2019 | C55: Traktoriai (Ratiniai) | D55: 0.7512755102
A56: =ROW()-ROW(Lentelė9[[#Headers],[Eil. Nr.]]) -> 46 | B56: 2020 | C56: Visos prekės ir paslaugos | D56: 0.886695279
A57: =ROW()-ROW(Lentelė9[[#Headers],[Eil. Nr.]]) -> 47 | B57: 2020 | C57: Priemonės | D57: 0.9711729622
A58: =ROW()-ROW(Lentelė9[[#Headers],[Eil. Nr.]]) -> 48 | B58: 2020 | C58: Mašinos ir kiti įrenginiai | D58: 0.7913446677
A59: =ROW()-ROW(Lentelė9[[#Headers],[Eil. Nr.]]) -> 49 | B59: 2020 | C59: Plūgai ir dviratė technika | D59: 0.5679117148
A60: =ROW()-ROW(Lentelė9[[#Headers],[Eil. Nr.]]) -> 50 | B60: 2020 | C60: Mašinos ir kultivatoriai | D60: 0.9041570439
A61: =ROW()-ROW(Lentelė9[[#Headers],[Eil. Nr.]]) -> 51 | B61: 2020 | C61: Mašinos ir derliaus nuėmimo mašinos | D61: 0.7889908257
A62: =ROW()-ROW(Lentelė9[[#Headers],[Eil. Nr.]]) -> 52 | B62: 2020 | C62: Žemės ūkio mašinos ir įrenginiai | D62: 1.093418259
A63: =ROW()-ROW(Lentelė9[[#Headers],[Eil. Nr.]]) -> 53 | B63: 2020 | C63: Žemės ūkio mašinos ir įrenginiai, naudojami augalininkystės produktų gamybai | D63: 0.9304812834
A64: =ROW()-ROW(Lentelė9[[#Headers],[Eil. Nr.]]) -> 54 | B64: 2020 | C64: Traktoriai (Ratiniai) | D64: 1.198979592
A65: =ROW()-ROW(Lentelė9[[#Headers],[Eil. Nr.]]) -> 55 | B65: 2021 | C65: Visos prekės ir paslaugos | D65: 1.012875536
A66: =ROW()-ROW(Lentelė9[[#Headers],[Eil. Nr.]]) -> 56 | B66: 2021 | C66: Priemonės | D66: 1.136182903
A67: =ROW()-ROW(Lentelė9[[#Headers],[Eil. Nr.]]) -> 57 | B67: 2021 | C67: Mašinos ir kiti įrenginiai | D67: 0.9451313756
A68: =ROW()-ROW(Lentelė9[[#Headers],[Eil. Nr.]]) -> 58 | B68: 2021 | C68: Plūgai ir dviratė technika | D68: 0.5670628183
A69: =ROW()-ROW(Lentelė9[[#Headers],[Eil. Nr.]]) -> 59 | B69: 2021 | C69: Mašinos ir kultivatoriai | D69: 1.24595843
A70: =ROW()-ROW(Lentelė9[[#Headers],[Eil. Nr.]]) -> 60 | B70: 2021 | C70: Mašinos ir derliaus nuėmimo mašinos | D70: 0.9371912491
A71: =ROW()-ROW(Lentelė9[[#Headers],[Eil. Nr.]]) -> 61 | B71: 2021 | C71: Žemės ūkio mašinos ir įrenginiai | D71: 1.100849257
A72: =ROW()-ROW(Lentelė9[[#Headers],[Eil. Nr.]]) -> 62 | B72: 2021 | C72: Žemės ūkio mašinos ir įrenginiai, naudojami augalininkystės produktų gamybai | D72: 0.8609625668
A73: =ROW()-ROW(Lentelė9[[#Headers],[Eil. Nr.]]) -> 63 | B73: 2021 | C73: Traktoriai (Ratiniai) | D73: 1.378826531
A74: =ROW()-ROW(Lentelė9[[#Headers],[Eil. Nr.]]) -> 64 | B74: 2022 | C74: Visos prekės ir paslaugos | D74: 1.074678112
A75: =ROW()-ROW(Lentelė9[[#Headers],[Eil. Nr.]]) -> 65 | B75: 2022 | C75: Priemonės | D75: 1.097415507
A76: =ROW()-ROW(Lentelė9[[#Headers],[Eil. Nr.]]) -> 66 | B76: 2022 | C76: Mašinos ir kiti įrenginiai | D76: 1.123647604
A77: =ROW()-ROW(Lentelė9[[#Headers],[Eil. Nr.]]) -> 67 | B77: 2022 | C77: Plūgai ir dviratė technika | D77: 0.4855687606
A78: =ROW()-ROW(Lentelė9[[#Headers],[Eil. Nr.]]) -> 68 | B78: 2022 | C78: Mašinos ir kultivatoriai | D78: 1.427251732
A79: =ROW()-ROW(Lentelė9[[#Headers],[Eil. Nr.]]) -> 69 | B79: 2022 | C79: Mašinos ir derliaus nuėmimo mašinos | D79: 1.119971771
A80: =ROW()-ROW(Lentelė9[[#Headers],[Eil. Nr.]]) -> 70 | B80: 2022 | C80: Žemės ūkio mašinos ir įrenginiai | D80: 2.008492569
A81: =ROW()-ROW(Lentelė9[[#Headers],[Eil. Nr.]]) -> 71 | B81: 2022 | C81: Žemės ūkio mašinos ir įrenginiai, naudojami augalininkystės produktų gamybai | D81: 1.270053476
A82: =ROW()-ROW(Lentelė9[[#Headers],[Eil. Nr.]]) -> 72 | B82: 2022 | C82: Traktoriai (Ratiniai) | D82: 1.06505102
A83: =ROW()-ROW(Lentelė9[[#Headers],[Eil. Nr.]]) -> 73 | B83: 2023 | C83: Visos prekės ir paslaugos | D83: 1.04806867
A84: =ROW()-ROW(Lentelė9[[#Headers],[Eil. Nr.]]) -> 74 | B84: 2023 | C84: Priemonės | D84: 1.115308151
A85: =ROW()-ROW(Lentelė9[[#Headers],[Eil. Nr.]]) -> 75 | B85: 2023 | C85: Mašinos ir kiti įrenginiai | D85: 1.325347759
A86: =ROW()-ROW(Lentelė9[[#Headers],[Eil. Nr.]]) -> 76 | B86: 2023 | C86: Plūgai ir dviratė technika | D86: 0.6485568761
A87: =ROW()-ROW(Lentelė9[[#Headers],[Eil. Nr.]]) -> 77 | B87: 2023 | C87: Mašinos ir kultivatoriai | D87: 1.767898383
A88: =ROW()-ROW(Lentelė9[[#Headers],[Eil. Nr.]]) -> 78 | B88: 2023 | C88: Mašinos ir derliaus nuėmimo mašinos | D88: 1.306986591
A89: =ROW()-ROW(Lentelė9[[#Headers],[Eil. Nr.]]) -> 79 | B89: 2023 | C89: Žemės ūkio mašinos ir įrenginiai | D89: 2.191082803
A90: =ROW()-ROW(Lentelė9[[#Headers],[Eil. Nr.]]) -> 80 | B90: 2023 | C90: Žemės ūkio mašinos ir įrenginiai, naudojami augalininkystės produktų gamybai | D90: 1.533868093
A91: =ROW()-ROW(Lentelė9[[#Headers],[Eil. Nr.]]) -> 81 | B91: 2023 | C91: Traktoriai (Ratiniai) | D91: 0.8469387755

Sheet Technikos kainos (hidden)
A8: 2 lentelė. TRAKTORIŲ GALIA IR VIDUTINĖS RINKOS KAINOS
A10: Eil. Nr. | B10: Gaimybos šalis | C10: Variklio galia, KW | D10: Variklio galia, AG | E10: Vidutinė kaina, tūkst. Eur | F10: Kainos nustatymo metai
A11: =ROW()-ROW(Lentelė20[[#Headers],[Eil. Nr.]]) -> 1 | B11: Vakarų Europos gamybos traktoriai | C11: 30 | D11: 40.8 | E11: 18.45 | F11: 2018
A12: =ROW()-ROW(Lentelė20[[#Headers],[Eil. Nr.]]) -> 2 | B12: Vakarų Europos gamybos traktoriai | C12: 37 | D12: 50.3 | E12: 20.17 | F12: 2018
A13: =ROW()-ROW(Lentelė20[[#Headers],[Eil. Nr.]]) -> 3 | B13: Vakarų Europos gamybos traktoriai | C13: 45 | D13: 61.2 | E13: 25.24 | F13: 2018
A14: =ROW()-ROW(Lentelė20[[#Headers],[Eil. Nr.]]) -> 4 | B14: Vakarų Europos gamybos traktoriai | C14: 54 | D14: 73.4 | E14: 31.43 | F14: 2018
A15: =ROW()-ROW(Lentelė20[[#Headers],[Eil. Nr.]]) -> 5 | B15: Vakarų Europos gamybos traktoriai | C15: 67 | D15: 91.1 | E15: 40.9 | F15: 2018
A16: =ROW()-ROW(Lentelė20[[#Headers],[Eil. Nr.]]) -> 6 | B16: Vakarų Europos gamybos traktoriai | C16: 83 | D16: 112.9 | E16: 57.12 | F16: 2018
A17: =ROW()-ROW(Lentelė20[[#Headers],[Eil. Nr.]]) -> 7 | B17: Vakarų Europos gamybos traktoriai | C17: 102 | D17: 138.7 | E17: 70.6 | F17: 2018
A18: =ROW()-ROW(Lentelė20[[#Headers],[Eil. Nr.]]) -> 8 | B18: Vakarų Europos gamybos traktoriai | C18: 120 | D18: 163.2 | E18: 83.4 | F18: 2018
A19: =ROW()-ROW(Lentelė20[[#Headers],[Eil. Nr.]]) -> 9 | B19: Vakarų Europos gamybos traktoriai | C19: 138 | D19: 187.7 | E19: 91.1 | F19: 2018
A20: =ROW()-ROW(Lentelė20[[#Headers],[Eil. Nr.]]) -> 10 | B20: Vakarų Europos gamybos traktoriai | C20: 157 | D20: 213.5 | E20: 106.6 | F20: 2018
A21: =ROW()-ROW(Lentelė20[[#Headers],[Eil. Nr.]]) -> 11 | B21: Vakarų Europos gamybos traktoriai | C21: 176 | D21: 239.4 | E21: 123.6 | F21: 2018
A22: =ROW()-ROW(Lentelė20[[#Headers],[Eil. Nr.]]) -> 12 | B22: Vakarų Europos gamybos traktoriai | C22: 190 | D22: 258.4 | E22: 136.86 | F22: 2018
A23: =ROW()-ROW(Lentelė20[[#Headers],[Eil. Nr.]]) -> 13 | B23: Vakarų Europos gamybos traktoriai | C23: 200 | D23: 272 | E23: 144.1 | F23: 2018
A24: =ROW()-ROW(Lentelė20[[#Headers],[Eil. Nr.]]) -> 14 | B24: Vakarų Europos gamybos traktoriai | C24: 225 | D24: 306 | E24: 169.4 | F24: 2018
A25: =ROW()-ROW(Lentelė20[[#Headers],[Eil. Nr.]]) -> 15 | B25: Vakarų Europos gamybos traktoriai | C25: 233 | D25: 316.9 | E25: 175.5 | F25: 2018
A26: =ROW()-ROW(Lentelė20[[#Headers],[Eil. Nr.]]) -> 16 | B26: Vakarų Europos gamybos traktoriai | C26: 275 | D26: 374 | E26: 201.8 | F26: 2018
A27: =ROW()-ROW(Lentelė20[[#Headers],[Eil. Nr.]]) -> 17 | B27: Vakarų Europos gamybos traktoriai | C27: 338 | D27: 459.7 | E27: 250.22 | F27: 2018
A28: =ROW()-ROW(Lentelė20[[#Headers],[Eil. Nr.]]) -> 18 | B28: NVS šalių gamybos traktoriai | C28: 36 | D28: 49 | E28: 15.27 | F28: 2018
A29: =ROW()-ROW(Lentelė20[[#Headers],[Eil. Nr.]]) -> 19 | B29: NVS šalių gamybos traktoriai | C29: 59 | D29: 80.2 | E29: 25.1 | F29: 2018
A30: =ROW()-ROW(Lentelė20[[#Headers],[Eil. Nr.]]) -> 20 | B30: NVS šalių gamybos traktoriai | C30: 70 | D30: 95.2 | E30: 28.22 | F30: 2018
A31: =ROW()-ROW(Lentelė20[[#Headers],[Eil. Nr.]]) -> 21 | B31: NVS šalių gamybos traktoriai | C31: 81 | D31: 110.2 | E31: 30.9 | F31: 2018
A32: =ROW()-ROW(Lentelė20[[#Headers],[Eil. Nr.]]) -> 22 | B32: NVS šalių gamybos traktoriai | C32: 100 | D32: 136 | E32: 38.62 | F32: 2018
A33: =ROW()-ROW(Lentelė20[[#Headers],[Eil. Nr.]]) -> 23 | B33: NVS šalių gamybos traktoriai | C33: 115 | D33: 156.4 | E33: 48.34 | F33: 2018
A34: =ROW()-ROW(Lentelė20[[#Headers],[Eil. Nr.]]) -> 24 | B34: NVS šalių gamybos traktoriai | C34: 120 | D34: 163.2 | E34: 55.55 | F34: 2018
A35: =ROW()-ROW(Lentelė20[[#Headers],[Eil. Nr.]]) -> 25 | B35: NVS šalių gamybos traktoriai | C35: 220 | D35: 299.2 | E35: 100.8 | F35: 2018

Sheet Darbų įkainiai (hidden)
AB1: Kainų indeksas, lyginant su 2018 metais | AC1: 2023 | AD1: Visos prekės ir paslaugos | AE1: 1.04806867
AC2: 2023 | AD2: Priemonės | AE2: 1.115308151
B3: ŽEMĖS ŪKIO DARBŲ ĮKAINIAI | AC3: 2023 | AD3: Mašinos ir kiti įrenginiai | AE3: 1.325347759
AC4: 2023 | AD4: Plūgai ir dviratė technika | AE4: 0.6485568761
AC5: 2023 | AD5: Mašinos ir kultivatoriai | AE5: 1.767898383
AC6: 2023 | AD6: Mašinos ir derliaus nuėmimo mašinos | AE6: 1.306986591
AC7: 2023 | AD7: Žemės ūkio mašinos ir įrenginiai | AE7: 2.191082803 | AL7: Dyzelino kaina, Eur/l | AM7: Žemės ūkis
AC8: 2023 | AD8: Žemės ūkio mašinos ir įrenginiai, naudojami augalininkystės produktų gamybai | AE8: 1.533868093 | AL8: 2024 | AM8: 2024
AC9: 2023 | AD9: Traktoriai (Ratiniai) | AE9: 0.8469387755 | AF9: =AE6 -> 1.306986591 | AG9: =AE8 -> 1.533868093 | AK9: =+AE8 -> 1.533868093 | AL9: 0.75 | AM9: =_xlfn._xlws.FILTER(DU[Eur/val.],(DU[Metai]=$AM$8) * (DU[Rodiklio apskaičiavimo bazė]=$AM$7)) -> 11.11 | AO9: =AE2 -> 1.115308151 | AQ9: 0.05 | AU9: 2024
A10: Eil. Nr. | B10: Žemės ūkio mašina | C10: Darbinis plotis, m | D10: Tręšimo, išsėjimo, purškimo norma, kg/ha; Derlingumas, t/ha | E10: Traktoriaus (kombaino) galia, kW | F10: Traktoriaus (kombaino) kaina, tūkst. Eur | G10: Žemės ūkio mašinos (cisternos) kaina, tūkst. Eur | H10: Išdirbio norma, ha/val. | I10: Degalų sąnaudų norma, l/ha | J10: Išlaidos atnaujinimui, Eur/ha | K10: Išlaidos remontui ir tech. aptarnavimui, Eur/ha | L10: Išlaidos degalams ir tepalams, Eur/ha | M10: Išlaidos darbo užmokesčiui su priskaitymais, Eur/ha | N10: Išlaidos iš viso, Eur/ha | O10: Kitos, Eur/ha | P10: Savikaina, Eur/ha | Q10: Pelnas, Eur/ha | R10: Įkainis, Eur/ha | S10: Kintamieji kaštai, Eur/ha | T10: Darbas | U10: Įkainio nustatymo metai | V10: Žemės ūkio mašinų kilmė | W10: Papildomas barstytubo parametras, m3 | X10: Aktualus darbo pavadinimas | Y10: Stulpelis1 | AA10: Eil. Nr. | AB10: Žemės ūkio mašina | AC10: Darbinis plotis, m | AD10: Tręšimo, išsėjimo, purškimo norma, kg/ha; Derlingumas, t/ha | AE10: Traktoriaus (kombaino) galia, kW | AF10: Traktoriaus (kombaino) kaina, tūkst. Eur | AG10: Žemės ūkio mašinos (cisternos) kaina, tūkst. Eur | AH10: Išdirbio norma, ha/val. | AI10: Degalų sąnaudų norma, l/ha | AJ10: Išlaidos atnaujinimui, Eur/ha | AK10: Išlaidos remontui ir tech. aptarnavimui, Eur/ha | AL10: Išlaidos degalams ir tepalams, Eur/ha | AM10: Išlaidos darbo užmokesčiui su priskaitymais, Eur/ha | AN10: Išlaidos iš viso, Eur/ha | AO10: Kitos, Eur/ha | AP10: Savikaina, Eur/ha | AQ10: Pelnas, Eur/ha | AR10: Įkainis, Eur/ha | AS10: Kintamieji kaštai, Eur/ha | AT10: Darbas | AU10: Įkainio nustatymo metai | AV10: Žemės ūkio mašinų kilmė | AW10: Papildomas barstytubo parametras, m3 | AX10: Aktualus darbo pavadinimas | AY10: Stulpelis1
A11: =ROW()-ROW(DarbųĮkainiai2018[[#Headers],[Eil. Nr.]]) -> 1 | B11: Pakabinamaisiais apverčiamaisiais plūgais | C11: 0.7 | E11: 45 | F11: 25.24 | G11: 7.02 | H11: 0.36 | I11: 24.6 | J11: 16.22 | K11: 13.96 | L11: 17.47 | M11: 13.19 | N11: 60.83 | O11: 4.87 | P11: 65.7 | Q11: 3.29 | R11: 68.99 | S11: =+DarbųĮkainiai2018[[#This Row],[Įkainis, Eur/ha]]-DarbųĮkainiai2018[[#This Row],[Pelnas, Eur/ha]]-DarbųĮkainiai2018[[#This Row],[Išlaidos atnaujinimui, Eur/ha]] -> 49.48 | T11: DIRVOS DIRBIMAS | U11: 2018 | V11: Vakarų Europos | X11: Gilus arimas | Y11: 14 | AA11: =ROW()-ROW(DarbųĮkainiai2024[[#Headers],[Eil. Nr.]]) -> 1 | AB11: =+DarbųĮkainiai2018[[#This Row],[Žemės ūkio mašina]] -> Pakabinamaisiais apverčiamaisiais plūgais | AC11: =+DarbųĮkainiai2018[[#This Row],[Darbinis plotis, m]] -> 0.7 | AD11: =+DarbųĮkainiai2018[[#This Row],[Tręšimo, išsėjimo, purškimo norma, kg/ha; Derlingumas, t/ha]] -> 0 | AE11: =+DarbųĮkainiai2018[[#This Row],[Traktoriaus (kombaino) galia, kW]] -> 45 | AF11: =ROUND(DarbųĮkainiai2018[[#This Row],[Traktoriaus (kombaino) kaina, tūkst. Eur]]*$AF$9,2) -> 32.99 | AG11: =ROUND(DarbųĮkainiai2018[[#This Row],[Žemės ūkio mašinos (cisternos) kaina, tūkst. Eur]] * $AG$9,2) -> 10.77 | AH11: =+DarbųĮkainiai2018[[#This Row],[Išdirbio norma, ha/val.]] -> 0.36 | AI11: =+DarbųĮkainiai2018[[#This Row],[Degalų sąnaudų norma, l/ha]] -> 24.6 | AJ11: =ROUND(DarbųĮkainiai2018[[#This Row],[Išlaidos atnaujinimui, Eur/ha]]*1.35,2) -> 21.9 | AK11: =ROUND(DarbųĮkainiai2018[[#This Row],[Išlaidos remontui ir tech. aptarnavimui, Eur/ha]]*$AK$9,2) -> 21.41 | AL11: =ROUND(DarbųĮkainiai2024[[#This Row],[Degalų sąnaudų norma, l/ha]] * $AL$9,2) -> 18.45 | AM11: =ROUND(1/DarbųĮkainiai2024[[#This Row],[Išdirbio norma, ha/val.]]*$AM$9,2) -> 30.86 | AN11: =+DarbųĮkainiai2024[[#This Row],[Išlaidos atnaujinimui, Eur/ha]]+DarbųĮkainiai2024[[#This Row],[Išlaidos remontui ir tech. aptarnavimui, Eur/ha]]+DarbųĮkainiai2024[[#This Row],[Išlaidos degalams ir tepalams, Eur/ha]]+DarbųĮkainiai2024[[#This Row],[Išlaidos darbo užmokesčiui su priskaitymais, Eur/ha]] -> 92.62 | AO11: =ROUND(DarbųĮkainiai2018[[#This Row],[Kitos, Eur/ha]] * $AO$9,2) -> 5.43 | AP11: =+DarbųĮkainiai2024[[#This Row],[Kitos, Eur/ha]]+DarbųĮkainiai2024[[#This Row],[Išlaidos iš viso, Eur/ha]] -> 98.05 | AQ11: =ROUND(DarbųĮkainiai2024[[#This Row],[Savikaina, Eur/ha]]*$AQ$9,2) -> 4.9 | AR11: =+DarbųĮkainiai2024[[#This Row],[Pelnas, Eur/ha]]+DarbųĮkainiai2024[[#This Row],[Savikaina, Eur/ha]] -> 102.95 | AS11: =+DarbųĮkainiai2024[[#This Row],[Įkainis, Eur/ha]]-DarbųĮkainiai2024[[#This Row],[Pelnas, Eur/ha]]-DarbųĮkainiai2024[[#This Row],[Išlaidos atnaujinimui, Eur/ha]] -> 76.15 | AT11: =+DarbųĮkainiai2018[[#This Row],[Darbas]] -> DIRVOS DIRBIMAS | AU11: =$AU$9 -> 2024 | AV11: =+DarbųĮkainiai2018[[#This Row],[Žemės ūkio mašinų kilmė]] -> Vakarų Europos | AW11: =+DarbųĮkainiai2018[[#This Row],[Papildomas barstytubo parametras, m3]] -> 0 | AX11: =+DarbųĮkainiai2018[[#This Row],[Aktualus darbo pavadinimas]] -> Gilus arimas | AY11: =+DarbųĮkainiai2018[[#This Row],[Stulpelis1]] -> 14
A12: =ROW()-ROW(DarbųĮkainiai2018[[#Headers],[Eil. Nr.]]) -> 2 | B12: Pakabinamaisiais apverčiamaisiais plūgais | C12: 1.05 | E12: 67 | F12: 40.9 | G12: 10.92 | H12: 0.53 | I12: 24.8 | J12: 17.44 | K12: 14.93 | L12: 17.61 | M12: 8.96 | N12: 58.95 | O12: 4.72 | P12: 63.66 | Q12: 3.18 | R12: 66.84 | S12: =+DarbųĮkainiai2018[[#This Row],[Įkainis, Eur/ha]]-DarbųĮkainiai2018[[#This Row],[Pelnas, Eur/ha]]-DarbųĮkainiai2018[[#This Row],[Išlaidos atnaujinimui, Eur/ha]] -> 46.22 | T12: DIRVOS DIRBIMAS | U12: 2018 | V12: Vakarų Europos | X12: Gilus arimas | Y12: 15 | AA12: =ROW()-ROW(DarbųĮkainiai2024[[#Headers],[Eil. Nr.]]) -> 2 | AB12: =+DarbųĮkainiai2018[[#This Row],[Žemės ūkio mašina]] -> Pakabinamaisiais apverčiamaisiais plūgais | AC12: =+DarbųĮkainiai2018[[#This Row],[Darbinis plotis, m]] -> 1.05 | AD12: =+DarbųĮkainiai2018[[#This Row],[Tręšimo, išsėjimo, purškimo norma, kg/ha; Derlingumas, t/ha]] -> 0 | AE12: =+DarbųĮkainiai2018[[#This Row],[Traktoriaus (kombaino) galia, kW]] -> 67 | AF12: =ROUND(DarbųĮkainiai2018[[#This Row],[Traktoriaus (kombaino) kaina, tūkst. Eur]]*$AF$9,2) -> 53.46 | AG12: =ROUND(DarbųĮkainiai2018[[#This Row],[Žemės ūkio mašinos (cisternos) kaina, tūkst. Eur]] * $AG$9,2) -> 16.75 | AH12: =+DarbųĮkainiai2018[[#This Row],[Išdirbio norma, ha/val.]] -> 0.53 | AI12: =+DarbųĮkainiai2018[[#This Row],[Degalų sąnaudų norma, l/ha]] -> 24.8 | AJ12: =ROUND(DarbųĮkainiai2018[[#This Row],[Išlaidos atnaujinimui, Eur/ha]]*1.35,2) -> 23.54 | AK12: =ROUND(DarbųĮkainiai2018[[#This Row],[Išlaidos remontui ir tech. aptarnavimui, Eur/ha]]*$AK$9,2) -> 22.9 | AL12: =ROUND(DarbųĮkainiai2024[[#This Row],[Degalų sąnaudų norma, l/ha]] * $AL$9,2) -> 18.6 | AM12: =ROUND(1/DarbųĮkainiai2024[[#This Row],[Išdirbio norma, ha/val.]]*$AM$9,2) -> 20.96 | AN12: =+DarbųĮkainiai2024[[#This Row],[Išlaidos atnaujinimui, Eur/ha]]+DarbųĮkainiai2024[[#This Row],[Išlaidos remontui ir tech. aptarnavimui, Eur/ha]]+DarbųĮkainiai2024[[#This Row],[Išlaidos degalams ir tepalams, Eur/ha]]+DarbųĮkainiai2024[[#This Row],[Išlaidos darbo užmokesčiui su priskaitymais, Eur/ha]] -> 86 | AO12: =ROUND(DarbųĮkainiai2018[[#This Row],[Kitos, Eur/ha]] * $AO$9,2) -> 5.26 | AP12: =+DarbųĮkainiai2024[[#This Row],[Kitos, Eur/ha]]+DarbųĮkainiai2024[[#This Row],[Išlaidos iš viso, Eur/ha]] -> 91.26 | AQ12: =ROUND(DarbųĮkainiai2024[[#This Row],[Savikaina, Eur/ha]]*$AQ$9,2) -> 4.56 | AR12: =+DarbųĮkainiai2024[[#This Row],[Pelnas, Eur/ha]]+DarbųĮkainiai2024[[#This Row],[Savikaina, Eur/ha]] -> 95.82 | AS12: =+DarbųĮkainiai2024[[#This Row],[Įkainis, Eur/ha]]-DarbųĮkainiai2024[[#This Row],[Pelnas, Eur/ha]]-DarbųĮkainiai2024[[#This Row],[Išlaidos atnaujinimui, Eur/ha]] -> 67.72 | AT12: =+DarbųĮkainiai2018[[#This Row],[Darbas]] -> DIRVOS DIRBIMAS | AU12: 2024 | AV12: =+DarbųĮkainiai2018[[#This Row],[Žemės ūkio mašinų kilmė]] -> Vakarų Europos | AW12: =+DarbųĮkainiai2018[[#This Row],[Papildomas barstytubo parametras, m3]] -> 0 | AX12: =+DarbųĮkainiai2018[[#This Row],[Aktualus darbo pavadinimas]] -> Gilus arimas | AY12: =+DarbųĮkainiai2018[[#This Row],[Stulpelis1]] -> 15
A13: =ROW()-ROW(DarbųĮkainiai2018[[#Headers],[Eil. Nr.]]) -> 3 | B13: Pakabinamaisiais apverčiamaisiais plūgais | C13: 1.4 | E13: 83 | F13: 57.12 | G13: 15.16 | H13: 0.72 | I13: 23.7 | J13: 17.87 | K13: 15.29 | L13: 16.83 | M13: 7.6 | N13: 57.58 | O13: 4.61 | P13: 62.19 | Q13: 3.11 | R13: 65.3 | S13: =+DarbųĮkainiai2018[[#This Row],[Įkainis, Eur/ha]]-DarbųĮkainiai2018[[#This Row],[Pelnas, Eur/ha]]-DarbųĮkainiai2018[[#This Row],[Išlaidos atnaujinimui, Eur/ha]] -> 44.32 | T13: DIRVOS DIRBIMAS | U13: 2018 | V13: Vakarų Europos | X13: Gilus arimas | Y13: 16 | AA13: =ROW()-ROW(DarbųĮkainiai2024[[#Headers],[Eil. Nr.]]) -> 3 | AB13: =+DarbųĮkainiai2018[[#This Row],[Žemės ūkio mašina]] -> Pakabinamaisiais apverčiamaisiais plūgais | AC13: =+DarbųĮkainiai2018[[#This Row],[Darbinis plotis, m]] -> 1.4 | AD13: =+DarbųĮkainiai2018[[#This Row],[Tręšimo, išsėjimo, purškimo norma, kg/ha; Derlingumas, t/ha]] -> 0 | AE13: =+DarbųĮkainiai2018[[#This Row],[Traktoriaus (kombaino) galia, kW]] -> 83 | AF13: =ROUND(DarbųĮkainiai2018[[#This Row],[Traktoriaus (kombaino) kaina, tūkst. Eur]]*$AF$9,2) -> 74.66 | AG13: =ROUND(DarbųĮkainiai2018[[#This Row],[Žemės ūkio mašinos (cisternos) kaina, tūkst. Eur]] * $AG$9,2) -> 23.25 | AH13: =+DarbųĮkainiai2018[[#This Row],[Išdirbio norma, ha/val.]] -> 0.72 | AI13: =+DarbųĮkainiai2018[[#This Row],[Degalų sąnaudų norma, l/ha]] -> 23.7 | AJ13: =ROUND(DarbųĮkainiai2018[[#This Row],[Išlaidos atnaujinimui, Eur/ha]]*1.35,2) -> 24.12 | AK13: =ROUND(DarbųĮkainiai2018[[#This Row],[Išlaidos remontui ir tech. aptarnavimui, Eur/ha]]*$AK$9,2) -> 23.45 | AL13: =ROUND(DarbųĮkainiai2024[[#This Row],[Degalų sąnaudų norma, l/ha]] * $AL$9,2) -> 17.78 | AM13: =ROUND(1/DarbųĮkainiai2024[[#This Row],[Išdirbio norma, ha/val.]]*$AM$9,2) -> 15.43 | AN13: =+DarbųĮkainiai2024[[#This Row],[Išlaidos atnaujinimui, Eur/ha]]+DarbųĮkainiai2024[[#This Row],[Išlaidos remontui ir tech. aptarnavimui, Eur/ha]]+DarbųĮkainiai2024[[#This Row],[Išlaidos degalams ir tepalams, Eur/ha]]+DarbųĮkainiai2024[[#This Row],[Išlaidos darbo užmokesčiui su priskaitymais, Eur/ha]] -> 80.78 | AO13: =ROUND(DarbųĮkainiai2018[[#This Row],[Kitos, Eur/ha]] * $AO$9,2) -> 5.14 | AP13: =+DarbųĮkainiai2024[[#This Row],[Kitos, Eur/ha]]+DarbųĮkainiai2024[[#This Row],[Išlaidos iš viso, Eur/ha]] -> 85.92 | AQ13: =ROUND(DarbųĮkainiai2024[[#This Row],[Savikaina, Eur/ha]]*$AQ$9,2) -> 4.3 | AR13: =+DarbųĮkainiai2024[[#This Row],[Pelnas, Eur/ha]]+DarbųĮkainiai2024[[#This Row],[Savikaina, Eur/ha]] -> 90.22 | AS13: =+DarbųĮkainiai2024[[#This Row],[Įkainis, Eur/ha]]-DarbųĮkainiai2024[[#This Row],[Pelnas, Eur/ha]]-DarbųĮkainiai2024[[#This Row],[Išlaidos atnaujinimui, Eur/ha]] -> 61.8 | AT13: =+DarbųĮkainiai2018[[#This Row],[Darbas]] -> DIRVOS DIRBIMAS | AU13: 2024 | AV13: =+DarbųĮkainiai2018[[#This Row],[Žemės ūkio mašinų kilmė]] -> Vakarų Europos | AW13: =+DarbųĮkainiai2018[[#This Row],[Papildomas barstytubo parametras, m3]] -> 0 | AX13: =+DarbųĮkainiai2018[[#This Row],[Aktualus darbo pavadinimas]] -> Gilus arimas | AY13: =+DarbųĮkainiai2018[[#This Row],[Stulpelis1]] -> 16
A14: =ROW()-ROW(DarbųĮkainiai2018[[#Headers],[Eil. Nr.]]) -> 4 | B14: Pakabinamaisiais apverčiamaisiais plūgais | C14: 1.4 | E14: 102 | F14: 70.6 | G14: 15.16 | H14: 0.72 | I14: 25.8 | J14: 19.74 | K14: 16.41 | L14: 18.32 | M14: 7.6 | N14: 62.07 | O14: 4.97 | P14: 67.03 | Q14: 3.35 | R14: 70.38 | S14: =+DarbųĮkainiai2018[[#This Row],[Įkainis, Eur/ha]]-DarbųĮkainiai2018[[#This Row],[Pelnas, Eur/ha]]-DarbųĮkainiai2018[[#This Row],[Išlaidos atnaujinimui, Eur/ha]] -> 47.29 | T14: DIRVOS DIRBIMAS | U14: 2018 | V14: Vakarų Europos | X14: Gilus arimas | Y14: 17 | AA14: =ROW()-ROW(DarbųĮkainiai2024[[#Headers],[Eil. Nr.]]) -> 4 | AB14: =+DarbųĮkainiai2018[[#This Row],[Žemės ūkio mašina]] -> Pakabinamaisiais apverčiamaisiais plūgais | AC14: =+DarbųĮkainiai2018[[#This Row],[Darbinis plotis, m]] -> 1.4 | AD14: =+DarbųĮkainiai2018[[#This Row],[Tręšimo, išsėjimo, purškimo norma, kg/ha; Derlingumas, t/ha]] -> 0 | AE14: =+DarbųĮkainiai2018[[#This Row],[Traktoriaus (kombaino) galia, kW]] -> 102 | AF14: =ROUND(DarbųĮkainiai2018[[#This Row],[Traktoriaus (kombaino) kaina, tūkst. Eur]]*$AF$9,2) -> 92.27 | AG14: =ROUND(DarbųĮkainiai2018[[#This Row],[Žemės ūkio mašinos (cisternos) kaina, tūkst. Eur]] * $AG$9,2) -> 23.25 | AH14: =+DarbųĮkainiai2018[[#This Row],[Išdirbio norma, ha/val.]] -> 0.72 | AI14: =+DarbųĮkainiai2018[[#This Row],[Degalų sąnaudų norma, l/ha]] -> 25.8 | AJ14: =ROUND(DarbųĮkainiai2018[[#This Row],[Išlaidos atnaujinimui, Eur/ha]]*1.35,2) -> 26.65 | AK14: =ROUND(DarbųĮkainiai2018[[#This Row],[Išlaidos remontui ir tech. aptarnavimui, Eur/ha]]*$AK$9,2) -> 25.17 | AL14: =ROUND(DarbųĮkainiai2024[[#This Row],[Degalų sąnaudų norma, l/ha]] * $AL$9,2) -> 19.35 | AM14: =ROUND(1/DarbųĮkainiai2024[[#This Row],[Išdirbio norma, ha/val.]]*$AM$9,2) -> 15.43 | AN14: =+DarbųĮkainiai2024[[#This Row],[Išlaidos atnaujinimui, Eur/ha]]+DarbųĮkainiai2024[[#This Row],[Išlaidos remontui ir tech. aptarnavimui, Eur/ha]]+DarbųĮkainiai2024[[#This Row],[Išlaidos degalams ir tepalams, Eur/ha]]+DarbųĮkainiai2024[[#This Row],[Išlaidos darbo užmokesčiui su priskaitymais, Eur/ha]] -> 86.6 | AO14: =ROUND(DarbųĮkainiai2018[[#This Row],[Kitos, Eur/ha]] * $AO$9,2) -> 5.54 | AP14: =+DarbųĮkainiai2024[[#This Row],[Kitos, Eur/ha]]+DarbųĮkainiai2024[[#This Row],[Išlaidos iš viso, Eur/ha]] -> 92.14 | AQ14: =ROUND(DarbųĮkainiai2024[[#This Row],[Savikaina, Eur/ha]]*$AQ$9,2) -> 4.61 | AR14: =+DarbųĮkainiai2024[[#This Row],[Pelnas, Eur/ha]]+DarbųĮkainiai2024[[#This Row],[Savikaina, Eur/ha]] -> 96.75 | AS14: =+DarbųĮkainiai2024[[#This Row],[Įkainis, Eur/ha]]-DarbųĮkainiai2024[[#This Row],[Pelnas, Eur/ha]]-DarbųĮkainiai2024[[#This Row],[Išlaidos atnaujinimui, Eur/ha]] -> 65.49 | AT14: =+DarbųĮkainiai2018[[#This Row],[Darbas]] -> DIRVOS DIRBIMAS | AU14: 2024 | AV14: =+DarbųĮkainiai2018[[#This Row],[Žemės ūkio mašinų kilmė]] -> Vakarų Europos | AW14: =+DarbųĮkainiai2018[[#This Row],[Papildomas barstytubo parametras, m3]] -> 0 | AX14: =+DarbųĮkainiai2018[[#This Row],[Aktualus darbo pavadinimas]] -> Gilus arimas | AY14: =+DarbųĮkainiai2018[[#This Row],[Stulpelis1]] -> 17
